Workbook

Sheet Sheet1 (hidden)
S2: Ja | T2: economisch
S3: Nee | T3: technisch
B11: oorspronkelijke aankoopprijs van het voertuig
B13: Restwaarde van het voertuig wanneer het verkocht zal worden (in procent van de aankoopprijs)
B14: Kies "economisch" als het voertuig na een vast aantal jaren vervangen wordt. Kies "technisch" indien het voertuig na een vast aantal afgelegde kilometers vervangen wordt.
B19: aantal jaren dat het voertuig normaal gezien zal halen in het bedrijf
B21: aantal kilometers dat het voertuig normaal gezien zal halen voor zijn vervanging
B23: gemiddeld aantal gebruiksdagen per jaar van het voertuig
B27: rentevoet van de lening voor het voertuig (indien van toepassing)
B29: percentage van de aankoopwaarde van het voertuig dat met eigen kapitaal gefinancierd wordt
B31: Voer hier de rentevoet in die u zou bekomen indien u eigen kapitaal risicoloos zou beleggen (bv. rentevoet op staatslening, kasbon of spaarboekje) - voor de berekening van de opportuniteitskost
B35: liter/100 km
B37: liter/100 km
B39: liter/100 km
B47: in km
B49: in km
B79: Vul hier, indien van toepassing, de gegevens in van de aanhangwagen die u gebruikt
B94: Extra verbruik veroorzaakt door de aanhangwagen
B95: Vul hier, indien van toepassing, de gegevens in van de skibak in uw voertuig
B106: Vul hier, indien van toepassing, de gegevens in van de lift in uw voertuig

Sheet Liste (hidden)
A6: vehicule1

Sheet Navigatie
B2: ICB kostprijscalculator 5.0
C4: Navigatie
D6: 1, Input van aantal voertuigen
D7: 2. Input van gegevens over het voertuig
D8: 3. Input van gegevens over het bedrijf
D9: 4. Input van gegevens over het rijdend personeel
D10: 5. Input van bestemmingen en voertuigen
D11: 6. Input van gegevens over de rit
D12: 7. Berekening van de loonkost
D13: 8. Berekening van de totale kostprijs en de verkoopprijs
D14: 9. Overzicht van de kostprijzen

Sheet Aantal voertuigen
C2: De lijst met voertuigen instellen
C4: Aantal extra voertuigen te vermelden | E4: 1
C6: Lijst van voertuigen waarnaar niet meer moet worden verwezen
A12: vehicule1 | C12: =1 -> 1 | E12: =A12 -> vehicule1
C13: =C12+1 -> 2 | E13: =A13 -> 0
C14: =C13+1 -> 3 | E14: 0
C15: 4 | E15: 0
C16: 5 | E16: 0
C17: 6 | E17: 0
C18: 7 | E18: 0
C19: 8 | E19: 0
C20: 9 | E20: 0
C21: 10 | E21: 0
C22: 11 | E22: 0
C23: 12 | E23: 0
C24: 13 | E24: 0
C25: 14 | E25: 0 | Y25: temsa | Z25: test
C26: 15 | E26: 0
C27: 16 | E27: 0
C28: 17 | E28: 0
C29: 18 | E29: 0
C30: 19 | E30: 0
C31: 20 | E31: 0
C32: 21 | E32: 0
C33: 22 | E33: 0
C34: 23 | E34: 0
C35: 24 | E35: 0
C36: 25 | E36: 0
C37: 26 | E37: 0
C38: 27 | E38: 0
C39: 28 | E39: 0
C40: 29 | E40: 0
C41: 30 | E41: 0
C42: 31 | E42: 0
C43: 32 | E43: 0
C44: 33 | E44: 0
C45: 34 | E45: 0
C46: 35 | E46: 0
C47: 36 | E47: 0
C48: 37 | E48: 0
C49: 38 | E49: 0
C50: 39 | E50: 0
C51: 40 | E51: 0
C52: 41 | E52: 0
C53: 42 | E53: 0
C54: 43 | E54: 0
C55: 44 | E55: 0
C56: 45 | E56: 0
C57: 46 | E57: 0
C58: 47 | E58: 0
C59: 48 | E59: 0
C60: 49 | E60: 0
C61: 50 | E61: 0
C62: 51 | E62: 0
C63: 52 | E63: 0
C64: 53 | E64: 0
C65: 54 | E65: 0
C66: 55 | E66: 0
C67: 56 | E67: 0
C68: 57 | E68: 0
C69: 58 | E69: 0
C70: 59 | E70: 0
C71: 60 | E71: 0
C72: 61 | E72: 0
C73: 62 | E73: 0
C74: 63 | E74: 0
C75: 64 | E75: 0
C76: 65 | E76: 0
C77: 66 | E77: =A77 -> 0
C78: =C77+1 -> 67 | E78: 0
C79: 68 | E79: 0
C80: 69 | E80: 0
C81: 70 | E81: 0
C82: 71 | E82: 0
C83: 72 | E83: 0
C84: 73 | E84: 0
C85: 74 | E85: 0
C86: 75 | E86: 0
C87: 76 | E87: 0
C88: 77 | E88: 0
C89: 78 | E89: 0
C90: 79 | E90: 0
C91: 80 | E91: 0
C92: 81 | E92: 0
C93: 82 | E93: 0
C94: 83 | E94: 0
C95: 84 | E95: 0
C96: 85 | E96: 0
C97: 86 | E97: 0
C98: 87 | E98: 0
C99: 88 | E99: 0
C100: 89 | E100: 0
C101: 90 | E101: 0
C102: 91 | E102: 0
C103: 92 | E103: 0
C104: 93 | E104: 0
C105: 94 | E105: 0
C106: 95 | E106: 0
C107: 96 | E107: 0
C108: 97 | E108: 0
C109: 98 | E109: 0
C110: 99 | E110: 0
C111: 100 | E111: 0
C112: 101 | E112: 0
C113: 102 | E113: 0
C114: 103 | E114: 0
C115: 104 | E115: 0
C116: 105 | E116: 0
C117: 106 | E117: 0
C118: 107 | E118: 0
C119: 108 | E119: 0
C120: 109 | E120: 0
C121: 110 | E121: 0
C122: 111 | E122: 0
C123: 112 | E123: 0
C124: 113 | E124: 0
C125: 114 | E125: 0
C126: 115 | E126: 0
C127: 116 | E127: 0
C128: 117 | E128: 0
C129: 118 | E129: 0
C130: 119 | E130: 0
C131: 120 | E131: 0
C132: 121 | E132: 0
C133: 122 | E133: 0
C134: 123 | E134: 0
C135: 124 | E135: 0
C136: 125 | E136: 0
C137: 126 | E137: 0
C138: 127 | E138: 0
C139: 128 | E139: 0
C140: 129 | E140: 0
C141: 130 | E141: =A141 -> 0
C142: =C141+1 -> 131 | E142: 0
C143: 132 | E143: 0
C144: 133 | E144: 0
C145: 134 | E145: 0
C146: 135 | E146: 0
C147: 136 | E147: 0
C148: 137 | E148: 0
C149: 138 | E149: 0
C150: 139 | E150: 0
C151: 140 | E151: 0
C152: 141 | E152: 0
C153: 142 | E153: 0
C154: 143 | E154: 0
C155: 144 | E155: 0
C156: 145 | E156: 0
C157: 146 | E157: 0
C158: 147 | E158: 0
C159: 148 | E159: 0
C160: 149 | E160: 0
C161: 150 | E161: 0
C162: 151 | E162: 0
C163: 152 | E163: 0
C164: 153 | E164: 0
C165: 154 | E165: 0
C166: 155 | E166: 0
C167: 156 | E167: 0
C168: 157 | E168: 0
C169: 158 | E169: 0
C170: 159 | E170: 0
C171: 160 | E171: 0
C172: 161 | E172: 0
C173: 162 | E173: 0
C174: 163 | E174: 0
C175: 164 | E175: 0
C176: 165 | E176: 0
C177: 166 | E177: 0
C178: 167 | E178: 0
C179: 168 | E179: 0
C180: 169 | E180: 0
C181: 170 | E181: 0
C182: 171 | E182: 0
C183: 172 | E183: 0
C184: 173 | E184: 0
C185: 174 | E185: 0
C186: 175 | E186: 0
C187: 176 | E187: 0
C188: 177 | E188: 0
C189: 178 | E189: 0
C190: 179 | E190: 0
C191: 180 | E191: 0
C192: 181 | E192: 0
C193: 182 | E193: 0
C194: 183 | E194: 0
C195: 184 | E195: 0
C196: 185 | E196: 0
C197: 186 | E197: 0
C198: 187 | E198: 0
C199: 188 | E199: 0
C200: 189 | E200: 0
C201: 190 | E201: 0
C202: 191 | E202: 0
C203: 192 | E203: 0
C204: 193 | E204: 0
C205: 194 | E205: =A205 -> 0
C206: =C205+1 -> 195 | E206: 0
C207: 196 | E207: 0
C208: 197 | E208: 0
... 2014 more rows

Sheet Voertuigen
G1: 1 | J1: 77.5 | K1: 78.5 | L1: 79.5 | M1: 80.5 | N1: 81.5 | O1: 82.5 | P1: 83.5 | Q1: 84.5 | R1: 85.5 | S1: 86.5 | T1: 87.5 | U1: 88.5 | V1: 89.5 | W1: 90.5 | X1: 91.5 | Y1: 92 | Z1: 92.5 | AA1: 93 | AB1: 93.5 | AC1: 94 | AD1: 94.5 | AE1: 95 | AF1: 95.5 | AG1: 96 | AH1: 96.5 | AI1: 97 | AJ1: 97.5 | AK1: 98 | AL1: 98.5 | AM1: 99 | AN1: 99.5 | AO1: 100 | AP1: 100.5 | AQ1: 101 | AR1: 101.5 | AS1: 102 | AT1: 102.5 | AU1: 103 | AV1: 103.5 | AW1: 104 | AX1: 104.5 | AY1: 105 | AZ1: 105.5 | BA1: 106 | BB1: 106.5 | BC1: 107 | BD1: 107.5 | BE1: 108 | BF1: 108.5 | BG1: 109 | BH1: 109.5 | BI1: 110 | BJ1: 110.5 | BK1: 111 | BL1: 111.5 | BM1: 112 | BN1: 112.5 | BO1: 113 | BP1: 113.5 | BQ1: 114 | BR1: 114.5 | BS1: 115 | BT1: 115.5 | BU1: 116 | BV1: 116.5 | BW1: 117 | BX1: 117.5 | BY1: 118 | BZ1: 118.5 | CA1: 119 | CB1: 119.5 | CC1: 120 | CD1: 120.5 | CE1: 121 | CF1: 121.5 | CG1: 122 | CH1: 122.5 | CI1: 123 | CJ1: 123.5 | CK1: 124 | CL1: 124.5 | CM1: 125 | CN1: 125.5 | CO1: 126 | CP1: 126.5 | CQ1: 127 | CR1: 127.5 | CS1: 128 | CT1: 128.5 | CU1: 129 | CV1: 129.5 | CW1: 130 | CX1: 130.5 | CY1: 131 | CZ1: 131.5 | DA1: 132 | DB1: 132.5 | DC1: 133 | DD1: 133.5 | DE1: 134 | DF1: 134.5 | DG1: 135 | DH1: 135.5 | DI1: 136 | DJ1: 136.5 | DK1: 137 | DL1: 137.5 | DM1: 138 | DN1: 138.5 | DO1: 139 | DP1: 139.5 | DQ1: 140 | DR1: 140.5 | DS1: 141 | DT1: 141.5 | DU1: 142 | DV1: 142.5 | DW1: 143 | DX1: 143.5 | DY1: 144 | DZ1: 144.5 | EA1: 145 | EB1: 145.5 | EC1: 146 | ED1: 146.5 | EE1: 147 | EF1: 147.5 | EG1: 148 | EH1: 148.5 | EI1: 149 | EJ1: 149.5 | EK1: 150 | EL1: 150.5 | EM1: 151 | EN1: 151.5 | EO1: 152 | EP1: 152.5 | EQ1: 153 | ER1: 153.5 | ES1: 154 | ET1: 154.5 | EU1: 155 | EV1: 155.5 | EW1: 156 | EX1: 156.5 | EY1: 157 | EZ1: 157.5 | FA1: 158 | FB1: 158.5 | FC1: 159 | FD1: 159.5 | FE1: 160 | FF1: 160.5 | FG1: 161 | FH1: 161.5 | FI1: 162 | FJ1: 162.5 | FK1: 163 | FL1: 163.5 | FM1: 164 | FN1: 164.5 | FO1: 165 | FP1: 165.5 | FQ1: 166 | FR1: 166.5 | FS1: 167 | FT1: 167.5 | FU1: 168 | FV1: 168.5 | FW1: 169 | FX1: 169.5 | FY1: 170 | FZ1: 170.5 | GA1: 171 | GB1: 171.5 | GC1: 172 | GD1: 172.5 | GE1: 173 | GF1: 173.5 | GG1: 174 | GH1: 174.5 | GI1: 175 | GJ1: 175.5 | GK1: 176 | GL1: 176.5 | GM1: 177 | GN1: 177.5 | GO1: 178 | GP1: 178.5 | GQ1: 179 | GR1: 179.5 | GS1: 180 | GT1: 180.5 | GU1: 181 | GV1: 181.5 | GW1: 182 | GX1: 182.5 | GY1: 183 | GZ1: 183.5 | HA1: 184 | HB1: 184.5 | HC1: 185 | HD1: 185.5 | HE1: 186 | HF1: 186.5 | HG1: 187 | HH1: 187.5 | HI1: 188 | HJ1: 188.5 | HK1: 189 | HL1: 189.5 | HM1: 190 | HN1: 190.5 | HO1: 191 | HP1: 191.5 | HQ1: 192 | HR1: 192.5 | HS1: 193 | HT1: 193.5 | HU1: 194 | HV1: 194.5 | HW1: 195 | HX1: 195.5 | HY1: 196 | HZ1: 196.5 | IA1: 197 | IB1: 197.5 | IC1: 198 | ID1: 198.5 | IE1: 199 | IF1: 199.5 | IG1: 200 | IH1: 200.5 | II1: 201 | IJ1: 201.5 | IK1: 202 | IL1: 202.5 | IM1: 203 | IN1: 203.5 | IO1: 204 | IP1: 204.5 | IQ1: 205 | IR1: 205.5 | IS1: 206 | IT1: 206.5 | IU1: 207 | IV1: 207.5 | IW1: 208 | IX1: 208.5 | IY1: 209 | IZ1: 209.5 | JA1: 210 | JB1: 210.5 | JC1: 211 | JD1: 211.5 | JE1: 212 | JF1: 212.5 | JG1: 213 | JH1: 213.5 | JI1: 214 | JJ1: 214.5 | JK1: 215 | JL1: 215.5 | JM1: 216 | JN1: 216.5 | JO1: 217 | JP1: 217.5 | JQ1: 218 | JR1: 218.5 | JS1: 219 | JT1: 219.5 | JU1: 220 | JV1: 220.5 | JW1: 221 | JX1: 221.5 | JY1: 222 | JZ1: 222.5 | KA1: 223 | KB1: 223.5 | KC1: 224 | KD1: 224.5 | KE1: 225 | KF1: 225.5 | KG1: 226 | KH1: 226.5 | KI1: 227 | KJ1: 227.5 | KK1: 228 | KL1: 228.5 | KM1: 229 | KN1: 229.5 | KO1: 230 | KP1: 230.5 | KQ1: 231 | KR1: 231.5 | KS1: 232 | KT1: 232.5 | KU1: 233 | KV1: 233.5 | KW1: 234 | KX1: 234.5 | KY1: 235 | KZ1: 235.5 | LA1: 236 | LB1: 236.5 | LC1: 237 | LD1: 237.5 | LE1: 238 | LF1: 238.5 | LG1: 239 | LH1: 239.5 | LI1: 240 | LJ1: 240.5 | LK1: 241 | LL1: 241.5 | LM1: 242 | LN1: 242.5 | LO1: 243 | LP1: 243.5 | LQ1: 244 | LR1: 244.5 | LS1: 245 | LT1: 245.5 | LU1: 246 | LV1: 246.5 | LW1: 247 | LX1: 247.5 | LY1: 248 | LZ1: 248.5 | MA1: 249 | MB1: 249.5 | MC1: 250 | MD1: 250.5 | ME1: 251 | MF1: 251.5 | MG1: 252 | MH1: 252.5 | MI1: 253 | MJ1: 253.5 | MK1: 254 | ML1: 254.5 | MM1: 255 | MN1: 255.5 | MO1: 256 | MP1: 256.5 | MQ1: 257 | MR1: 257.5 | MS1: 258 | MT1: 258.5 | MU1: 259 | MV1: 259.5 | MW1: 260 | MX1: 260.5 | MY1: 261 | MZ1: 261.5 | NA1: 262 | NB1: 262.5 | NC1: 263 | ND1: 263.5 | NE1: 264 | NF1: 264.5 | NG1: 265 | NH1: 265.5 | NI1: 266 | NJ1: 266.5 | NK1: 267 | NL1: 267.5 | NM1: 268 | NN1: 268.5 | NO1: 269 | NP1: 269.5 | NQ1: 270 | NR1: 270.5 | NS1: 271 | NT1: 271.5 | NU1: 272 | NV1: 272.5 | NW1: 273 | NX1: 273.5 | NY1: 274 | NZ1: 274.5 | OA1: 275 | OB1: 275.5 | OC1: 276 | OD1: 276.5 | OE1: 277 | OF1: 277.5 | OG1: 278 | OH1: 278.5 | OI1: 279 | OJ1: 279.5 | OK1: 280 | OL1: 280.5 | OM1: 281 | ON1: 281.5 | OO1: 282 | OP1: 282.5 | OQ1: 283 | OR1: 283.5 | OS1: 284 | OT1: 284.5 | OU1: 285 | OV1: 285.5 | OW1: 286 | OX1: 286.5 | OY1: 287 | OZ1: 287.5 | PA1: 288 | PB1: 288.5 | PC1: 289 | PD1: 289.5 | PE1: 290 | PF1: 290.5 | PG1: 291 | PH1: 291.5 | PI1: 292 | PJ1: 292.5 | PK1: 293 | PL1: 293.5 | PM1: 294 | PN1: 294.5 | PO1: 295 | PP1: 295.5 | PQ1: 296 | PR1: 296.5 | PS1: 297 | PT1: 297.5 | PU1: 298 | PV1: 298.5 | PW1: 299 | PX1: 299.5 | PY1: 300 | PZ1: 300.5 | QA1: 301 | QB1: 301.5 | QC1: 302 | QD1: 302.5 | QE1: 303 | QF1: 303.5 | QG1: 304 | QH1: 304.5 | QI1: 305 | QJ1: 305.5 | QK1: 306 | QL1: 306.5 | QM1: 307 | QN1: 307.5 | QO1: 308 | QP1: 308.5 | QQ1: 309 | QR1: 309.5 | QS1: 310 | QT1: 310.5 | QU1: 311 | QV1: 311.5 | QW1: 312 | QX1: 312.5 | QY1: 313 | QZ1: 313.5 | RA1: 314 | RB1: 314.5 | RC1: 315 | RD1: 315.5 | RE1: 316 | RF1: 316.5 | RG1: 317 | RH1: 317.5 | RI1: 318 | RJ1: 318.5 | RK1: 319 | RL1: 319.5 | RM1: 320 | RN1: 320.5 | RO1: 321 | RP1: 321.5 | RQ1: 322 | RR1: 322.5 | RS1: 323 | RT1: 323.5 | RU1: 324 | RV1: 324.5 | RW1: 325 | RX1: 325.5 | RY1: 326 | RZ1: 326.5 | SA1: 327 | SB1: 327.5 | SC1: 328 | SD1: 328.5 | SE1: 329 | SF1: 329.5 | SG1: 330 | SH1: 330.5 | SI1: 331 | SJ1: 331.5 | SK1: 332 | SL1: 332.5 | SM1: 333 | SN1: 333.5 | SO1: 334 | SP1: 334.5 | SQ1: 335 | SR1: 335.5 | SS1: 336 | ST1: 336.5 | SU1: 337 | SV1: 337.5 | SW1: 338 | SX1: 338.5 | SY1: 339 | SZ1: 339.5 | TA1: 340 | TB1: 340.5 | TC1: 341 | TD1: 341.5 | TE1: 342 | TF1: 342.5 | TG1: 343 | TH1: 343.5 | TI1: 344 | TJ1: 344.5 | TK1: 345 | TL1: 345.5 | TM1: 346 | TN1: 346.5 | TO1: 347 | TP1: 347.5 | TQ1: 348 | TR1: 348.5 | TS1: 349 | TT1: 349.5 | TU1: 350 | TV1: 350.5 | TW1: 351 | TX1: 351.5 | TY1: 352 | TZ1: 352.5 | UA1: 353 | UB1: 353.5 | UC1: 354 | UD1: 354.5 | UE1: 355 | UF1: 355.5 | UG1: 356 | UH1: 356.5 | UI1: 357 | UJ1: 357.5 | UK1: 358 | UL1: 358.5 | UM1: 359 | UN1: 359.5 | UO1: 360 | UP1: 360.5 | UQ1: 361 | UR1: 361.5 | US1: 362 | UT1: 362.5 | UU1: 363 | UV1: 363.5 | UW1: 364
B2: Voertuiggegevens
C4: Datum invoer gegevens: | E4: 17/02/2022
G6: vehicule1
C9: 1. AFSCHRIJVING1 2
E11: Aankoopprijs: | I11: oorspronkelijke aankoopprijs van het voertuig
A12: vehicule1
E13: Residuele waarde: | I13: Restwaarde van het voertuig wanneer het verkocht zal worden (in procent van de aankoopprijs)
I14: Kies "economisch" als het voertuig na een vast aantal jaren vervangen wordt. Kies "technisch" indien het voertuig na een vast aantal afgelegde kilometers vervangen wordt.
E15: Type afschrijving:
G16: ,
E17: Keuze type afschrijving: | G17: 0
E19: Levensduur in jaren: | I19: aantal jaren dat het voertuig normaal gezien zal halen in het bedrijf
E21: Levensduur in kilometers: | I21: aantal kilometers dat het voertuig normaal gezien zal halen voor zijn vervanging
E23: Aantal gebruiksdagen/jaar: | I23: gemiddeld aantal gebruiksdagen per jaar van het voertuig
C25: 2. FINANCIERING
E27: Rentevoet lening voertuig: | I27: rentevoet van de lening voor het voertuig (indien van toepassing)
E29: Percentage autofinanciering voertuig: | I29: percentage van de aankoopwaarde van het voertuig dat met eigen kapitaal gefinancierd wordt
E31: Risicoloze rentevoet: | I31: Voer hier de rentevoet in die u zou bekomen indien u eigen kapitaal risicoloos zou beleggen (bv. rentevoet op staatslening, kasbon of spaarboekje) - voor de berekening van de opportuniteitskost
C33: 3. VERBRUIK
E35: Verbruik diesel: | I35: liter/100 km
E37: Verbruik olie: | I37: liter/100 km
E39: Verbruik Adblue: | I39: liter/100 km
C41: 4. BANDEN
E43: Aantal banden vooraan:
E45: Aantal banden achteraan:
E47: Levensduur banden vooraan: | I47: in km
E49: Levensduur banden achteraan: | I49: in km
E51: Eenheidsprijs banden:
C53: 5. VERZEKERINGEN
E56: Eventuele andere verzekeringen:
C58: 6. ANDERE VASTE KOSTEN VERBONDEN AAN HET VOERTUIG
E61: Vaste kosten
C63: 7. OPTIES
E65: Heeft uw voertuig een aanhangwagen?
E70: Heeft uw voertuig een skibak?
E74: Heeft uw voertuig een lift?
C77: OPTIE 1: AANHANGWAGEN
E79: Aantal gebuiksdagen/jaar van de aanhangwagen: | I79: Vul hier, indien van toepassing, de gegevens in van de aanhangwagen die u gebruikt
E81: Aankoopprijs :
E83: Levensduur in jaren:
E85: Premie Burgelijke Aansprakelijkheid aanhangwagen:
E87: Verkeersbelasting:
E89: Jaarlijks onderhoud:
E91: Keuring:
E94: Extra verbruik | I94: Extra verbruik veroorzaakt door de aanhangwagen
C95: OPTIE 2: SKIBAK | I95: Vul hier, indien van toepassing, de gegevens in van de skibak in uw voertuig
E97: Aantal gebuiksdagen/jaar van de skibak:
E99: Aankoopprijs:
E101: Levensduur in jaren:
E103: kost montage/demontage:
C106: OPTIE 3: LIFT | I106: Vul hier, indien van toepassing, de gegevens in van de lift in uw voertuig
E108: Aantal gebuiksdagen/jaar van de lift:
E110: Aankoopprijs lift:
E112: Levensduur in jaren:
E114: kost montage/demontage:
C116: 1 Indien u uw voertuig zowel voor ongeregelde als geregelde diensten gebruikt dient u de gegevens voor beide activiteiten samen in te geven.
C117: 2 Hou hier rekening met het werkelijke aantal jaren dat het voertuig in het bedrijf blijft, niet met de boekhoudkundige afschrijving

Sheet Bedrijf
B2: Bedrijfsgegevens*
C3: * In het geval het bedrijf niet enkel autocaractiviteiten doet: probeer in the schatten welk deel van deze kosten toe te wijzen is aan de autocaractiviteit
B5: Datum invoer gegevens: | G5: Vul hier de gegevens in:
C7: 1. VLOOT
E9: Aantal voertuigen: | I9: Totaal aantal voertuigen in het bedrijf
E11: Totaal aantal kilometers per jaar (alle voertuigen):
C13: 2. ONDERHOUD
E15: Onderhoud en herstellingen door derden | I15: Bedrag per jaar voor onderhoud van de voertuigen uitgevoerd door derden (buiten het bedrijf)
E17: Wisselstukken | I17: Voer hier het bedrag in dat u per jaar betaald voor wisselstukken voor al uw voertuigen
E19: Garagepersoneel | I19: Voer hier de jaarlijkse loonkost in van alle mecaniciens tewerkgesteld in het bedrijf
C21: 3. VERBRUIK
E23: Prijs diesel | I23: Prijs per liter
E25: Prijs olie | I25: Prijs per liter
E27: Prijs adblue | I27: Prijs per liter
C29: 4. ANDERE VASTE KOSTEN VERBONDEN AAN HET BEDRIJF
E32: Vaste kosten verbonden aan het bedrijf | I32: Jaarlijkse kost van bijvoorbeeld kuisfirma,...

Sheet Rijdend personeel
B2: Gegevens over de loonkosten
C4: Datum invoer gegevens: | G4: Vul hier de gegevens in:
C6: 1. BRUTO LONEN VOLGENS DIENSTTIJD
C8: Indien slechts 1 chauffeur:
E9: <= 6 u: | G9: 83.39
E11: > 6 u en <= 12 u: | G11: 137.34
E13: per u > 12 u: | G13: 15.2
C15: Indien meerdere chauffeurs:
E16: 11 u: | G16: 111.75
E18: 12 u: | G18: 123.24
E20: 13 u: | G20: 134.87
E22: 14 u: | G22: 146.4
E24: 15 u: | G24: 157.99
E26: 16 u: | G26: 169.91
E28: 17 u: | G28: 181.02
E30: 18 u: | G30: 192.69
E32: 19 u: | G32: 204.15
E34: 20 u: | G34: 215.8
E36: 21 u: | G36: 227.41
C38: 2. ANDERE LOONCOMPONENTEN (specifiek voor autocarchauffeurs)
E40: ARAB vergoeding: | G40: 2.24 | I40: Bedrag per uur
E42: Anciënniteitspremie: | G42: 2.68 | I42: Bedrag per prestatie
E44: Eco-cheques: | G44: 125 | I44: Jaarlijks bedrag voor een voltijds equivalent
E46: Eindejaarspremie: | G46: 2640.61 | I46: Jaarlijks bedrag voor een voltijds equivalent
E48: Compensatie zondagsrust: | G48: 137.34
E50: Inactiviteitsdag buitenland: | G50: 113.08
E52: RSZ bijdrage werkgever: | I52: Percentage op brutoloon voor de werkgever
E54: Verzekering woon-werk: | I54: Jaarlijks bedrag voor een voltijds equivalent
E56: Wetsverzekering (Arbeidsongevallen): | I56: Jaarlijks bedrag voor een voltijds equivalent
E58: Bijstandsverzekering chauffeur: | I58: Jaarlijks bedrag voor een voltijds equivalent
E60: Medisch onderzoek: | I60: Jaarlijks bedrag voor een voltijds equivalent
E62: Ziekte en klein verlet: | I62: Jaarlijks bedrag voor een voltijds equivalent
E64: Permanente vorming: | I64: Jaarlijks bedrag voor een voltijds equivalent
E66: Overige: | I66: Jaarlijks bedrag voor een voltijds equivalent (kledij, rijbewijs, economische werkloosheid, ...)
E68: Effectief factureerbare prestatiedagen: | I68: Effectief aantal werkdagen gepresteerd per jaar voor één voltijdse chauffeur
E70: Bedrag maaltijdcheque | I70: Kost van een maltijdcheque voor de werkgever

Sheet Bestemmingen
B2: Bestemmingen en voertuigen
A3: $A$3 | B3: Véhicules et destinations
B4: Véhicules et destinations
C6: Reis | E6: Schrijf hieronder de steden van vertrek | G6: Sélectionnez le pays de départ | I6: Schrijf de aankomststeden hieronder op | K6: Sélectionnez le pays d'arrivée | M6: Kilometers | O6: Selecteer het gebruikte voertuig
C8: Reis 1 | G8: Belgique | K8: Luxembourg | O8: a | Q8: 1 | S8: =IFERROR(VLOOKUP(Bestemmingen!Q8,'Aantal voertuigen'!$C$12:$E$2222,3,FALSE),"") -> vehicule1 | W8: =TRIM(I8) -> 
U9: 1 | FR9: 1
C10: Reis 2 | G10: Belgique | K10: Belgique | O10: c | Q10: 2 | S10: =IFERROR(VLOOKUP(Bestemmingen!Q10,'Aantal voertuigen'!$C$12:$E$2222,3,FALSE),"") -> 0 | W10: =TRIM(I10) -> 
U11: 1
C12: Reis 3 | G12: Belgique | K12: Belgique | O12: b | Q12: 1 | S12: =IFERROR(VLOOKUP(Bestemmingen!Q12,'Aantal voertuigen'!$C$12:$E$2222,3,FALSE),"") -> vehicule1 | W12: =TRIM(I12) -> 
U13: 5
C14: Reis 4 | G14: Allemagne | K14: Belgique | O14: vehicule1 | Q14: 1 | S14: =IFERROR(VLOOKUP(Bestemmingen!Q14,'Aantal voertuigen'!$C$12:$E$2222,3,FALSE),"") -> vehicule1 | W14: =TRIM(I14) -> 
U15: 2
C16: Reis 5 | G16: Belgique | K16: Ukraine | O16: vehicule2 | Q16: 1 | S16: =IFERROR(VLOOKUP(Bestemmingen!Q16,'Aantal voertuigen'!$C$12:$E$2222,3,FALSE),"") -> vehicule1 | W16: =TRIM(I16) -> 
U17: 4
E39: =IF(E8<>"",E8,"") ->  | F39: =IF(F8<>"",F8,"") ->  | G39: Belgique | I39: =IF(I8<>"",I8,"") ->  | M39: 772 km
E40: =IF(E10<>"",E10,"") ->  | F40: =IF(F10<>"",F10,"") ->  | G40: Belgique | I40: =IF(I10<>"",I10,"") ->  | M40: 772 km
E41: =IF(E12<>"",E12,"") ->  | F41: =IF(F12<>"",F12,"") ->  | G41: Belgique
E42: =IF(E14<>"",E14,"") ->  | F42: =IF(F14<>"",F14,"") ->  | G42: Allemagne | I42: =IF(I14<>"",I14,"") ->  | M42: 1,647 km
E43: =IF(E16<>"",E16,"") ->  | F43: =IF(F16<>"",F16,"") ->  | G43: Belgique | I43: =IF(I16<>"",I16,"") ->  | M43: 582 km

Sheet VOYAGE (hidden)
B2: Données du voyage
C4: Date d'introduction des données: | F4: --/--/--
H6: Introduisez ici les données pour les différents jours du voyage. En plaçant la flèche de la souris sur le petit triangle rouge, vous recevrez de plus amples informations sur un poste spécifique
D7: nombre de jours | E7: 1
D9: hide | F9: 0 | G9: 1 | H9: 2 | I9: 3 | J9: 4 | K9: 5 | L9: 6 | M9: 7 | N9: 8 | O9: 9 | P9: 10 | Q9: 11 | R9: 12 | S9: 13 | T9: 14
D10: hide | F10: =IF($E$7>F9,1,0) -> 1 | G10: =IF($E$7>G9,1,0) -> 0 | H10: 0 | I10: 0 | J10: 0 | K10: 0 | L10: 0 | M10: 0 | N10: 0 | O10: 0 | P10: 0 | Q10: 0 | R10: 0 | S10: 0 | T10: 0
Y11: 0
F12: jour | G12: jour | H12: jour | I12: jour | J12: jour | K12: jour | L12: jour | M12: jour | N12: jour | O12: jour | P12: jour | Q12: jour | R12: jour | S12: jour | T12: jour | Y12: 1
F13: 1 | G13: 2 | H13: 3 | I13: 4 | J13: 5 | K13: 6 | L13: 7 | M13: 8 | N13: 9 | O13: 10 | P13: 11 | Q13: 12 | R13: 13 | S13: 14 | T13: 15 | Y13: 2 | Z13: Belgique
D14: nombre de kilomètres: | F14: 100 | G14: 100 | H14: 100 | Y14: 3 | Z14: Autre
D15: nombre de chauffeurs: | F15: 2 | G15: 1
D16: pays (principal) d'exécution: | F16: Belgique
D17: temps de service CH SIMPLE (h:min): | F17: 05:00:00 | X17: =IF(F15>0,1,0) -> 1 | Y17: =IF(G15>0,1,0) -> 1 | Z17: 0 | AA17: 0 | AB17: 0 | AC17: 0 | AD17: 0 | AE17: 0 | AF17: 0 | AG17: 0 | AH17: 0 | AI17: 0 | AJ17: 0 | AK17: 0 | AL17: 0
D18: temps de service CH1 DOUBLE (h:min): | F18: 04:00:00 | X18: =IF(F15>1,1,0) -> 1 | Y18: =IF(G15>1,1,0) -> 0 | Z18: 0 | AA18: 0 | AB18: 0 | AC18: 0 | AD18: 0 | AE18: 0 | AF18: 0 | AG18: 0 | AH18: 0 | AI18: 0 | AJ18: 0 | AK18: 0 | AL18: 0
D19: temps de service CH2 DOUBLE (h:min): | F19: 02:00:00 | X19: =IF(F15=3,1,0) -> 0 | Y19: =IF(G15=3,1,0) -> 0 | Z19: 0 | AA19: 0 | AB19: 0 | AC19: 0 | AD19: 0 | AE19: 0 | AF19: 0 | AG19: 0 | AH19: 0 | AI19: 0 | AJ19: 0 | AK19: 0 | AL19: 0
D20: jour(s) de compensation travail dimanche: | F20: 1 | X20: =IF(F20="ja",'Rijdend personeel'!$G$48,0) -> 0 | Y20: =IF(G20="ja",'Rijdend personeel'!$G$48,0) -> 0 | Z20: =IF(H20="ja",'Rijdend personeel'!$G$48,0) -> 0 | AA20: =IF(I20="ja",'Rijdend personeel'!$G$48,0) -> 0 | AB20: =IF(J20="ja",'Rijdend personeel'!$G$48,0) -> 0 | AC20: =IF(K20="ja",'Rijdend personeel'!$G$48,0) -> 0 | AD20: =IF(L20="ja",'Rijdend personeel'!$G$48,0) -> 0 | AE20: =IF(M20="ja",'Rijdend personeel'!$G$48,0) -> 0 | AF20: =IF(N20="ja",'Rijdend personeel'!$G$48,0) -> 0 | AG20: =IF(O20="ja",'Rijdend personeel'!$G$48,0) -> 0 | AH20: =IF(P20="ja",'Rijdend personeel'!$G$48,0) -> 0 | AI20: =IF(Q20="ja",'Rijdend personeel'!$G$48,0) -> 0 | AJ20: =IF(R20="ja",'Rijdend personeel'!$G$48,0) -> 0 | AK20: =IF(S20="ja",'Rijdend personeel'!$G$48,0) -> 0 | AL20: =IF(T20="ja",'Rijdend personeel'!$G$48,0) -> 0
D21: jour d’inactivité à l'étranger: | F21: 1 | X21: =IF(F21="ja",'Rijdend personeel'!$G$50,0) -> 0 | Y21: =IF(G21="ja",'Rijdend personeel'!$G$50,0) -> 0 | Z21: =IF(H21="ja",'Rijdend personeel'!$G$50,0) -> 0 | AA21: =IF(I21="ja",'Rijdend personeel'!$G$50,0) -> 0 | AB21: =IF(J21="ja",'Rijdend personeel'!$G$50,0) -> 0 | AC21: =IF(K21="ja",'Rijdend personeel'!$G$50,0) -> 0 | AD21: =IF(L21="ja",'Rijdend personeel'!$G$50,0) -> 0 | AE21: =IF(M21="ja",'Rijdend personeel'!$G$50,0) -> 0 | AF21: =IF(N21="ja",'Rijdend personeel'!$G$50,0) -> 0 | AG21: =IF(O21="ja",'Rijdend personeel'!$G$50,0) -> 0 | AH21: =IF(P21="ja",'Rijdend personeel'!$G$50,0) -> 0 | AI21: =IF(Q21="ja",'Rijdend personeel'!$G$50,0) -> 0 | AJ21: =IF(R21="ja",'Rijdend personeel'!$G$50,0) -> 0 | AK21: =IF(S21="ja",'Rijdend personeel'!$G$50,0) -> 0 | AL21: =IF(T21="ja",'Rijdend personeel'!$G$50,0) -> 0
D22: % gasoil acheté à l'étranger: | F22: 0.6
D23: coût gasoil à l'étranger: | F23: 40
D24: % gasoil acheté à l'entreprise: | F24: =IF(F10=0,0,IF((1-F22)=0,"0%",1-F22)) -> 0.4 | G24: =IF(G10=0,0,IF((1-G22)=0,"0%",1-G22)) -> 0 | H24: 0 | I24: 0 | J24: 0 | K24: 0 | L24: 0 | M24: 0 | N24: 0 | O24: 0 | P24: 0 | Q24: 0 | R24: 0 | S24: 0 | T24: 0
D25: coût gasoil à l'entreprise: | F25: =IF(F10>0,Bedrijf!$G$23,"") -> 0 | G25: =IF(G10>0,Bedrijf!$G$23,"") ->  | H25: =IF(H10>0,Bedrijf!$G$23,"") ->  | I25: =IF(I10>0,Bedrijf!$G$23,"") ->  | J25: =IF(J10>0,Bedrijf!$G$23,"") ->  | K25: =IF(K10>0,Bedrijf!$G$23,"") ->  | L25: =IF(L10>0,Bedrijf!$G$23,"") ->  | M25: =IF(M10>0,Bedrijf!$G$23,"") ->  | N25: =IF(N10>0,Bedrijf!$G$23,"") ->  | O25: =IF(O10>0,Bedrijf!$G$23,"") ->  | P25: =IF(P10>0,Bedrijf!$G$23,"") ->  | Q25: =IF(Q10>0,Bedrijf!$G$23,"") ->  | R25: =IF(R10>0,Bedrijf!$G$23,"") ->  | S25: =IF(S10>0,Bedrijf!$G$23,"") ->  | T25: =IF(T10>0,Bedrijf!$G$23,"") -> 
D26: coûts spécifique du voyage: | F26: 123
D27: le véhicule est-il aussi employé pour un autre voyage ce jour?
F28: non | X28: oui
D29: % du coût fixe pour ce voyage-ci | F29: 0.4 | X29: non
F31: =IF(F28="oui",F29,1) -> 1 | G31: =IF(G28="oui",G29,1) -> 1 | H31: =IF(H28="oui",H29,1) -> 1 | I31: 1 | J31: 1 | K31: 1 | L31: 1 | M31: 1 | N31: 1 | O31: 1 | P31: 1 | Q31: 1 | R31: 1 | S31: 1 | T31: 1

Sheet Reis
B2: Reisgegevens | Y2: =IF(Reis!F24>0,"",IF(AND(Reis!AC14=0,Reis!AD14=1,Reis!F21*24>=3,Reis!F21*24+Reis!E19*24>6),50,IF(AND(Reis!AC14=0,Reis!AD14=1,Reis!F21*24>=3,Reis!F21*24+Reis!E19*24<=6),30,IF(AND(Reis!AC14=0,Reis!AD14=1,Reis!F22*24>=3,Reis!F22*24+Reis!E20*24>6),50,IF(AND(Reis!AC14=0,Reis!AD14=1,Reis!F22*24>=3,Reis!F22*24+Reis!E20*24<=6),30,IF(AND(Reis!AC14=0,Reis!AD14=1,Reis!F23*24>=3,Reis!F23*24+Reis!E21*24>6),50,IF(AND(Reis!AC14=0,Reis!AD14=1,Reis!F23*24>=3,Reis!F23*24+Reis!E21*24<=6),30,IF(AND(Reis!AD14=1,Reis!F21*24<=6,Reis!F21*24>0),30,IF(AND(Reis!AD14=1,Reis!F21*24>6,Reis!F21*24>0),50,IF(AND(Reis!AD14=1,Reis!F22*24<=6,Reis!F22*24>0),30,IF(AND(Reis!AD14=1,Reis!F22*24>6,Reis!F22*24>0),50,IF(AND(Reis!AD14=1,Reis!F23*24<=6,Reis!F23*24>0),30,IF(AND(Reis!AD14=1,Reis!F23*24>6,Reis!F23*24>0),50,""))))))))))))) -> 
D7: =Bestemmingen!W8 ->  | E7: =Bestemmingen!S8 -> vehicule1
H10: Vul hier de gegevens in voor de verschillende dagen van de rit. Door met de muis over het rode driehoekje te bewegen krijgt u meer uitleg over een specifiek gegeven. | Y10: =IF(Reis!F24>0,"",IF(AND(Reis!AC14=0,Reis!AD14=1,Reis!F21*24>=3,Reis!F21*24+Reis!E21*24>6),50,IF(AND(Reis!AC14=0,Reis!AD14=1,Reis!F21*24>=3,Reis!F21*24+Reis!E21*24<=6),30,IF(AND(Reis!AC14=0,Reis!AD14=1,Reis!F22*24>=3,Reis!F22*24+Reis!E22*24>6),50,IF(AND(Reis!AC14=0,Reis!AD14=1,Reis!F22*24>=3,Reis!F22*24+Reis!E22*24<=6),30,IF(AND(Reis!AC14=0,Reis!AD14=1,Reis!F23*24>=3,Reis!F23*24+Reis!E23*24>6),50,IF(AND(Reis!AC14=0,Reis!AD14=1,Reis!F23*24>=3,Reis!F23*24+Reis!E23*24<=6),30,IF(AND(Reis!AD14=1,Reis!F21*24<=6,Reis!F21*24>0),30,IF(AND(Reis!AD14=1,Reis!F21*24>6,Reis!F21*24>0),50,IF(AND(Reis!AD14=1,Reis!F22*24<=6,Reis!F22*24>0),30,IF(AND(Reis!AD14=1,Reis!F22*24>6,Reis!F22*24>0),50,IF(AND(Reis!AD14=1,Reis!F23*24<=6,Reis!F23*24>0),30,IF(AND(Reis!AD14=1,Reis!F23*24>6,Reis!F23*24>0),50,""))))))))))))) -> 
D11: aantal dagen | E11: 1 | AD11: Jour 1 | AE11: Jour 2 | AF11: Jour 3 | AG11: Jour 4 | AH11: Jour 5 | AI11: Jour 6 | AJ11: Jour 7 | AK11: Jour 8 | AL11: Jour 9 | AM11: Jour 10 | AN11: Jour 11 | AO11: Jour 12 | AP11: Jour 13 | AQ11: Jour 14 | AR11: Jour 15
D12: hide | F12: 0 | G12: 1 | H12: 2 | I12: 3 | J12: 4 | K12: 5 | L12: 6 | M12: 7 | N12: 8 | O12: 9 | P12: 10 | Q12: 11 | R12: 12 | S12: 13 | T12: 14
D13: hide | F13: =IF(E11>F12,1,0) -> 1 | G13: =IF($E$11>G12,1,0) -> 0 | H13: 0 | I13: 0 | J13: 0 | K13: 0 | L13: 0 | M13: 0 | N13: 0 | O13: 0 | P13: 0 | Q13: 0 | R13: 0 | S13: 0 | T13: 0
Y14: 0 | AD14: FALSE | AE14: FALSE | AF14: FALSE | AG14: TRUE | AH14: TRUE | AI14: TRUE | AJ14: TRUE | AK14: TRUE | AL14: TRUE | AM14: TRUE | AN14: TRUE | AO14: TRUE | AP14: TRUE | AQ14: TRUE | AR14: TRUE
F15: dag | G15: dag | H15: dag | I15: dag | J15: dag | K15: dag | L15: dag | M15: dag | N15: dag | O15: dag | P15: dag | Q15: dag | R15: dag | S15: dag | T15: dag | AD15: =IF(AD14=TRUE,1,0) -> 0 | AE15: =IF(AE14=TRUE,1,0) -> 0 | AF15: 0 | AG15: 1 | AH15: 1 | AI15: 1 | AJ15: 1 | AK15: 1 | AL15: 1 | AM15: 1 | AN15: 1 | AO15: 1 | AP15: 1 | AQ15: 1 | AR15: 1
F16: =1 -> 1 | G16: 2 | H16: 3 | I16: 4 | J16: 5 | K16: 6 | L16: 7 | M16: 8 | N16: 9 | O16: 10 | P16: 11 | Q16: 12 | R16: 13 | S16: 14 | T16: 15 | Y16: 1 | AC16: Montant prime | AD16: jour 1 | AE16: jour 2 | AF16: jour 3 | AG16: jour 4 | AH16: jour 5 | AI16: jour 6 | AJ16: jour 7 | AK16: jour 8 | AL16: jour 9 | AM16: jour 10 | AN16: jour 11 | AO16: jour 12 | AP16: jour 13 | AQ16: jour 14 | AR16: jour 15
F17: Zondag /feestdag? | G17: Zondag /feestdag? | H17: Zondag /feestdag? | I17: Zondag /feestdag? | J17: Zondag /feestdag? | K17: Zondag /feestdag? | L17: Zondag /feestdag? | M17: Zondag /feestdag? | N17: Zondag /feestdag? | O17: Zondag /feestdag? | P17: Zondag /feestdag? | Q17: Zondag /feestdag? | R17: Zondag /feestdag? | S17: Zondag /feestdag? | T17: Zondag /feestdag? | Y17: 2 | Z17: België | AC17: 1 seul chauffeur | AD17: =IF(F24>0,"",IF(AND(F19=1,AC15=0,AD15=1,F21*24>=3,F21*24+E21*24>6),50,IF(AND(F19=1,AC15=0,AD15=1,F21*24>=3,F21*24+E21*24<=6),30,IF(AND(F19=1,AD15=1,F21*24<=6,F21*24>0),30,IF(AND(F19=1,AD15=1,F21*24>6,F21*24>0),50,IF(AND(F19=3,AC15=0,AD15=1,F21*24>=3,F21*24+E21*24>6),50,IF(AND(F19=3,AC15=0,AD15=1,F21*24>=3,F21*24+E21*24<=6),30,IF(AND(F19=3,AD15=1,F21*24<=6,F21*24>0),30,IF(AND(F19=3,AD15=1,F21*24>6,F21*24>0),50,0))))))))) -> 0 | AE17: =IF(G24>0,"",IF(AND(G19=1,AD15=0,AE15=1,G21*24>=3,G21*24+F21*24>6),50,IF(AND(G19=1,AD15=0,AE15=1,G21*24>=3,G21*24+F21*24<=6),30,IF(AND(G19=1,AE15=1,G21*24<=6,G21*24>0),30,IF(AND(G19=1,AE15=1,G21*24>6,G21*24>0),50,IF(AND(G19=3,AD15=0,AE15=1,G21*24>=3,G21*24+F21*24>6),50,IF(AND(G19=3,AD15=0,AE15=1,G21*24>=3,G21*24+F21*24<=6),30,IF(AND(G19=3,AE15=1,G21*24<=6,G21*24>0),30,IF(AND(G19=3,AE15=1,G21*24>6,G21*24>0),50,0))))))))) -> 0 | AF17: 0 | AG17: 0 | AH17: 0 | AI17: 0 | AJ17: 0 | AK17: 0 | AL17: 0 | AM17: 0 | AN17: 0 | AO17: 0 | AP17: 0 | AQ17: 0 | AR17: 0
D18: aantal km: | Y18: 3 | Z18: Andere | AC18: 2 chauffeur: ch1 | AD18: =IF(F24>0,"",IF(AND(F19>1,AC15=0,AD15=1,F22*24>=3,F22*24+E22*24>6),50,IF(AND(F19>1,AC15=0,AD15=1,F22*24>=3,F22*24+E22*24<=6),30,IF(AND(F19>1,AD15=1,F22*24<=6,F22*24>0),30,IF(AND(F19>1,AD15=1,F22*24>6,F22*24>0),50,0))))) -> 0 | AE18: =IF(G24>0,"",IF(AND(G19>1,AD15=0,AE15=1,G22*24>=3,G22*24+F22*24>6),50,IF(AND(G19>1,AD15=0,AE15=1,G22*24>=3,G22*24+F22*24<=6),30,IF(AND(G19>1,AD15=0,AE15=1,G22*24<3),0,IF(AND(G19>1,AE15=1,G22*24<=6,G22*24>0),30,IF(AND(G19>1,AE15=1,G22*24>6,G22*24>0),50,0)))))) -> 0 | AF18: =IF(H24>0,"",IF(AND(H19>1,AE15=0,AF15=1,H22*24>=3,H22*24+G22*24>6),50,IF(AND(H19>1,AE15=0,AF15=1,H22*24>=3,H22*24+G22*24<=6),30,IF(AND(H19>1,AE15=0,AF15=1,H22*24<3),0,IF(AND(H19>1,AF15=1,H22*24<=6,H22*24>0),30,IF(AND(H19>1,AF15=1,H22*24>6,H22*24>0),50,0)))))) -> 0 | AG18: 0 | AH18: 0 | AI18: 0 | AJ18: 0 | AK18: 0 | AL18: 0 | AM18: 0 | AN18: 0 | AO18: 0 | AP18: 0 | AQ18: 0 | AR18: 0
D19: aantal chauffeurs: | AC19: 2 chauffeur: ch2 | AD19: =IF(F24>0,"",IF(AND(F19>1,AC15=0,AD15=1,F23*24>=3,F23*24+E23*24>6),50,IF(AND(F19>1,AC15=0,AD15=1,F23*24>=3,F23*24+E23*24<=6),30,IF(AND(F19>1,AD15=1,F23*24<=6,F23*24>0),30,IF(AND(F19>1,AD15=1,F23*24>6,F23*24>0),50,0))))) -> 0 | AE19: =IF(G24>0,"",IF(AND(G19>1,AD15=0,AE15=1,G23*24>=3,G23*24+F23*24>6),50,IF(AND(G19>1,AD15=0,AE15=1,G23*24>=3,G23*24+F23*24<=6),30,IF(AND(G19>1,AD15=0,AE15=1,G23*24<3),0,IF(AND(G19>1,AE15=1,G23*24<=6,G23*24>0),30,IF(AND(G19>1,AE15=1,G23*24>6,G23*24>0),50,0)))))) -> 0 | AF19: =IF(H24>0,"",IF(AND(H19>1,AE15=0,AF15=1,H23*24>=3,H23*24+G23*24>6),50,IF(AND(H19>1,AE15=0,AF15=1,H23*24>=3,H23*24+G23*24<=6),30,IF(AND(H19>1,AE15=0,AF15=1,H23*24<3),0,IF(AND(H19>1,AF15=1,H23*24<=6,H23*24>0),30,IF(AND(H19>1,AF15=1,H23*24>6,H23*24>0),50,0)))))) -> 0 | AG19: 0 | AH19: 0 | AI19: 0 | AJ19: 0 | AK19: 0 | AL19: 0 | AM19: 0 | AN19: 0 | AO19: 0 | AP19: 0 | AQ19: 0 | AR19: 0
D20: land van uitvoering (hoofdzakelijk): | F20: België | G20: Autre | H20: Autre
D21: diensttijd CH ENKEL (uu:mm): | X21: =IF(F19>0,1,0) -> 0 | Y21: =IF(G19>0,1,0) -> 0 | Z21: 0 | AA21: 0 | AB21: 0 | AC21: 0 | AD21: 0 | AE21: 0 | AF21: 0 | AG21: 0 | AH21: 0 | AI21: 0 | AJ21: 0 | AK21: 0 | AL21: 0
D22: diensttijd CH1 DUBBEL (uu:mm): | X22: =IF(F19>1,1,0) -> 0 | Y22: =IF(G19>1,1,0) -> 0 | Z22: 0 | AA22: 0 | AB22: 0 | AC22: 0 | AD22: 0 | AE22: 0 | AF22: 0 | AG22: 0 | AH22: 0 | AI22: 0 | AJ22: 0 | AK22: 0 | AL22: 0
D23: diensttijd CH2 DUBBEL (uu:mm): | X23: =IF(F19=3,1,0) -> 0 | Y23: =IF(G19=3,1,0) -> 0 | Z23: 0 | AA23: 0 | AB23: 0 | AC23: 0 | AD23: 0 | AE23: 0 | AF23: 0 | AG23: 0 | AH23: 0 | AI23: 0 | AJ23: 0 | AK23: 0 | AL23: 0
D24: compensatie zondagsrust | X24: =IF(F24="ja",'Rijdend personeel'!$G$48,0) -> 0 | Y24: =IF(G24="ja",'Rijdend personeel'!$G$48,0) -> 0 | Z24: =IF(H24="ja",'Rijdend personeel'!$G$48,0) -> 0 | AA24: =IF(I24="ja",'Rijdend personeel'!$G$48,0) -> 0 | AB24: =IF(J24="ja",'Rijdend personeel'!$G$48,0) -> 0 | AC24: =IF(K24="ja",'Rijdend personeel'!$G$48,0) -> 0 | AD24: =IF(L24="ja",'Rijdend personeel'!$G$48,0) -> 0 | AE24: =IF(M24="ja",'Rijdend personeel'!$G$48,0) -> 0 | AF24: =IF(N24="ja",'Rijdend personeel'!$G$48,0) -> 0 | AG24: =IF(O24="ja",'Rijdend personeel'!$G$48,0) -> 0 | AH24: =IF(P24="ja",'Rijdend personeel'!$G$48,0) -> 0 | AI24: =IF(Q24="ja",'Rijdend personeel'!$G$48,0) -> 0 | AJ24: =IF(R24="ja",'Rijdend personeel'!$G$48,0) -> 0 | AK24: =IF(S24="ja",'Rijdend personeel'!$G$48,0) -> 0 | AL24: =IF(T24="ja",'Rijdend personeel'!$G$48,0) -> 0
D25: inactiviteitsdag buitenland | F25: 0 | X25: =IF(F25="ja",'Rijdend personeel'!$G$50,0) -> 0 | Y25: =IF(G25="ja",'Rijdend personeel'!$G$50,0) -> 0 | Z25: =IF(H25="ja",'Rijdend personeel'!$G$50,0) -> 0 | AA25: =IF(I25="ja",'Rijdend personeel'!$G$50,0) -> 0 | AB25: =IF(J25="ja",'Rijdend personeel'!$G$50,0) -> 0 | AC25: =IF(K25="ja",'Rijdend personeel'!$G$50,0) -> 0 | AD25: =IF(L25="ja",'Rijdend personeel'!$G$50,0) -> 0 | AE25: =IF(M25="ja",'Rijdend personeel'!$G$50,0) -> 0 | AF25: =IF(N25="ja",'Rijdend personeel'!$G$50,0) -> 0 | AG25: =IF(O25="ja",'Rijdend personeel'!$G$50,0) -> 0 | AH25: =IF(P25="ja",'Rijdend personeel'!$G$50,0) -> 0 | AI25: =IF(Q25="ja",'Rijdend personeel'!$G$50,0) -> 0 | AJ25: =IF(R25="ja",'Rijdend personeel'!$G$50,0) -> 0 | AK25: =IF(S25="ja",'Rijdend personeel'!$G$50,0) -> 0 | AL25: =IF(T25="ja",'Rijdend personeel'!$G$50,0) -> 0
D26: % diesel getankt in buitenland:
D27: kostprijs diesel in het buitenland
D28: % diesel getankt op het bedrijf: | F28: =IF(F13=0,0,IF((1-F26)=0,"0%",1-F26)) -> 1 | G28: =IF(G13=0,0,IF((1-G26)=0,"0%",1-G26)) -> 0 | H28: 0 | I28: 0 | J28: 0 | K28: 0 | L28: 0 | M28: 0 | N28: 0 | O28: 0 | P28: 0 | Q28: 0 | R28: 0 | S28: 0 | T28: 0
D29: kostprijs diesel bedrijf/
D30: specifieke ritkosten
D31: Voertuig gebruikt voor meerdere ritten op dezelfde dag?
X32: Ja
D33: % van de vaste kost voor huidge rit | X33: Nee
F35: =IF(F32="oui",F33,1) -> 1 | G35: =IF(G32="oui",G33,1) -> 1 | H35: 1 | I35: 1 | J35: 1 | K35: 1 | L35: 1 | M35: 1 | N35: 1 | O35: 1 | P35: 1 | Q35: 1 | R35: 1 | S35: 1 | T35: 1
D39: =Bestemmingen!W10 ->  | E39: =Bestemmingen!S10 -> 0
H42: Vul hier de gegevens in voor de verschillende dagen van de rit. Door met de muis over het rode driehoekje te bewegen krijgt u meer uitleg over een specifiek gegeven.
D43: aantal dagen | E43: 1
D45: hide | F45: 0 | G45: 1 | H45: 2 | I45: 3 | J45: 4 | K45: 5 | L45: 6 | M45: 7 | N45: 8 | O45: 9 | P45: 10 | Q45: 11 | R45: 12 | S45: 13 | T45: 14
D46: hide | F46: =IF($E$43>F45,1,0) -> 1 | G46: =IF($E$43>G45,1,0) -> 0 | H46: =IF($E$43>H45,1,0) -> 0 | I46: =IF($E$43>I45,1,0) -> 0 | J46: 0 | K46: 0 | L46: 0 | M46: 0 | N46: 0 | O46: 0 | P46: 0 | Q46: 0 | R46: 0 | S46: 0 | T46: 0
Y47: 0 | AD47: Jour 1 | AE47: Jour 2 | AF47: Jour 3 | AG47: Jour 4 | AH47: Jour 5 | AI47: Jour 6 | AJ47: Jour 7 | AK47: Jour 8 | AL47: Jour 9 | AM47: Jour 10 | AN47: Jour 11 | AO47: Jour 12 | AP47: Jour 13 | AQ47: Jour 14 | AR47: Jour 15
F48: dag | G48: dag | H48: dag | I48: dag | J48: dag | K48: dag | L48: dag | M48: dag | N48: dag | O48: dag | P48: dag | Q48: dag | R48: dag | S48: dag | T48: dag | AD48: FALSE | AE48: FALSE | AF48: TRUE | AH48: TRUE | AI48: TRUE | AJ48: TRUE | AK48: TRUE | AL48: TRUE | AN48: TRUE | AP48: TRUE | AQ48: TRUE
F49: =1 -> 1 | G49: 2 | H49: 3 | I49: 4 | J49: 5 | K49: 6 | L49: 7 | M49: 8 | N49: 9 | O49: 10 | P49: 11 | Q49: 12 | R49: 13 | S49: 14 | T49: 15 | Y49: 1 | AD49: =IF(AD48=TRUE,1,0) -> 0 | AE49: =IF(AE48=TRUE,1,0) -> 0 | AF49: 1 | AG49: 0 | AH49: 1 | AI49: 1 | AJ49: 1 | AK49: 1 | AL49: 1 | AM49: 0 | AN49: 1 | AO49: 0 | AP49: 1 | AQ49: 1 | AR49: 0
F50: Zondag /feestdag? | G50: Zondag /feestdag? | H50: Zondag /feestdag? | I50: Zondag /feestdag? | J50: Zondag /feestdag? | K50: Zondag /feestdag? | L50: Zondag /feestdag? | M50: Zondag /feestdag? | N50: Zondag /feestdag? | O50: Zondag /feestdag? | P50: Zondag /feestdag? | Q50: Zondag /feestdag? | R50: Zondag /feestdag? | S50: Zondag /feestdag? | T50: Zondag /feestdag? | Y50: 2 | Z50: België | AD50: =IF(F57>0,"",IF(AND(F52=1,AC49=0,AD49=1,F54*24>=3,F54*24+E54*24>6),50,IF(AND(F52=1,AC49=0,AD49=1,F54*24>=3,F54*24+E54*24<=6),30,IF(AND(F52=1,AD49=1,F54*24<=6,F54*24>0),30,IF(AND(F52=1,AD49=1,F54*24>6,F54*24>0),50,IF(AND(F52=3,AC49=0,AD49=1,F54*24>=3,F54*24+E54*24>6),50,IF(AND(F52=3,AC49=0,AD49=1,F54*24>=3,F54*24+E54*24<=6),30,IF(AND(F52=3,AD49=1,F54*24<=6,F54*24>0),30,IF(AND(F52=3,AD49=1,F54*24>6,F54*24>0),50,0))))))))) -> 0 | AE50: =IF(G57>0,"",IF(AND(G52=1,AD49=0,AE49=1,G54*24>=3,G54*24+F54*24>6),50,IF(AND(G52=1,AD49=0,AE49=1,G54*24>=3,G54*24+F54*24<=6),30,IF(AND(G52=1,AE49=1,G54*24<=6,G54*24>0),30,IF(AND(G52=1,AE49=1,G54*24>6,G54*24>0),50,IF(AND(G52=3,AD49=0,AE49=1,G54*24>=3,G54*24+F54*24>6),50,IF(AND(G52=3,AD49=0,AE49=1,G54*24>=3,G54*24+F54*24<=6),30,IF(AND(G52=3,AE49=1,G54*24<=6,G54*24>0),30,IF(AND(G52=3,AE49=1,G54*24>6,G54*24>0),50,0))))))))) -> 0 | AF50: 0 | AG50: 0 | AH50: 0 | AI50: 0 | AJ50: 0 | AK50: 0 | AL50: 0 | AM50: 0 | AN50: 0 | AO50: 0 | AP50: 0 | AQ50: 0 | AR50: 0
D51: aantal km: | Y51: 3 | Z51: Andere | AD51: =IF(F57>0,"",IF(AND(F52>1,AC49=0,AD49=1,F55*24>=3,F55*24+E55*24>6),50,IF(AND(F52>1,AC49=0,AD49=1,F55*24>=3,F55*24+E55*24<=6),30,IF(AND(F52>1,AD49=1,F55*24<=6,F55*24>0),30,IF(AND(F52>1,AD49=1,F55*24>6,F55*24>0),50,0))))) -> 0 | AE51: =IF(G57>0,"",IF(AND(G52>1,AD49=0,AE49=1,G55*24>=3,G55*24+F55*24>6),50,IF(AND(G52>1,AD49=0,AE49=1,G55*24>=3,G55*24+F55*24<=6),30,IF(AND(G52>1,AD49=0,AE49=1,G55*24<3),0,IF(AND(G52>1,AE49=1,G55*24<=6,G55*24>0),30,IF(AND(G52>1,AE49=1,G55*24>6,G55*24>0),50,0)))))) -> 0 | AF51: =IF(H57>0,"",IF(AND(H52>1,AE49=0,AF49=1,H55*24>=3,H55*24+G55*24>6),50,IF(AND(H52>1,AE49=0,AF49=1,H55*24>=3,H55*24+G55*24<=6),30,IF(AND(H52>1,AE49=0,AF49=1,H55*24<3),0,IF(AND(H52>1,AF49=1,H55*24<=6,H55*24>0),30,IF(AND(H52>1,AF49=1,H55*24>6,H55*24>0),50,0)))))) -> 0 | AG51: 0 | AH51: 0 | AI51: 0 | AJ51: 0 | AK51: 0 | AL51: 0 | AM51: 0 | AN51: 0 | AO51: 0 | AP51: 0 | AQ51: 0 | AR51: 0
D52: aantal chauffeurs: | AD52: =IF(F57>0,"",IF(AND(F52>1,AC49=0,AD49=1,F56*24>=3,F56*24+E56*24>6),50,IF(AND(F52>1,AC49=0,AD49=1,F56*24>=3,F56*24+E56*24<=6),30,IF(AND(F52>1,AD49=1,F56*24<=6,F56*24>0),30,IF(AND(F52>1,AD49=1,F56*24>6,F56*24>0),50,0))))) -> 0 | AE52: =IF(G57>0,"",IF(AND(G52>1,AD49=0,AE49=1,G56*24>=3,G56*24+F56*24>6),50,IF(AND(G52>1,AD49=0,AE49=1,G56*24>=3,G56*24+F56*24<=6),30,IF(AND(G52>1,AD49=0,AE49=1,G56*24<3),0,IF(AND(G52>1,AE49=1,G56*24<=6,G56*24>0),30,IF(AND(G52>1,AE49=1,G56*24>6,G56*24>0),50,0)))))) -> 0 | AF52: =IF(H57>0,"",IF(AND(H52>1,AE49=0,AF49=1,H56*24>=3,H56*24+G56*24>6),50,IF(AND(H52>1,AE49=0,AF49=1,H56*24>=3,H56*24+G56*24<=6),30,IF(AND(H52>1,AE49=0,AF49=1,H56*24<3),0,IF(AND(H52>1,AF49=1,H56*24<=6,H56*24>0),30,IF(AND(H52>1,AF49=1,H56*24>6,H56*24>0),50,0)))))) -> 0 | AG52: 0 | AH52: 0 | AI52: 0 | AJ52: 0 | AK52: 0 | AL52: 0 | AM52: 0 | AN52: 0 | AO52: 0 | AP52: 0 | AQ52: 0 | AR52: 0
D53: land van uitvoering (hoofdzakelijk): | F53: België | G53: Autre
D54: diensttijd CH ENKEL (uu:mm): | X54: =IF(F52>0,1,0) -> 0 | Y54: 0 | Z54: 0 | AA54: 0 | AB54: 0 | AC54: 0 | AD54: 0 | AE54: 0 | AF54: 0 | AG54: 0 | AH54: 0 | AI54: 0 | AJ54: 0 | AK54: 0 | AL54: 0
D55: diensttijd CH1 DUBBEL (uu:mm): | X55: =IF(F52>1,1,0) -> 0 | Y55: 0 | Z55: 0 | AA55: 0 | AB55: 0 | AC55: 0 | AD55: 0 | AE55: 0 | AF55: 0 | AG55: 0 | AH55: 0 | AI55: 0 | AJ55: 0 | AK55: 0 | AL55: 0
D56: diensttijd CH2 DUBBEL (uu:mm): | X56: =IF(F52=3,1,0) -> 0 | Y56: 0 | Z56: 0 | AA56: 0 | AB56: 0 | AC56: 0 | AD56: 0 | AE56: 0 | AF56: 0 | AG56: 0 | AH56: 0 | AI56: 0 | AJ56: 0 | AK56: 0 | AL56: 0
D57: compensatie zondagsrust | X57: =IF(F57="ja",'Rijdend personeel'!$G$48,0) -> 0 | Y57: =IF(G57="ja",'Rijdend personeel'!$G$48,0) -> 0 | Z57: =IF(H57="ja",'Rijdend personeel'!$G$48,0) -> 0 | AA57: =IF(I57="ja",'Rijdend personeel'!$G$48,0) -> 0 | AB57: =IF(J57="ja",'Rijdend personeel'!$G$48,0) -> 0 | AC57: =IF(K57="ja",'Rijdend personeel'!$G$48,0) -> 0 | AD57: =IF(L57="ja",'Rijdend personeel'!$G$48,0) -> 0 | AE57: =IF(M57="ja",'Rijdend personeel'!$G$48,0) -> 0 | AF57: =IF(N57="ja",'Rijdend personeel'!$G$48,0) -> 0 | AG57: =IF(O57="ja",'Rijdend personeel'!$G$48,0) -> 0 | AH57: =IF(P57="ja",'Rijdend personeel'!$G$48,0) -> 0 | AI57: =IF(Q57="ja",'Rijdend personeel'!$G$48,0) -> 0 | AJ57: =IF(R57="ja",'Rijdend personeel'!$G$48,0) -> 0 | AK57: =IF(S57="ja",'Rijdend personeel'!$G$48,0) -> 0 | AL57: =IF(T57="ja",'Rijdend personeel'!$G$48,0) -> 0
D58: inactiviteitsdag buitenland | X58: =IF(F58="ja",'Rijdend personeel'!$G$50,0) -> 0 | Y58: =IF(G58="ja",'Rijdend personeel'!$G$50,0) -> 0 | Z58: =IF(H58="ja",'Rijdend personeel'!$G$50,0) -> 0 | AA58: =IF(I58="ja",'Rijdend personeel'!$G$50,0) -> 0 | AB58: =IF(J58="ja",'Rijdend personeel'!$G$50,0) -> 0 | AC58: =IF(K58="ja",'Rijdend personeel'!$G$50,0) -> 0 | AD58: =IF(L58="ja",'Rijdend personeel'!$G$50,0) -> 0 | AE58: =IF(M58="ja",'Rijdend personeel'!$G$50,0) -> 0 | AF58: =IF(N58="ja",'Rijdend personeel'!$G$50,0) -> 0 | AG58: =IF(O58="ja",'Rijdend personeel'!$G$50,0) -> 0 | AH58: =IF(P58="ja",'Rijdend personeel'!$G$50,0) -> 0 | AI58: =IF(Q58="ja",'Rijdend personeel'!$G$50,0) -> 0 | AJ58: =IF(R58="ja",'Rijdend personeel'!$G$50,0) -> 0 | AK58: =IF(S58="ja",'Rijdend personeel'!$G$50,0) -> 0 | AL58: =IF(T58="ja",'Rijdend personeel'!$G$50,0) -> 0
D59: % diesel getankt in buitenland:
D60: kostprijs diesel in het buitenland
D61: % diesel getankt op het bedrijf: | F61: =IF(F46=0,0,IF((1-F59)=0,"0%",1-F59)) -> 1 | G61: =IF(G46=0,0,IF((1-G59)=0,"0%",1-G59)) -> 0 | H61: 0 | I61: 0 | J61: 0 | K61: 0 | L61: 0 | M61: 0 | N61: 0 | O61: 0 | P61: 0 | Q61: 0 | R61: 0 | S61: 0 | T61: 0
D62: kostprijs diesel bedrijf/
D63: specifieke ritkosten
D64: Voertuig gebruikt voor meerdere ritten op dezelfde dag?
X65: Ja
D66: % van de vaste kost voor huidge rit | X66: Nee
F68: =IF(F65="oui",F66,1) -> 1 | G68: =IF(G65="oui",G66,1) -> 1 | H68: 1 | I68: 1 | J68: 1 | K68: 1 | L68: 1 | M68: 1 | N68: 1 | O68: 1 | P68: 1 | Q68: 1 | R68: 1 | S68: 1 | T68: 1
D70: =Bestemmingen!W12 ->  | E70: =Bestemmingen!S12 -> vehicule1
H73: Vul hier de gegevens in voor de verschillende dagen van de rit. Door met de muis over het rode driehoekje te bewegen krijgt u meer uitleg over een specifiek gegeven.
D74: aantal dagen | E74: 1
D76: hide | F76: 0 | G76: 1 | H76: 2 | I76: 3 | J76: 4 | K76: 5 | L76: 6 | M76: 7 | N76: 8 | O76: 9 | P76: 10 | Q76: 11 | R76: 12 | S76: 13 | T76: 14
D77: hide | F77: =IF($E$74>F76,1,0) -> 1 | G77: =IF($E$74>G76,1,0) -> 0 | H77: 0 | I77: 0 | J77: 0 | K77: 0 | L77: 0 | M77: 0 | N77: 0 | O77: 0 | P77: 0 | Q77: 0 | R77: 0 | S77: 0 | T77: 0
Y78: 0 | AD78: Jour 1 | AE78: Jour 2 | AF78: Jour 3 | AG78: Jour 4 | AH78: Jour 5 | AI78: Jour 6 | AJ78: Jour 7 | AK78: Jour 8 | AL78: Jour 9 | AM78: Jour 10 | AN78: Jour 11 | AO78: Jour 12 | AP78: Jour 13 | AQ78: Jour 14 | AR78: Jour 15
F79: dag | G79: dag | H79: dag | I79: dag | J79: dag | K79: dag | L79: dag | M79: dag | N79: dag | O79: dag | P79: dag | Q79: dag | R79: dag | S79: dag | T79: dag | AD79: FALSE | AE79: FALSE | AF79: TRUE | AG79: TRUE | AH79: TRUE | AI79: TRUE | AJ79: TRUE | AK79: TRUE | AL79: TRUE | AN79: TRUE | AQ79: TRUE
F80: =1 -> 1 | G80: 2 | H80: 3 | I80: 4 | J80: 5 | K80: 6 | L80: 7 | M80: 8 | N80: 9 | O80: 10 | P80: 11 | Q80: 12 | R80: 13 | S80: 14 | T80: 15 | Y80: 1 | AD80: =IF(AD79=TRUE,1,0) -> 0 | AE80: 0 | AF80: 1 | AG80: 1 | AH80: 1 | AI80: 1 | AJ80: 1 | AK80: 1 | AL80: 1 | AM80: 0 | AN80: 1 | AO80: 0 | AP80: 0 | AQ80: 1 | AR80: 0
F81: Zondag /feestdag? | G81: Zondag /feestdag? | H81: Zondag /feestdag? | I81: Zondag /feestdag? | J81: Zondag /feestdag? | K81: Zondag /feestdag? | L81: Zondag /feestdag? | M81: Zondag /feestdag? | N81: Zondag /feestdag? | O81: Zondag /feestdag? | P81: Zondag /feestdag? | Q81: Zondag /feestdag? | R81: Zondag /feestdag? | S81: Zondag /feestdag? | T81: Zondag /feestdag? | Y81: 2 | Z81: België | AD81: =IF(F88>0,"",IF(AND(F83=1,AC80=0,AD80=1,F85*24>=3,F85*24+E85*24>6),50,IF(AND(F83=1,AC80=0,AD80=1,F85*24>=3,F85*24+E85*24<=6),30,IF(AND(F83=1,AD80=1,F85*24<=6,F85*24>0),30,IF(AND(F83=1,AD80=1,F85*24>6,F85*24>0),50,IF(AND(F83=3,AC80=0,AD80=1,F85*24>=3,F85*24+E85*24>6),50,IF(AND(F83=3,AC80=0,AD80=1,F85*24>=3,F85*24+E85*24<=6),30,IF(AND(F83=3,AD80=1,F85*24<=6,F85*24>0),30,IF(AND(F83=3,AD80=1,F85*24>6,F85*24>0),50,0))))))))) -> 0 | AE81: =IF(G88>0,"",IF(AND(G83=1,AD80=0,AE80=1,G85*24>=3,G85*24+F85*24>6),50,IF(AND(G83=1,AD80=0,AE80=1,G85*24>=3,G85*24+F85*24<=6),30,IF(AND(G83=1,AE80=1,G85*24<=6,G85*24>0),30,IF(AND(G83=1,AE80=1,G85*24>6,G85*24>0),50,IF(AND(G83=3,AD80=0,AE80=1,G85*24>=3,G85*24+F85*24>6),50,IF(AND(G83=3,AD80=0,AE80=1,G85*24>=3,G85*24+F85*24<=6),30,IF(AND(G83=3,AE80=1,G85*24<=6,G85*24>0),30,IF(AND(G83=3,AE80=1,G85*24>6,G85*24>0),50,0))))))))) -> 0 | AF81: 0 | AG81: 0 | AH81: 0 | AI81: 0 | AJ81: 0 | AK81: 0 | AL81: 0 | AM81: 0 | AN81: 0 | AO81: 0 | AP81: 0 | AQ81: 0 | AR81: 0
D82: aantal km: | Y82: 3 | Z82: Andere | AD82: =IF(F88>0,"",IF(AND(F83>1,AC80=0,AD80=1,F86*24>=3,F86*24+E86*24>6),50,IF(AND(F83>1,AC80=0,AD80=1,F86*24>=3,F86*24+E86*24<=6),30,IF(AND(F83>1,AD80=1,F86*24<=6,F86*24>0),30,IF(AND(F83>1,AD80=1,F86*24>6,F86*24>0),50,0))))) -> 0 | AE82: =IF(G88>0,"",IF(AND(G83>1,AD80=0,AE80=1,G86*24>=3,G86*24+F86*24>6),50,IF(AND(G83>1,AD80=0,AE80=1,G86*24>=3,G86*24+F86*24<=6),30,IF(AND(G83>1,AD80=0,AE80=1,G86*24<3),0,IF(AND(G83>1,AE80=1,G86*24<=6,G8*24>0),30,IF(AND(G83>1,AE80=1,G86*24>6,G86*24>0),50,0)))))) -> 0 | AF82: =IF(H88>0,"",IF(AND(H83>1,AE80=0,AF80=1,H86*24>=3,H86*24+G86*24>6),50,IF(AND(H83>1,AE80=0,AF80=1,H86*24>=3,H86*24+G86*24<=6),30,IF(AND(H83>1,AE80=0,AF80=1,H86*24<3),0,IF(AND(H83>1,AF80=1,H86*24<=6,H8*24>0),30,IF(AND(H83>1,AF80=1,H86*24>6,H86*24>0),50,0)))))) -> 0 | AG82: 0 | AH82: 0 | AI82: 0 | AJ82: 0 | AK82: 0 | AL82: 0 | AM82: 0 | AN82: 0 | AO82: 0 | AP82: 0 | AQ82: 0 | AR82: 0
D83: aantal chauffeurs: | AD83: =IF(F88>0,"",IF(AND(F83>1,AC80=0,AD80=1,F87*24>=3,F87*24+E87*24>6),50,IF(AND(F83>1,AC80=0,AD80=1,F87*24>=3,F87*24+E87*24<=6),30,IF(AND(F83>1,AD80=1,F87*24<=6,F87*24>0),30,IF(AND(F83>1,AD80=1,F87*24>6,F87*24>0),50,0))))) -> 0 | AE83: =IF(G88>0,"",IF(AND(G83>1,AD80=0,AE80=1,G87*24>=3,G87*24+F87*24>6),50,IF(AND(G83>1,AD80=0,AE80=1,G87*24>=3,G87*24+F87*24<=6),30,IF(AND(G83>1,AD80=0,AE80=1,G87*24<3),0,IF(AND(G83>1,AE80=1,G87*24<=6,G87*24>0),30,IF(AND(G83>1,AE80=1,G87*24>6,G87*24>0),50,0)))))) -> 0 | AF83: =IF(H88>0,"",IF(AND(H83>1,AE80=0,AF80=1,H87*24>=3,H87*24+G87*24>6),50,IF(AND(H83>1,AE80=0,AF80=1,H87*24>=3,H87*24+G87*24<=6),30,IF(AND(H83>1,AE80=0,AF80=1,H87*24<3),0,IF(AND(H83>1,AF80=1,H87*24<=6,H87*24>0),30,IF(AND(H83>1,AF80=1,H87*24>6,H87*24>0),50,0)))))) -> 0 | AG83: 0 | AH83: 0 | AI83: 0 | AJ83: 0 | AK83: 0 | AL83: 0 | AM83: 0 | AN83: 0 | AO83: 0 | AP83: 0 | AQ83: 0 | AR83: 0
D84: land van uitvoering (hoofdzakelijk): | F84: België | G84: Autre
D85: diensttijd CH ENKEL (uu:mm): | X85: =IF(F83>0,1,0) -> 0 | Y85: =IF(G83>0,1,0) -> 0 | Z85: 0 | AA85: 0 | AB85: 0 | AC85: 0 | AD85: 0 | AE85: 0 | AF85: 0 | AG85: 0 | AH85: 0 | AI85: 0 | AJ85: 0 | AK85: 0 | AL85: 0
D86: diensttijd CH1 DUBBEL (uu:mm): | X86: =IF(F83>1,1,0) -> 0 | Y86: 0 | Z86: 0 | AA86: 0 | AB86: 0 | AC86: 0 | AD86: 0 | AE86: 0 | AF86: 0 | AG86: 0 | AH86: 0 | AI86: 0 | AJ86: 0 | AK86: 0 | AL86: 0
D87: diensttijd CH2 DUBBEL (uu:mm): | X87: =IF(F83=3,1,0) -> 0 | Y87: =IF(G83=3,1,0) -> 0 | Z87: 0 | AA87: 0 | AB87: 0 | AC87: 0 | AD87: 0 | AE87: 0 | AF87: 0 | AG87: 0 | AH87: 0 | AI87: 0 | AJ87: 0 | AK87: 0 | AL87: 0
D88: compensatie zondagsrust | X88: =IF(F88="ja",'Rijdend personeel'!$G$48,0) -> 0 | Y88: =IF(G88="ja",'Rijdend personeel'!$G$48,0) -> 0 | Z88: =IF(H88="ja",'Rijdend personeel'!$G$48,0) -> 0 | AA88: =IF(I88="ja",'Rijdend personeel'!$G$48,0) -> 0 | AB88: =IF(J88="ja",'Rijdend personeel'!$G$48,0) -> 0 | AC88: =IF(K88="ja",'Rijdend personeel'!$G$48,0) -> 0 | AD88: =IF(L88="ja",'Rijdend personeel'!$G$48,0) -> 0 | AE88: =IF(M88="ja",'Rijdend personeel'!$G$48,0) -> 0 | AF88: =IF(N88="ja",'Rijdend personeel'!$G$48,0) -> 0 | AG88: =IF(O88="ja",'Rijdend personeel'!$G$48,0) -> 0 | AH88: =IF(P88="ja",'Rijdend personeel'!$G$48,0) -> 0 | AI88: =IF(Q88="ja",'Rijdend personeel'!$G$48,0) -> 0 | AJ88: =IF(R88="ja",'Rijdend personeel'!$G$48,0) -> 0 | AK88: =IF(S88="ja",'Rijdend personeel'!$G$48,0) -> 0 | AL88: =IF(T88="ja",'Rijdend personeel'!$G$48,0) -> 0
D89: inactiviteitsdag buitenland | X89: =IF(F89="ja",'Rijdend personeel'!$G$50,0) -> 0 | Y89: =IF(G89="ja",'Rijdend personeel'!$G$50,0) -> 0 | Z89: =IF(H89="ja",'Rijdend personeel'!$G$50,0) -> 0 | AA89: =IF(I89="ja",'Rijdend personeel'!$G$50,0) -> 0 | AB89: =IF(J89="ja",'Rijdend personeel'!$G$50,0) -> 0 | AC89: =IF(K89="ja",'Rijdend personeel'!$G$50,0) -> 0 | AD89: =IF(L89="ja",'Rijdend personeel'!$G$50,0) -> 0 | AE89: =IF(M89="ja",'Rijdend personeel'!$G$50,0) -> 0 | AF89: =IF(N89="ja",'Rijdend personeel'!$G$50,0) -> 0 | AG89: =IF(O89="ja",'Rijdend personeel'!$G$50,0) -> 0 | AH89: =IF(P89="ja",'Rijdend personeel'!$G$50,0) -> 0 | AI89: =IF(Q89="ja",'Rijdend personeel'!$G$50,0) -> 0 | AJ89: =IF(R89="ja",'Rijdend personeel'!$G$50,0) -> 0 | AK89: =IF(S89="ja",'Rijdend personeel'!$G$50,0) -> 0 | AL89: =IF(T89="ja",'Rijdend personeel'!$G$50,0) -> 0
D90: % diesel getankt in buitenland:
D91: kostprijs diesel in het buitenland
D92: % diesel getankt op het bedrijf: | F92: =IF(F77=0,0,IF((1-F90)=0,"0%",1-F90)) -> 1 | G92: =IF(G77=0,0,IF((1-G90)=0,"0%",1-G90)) -> 0 | H92: 0 | I92: 0 | J92: 0 | K92: 0 | L92: 0 | M92: 0 | N92: 0 | O92: 0 | P92: 0 | Q92: 0 | R92: 0 | S92: 0 | T92: 0
D93: kostprijs diesel bedrijf/
D94: specifieke ritkosten
D95: Voertuig gebruikt voor meerdere ritten op dezelfde dag?
X96: Ja
D97: % van de vaste kost voor huidge rit | F97: 0.004 | X97: Nee
F99: =IF(F96="oui",F97,1) -> 1 | G99: =IF(G96="oui",G97,1) -> 1 | H99: 1 | I99: 1 | J99: 1 | K99: 1 | L99: 1 | M99: 1 | N99: 1 | O99: 1 | P99: 1 | Q99: 1 | R99: 1 | S99: 1 | T99: 1
D101: =Bestemmingen!W14 ->  | E101: =Bestemmingen!S14 -> vehicule1
H104: Vul hier de gegevens in voor de verschillende dagen van de rit. Door met de muis over het rode driehoekje te bewegen krijgt u meer uitleg over een specifiek gegeven.
D105: aantal dagen | E105: 1
AD106: Jour 1 | AE106: Jour 2 | AF106: Jour 3 | AG106: Jour 4 | AH106: Jour 5 | AI106: Jour 6 | AJ106: Jour 7 | AK106: Jour 8 | AL106: Jour 9 | AM106: Jour 10 | AN106: Jour 11 | AO106: Jour 12 | AP106: Jour 13 | AQ106: Jour 14 | AR106: Jour 15
D107: hide | F107: 0 | G107: 1 | H107: 2 | I107: 3 | J107: 4 | K107: 5 | L107: 6 | M107: 7 | N107: 8 | O107: 9 | P107: 10 | Q107: 11 | R107: 12 | S107: 13 | T107: 14
D108: hide | F108: =IF($E$105>F107,1,0) -> 1 | G108: =IF($E$105>G107,1,0) -> 0 | H108: 0 | I108: 0 | J108: 0 | K108: 0 | L108: 0 | M108: 0 | N108: 0 | O108: 0 | P108: 0 | Q108: 0 | R108: 0 | S108: 0 | T108: 0
Y109: 0 | AD109: TRUE | AE109: TRUE | AF109: TRUE | AG109: TRUE | AH109: TRUE | AI109: TRUE | AJ109: TRUE | AK109: TRUE | AL109: TRUE | AN109: TRUE | AP109: TRUE | AQ109: TRUE
F110: dag | G110: dag | H110: dag | I110: dag | J110: dag | K110: dag | L110: dag | M110: dag | N110: dag | O110: dag | P110: dag | Q110: dag | R110: dag | S110: dag | T110: dag | AD110: =IF(AD109=TRUE,1,0) -> 1 | AE110: 1 | AF110: 1 | AG110: 1 | AH110: 1 | AI110: 1 | AJ110: 1 | AK110: 1 | AL110: 1 | AM110: 0 | AN110: 1 | AO110: 0 | AP110: 1 | AQ110: 1 | AR110: 0
F111: =1 -> 1 | G111: 2 | H111: 3 | I111: 4 | J111: 5 | K111: 6 | L111: 7 | M111: 8 | N111: 9 | O111: 10 | P111: 11 | Q111: 12 | R111: 13 | S111: 14 | T111: 15 | Y111: 1 | AD111: =IF(F119>0,"",IF(AND(F114=1,AC110=0,AD110=1,F116*24>=3,F116*24+E116*24>6),50,IF(AND(F114=1,AC110=0,AD110=1,F116*24>=3,F116*24+E116*24<=6),30,IF(AND(F114=1,AD110=1,F116*24<=6,F116*24>0),30,IF(AND(F114=1,AD110=1,F116*24>6,F116*24>0),50,IF(AND(F114=3,AC110=0,AD110=1,F116*24>=3,F116*24+E116*24>6),50,IF(AND(F114=3,AC110=0,AD110=1,F116*24>=3,F116*24+E116*24<=6),30,IF(AND(F114=3,AD110=1,F116*24<=6,F116*24>0),30,IF(AND(F114=3,AD110=1,F116*24>6,F116*24>0),50,0))))))))) -> 0 | AE111: =IF(G119>0,"",IF(AND(G114=1,AD110=0,AE110=1,G116*24>=3,G116*24+F116*24>6),50,IF(AND(G114=1,AD110=0,AE110=1,G116*24>=3,G116*24+F116*24<=6),30,IF(AND(G114=1,AE110=1,G116*24<=6,G116*24>0),30,IF(AND(G114=1,AE110=1,G116*24>6,G116*24>0),50,IF(AND(G114=3,AD110=0,AE110=1,G116*24>=3,G116*24+F116*24>6),50,IF(AND(G114=3,AD110=0,AE110=1,G116*24>=3,G116*24+F116*24<=6),30,IF(AND(G114=3,AE110=1,G116*24<=6,G116*24>0),30,IF(AND(G114=3,AE110=1,G116*24>6,G116*24>0),50,0))))))))) -> 0 | AF111: 0 | AG111: 0 | AH111: 0 | AI111: 0 | AJ111: 0 | AK111: 0 | AL111: 0 | AM111: 0 | AN111: 0 | AO111: 0 | AP111: 0 | AQ111: 0 | AR111: 0
F112: Zondag /feestdag? | G112: Zondag /feestdag? | H112: Zondag /feestdag? | I112: Zondag /feestdag? | J112: Zondag /feestdag? | K112: Zondag /feestdag? | L112: Zondag /feestdag? | M112: Zondag /feestdag? | N112: Zondag /feestdag? | O112: Zondag /feestdag? | P112: Zondag /feestdag? | Q112: Zondag /feestdag? | R112: Zondag /feestdag? | S112: Zondag /feestdag? | T112: Zondag /feestdag? | Y112: 2 | Z112: België | AD112: =IF(F119>0,"",IF(AND(F114>1,AC110=0,AD110=1,F117*24>=3,F117*24+E117*24>6),50,IF(AND(F114>1,AC110=0,AD110=1,F117*24>=3,F117*24+E117*24<=6),30,IF(AND(F114>1,AD110=1,F117*24<=6,F117*24>0),30,IF(AND(F114>1,AD110=1,F117*24>6,F117*24>0),50,0))))) -> 0 | AE112: =IF(G119>0,"",IF(AND(G114>1,AD110=0,AE110=1,G117*24>=3,G117*24+F117*24>6),50,IF(AND(G114>1,AD110=0,AE110=1,G117*24>=3,G117*24+F117*24<=6),30,IF(AND(G114>1,AD110=0,AE110=1,G117*24<3),0,IF(AND(G114>1,AE110=1,G117*24<=6,G117*24>0),30,IF(AND(G114>1,AE110=1,G117*24>6,G117*24>0),50,0)))))) -> 0 | AF112: =IF(H119>0,"",IF(AND(H114>1,AE110=0,AF110=1,H117*24>=3,H117*24+G117*24>6),50,IF(AND(H114>1,AE110=0,AF110=1,H117*24>=3,H117*24+G117*24<=6),30,IF(AND(H114>1,AE110=0,AF110=1,H117*24<3),0,IF(AND(H114>1,AF110=1,H117*24<=6,H117*24>0),30,IF(AND(H114>1,AF110=1,H117*24>6,H117*24>0),50,0)))))) -> 0 | AG112: 0 | AH112: 0 | AI112: 0 | AJ112: 0 | AK112: 0 | AL112: 0 | AM112: 0 | AN112: 0 | AO112: 0 | AP112: 0 | AQ112: 0 | AR112: 0
D113: aantal km: | Y113: 3 | Z113: Andere | AD113: =IF(F119>0,"",IF(AND(F114>1,AC110=0,AD110=1,F118*24>=3,F118*24+E118*24>6),50,IF(AND(F114>1,AC110=0,AD110=1,F118*24>=3,F118*24+E118*24<=6),30,IF(AND(F114>1,AD110=1,F118*24<=6,F118*24>0),30,IF(AND(F114>1,AD110=1,F118*24>6,F118*24>0),50,0))))) -> 0 | AE113: =IF(G119>0,"",IF(AND(G114>1,AD110=0,AE110=1,G118*24>=3,G118*24+F118*24>6),50,IF(AND(G114>1,AD110=0,AE110=1,G118*24>=3,G118*24+F118*24<=6),30,IF(AND(G114>1,AD110=0,AE110=1,G118*24<3),0,IF(AND(G114>1,AE110=1,G118*24<=6,G118*24>0),30,IF(AND(G114>1,AE110=1,G118*24>6,G118*24>0),50,0)))))) -> 0 | AF113: =IF(H119>0,"",IF(AND(H114>1,AE110=0,AF110=1,H118*24>=3,H118*24+G118*24>6),50,IF(AND(H114>1,AE110=0,AF110=1,H118*24>=3,H118*24+G118*24<=6),30,IF(AND(H114>1,AE110=0,AF110=1,H118*24<3),0,IF(AND(H114>1,AF110=1,H118*24<=6,H118*24>0),30,IF(AND(H114>1,AF110=1,H118*24>6,H118*24>0),50,0)))))) -> 0 | AG113: 0 | AH113: 0 | AI113: 0 | AJ113: 0 | AK113: 0 | AL113: 0 | AM113: 0 | AN113: 0 | AO113: 0 | AP113: 0 | AQ113: 0 | AR113: 0
D114: aantal chauffeurs:
D115: land van uitvoering (hoofdzakelijk): | F115: België
D116: diensttijd CH ENKEL (uu:mm): | X116: =IF(F114>0,1,0) -> 0 | Y116: 0 | Z116: 0 | AA116: 0 | AB116: 0 | AC116: 0 | AD116: 0 | AE116: 0 | AF116: 0 | AG116: 0 | AH116: 0 | AI116: 0 | AJ116: 0 | AK116: 0 | AL116: 0
D117: diensttijd CH1 DUBBEL (uu:mm): | X117: =IF(F114>1,1,0) -> 0 | Y117: 0 | Z117: 0 | AA117: 0 | AB117: 0 | AC117: 0 | AD117: 0 | AE117: 0 | AF117: 0 | AG117: 0 | AH117: 0 | AI117: 0 | AJ117: 0 | AK117: 0 | AL117: 0
D118: diensttijd CH2 DUBBEL (uu:mm): | X118: =IF(F114=3,1,0) -> 0 | Y118: 0 | Z118: 0 | AA118: 0 | AB118: 0 | AC118: 0 | AD118: 0 | AE118: 0 | AF118: 0 | AG118: 0 | AH118: 0 | AI118: 0 | AJ118: 0 | AK118: 0 | AL118: 0
D119: compensatie zondagsrust | X119: =IF(F119="ja",'Rijdend personeel'!$G$48,0) -> 0 | Y119: =IF(G119="ja",'Rijdend personeel'!$G$48,0) -> 0 | Z119: =IF(H119="ja",'Rijdend personeel'!$G$48,0) -> 0 | AA119: =IF(I119="ja",'Rijdend personeel'!$G$48,0) -> 0 | AB119: =IF(J119="ja",'Rijdend personeel'!$G$48,0) -> 0 | AC119: =IF(K119="ja",'Rijdend personeel'!$G$48,0) -> 0 | AD119: =IF(L119="ja",'Rijdend personeel'!$G$48,0) -> 0 | AE119: =IF(M119="ja",'Rijdend personeel'!$G$48,0) -> 0 | AF119: =IF(N119="ja",'Rijdend personeel'!$G$48,0) -> 0 | AG119: =IF(O119="ja",'Rijdend personeel'!$G$48,0) -> 0 | AH119: =IF(P119="ja",'Rijdend personeel'!$G$48,0) -> 0 | AI119: =IF(Q119="ja",'Rijdend personeel'!$G$48,0) -> 0 | AJ119: =IF(R119="ja",'Rijdend personeel'!$G$48,0) -> 0 | AK119: =IF(S119="ja",'Rijdend personeel'!$G$48,0) -> 0 | AL119: =IF(T119="ja",'Rijdend personeel'!$G$48,0) -> 0
D120: inactiviteitsdag buitenland | X120: =IF(F120="ja",'Rijdend personeel'!$G$50,0) -> 0 | Y120: =IF(G120="ja",'Rijdend personeel'!$G$50,0) -> 0 | Z120: =IF(H120="ja",'Rijdend personeel'!$G$50,0) -> 0 | AA120: =IF(I120="ja",'Rijdend personeel'!$G$50,0) -> 0 | AB120: =IF(J120="ja",'Rijdend personeel'!$G$50,0) -> 0 | AC120: =IF(K120="ja",'Rijdend personeel'!$G$50,0) -> 0 | AD120: =IF(L120="ja",'Rijdend personeel'!$G$50,0) -> 0 | AE120: =IF(M120="ja",'Rijdend personeel'!$G$50,0) -> 0 | AF120: =IF(N120="ja",'Rijdend personeel'!$G$50,0) -> 0 | AG120: =IF(O120="ja",'Rijdend personeel'!$G$50,0) -> 0 | AH120: =IF(P120="ja",'Rijdend personeel'!$G$50,0) -> 0 | AI120: =IF(Q120="ja",'Rijdend personeel'!$G$50,0) -> 0 | AJ120: =IF(R120="ja",'Rijdend personeel'!$G$50,0) -> 0 | AK120: =IF(S120="ja",'Rijdend personeel'!$G$50,0) -> 0 | AL120: =IF(T120="ja",'Rijdend personeel'!$G$50,0) -> 0
D121: % diesel getankt in buitenland:
D122: kostprijs diesel in het buitenland
D123: % diesel getankt op het bedrijf: | F123: =IF(F108=0,0,IF((1-F121)=0,"0%",1-F121)) -> 1 | G123: =IF(G108=0,0,IF((1-G121)=0,"0%",1-G121)) -> 0 | H123: 0 | I123: 0 | J123: 0 | K123: 0 | L123: 0 | M123: 0 | N123: 0 | O123: 0 | P123: 0 | Q123: 0 | R123: 0 | S123: 0 | T123: 0
D124: kostprijs diesel bedrijf/
D125: specifieke ritkosten
D126: Voertuig gebruikt voor meerdere ritten op dezelfde dag?
X127: Ja
D128: % van de vaste kost voor huidge rit | X128: Nee
F130: =IF(F127="oui",F128,1) -> 1 | G130: =IF(G127="oui",G128,1) -> 1 | H130: 1 | I130: 1 | J130: 1 | K130: 1 | L130: 1 | M130: 1 | N130: 1 | O130: 1 | P130: 1 | Q130: 1 | R130: 1 | S130: 1 | T130: 1
D132: =Bestemmingen!W16 ->  | E132: =Bestemmingen!S16 -> vehicule1
H135: Vul hier de gegevens in voor de verschillende dagen van de rit. Door met de muis over het rode driehoekje te bewegen krijgt u meer uitleg over een specifiek gegeven.
D136: aantal dagen | E136: 1
AD137: Jour 1 | AE137: Jour 2 | AF137: Jour 3 | AG137: Jour 4 | AH137: Jour 5 | AI137: Jour 6 | AJ137: Jour 7 | AK137: Jour 8 | AL137: Jour 9 | AM137: Jour 10 | AN137: Jour 11 | AO137: Jour 12 | AP137: Jour 13 | AQ137: Jour 14 | AR137: Jour 15
D138: hide | F138: 0 | G138: 1 | H138: 2 | I138: 3 | J138: 4 | K138: 5 | L138: 6 | M138: 7 | N138: 8 | O138: 9 | P138: 10 | Q138: 11 | R138: 12 | S138: 13 | T138: 14
D139: hide | F139: =IF($E$136>F138,1,0) -> 1 | G139: =IF($E$136>G138,1,0) -> 0 | H139: 0 | I139: 0 | J139: 0 | K139: 0 | L139: 0 | M139: 0 | N139: 0 | O139: 0 | P139: 0 | Q139: 0 | R139: 0 | S139: 0 | T139: 0
Y140: 0 | AD140: TRUE | AE140: TRUE | AF140: TRUE | AG140: TRUE | AH140: TRUE | AI140: TRUE | AJ140: TRUE | AK140: TRUE | AL140: TRUE | AN140: TRUE | AP140: TRUE | AQ140: TRUE | AR140: TRUE
F141: dag | G141: dag | H141: dag | I141: dag | J141: dag | K141: dag | L141: dag | M141: dag | N141: dag | O141: dag | P141: dag | Q141: dag | R141: dag | S141: dag | T141: jour | AD141: =IF(AD140=TRUE,1,0) -> 1 | AE141: 1 | AF141: 1 | AG141: 1 | AH141: 1 | AI141: 1 | AJ141: 1 | AK141: 1 | AL141: 1 | AM141: 0 | AN141: 1 | AO141: 0 | AP141: 1 | AQ141: 1 | AR141: 1
F142: =1 -> 1 | G142: 2 | H142: 3 | I142: 4 | J142: 5 | K142: 6 | L142: 7 | M142: 8 | N142: 9 | O142: 10 | P142: 11 | Q142: 12 | R142: 13 | S142: 14 | T142: 15 | Y142: 1 | AD142: =IF(F150>0,"",IF(AND(F145=1,AC141=0,AD141=1,F147*24>=3,F147*24+E147*24>6),50,IF(AND(F145=1,AC141=0,AD141=1,F147*24>=3,F147*24+E147*24<=6),30,IF(AND(F145=1,AD141=1,F147*24<=6,F147*24>0),30,IF(AND(F145=1,AD141=1,F147*24>6,F147*24>0),50,IF(AND(F145=3,AC141=0,AD141=1,F147*24>=3,F147*24+E147*24>6),50,IF(AND(F145=3,AC141=0,AD141=1,F147*24>=3,F147*24+E147*24<=6),30,IF(AND(F145=3,AD141=1,F147*24<=6,F147*24>0),30,IF(AND(F145=3,AD141=1,F147*24>6,F147*24>0),50,0))))))))) -> 0 | AE142: =IF(G150>0,"",IF(AND(G145=1,AD141=0,AE141=1,G147*24>=3,G147*24+F147*24>6),50,IF(AND(G145=1,AD141=0,AE141=1,G147*24>=3,G147*24+F147*24<=6),30,IF(AND(G145=1,AE141=1,G147*24<=6,G147*24>0),30,IF(AND(G145=1,AE141=1,G147*24>6,G147*24>0),50,IF(AND(G145=3,AD141=0,AE141=1,G147*24>=3,G147*24+F147*24>6),50,IF(AND(G145=3,AD141=0,AE141=1,G147*24>=3,G147*24+F147*24<=6),30,IF(AND(G145=3,AE141=1,G147*24<=6,G147*24>0),30,IF(AND(G145=3,AE141=1,G147*24>6,G147*24>0),50,0))))))))) -> 0 | AF142: 0 | AG142: 0 | AH142: 0 | AI142: 0 | AJ142: 0 | AK142: 0 | AL142: 0 | AM142: 0 | AN142: 0 | AO142: 0 | AP142: 0 | AQ142: 0 | AR142: 0
F143: Zondag /feestdag? | G143: Zondag /feestdag? | H143: Zondag /feestdag? | I143: Zondag /feestdag? | J143: Zondag /feestdag? | K143: Zondag /feestdag? | L143: Zondag /feestdag? | M143: Zondag /feestdag? | N143: Zondag /feestdag? | O143: Zondag /feestdag? | P143: Zondag /feestdag? | Q143: Zondag /feestdag? | R143: Zondag /feestdag? | S143: Zondag /feestdag? | T143: Zondag /feestdag? | Y143: 2 | Z143: België | AD143: =IF(F150>0,"",IF(AND(F145>1,AC141=0,AD141=1,F148*24>=3,F148*24+E148*24>6),50,IF(AND(F145>1,AC141=0,AD141=1,F148*24>=3,F148*24+E148*24<=6),30,IF(AND(F145>1,AD141=1,F148*24<=6,F148*24>0),30,IF(AND(F145>1,AD141=1,F148*24>6,F148*24>0),50,0))))) -> 0 | AE143: =IF(G150>0,"",IF(AND(G145>1,AD141=0,AE141=1,G148*24>=3,G148*24+F148*24>6),50,IF(AND(G145>1,AD141=0,AE141=1,G148*24>=3,G148*24+F148*24<=6),30,IF(AND(G145>1,AD141=0,AE141=1,G148*24<3),0,IF(AND(G145>1,AE141=1,G148*24<=6,G148*24>0),30,IF(AND(G145>1,AE141=1,G148*24>6,G148*24>0),50,0)))))) -> 0 | AF143: =IF(H150>0,"",IF(AND(H145>1,AE141=0,AF141=1,H148*24>=3,H148*24+G148*24>6),50,IF(AND(H145>1,AE141=0,AF141=1,H148*24>=3,H148*24+G148*24<=6),30,IF(AND(H145>1,AE141=0,AF141=1,H148*24<3),0,IF(AND(H145>1,AF141=1,H148*24<=6,H148*24>0),30,IF(AND(H145>1,AF141=1,H148*24>6,H148*24>0),50,0)))))) -> 0 | AG143: 0 | AH143: 0 | AI143: 0 | AJ143: 0 | AK143: 0 | AL143: 0 | AM143: 0 | AN143: 0 | AO143: 0 | AP143: 0 | AQ143: 0 | AR143: 0
D144: aantal km: | Y144: 3 | Z144: Andere | AD144: =IF(F150>0,"",IF(AND(F145>1,AC141=0,AD141=1,F149*24>=3,F149*24+E149*24>6),50,IF(AND(F145>1,AC141=0,AD141=1,F149*24>=3,F149*24+E149*24<=6),30,IF(AND(F145>1,AD141=1,F149*24<=6,F149*24>0),30,IF(AND(F145>1,AD141=1,F149*24>6,F149*24>0),50,0))))) -> 0 | AE144: =IF(G150>0,"",IF(AND(G145>1,AD141=0,AE141=1,G149*24>=3,G149*24+F149*24>6),50,IF(AND(G145>1,AD141=0,AE141=1,G149*24>=3,G149*24+F149*24<=6),30,IF(AND(G145>1,AD141=0,AE141=1,G149*24<3),0,IF(AND(G145>1,AE141=1,G149*24<=6,G149*24>0),30,IF(AND(G145>1,AE141=1,G149*24>6,G149*24>0),50,0)))))) -> 0 | AF144: =IF(H150>0,"",IF(AND(H145>1,AE141=0,AF141=1,H149*24>=3,H149*24+G149*24>6),50,IF(AND(H145>1,AE141=0,AF141=1,H149*24>=3,H149*24+G149*24<=6),30,IF(AND(H145>1,AE141=0,AF141=1,H149*24<3),0,IF(AND(H145>1,AF141=1,H149*24<=6,H149*24>0),30,IF(AND(H145>1,AF141=1,H149*24>6,H149*24>0),50,0)))))) -> 0 | AG144: 0 | AH144: 0 | AI144: 0 | AJ144: 0 | AK144: 0 | AL144: 0 | AM144: 0 | AN144: 0 | AO144: 0 | AP144: 0 | AQ144: 0 | AR144: 0
D145: aantal chauffeurs:
D146: land van uitvoering (hoofdzakelijk): | F146: België
D147: diensttijd CH ENKEL (uu:mm): | X147: =IF(F145>0,1,0) -> 0 | Y147: 0 | Z147: 0 | AA147: 0 | AB147: 0 | AC147: 0 | AD147: 0 | AE147: 0 | AF147: 0 | AG147: 0 | AH147: 0 | AI147: 0 | AJ147: 0 | AK147: 0 | AL147: 0
D148: diensttijd CH1 DUBBEL (uu:mm): | X148: =IF(F145>1,1,0) -> 0 | Y148: 0 | Z148: 0 | AA148: 0 | AB148: 0 | AC148: 0 | AD148: 0 | AE148: 0 | AF148: 0 | AG148: 0 | AH148: 0 | AI148: 0 | AJ148: 0 | AK148: 0 | AL148: 0
D149: diensttijd CH2 DUBBEL (uu:mm): | X149: =IF(F145=3,1,0) -> 0 | Y149: 0 | Z149: 0 | AA149: 0 | AB149: 0 | AC149: 0 | AD149: 0 | AE149: 0 | AF149: 0 | AG149: 0 | AH149: 0 | AI149: 0 | AJ149: 0 | AK149: 0 | AL149: 0
D150: compensatie zondagsrust | X150: =IF(F150="ja",'Rijdend personeel'!$G$48,0) -> 0 | Y150: =IF(G150="ja",'Rijdend personeel'!$G$48,0) -> 0 | Z150: =IF(H150="ja",'Rijdend personeel'!$G$48,0) -> 0 | AA150: =IF(I150="ja",'Rijdend personeel'!$G$48,0) -> 0 | AB150: =IF(J150="ja",'Rijdend personeel'!$G$48,0) -> 0 | AC150: =IF(K150="ja",'Rijdend personeel'!$G$48,0) -> 0 | AD150: =IF(L150="ja",'Rijdend personeel'!$G$48,0) -> 0 | AE150: =IF(M150="ja",'Rijdend personeel'!$G$48,0) -> 0 | AF150: =IF(N150="ja",'Rijdend personeel'!$G$48,0) -> 0 | AG150: =IF(O150="ja",'Rijdend personeel'!$G$48,0) -> 0 | AH150: =IF(P150="ja",'Rijdend personeel'!$G$48,0) -> 0 | AI150: =IF(Q150="ja",'Rijdend personeel'!$G$48,0) -> 0 | AJ150: =IF(R150="ja",'Rijdend personeel'!$G$48,0) -> 0 | AK150: =IF(S150="ja",'Rijdend personeel'!$G$48,0) -> 0 | AL150: =IF(T150="ja",'Rijdend personeel'!$G$48,0) -> 0
D151: inactiviteitsdag buitenland | X151: =IF(F151="ja",'Rijdend personeel'!$G$50,0) -> 0 | Y151: =IF(G151="ja",'Rijdend personeel'!$G$50,0) -> 0 | Z151: =IF(H151="ja",'Rijdend personeel'!$G$50,0) -> 0 | AA151: =IF(I151="ja",'Rijdend personeel'!$G$50,0) -> 0 | AB151: =IF(J151="ja",'Rijdend personeel'!$G$50,0) -> 0 | AC151: =IF(K151="ja",'Rijdend personeel'!$G$50,0) -> 0 | AD151: =IF(L151="ja",'Rijdend personeel'!$G$50,0) -> 0 | AE151: =IF(M151="ja",'Rijdend personeel'!$G$50,0) -> 0 | AF151: =IF(N151="ja",'Rijdend personeel'!$G$50,0) -> 0 | AG151: =IF(O151="ja",'Rijdend personeel'!$G$50,0) -> 0 | AH151: =IF(P151="ja",'Rijdend personeel'!$G$50,0) -> 0 | AI151: =IF(Q151="ja",'Rijdend personeel'!$G$50,0) -> 0 | AJ151: =IF(R151="ja",'Rijdend personeel'!$G$50,0) -> 0 | AK151: =IF(S151="ja",'Rijdend personeel'!$G$50,0) -> 0 | AL151: =IF(T151="ja",'Rijdend personeel'!$G$50,0) -> 0
D152: % diesel getankt in buitenland:
D153: kostprijs diesel in het buitenland
D154: % diesel getankt op het bedrijf: | F154: =IF(F139=0,0,IF((1-F152)=0,"0%",1-F152)) -> 1 | G154: =IF(G139=0,0,IF((1-G152)=0,"0%",1-G152)) -> 0 | H154: 0 | I154: 0 | J154: 0 | K154: 0 | L154: 0 | M154: 0 | N154: 0 | O154: 0 | P154: 0 | Q154: 0 | R154: 0 | S154: 0 | T154: 0
D155: kostprijs diesel bedrijf/
D156: specifieke ritkosten
D157: Voertuig gebruikt voor meerdere ritten op dezelfde dag?
X158: Ja
D159: % van de vaste kost voor huidge rit | X159: Nee
F161: =IF(F158="oui",F159,1) -> 1 | G161: =IF(G158="oui",G159,1) -> 1 | H161: =IF(H158="oui",H159,1) -> 1 | I161: 1 | J161: 1 | K161: 1 | L161: 1 | M161: 1 | N161: 1 | O161: 1 | P161: 1 | Q161: 1 | R161: 1 | S161: 1 | T161: 1

Sheet Personneelskost
B2: BEREKENING LOONKOST RIJDEND PERSONEEL
G5: Personneelskost | J5: =Bestemmingen!W8 ->  | L5: =Bestemmingen!S8 -> vehicule1
E10: dag | F10: dag | G10: dag | H10: dag | I10: dag | J10: dag | K10: dag | L10: dag | M10: dag | N10: dag | O10: dag | P10: dag | Q10: dag | R10: dag | S10: dag
E11: 1 | F11: 2 | G11: 3 | H11: 4 | I11: 5 | J11: 6 | K11: 7 | L11: 8 | M11: 9 | N11: 10 | O11: 11 | P11: 12 | Q11: 13 | R11: 14 | S11: 15
C12: Diensttijd CH ENKEL | E12: =Reis!F21*24 -> 0 | F12: =Reis!G21*24 -> 0 | G12: =Reis!H21*24 -> 0 | H12: =Reis!I21*24 -> 0 | I12: =Reis!J21*24 -> 0 | J12: =Reis!K21*24 -> 0 | K12: =Reis!L21*24 -> 0 | L12: =Reis!M21*24 -> 0 | M12: =Reis!N21*24 -> 0 | N12: =Reis!O21*24 -> 0 | O12: =Reis!P21*24 -> 0 | P12: =Reis!Q21*24 -> 0 | Q12: =Reis!R21*24 -> 0 | R12: =Reis!S21*24 -> 0 | S12: =Reis!T21*24 -> 0
C13: Diensttijd CH1 DUBBEL | E13: =Reis!F22*24 -> 0 | F13: =Reis!G22*24 -> 0 | G13: =Reis!H22*24 -> 0 | H13: =Reis!I22*24 -> 0 | I13: =Reis!J22*24 -> 0 | J13: =Reis!K22*24 -> 0 | K13: =Reis!L22*24 -> 0 | L13: =Reis!M22*24 -> 0 | M13: =Reis!N22*24 -> 0 | N13: =Reis!O22*24 -> 0 | O13: =Reis!P22*24 -> 0 | P13: =Reis!Q22*24 -> 0 | Q13: =Reis!R22*24 -> 0 | R13: =Reis!S22*24 -> 0 | S13: =Reis!T22*24 -> 0
C14: Diensttijd CH2 DUBBEL | E14: =Reis!F23*24 -> 0 | F14: =Reis!G23*24 -> 0 | G14: =Reis!H23*24 -> 0 | H14: =Reis!I23*24 -> 0 | I14: =Reis!J23*24 -> 0 | J14: =Reis!K23*24 -> 0 | K14: =Reis!L23*24 -> 0 | L14: =Reis!M23*24 -> 0 | M14: =Reis!N23*24 -> 0 | N14: =Reis!O23*24 -> 0 | O14: =Reis!P23*24 -> 0 | P14: =Reis!Q23*24 -> 0 | Q14: =Reis!R23*24 -> 0 | R14: =Reis!S23*24 -> 0 | S14: =Reis!T23*24 -> 0
C15: Bruto Sal CH ENKEL | E15: =IF(AND(E12>0,E12<=6,Reis!F20="Autre"),('Rijdend personeel'!$G$50+'Rijdend personeel'!$G$42),IF(AND(E12>0,E12<=6),('Rijdend personeel'!$G$9+'Rijdend personeel'!$G$42),IF(AND(E12>6,E12<=12),'Rijdend personeel'!$G$11+'Rijdend personeel'!$G$42,IF(E12>0,'Rijdend personeel'!$G$11+(ROUNDUP(E12,0)-12)*'Rijdend personeel'!$G$13+'Rijdend personeel'!$G$42,0)))) -> 0 | F15: =IF(AND(F12>0,F12<=6,Reis!G20="Autre"),('Rijdend personeel'!$G$50+'Rijdend personeel'!$G$42),IF(AND(F12>0,F12<=6),('Rijdend personeel'!$G$9+'Rijdend personeel'!$G$42),IF(AND(F12>6,F12<=12),'Rijdend personeel'!$G$11+'Rijdend personeel'!$G$42,IF(F12>0,'Rijdend personeel'!$G$11+(ROUNDUP(F12,0)-12)*'Rijdend personeel'!$G$13+'Rijdend personeel'!$G$42,0)))) -> 0 | G15: =IF(AND(G12>0,G12<=6,Reis!H20="Autre"),('Rijdend personeel'!$G$50+'Rijdend personeel'!$G$42),IF(AND(G12>0,G12<=6),('Rijdend personeel'!$G$9+'Rijdend personeel'!$G$42),IF(AND(G12>6,G12<=12),'Rijdend personeel'!$G$11+'Rijdend personeel'!$G$42,IF(G12>0,'Rijdend personeel'!$G$11+(ROUNDUP(G12,0)-12)*'Rijdend personeel'!$G$13+'Rijdend personeel'!$G$42,0)))) -> 0 | H15: =IF(AND(H12>0,H12<=6,Reis!I20="Autre"),('Rijdend personeel'!$G$50+'Rijdend personeel'!$G$42),IF(AND(H12>0,H12<=6),('Rijdend personeel'!$G$9+'Rijdend personeel'!$G$42),IF(AND(H12>6,H12<=12),'Rijdend personeel'!$G$11+'Rijdend personeel'!$G$42,IF(H12>0,'Rijdend personeel'!$G$11+(ROUNDUP(H12,0)-12)*'Rijdend personeel'!$G$13+'Rijdend personeel'!$G$42,0)))) -> 0 | I15: =IF(AND(I12>0,I12<=6,Reis!J20="Autre"),('Rijdend personeel'!$G$50+'Rijdend personeel'!$G$42),IF(AND(I12>0,I12<=6),('Rijdend personeel'!$G$9+'Rijdend personeel'!$G$42),IF(AND(I12>6,I12<=12),'Rijdend personeel'!$G$11+'Rijdend personeel'!$G$42,IF(I12>0,'Rijdend personeel'!$G$11+(ROUNDUP(I12,0)-12)*'Rijdend personeel'!$G$13+'Rijdend personeel'!$G$42,0)))) -> 0 | J15: =IF(AND(J12>0,J12<=6,Reis!K20="Autre"),('Rijdend personeel'!$G$50+'Rijdend personeel'!$G$42),IF(AND(J12>0,J12<=6),('Rijdend personeel'!$G$9+'Rijdend personeel'!$G$42),IF(AND(J12>6,J12<=12),'Rijdend personeel'!$G$11+'Rijdend personeel'!$G$42,IF(J12>0,'Rijdend personeel'!$G$11+(ROUNDUP(J12,0)-12)*'Rijdend personeel'!$G$13+'Rijdend personeel'!$G$42,0)))) -> 0 | K15: =IF(AND(K12>0,K12<=6,Reis!L20="Autre"),('Rijdend personeel'!$G$50+'Rijdend personeel'!$G$42),IF(AND(K12>0,K12<=6),('Rijdend personeel'!$G$9+'Rijdend personeel'!$G$42),IF(AND(K12>6,K12<=12),'Rijdend personeel'!$G$11+'Rijdend personeel'!$G$42,IF(K12>0,'Rijdend personeel'!$G$11+(ROUNDUP(K12,0)-12)*'Rijdend personeel'!$G$13+'Rijdend personeel'!$G$42,0)))) -> 0 | L15: =IF(AND(L12>0,L12<=6,Reis!M20="Autre"),('Rijdend personeel'!$G$50+'Rijdend personeel'!$G$42),IF(AND(L12>0,L12<=6),('Rijdend personeel'!$G$9+'Rijdend personeel'!$G$42),IF(AND(L12>6,L12<=12),'Rijdend personeel'!$G$11+'Rijdend personeel'!$G$42,IF(L12>0,'Rijdend personeel'!$G$11+(ROUNDUP(L12,0)-12)*'Rijdend personeel'!$G$13+'Rijdend personeel'!$G$42,0)))) -> 0 | M15: =IF(AND(M12>0,M12<=6,Reis!N20="Autre"),('Rijdend personeel'!$G$50+'Rijdend personeel'!$G$42),IF(AND(M12>0,M12<=6),('Rijdend personeel'!$G$9+'Rijdend personeel'!$G$42),IF(AND(M12>6,M12<=12),'Rijdend personeel'!$G$11+'Rijdend personeel'!$G$42,IF(M12>0,'Rijdend personeel'!$G$11+(ROUNDUP(M12,0)-12)*'Rijdend personeel'!$G$13+'Rijdend personeel'!$G$42,0)))) -> 0 | N15: =IF(AND(N12>0,N12<=6,Reis!O20="Autre"),('Rijdend personeel'!$G$50+'Rijdend personeel'!$G$42),IF(AND(N12>0,N12<=6),('Rijdend personeel'!$G$9+'Rijdend personeel'!$G$42),IF(AND(N12>6,N12<=12),'Rijdend personeel'!$G$11+'Rijdend personeel'!$G$42,IF(N12>0,'Rijdend personeel'!$G$11+(ROUNDUP(N12,0)-12)*'Rijdend personeel'!$G$13+'Rijdend personeel'!$G$42,0)))) -> 0 | O15: =IF(AND(O12>0,O12<=6,Reis!P20="Autre"),('Rijdend personeel'!$G$50+'Rijdend personeel'!$G$42),IF(AND(O12>0,O12<=6),('Rijdend personeel'!$G$9+'Rijdend personeel'!$G$42),IF(AND(O12>6,O12<=12),'Rijdend personeel'!$G$11+'Rijdend personeel'!$G$42,IF(O12>0,'Rijdend personeel'!$G$11+(ROUNDUP(O12,0)-12)*'Rijdend personeel'!$G$13+'Rijdend personeel'!$G$42,0)))) -> 0 | P15: =IF(AND(P12>0,P12<=6,Reis!Q20="Autre"),('Rijdend personeel'!$G$50+'Rijdend personeel'!$G$42),IF(AND(P12>0,P12<=6),('Rijdend personeel'!$G$9+'Rijdend personeel'!$G$42),IF(AND(P12>6,P12<=12),'Rijdend personeel'!$G$11+'Rijdend personeel'!$G$42,IF(P12>0,'Rijdend personeel'!$G$11+(ROUNDUP(P12,0)-12)*'Rijdend personeel'!$G$13+'Rijdend personeel'!$G$42,0)))) -> 0 | Q15: =IF(AND(Q12>0,Q12<=6,Reis!R20="Autre"),('Rijdend personeel'!$G$50+'Rijdend personeel'!$G$42),IF(AND(Q12>0,Q12<=6),('Rijdend personeel'!$G$9+'Rijdend personeel'!$G$42),IF(AND(Q12>6,Q12<=12),'Rijdend personeel'!$G$11+'Rijdend personeel'!$G$42,IF(Q12>0,'Rijdend personeel'!$G$11+(ROUNDUP(Q12,0)-12)*'Rijdend personeel'!$G$13+'Rijdend personeel'!$G$42,0)))) -> 0 | R15: =IF(AND(R12>0,R12<=6,Reis!S20="Autre"),('Rijdend personeel'!$G$50+'Rijdend personeel'!$G$42),IF(AND(R12>0,R12<=6),('Rijdend personeel'!$G$9+'Rijdend personeel'!$G$42),IF(AND(R12>6,R12<=12),'Rijdend personeel'!$G$11+'Rijdend personeel'!$G$42,IF(R12>0,'Rijdend personeel'!$G$11+(ROUNDUP(R12,0)-12)*'Rijdend personeel'!$G$13+'Rijdend personeel'!$G$42,0)))) -> 0 | S15: =IF(AND(S12>0,S12<=6,Reis!T20="Autre"),('Rijdend personeel'!$G$50+'Rijdend personeel'!$G$42),IF(AND(S12>0,S12<=6),('Rijdend personeel'!$G$9+'Rijdend personeel'!$G$42),IF(AND(S12>6,S12<=12),'Rijdend personeel'!$G$11+'Rijdend personeel'!$G$42,IF(S12>0,'Rijdend personeel'!$G$11+(ROUNDUP(S12,0)-12)*'Rijdend personeel'!$G$13+'Rijdend personeel'!$G$42,0)))) -> 0
C16: Bruto Sal CH1 DUBBEL | E16: =IF(E13=0,0,IF(E13<12,'Rijdend personeel'!$G$16+'Rijdend personeel'!$G$42,IF(E13<13,'Rijdend personeel'!$G$18+'Rijdend personeel'!$G$42,IF(E13<14,'Rijdend personeel'!$G$20+'Rijdend personeel'!$G$42,IF(E13<15,'Rijdend personeel'!$G$22+'Rijdend personeel'!$G$42,IF(E13<16,'Rijdend personeel'!$G$24+'Rijdend personeel'!$G$42,IF(E13<17,'Rijdend personeel'!$G$26+'Rijdend personeel'!$G$42,IF(E13<18,'Rijdend personeel'!$G$28+'Rijdend personeel'!$G$42,IF(E13<19,'Rijdend personeel'!$G$30+'Rijdend personeel'!$G$42,IF(E13<20,'Rijdend personeel'!$G$32+'Rijdend personeel'!$G$42,IF(E13<21,'Rijdend personeel'!$G$34+'Rijdend personeel'!$G$42,IF(E13<22,'Rijdend personeel'!$G$36+'Rijdend personeel'!$G$42)))))))))))) -> 0 | F16: =IF(F13=0,0,IF(F13<12,'Rijdend personeel'!$G$16+'Rijdend personeel'!$G$42,IF(F13<13,'Rijdend personeel'!$G$18+'Rijdend personeel'!$G$42,IF(F13<14,'Rijdend personeel'!$G$20+'Rijdend personeel'!$G$42,IF(F13<15,'Rijdend personeel'!$G$22+'Rijdend personeel'!$G$42,IF(F13<16,'Rijdend personeel'!$G$24+'Rijdend personeel'!$G$42,IF(F13<17,'Rijdend personeel'!$G$26+'Rijdend personeel'!$G$42,IF(F13<18,'Rijdend personeel'!$G$28+'Rijdend personeel'!$G$42,IF(F13<19,'Rijdend personeel'!$G$30+'Rijdend personeel'!$G$42,IF(F13<20,'Rijdend personeel'!$G$32+'Rijdend personeel'!$G$42,IF(F13<21,'Rijdend personeel'!$G$34+'Rijdend personeel'!$G$42,IF(F13<22,'Rijdend personeel'!$G$36+'Rijdend personeel'!$G$42)))))))))))) -> 0 | G16: =IF(G13=0,0,IF(G13<12,'Rijdend personeel'!$G$16+'Rijdend personeel'!$G$42,IF(G13<13,'Rijdend personeel'!$G$18+'Rijdend personeel'!$G$42,IF(G13<14,'Rijdend personeel'!$G$20+'Rijdend personeel'!$G$42,IF(G13<15,'Rijdend personeel'!$G$22+'Rijdend personeel'!$G$42,IF(G13<16,'Rijdend personeel'!$G$24+'Rijdend personeel'!$G$42,IF(G13<17,'Rijdend personeel'!$G$26+'Rijdend personeel'!$G$42,IF(G13<18,'Rijdend personeel'!$G$28+'Rijdend personeel'!$G$42,IF(G13<19,'Rijdend personeel'!$G$30+'Rijdend personeel'!$G$42,IF(G13<20,'Rijdend personeel'!$G$32+'Rijdend personeel'!$G$42,IF(G13<21,'Rijdend personeel'!$G$34+'Rijdend personeel'!$G$42,IF(G13<22,'Rijdend personeel'!$G$36+'Rijdend personeel'!$G$42)))))))))))) -> 0 | H16: =IF(H13=0,0,IF(H13<12,'Rijdend personeel'!$G$16+'Rijdend personeel'!$G$42,IF(H13<13,'Rijdend personeel'!$G$18+'Rijdend personeel'!$G$42,IF(H13<14,'Rijdend personeel'!$G$20+'Rijdend personeel'!$G$42,IF(H13<15,'Rijdend personeel'!$G$22+'Rijdend personeel'!$G$42,IF(H13<16,'Rijdend personeel'!$G$24+'Rijdend personeel'!$G$42,IF(H13<17,'Rijdend personeel'!$G$26+'Rijdend personeel'!$G$42,IF(H13<18,'Rijdend personeel'!$G$28+'Rijdend personeel'!$G$42,IF(H13<19,'Rijdend personeel'!$G$30+'Rijdend personeel'!$G$42,IF(H13<20,'Rijdend personeel'!$G$32+'Rijdend personeel'!$G$42,IF(H13<21,'Rijdend personeel'!$G$34+'Rijdend personeel'!$G$42,IF(H13<22,'Rijdend personeel'!$G$36+'Rijdend personeel'!$G$42)))))))))))) -> 0 | I16: =IF(I13=0,0,IF(I13<12,'Rijdend personeel'!$G$16+'Rijdend personeel'!$G$42,IF(I13<13,'Rijdend personeel'!$G$18+'Rijdend personeel'!$G$42,IF(I13<14,'Rijdend personeel'!$G$20+'Rijdend personeel'!$G$42,IF(I13<15,'Rijdend personeel'!$G$22+'Rijdend personeel'!$G$42,IF(I13<16,'Rijdend personeel'!$G$24+'Rijdend personeel'!$G$42,IF(I13<17,'Rijdend personeel'!$G$26+'Rijdend personeel'!$G$42,IF(I13<18,'Rijdend personeel'!$G$28+'Rijdend personeel'!$G$42,IF(I13<19,'Rijdend personeel'!$G$30+'Rijdend personeel'!$G$42,IF(I13<20,'Rijdend personeel'!$G$32+'Rijdend personeel'!$G$42,IF(I13<21,'Rijdend personeel'!$G$34+'Rijdend personeel'!$G$42,IF(I13<22,'Rijdend personeel'!$G$36+'Rijdend personeel'!$G$42)))))))))))) -> 0 | J16: =IF(J13=0,0,IF(J13<12,'Rijdend personeel'!$G$16+'Rijdend personeel'!$G$42,IF(J13<13,'Rijdend personeel'!$G$18+'Rijdend personeel'!$G$42,IF(J13<14,'Rijdend personeel'!$G$20+'Rijdend personeel'!$G$42,IF(J13<15,'Rijdend personeel'!$G$22+'Rijdend personeel'!$G$42,IF(J13<16,'Rijdend personeel'!$G$24+'Rijdend personeel'!$G$42,IF(J13<17,'Rijdend personeel'!$G$26+'Rijdend personeel'!$G$42,IF(J13<18,'Rijdend personeel'!$G$28+'Rijdend personeel'!$G$42,IF(J13<19,'Rijdend personeel'!$G$30+'Rijdend personeel'!$G$42,IF(J13<20,'Rijdend personeel'!$G$32+'Rijdend personeel'!$G$42,IF(J13<21,'Rijdend personeel'!$G$34+'Rijdend personeel'!$G$42,IF(J13<22,'Rijdend personeel'!$G$36+'Rijdend personeel'!$G$42)))))))))))) -> 0 | K16: =IF(K13=0,0,IF(K13<12,'Rijdend personeel'!$G$16+'Rijdend personeel'!$G$42,IF(K13<13,'Rijdend personeel'!$G$18+'Rijdend personeel'!$G$42,IF(K13<14,'Rijdend personeel'!$G$20+'Rijdend personeel'!$G$42,IF(K13<15,'Rijdend personeel'!$G$22+'Rijdend personeel'!$G$42,IF(K13<16,'Rijdend personeel'!$G$24+'Rijdend personeel'!$G$42,IF(K13<17,'Rijdend personeel'!$G$26+'Rijdend personeel'!$G$42,IF(K13<18,'Rijdend personeel'!$G$28+'Rijdend personeel'!$G$42,IF(K13<19,'Rijdend personeel'!$G$30+'Rijdend personeel'!$G$42,IF(K13<20,'Rijdend personeel'!$G$32+'Rijdend personeel'!$G$42,IF(K13<21,'Rijdend personeel'!$G$34+'Rijdend personeel'!$G$42,IF(K13<22,'Rijdend personeel'!$G$36+'Rijdend personeel'!$G$42)))))))))))) -> 0 | L16: =IF(L13=0,0,IF(L13<12,'Rijdend personeel'!$G$16+'Rijdend personeel'!$G$42,IF(L13<13,'Rijdend personeel'!$G$18+'Rijdend personeel'!$G$42,IF(L13<14,'Rijdend personeel'!$G$20+'Rijdend personeel'!$G$42,IF(L13<15,'Rijdend personeel'!$G$22+'Rijdend personeel'!$G$42,IF(L13<16,'Rijdend personeel'!$G$24+'Rijdend personeel'!$G$42,IF(L13<17,'Rijdend personeel'!$G$26+'Rijdend personeel'!$G$42,IF(L13<18,'Rijdend personeel'!$G$28+'Rijdend personeel'!$G$42,IF(L13<19,'Rijdend personeel'!$G$30+'Rijdend personeel'!$G$42,IF(L13<20,'Rijdend personeel'!$G$32+'Rijdend personeel'!$G$42,IF(L13<21,'Rijdend personeel'!$G$34+'Rijdend personeel'!$G$42,IF(L13<22,'Rijdend personeel'!$G$36+'Rijdend personeel'!$G$42)))))))))))) -> 0 | M16: =IF(M13=0,0,IF(M13<12,'Rijdend personeel'!$G$16+'Rijdend personeel'!$G$42,IF(M13<13,'Rijdend personeel'!$G$18+'Rijdend personeel'!$G$42,IF(M13<14,'Rijdend personeel'!$G$20+'Rijdend personeel'!$G$42,IF(M13<15,'Rijdend personeel'!$G$22+'Rijdend personeel'!$G$42,IF(M13<16,'Rijdend personeel'!$G$24+'Rijdend personeel'!$G$42,IF(M13<17,'Rijdend personeel'!$G$26+'Rijdend personeel'!$G$42,IF(M13<18,'Rijdend personeel'!$G$28+'Rijdend personeel'!$G$42,IF(M13<19,'Rijdend personeel'!$G$30+'Rijdend personeel'!$G$42,IF(M13<20,'Rijdend personeel'!$G$32+'Rijdend personeel'!$G$42,IF(M13<21,'Rijdend personeel'!$G$34+'Rijdend personeel'!$G$42,IF(M13<22,'Rijdend personeel'!$G$36+'Rijdend personeel'!$G$42)))))))))))) -> 0 | N16: =IF(N13=0,0,IF(N13<12,'Rijdend personeel'!$G$16+'Rijdend personeel'!$G$42,IF(N13<13,'Rijdend personeel'!$G$18+'Rijdend personeel'!$G$42,IF(N13<14,'Rijdend personeel'!$G$20+'Rijdend personeel'!$G$42,IF(N13<15,'Rijdend personeel'!$G$22+'Rijdend personeel'!$G$42,IF(N13<16,'Rijdend personeel'!$G$24+'Rijdend personeel'!$G$42,IF(N13<17,'Rijdend personeel'!$G$26+'Rijdend personeel'!$G$42,IF(N13<18,'Rijdend personeel'!$G$28+'Rijdend personeel'!$G$42,IF(N13<19,'Rijdend personeel'!$G$30+'Rijdend personeel'!$G$42,IF(N13<20,'Rijdend personeel'!$G$32+'Rijdend personeel'!$G$42,IF(N13<21,'Rijdend personeel'!$G$34+'Rijdend personeel'!$G$42,IF(N13<22,'Rijdend personeel'!$G$36+'Rijdend personeel'!$G$42)))))))))))) -> 0 | O16: =IF(O13=0,0,IF(O13<12,'Rijdend personeel'!$G$16+'Rijdend personeel'!$G$42,IF(O13<13,'Rijdend personeel'!$G$18+'Rijdend personeel'!$G$42,IF(O13<14,'Rijdend personeel'!$G$20+'Rijdend personeel'!$G$42,IF(O13<15,'Rijdend personeel'!$G$22+'Rijdend personeel'!$G$42,IF(O13<16,'Rijdend personeel'!$G$24+'Rijdend personeel'!$G$42,IF(O13<17,'Rijdend personeel'!$G$26+'Rijdend personeel'!$G$42,IF(O13<18,'Rijdend personeel'!$G$28+'Rijdend personeel'!$G$42,IF(O13<19,'Rijdend personeel'!$G$30+'Rijdend personeel'!$G$42,IF(O13<20,'Rijdend personeel'!$G$32+'Rijdend personeel'!$G$42,IF(O13<21,'Rijdend personeel'!$G$34+'Rijdend personeel'!$G$42,IF(O13<22,'Rijdend personeel'!$G$36+'Rijdend personeel'!$G$42)))))))))))) -> 0 | P16: =IF(P13=0,0,IF(P13<12,'Rijdend personeel'!$G$16+'Rijdend personeel'!$G$42,IF(P13<13,'Rijdend personeel'!$G$18+'Rijdend personeel'!$G$42,IF(P13<14,'Rijdend personeel'!$G$20+'Rijdend personeel'!$G$42,IF(P13<15,'Rijdend personeel'!$G$22+'Rijdend personeel'!$G$42,IF(P13<16,'Rijdend personeel'!$G$24+'Rijdend personeel'!$G$42,IF(P13<17,'Rijdend personeel'!$G$26+'Rijdend personeel'!$G$42,IF(P13<18,'Rijdend personeel'!$G$28+'Rijdend personeel'!$G$42,IF(P13<19,'Rijdend personeel'!$G$30+'Rijdend personeel'!$G$42,IF(P13<20,'Rijdend personeel'!$G$32+'Rijdend personeel'!$G$42,IF(P13<21,'Rijdend personeel'!$G$34+'Rijdend personeel'!$G$42,IF(P13<22,'Rijdend personeel'!$G$36+'Rijdend personeel'!$G$42)))))))))))) -> 0 | Q16: =IF(Q13=0,0,IF(Q13<12,'Rijdend personeel'!$G$16+'Rijdend personeel'!$G$42,IF(Q13<13,'Rijdend personeel'!$G$18+'Rijdend personeel'!$G$42,IF(Q13<14,'Rijdend personeel'!$G$20+'Rijdend personeel'!$G$42,IF(Q13<15,'Rijdend personeel'!$G$22+'Rijdend personeel'!$G$42,IF(Q13<16,'Rijdend personeel'!$G$24+'Rijdend personeel'!$G$42,IF(Q13<17,'Rijdend personeel'!$G$26+'Rijdend personeel'!$G$42,IF(Q13<18,'Rijdend personeel'!$G$28+'Rijdend personeel'!$G$42,IF(Q13<19,'Rijdend personeel'!$G$30+'Rijdend personeel'!$G$42,IF(Q13<20,'Rijdend personeel'!$G$32+'Rijdend personeel'!$G$42,IF(Q13<21,'Rijdend personeel'!$G$34+'Rijdend personeel'!$G$42,IF(Q13<22,'Rijdend personeel'!$G$36+'Rijdend personeel'!$G$42)))))))))))) -> 0 | R16: =IF(R13=0,0,IF(R13<12,'Rijdend personeel'!$G$16+'Rijdend personeel'!$G$42,IF(R13<13,'Rijdend personeel'!$G$18+'Rijdend personeel'!$G$42,IF(R13<14,'Rijdend personeel'!$G$20+'Rijdend personeel'!$G$42,IF(R13<15,'Rijdend personeel'!$G$22+'Rijdend personeel'!$G$42,IF(R13<16,'Rijdend personeel'!$G$24+'Rijdend personeel'!$G$42,IF(R13<17,'Rijdend personeel'!$G$26+'Rijdend personeel'!$G$42,IF(R13<18,'Rijdend personeel'!$G$28+'Rijdend personeel'!$G$42,IF(R13<19,'Rijdend personeel'!$G$30+'Rijdend personeel'!$G$42,IF(R13<20,'Rijdend personeel'!$G$32+'Rijdend personeel'!$G$42,IF(R13<21,'Rijdend personeel'!$G$34+'Rijdend personeel'!$G$42,IF(R13<22,'Rijdend personeel'!$G$36+'Rijdend personeel'!$G$42)))))))))))) -> 0 | S16: =IF(S13=0,0,IF(S13<12,'Rijdend personeel'!$G$16+'Rijdend personeel'!$G$42,IF(S13<13,'Rijdend personeel'!$G$18+'Rijdend personeel'!$G$42,IF(S13<14,'Rijdend personeel'!$G$20+'Rijdend personeel'!$G$42,IF(S13<15,'Rijdend personeel'!$G$22+'Rijdend personeel'!$G$42,IF(S13<16,'Rijdend personeel'!$G$24+'Rijdend personeel'!$G$42,IF(S13<17,'Rijdend personeel'!$G$26+'Rijdend personeel'!$G$42,IF(S13<18,'Rijdend personeel'!$G$28+'Rijdend personeel'!$G$42,IF(S13<19,'Rijdend personeel'!$G$30+'Rijdend personeel'!$G$42,IF(S13<20,'Rijdend personeel'!$G$32+'Rijdend personeel'!$G$42,IF(S13<21,'Rijdend personeel'!$G$34+'Rijdend personeel'!$G$42,IF(S13<22,'Rijdend personeel'!$G$36+'Rijdend personeel'!$G$42)))))))))))) -> 0
C17: Bruto Sal CH2 DUBBEL | E17: =IF(E14=0,0,IF(E14<12,'Rijdend personeel'!$G$16+'Rijdend personeel'!$G$42,IF(E14<13,'Rijdend personeel'!$G$18+'Rijdend personeel'!$G$42,IF(E14<14,'Rijdend personeel'!$G$20+'Rijdend personeel'!$G$42,IF(E14<15,'Rijdend personeel'!$G$22+'Rijdend personeel'!$G$42,IF(E14<16,'Rijdend personeel'!$G$24+'Rijdend personeel'!$G$42,IF(E14<17,'Rijdend personeel'!$G$26+'Rijdend personeel'!$G$42,IF(E14<18,'Rijdend personeel'!$G$28+'Rijdend personeel'!$G$42,IF(E14<19,'Rijdend personeel'!$G$30+'Rijdend personeel'!$G$42,IF(E14<20,'Rijdend personeel'!$G$32+'Rijdend personeel'!$G$42,IF(E14<21,'Rijdend personeel'!$G$34+'Rijdend personeel'!$G$42,IF(E14<22,'Rijdend personeel'!$G$36+'Rijdend personeel'!$G$42)))))))))))) -> 0 | F17: =IF(F14=0,0,IF(F14<12,'Rijdend personeel'!$G$16+'Rijdend personeel'!$G$42,IF(F14<13,'Rijdend personeel'!$G$18+'Rijdend personeel'!$G$42,IF(F14<14,'Rijdend personeel'!$G$20+'Rijdend personeel'!$G$42,IF(F14<15,'Rijdend personeel'!$G$22+'Rijdend personeel'!$G$42,IF(F14<16,'Rijdend personeel'!$G$24+'Rijdend personeel'!$G$42,IF(F14<17,'Rijdend personeel'!$G$26+'Rijdend personeel'!$G$42,IF(F14<18,'Rijdend personeel'!$G$28+'Rijdend personeel'!$G$42,IF(F14<19,'Rijdend personeel'!$G$30+'Rijdend personeel'!$G$42,IF(F14<20,'Rijdend personeel'!$G$32+'Rijdend personeel'!$G$42,IF(F14<21,'Rijdend personeel'!$G$34+'Rijdend personeel'!$G$42,IF(F14<22,'Rijdend personeel'!$G$36+'Rijdend personeel'!$G$42)))))))))))) -> 0 | G17: =IF(G14=0,0,IF(G14<12,'Rijdend personeel'!$G$16+'Rijdend personeel'!$G$42,IF(G14<13,'Rijdend personeel'!$G$18+'Rijdend personeel'!$G$42,IF(G14<14,'Rijdend personeel'!$G$20+'Rijdend personeel'!$G$42,IF(G14<15,'Rijdend personeel'!$G$22+'Rijdend personeel'!$G$42,IF(G14<16,'Rijdend personeel'!$G$24+'Rijdend personeel'!$G$42,IF(G14<17,'Rijdend personeel'!$G$26+'Rijdend personeel'!$G$42,IF(G14<18,'Rijdend personeel'!$G$28+'Rijdend personeel'!$G$42,IF(G14<19,'Rijdend personeel'!$G$30+'Rijdend personeel'!$G$42,IF(G14<20,'Rijdend personeel'!$G$32+'Rijdend personeel'!$G$42,IF(G14<21,'Rijdend personeel'!$G$34+'Rijdend personeel'!$G$42,IF(G14<22,'Rijdend personeel'!$G$36+'Rijdend personeel'!$G$42)))))))))))) -> 0 | H17: =IF(H14=0,0,IF(H14<12,'Rijdend personeel'!$G$16+'Rijdend personeel'!$G$42,IF(H14<13,'Rijdend personeel'!$G$18+'Rijdend personeel'!$G$42,IF(H14<14,'Rijdend personeel'!$G$20+'Rijdend personeel'!$G$42,IF(H14<15,'Rijdend personeel'!$G$22+'Rijdend personeel'!$G$42,IF(H14<16,'Rijdend personeel'!$G$24+'Rijdend personeel'!$G$42,IF(H14<17,'Rijdend personeel'!$G$26+'Rijdend personeel'!$G$42,IF(H14<18,'Rijdend personeel'!$G$28+'Rijdend personeel'!$G$42,IF(H14<19,'Rijdend personeel'!$G$30+'Rijdend personeel'!$G$42,IF(H14<20,'Rijdend personeel'!$G$32+'Rijdend personeel'!$G$42,IF(H14<21,'Rijdend personeel'!$G$34+'Rijdend personeel'!$G$42,IF(H14<22,'Rijdend personeel'!$G$36+'Rijdend personeel'!$G$42)))))))))))) -> 0 | I17: =IF(I14=0,0,IF(I14<12,'Rijdend personeel'!$G$16+'Rijdend personeel'!$G$42,IF(I14<13,'Rijdend personeel'!$G$18+'Rijdend personeel'!$G$42,IF(I14<14,'Rijdend personeel'!$G$20+'Rijdend personeel'!$G$42,IF(I14<15,'Rijdend personeel'!$G$22+'Rijdend personeel'!$G$42,IF(I14<16,'Rijdend personeel'!$G$24+'Rijdend personeel'!$G$42,IF(I14<17,'Rijdend personeel'!$G$26+'Rijdend personeel'!$G$42,IF(I14<18,'Rijdend personeel'!$G$28+'Rijdend personeel'!$G$42,IF(I14<19,'Rijdend personeel'!$G$30+'Rijdend personeel'!$G$42,IF(I14<20,'Rijdend personeel'!$G$32+'Rijdend personeel'!$G$42,IF(I14<21,'Rijdend personeel'!$G$34+'Rijdend personeel'!$G$42,IF(I14<22,'Rijdend personeel'!$G$36+'Rijdend personeel'!$G$42)))))))))))) -> 0 | J17: =IF(J14=0,0,IF(J14<12,'Rijdend personeel'!$G$16+'Rijdend personeel'!$G$42,IF(J14<13,'Rijdend personeel'!$G$18+'Rijdend personeel'!$G$42,IF(J14<14,'Rijdend personeel'!$G$20+'Rijdend personeel'!$G$42,IF(J14<15,'Rijdend personeel'!$G$22+'Rijdend personeel'!$G$42,IF(J14<16,'Rijdend personeel'!$G$24+'Rijdend personeel'!$G$42,IF(J14<17,'Rijdend personeel'!$G$26+'Rijdend personeel'!$G$42,IF(J14<18,'Rijdend personeel'!$G$28+'Rijdend personeel'!$G$42,IF(J14<19,'Rijdend personeel'!$G$30+'Rijdend personeel'!$G$42,IF(J14<20,'Rijdend personeel'!$G$32+'Rijdend personeel'!$G$42,IF(J14<21,'Rijdend personeel'!$G$34+'Rijdend personeel'!$G$42,IF(J14<22,'Rijdend personeel'!$G$36+'Rijdend personeel'!$G$42)))))))))))) -> 0 | K17: =IF(K14=0,0,IF(K14<12,'Rijdend personeel'!$G$16+'Rijdend personeel'!$G$42,IF(K14<13,'Rijdend personeel'!$G$18+'Rijdend personeel'!$G$42,IF(K14<14,'Rijdend personeel'!$G$20+'Rijdend personeel'!$G$42,IF(K14<15,'Rijdend personeel'!$G$22+'Rijdend personeel'!$G$42,IF(K14<16,'Rijdend personeel'!$G$24+'Rijdend personeel'!$G$42,IF(K14<17,'Rijdend personeel'!$G$26+'Rijdend personeel'!$G$42,IF(K14<18,'Rijdend personeel'!$G$28+'Rijdend personeel'!$G$42,IF(K14<19,'Rijdend personeel'!$G$30+'Rijdend personeel'!$G$42,IF(K14<20,'Rijdend personeel'!$G$32+'Rijdend personeel'!$G$42,IF(K14<21,'Rijdend personeel'!$G$34+'Rijdend personeel'!$G$42,IF(K14<22,'Rijdend personeel'!$G$36+'Rijdend personeel'!$G$42)))))))))))) -> 0 | L17: =IF(L14=0,0,IF(L14<12,'Rijdend personeel'!$G$16+'Rijdend personeel'!$G$42,IF(L14<13,'Rijdend personeel'!$G$18+'Rijdend personeel'!$G$42,IF(L14<14,'Rijdend personeel'!$G$20+'Rijdend personeel'!$G$42,IF(L14<15,'Rijdend personeel'!$G$22+'Rijdend personeel'!$G$42,IF(L14<16,'Rijdend personeel'!$G$24+'Rijdend personeel'!$G$42,IF(L14<17,'Rijdend personeel'!$G$26+'Rijdend personeel'!$G$42,IF(L14<18,'Rijdend personeel'!$G$28+'Rijdend personeel'!$G$42,IF(L14<19,'Rijdend personeel'!$G$30+'Rijdend personeel'!$G$42,IF(L14<20,'Rijdend personeel'!$G$32+'Rijdend personeel'!$G$42,IF(L14<21,'Rijdend personeel'!$G$34+'Rijdend personeel'!$G$42,IF(L14<22,'Rijdend personeel'!$G$36+'Rijdend personeel'!$G$42)))))))))))) -> 0 | M17: =IF(M14=0,0,IF(M14<12,'Rijdend personeel'!$G$16+'Rijdend personeel'!$G$42,IF(M14<13,'Rijdend personeel'!$G$18+'Rijdend personeel'!$G$42,IF(M14<14,'Rijdend personeel'!$G$20+'Rijdend personeel'!$G$42,IF(M14<15,'Rijdend personeel'!$G$22+'Rijdend personeel'!$G$42,IF(M14<16,'Rijdend personeel'!$G$24+'Rijdend personeel'!$G$42,IF(M14<17,'Rijdend personeel'!$G$26+'Rijdend personeel'!$G$42,IF(M14<18,'Rijdend personeel'!$G$28+'Rijdend personeel'!$G$42,IF(M14<19,'Rijdend personeel'!$G$30+'Rijdend personeel'!$G$42,IF(M14<20,'Rijdend personeel'!$G$32+'Rijdend personeel'!$G$42,IF(M14<21,'Rijdend personeel'!$G$34+'Rijdend personeel'!$G$42,IF(M14<22,'Rijdend personeel'!$G$36+'Rijdend personeel'!$G$42)))))))))))) -> 0 | N17: =IF(N14=0,0,IF(N14<12,'Rijdend personeel'!$G$16+'Rijdend personeel'!$G$42,IF(N14<13,'Rijdend personeel'!$G$18+'Rijdend personeel'!$G$42,IF(N14<14,'Rijdend personeel'!$G$20+'Rijdend personeel'!$G$42,IF(N14<15,'Rijdend personeel'!$G$22+'Rijdend personeel'!$G$42,IF(N14<16,'Rijdend personeel'!$G$24+'Rijdend personeel'!$G$42,IF(N14<17,'Rijdend personeel'!$G$26+'Rijdend personeel'!$G$42,IF(N14<18,'Rijdend personeel'!$G$28+'Rijdend personeel'!$G$42,IF(N14<19,'Rijdend personeel'!$G$30+'Rijdend personeel'!$G$42,IF(N14<20,'Rijdend personeel'!$G$32+'Rijdend personeel'!$G$42,IF(N14<21,'Rijdend personeel'!$G$34+'Rijdend personeel'!$G$42,IF(N14<22,'Rijdend personeel'!$G$36+'Rijdend personeel'!$G$42)))))))))))) -> 0 | O17: =IF(O14=0,0,IF(O14<12,'Rijdend personeel'!$G$16+'Rijdend personeel'!$G$42,IF(O14<13,'Rijdend personeel'!$G$18+'Rijdend personeel'!$G$42,IF(O14<14,'Rijdend personeel'!$G$20+'Rijdend personeel'!$G$42,IF(O14<15,'Rijdend personeel'!$G$22+'Rijdend personeel'!$G$42,IF(O14<16,'Rijdend personeel'!$G$24+'Rijdend personeel'!$G$42,IF(O14<17,'Rijdend personeel'!$G$26+'Rijdend personeel'!$G$42,IF(O14<18,'Rijdend personeel'!$G$28+'Rijdend personeel'!$G$42,IF(O14<19,'Rijdend personeel'!$G$30+'Rijdend personeel'!$G$42,IF(O14<20,'Rijdend personeel'!$G$32+'Rijdend personeel'!$G$42,IF(O14<21,'Rijdend personeel'!$G$34+'Rijdend personeel'!$G$42,IF(O14<22,'Rijdend personeel'!$G$36+'Rijdend personeel'!$G$42)))))))))))) -> 0 | P17: =IF(P14=0,0,IF(P14<12,'Rijdend personeel'!$G$16+'Rijdend personeel'!$G$42,IF(P14<13,'Rijdend personeel'!$G$18+'Rijdend personeel'!$G$42,IF(P14<14,'Rijdend personeel'!$G$20+'Rijdend personeel'!$G$42,IF(P14<15,'Rijdend personeel'!$G$22+'Rijdend personeel'!$G$42,IF(P14<16,'Rijdend personeel'!$G$24+'Rijdend personeel'!$G$42,IF(P14<17,'Rijdend personeel'!$G$26+'Rijdend personeel'!$G$42,IF(P14<18,'Rijdend personeel'!$G$28+'Rijdend personeel'!$G$42,IF(P14<19,'Rijdend personeel'!$G$30+'Rijdend personeel'!$G$42,IF(P14<20,'Rijdend personeel'!$G$32+'Rijdend personeel'!$G$42,IF(P14<21,'Rijdend personeel'!$G$34+'Rijdend personeel'!$G$42,IF(P14<22,'Rijdend personeel'!$G$36+'Rijdend personeel'!$G$42)))))))))))) -> 0 | Q17: =IF(Q14=0,0,IF(Q14<12,'Rijdend personeel'!$G$16+'Rijdend personeel'!$G$42,IF(Q14<13,'Rijdend personeel'!$G$18+'Rijdend personeel'!$G$42,IF(Q14<14,'Rijdend personeel'!$G$20+'Rijdend personeel'!$G$42,IF(Q14<15,'Rijdend personeel'!$G$22+'Rijdend personeel'!$G$42,IF(Q14<16,'Rijdend personeel'!$G$24+'Rijdend personeel'!$G$42,IF(Q14<17,'Rijdend personeel'!$G$26+'Rijdend personeel'!$G$42,IF(Q14<18,'Rijdend personeel'!$G$28+'Rijdend personeel'!$G$42,IF(Q14<19,'Rijdend personeel'!$G$30+'Rijdend personeel'!$G$42,IF(Q14<20,'Rijdend personeel'!$G$32+'Rijdend personeel'!$G$42,IF(Q14<21,'Rijdend personeel'!$G$34+'Rijdend personeel'!$G$42,IF(Q14<22,'Rijdend personeel'!$G$36+'Rijdend personeel'!$G$42)))))))))))) -> 0 | R17: =IF(R14=0,0,IF(R14<12,'Rijdend personeel'!$G$16+'Rijdend personeel'!$G$42,IF(R14<13,'Rijdend personeel'!$G$18+'Rijdend personeel'!$G$42,IF(R14<14,'Rijdend personeel'!$G$20+'Rijdend personeel'!$G$42,IF(R14<15,'Rijdend personeel'!$G$22+'Rijdend personeel'!$G$42,IF(R14<16,'Rijdend personeel'!$G$24+'Rijdend personeel'!$G$42,IF(R14<17,'Rijdend personeel'!$G$26+'Rijdend personeel'!$G$42,IF(R14<18,'Rijdend personeel'!$G$28+'Rijdend personeel'!$G$42,IF(R14<19,'Rijdend personeel'!$G$30+'Rijdend personeel'!$G$42,IF(R14<20,'Rijdend personeel'!$G$32+'Rijdend personeel'!$G$42,IF(R14<21,'Rijdend personeel'!$G$34+'Rijdend personeel'!$G$42,IF(R14<22,'Rijdend personeel'!$G$36+'Rijdend personeel'!$G$42)))))))))))) -> 0 | S17: =IF(S14=0,0,IF(S14<12,'Rijdend personeel'!$G$16+'Rijdend personeel'!$G$42,IF(S14<13,'Rijdend personeel'!$G$18+'Rijdend personeel'!$G$42,IF(S14<14,'Rijdend personeel'!$G$20+'Rijdend personeel'!$G$42,IF(S14<15,'Rijdend personeel'!$G$22+'Rijdend personeel'!$G$42,IF(S14<16,'Rijdend personeel'!$G$24+'Rijdend personeel'!$G$42,IF(S14<17,'Rijdend personeel'!$G$26+'Rijdend personeel'!$G$42,IF(S14<18,'Rijdend personeel'!$G$28+'Rijdend personeel'!$G$42,IF(S14<19,'Rijdend personeel'!$G$30+'Rijdend personeel'!$G$42,IF(S14<20,'Rijdend personeel'!$G$32+'Rijdend personeel'!$G$42,IF(S14<21,'Rijdend personeel'!$G$34+'Rijdend personeel'!$G$42,IF(S14<22,'Rijdend personeel'!$G$36+'Rijdend personeel'!$G$42)))))))))))) -> 0
C18: Zondagsrust alle CH | E18: =Reis!F24*'Rijdend personeel'!$G$48 -> 0 | F18: =Reis!G24*'Rijdend personeel'!$G$48 -> 0 | G18: =Reis!H24*'Rijdend personeel'!$G$48 -> 0 | H18: =Reis!I24*'Rijdend personeel'!$G$48 -> 0 | I18: =Reis!J24*'Rijdend personeel'!$G$48 -> 0 | J18: =Reis!K24*'Rijdend personeel'!$G$48 -> 0 | K18: =Reis!L24*'Rijdend personeel'!$G$48 -> 0 | L18: =Reis!M24*'Rijdend personeel'!$G$48 -> 0 | M18: =Reis!N24*'Rijdend personeel'!$G$48 -> 0 | N18: =Reis!O24*'Rijdend personeel'!$G$48 -> 0 | O18: =Reis!P24*'Rijdend personeel'!$G$48 -> 0 | P18: =Reis!Q24*'Rijdend personeel'!$G$48 -> 0 | Q18: =Reis!R24*'Rijdend personeel'!$G$48 -> 0 | R18: =Reis!S24*'Rijdend personeel'!$G$48 -> 0 | S18: =Reis!T24*'Rijdend personeel'!$G$48 -> 0
C19: Inactiviteitsdag alle CH | E19: =Reis!F25*'Rijdend personeel'!$G$50 -> 0 | F19: =Reis!G25*'Rijdend personeel'!$G$50 -> 0 | G19: =Reis!H25*'Rijdend personeel'!$G$50 -> 0 | H19: =Reis!I25*'Rijdend personeel'!$G$50 -> 0 | I19: =Reis!J25*'Rijdend personeel'!$G$50 -> 0 | J19: =Reis!K25*'Rijdend personeel'!$G$50 -> 0 | K19: =Reis!L25*'Rijdend personeel'!$G$50 -> 0 | L19: =Reis!M25*'Rijdend personeel'!$G$50 -> 0 | M19: =Reis!N25*'Rijdend personeel'!$G$50 -> 0 | N19: =Reis!O25*'Rijdend personeel'!$G$50 -> 0 | O19: =Reis!P25*'Rijdend personeel'!$G$50 -> 0 | P19: =Reis!Q25*'Rijdend personeel'!$G$50 -> 0 | Q19: =Reis!R25*'Rijdend personeel'!$G$50 -> 0 | R19: =Reis!S25*'Rijdend personeel'!$G$50 -> 0 | S19: =Reis!T25*'Rijdend personeel'!$G$50 -> 0
C20: Eindejaarspremie alle CH | E20: =IF(Reis!F13<1,0,(('Rijdend personeel'!$G$46/'Rijdend personeel'!$G$68)*Reis!F19)) ->  | F20: =IF(Reis!G13<1,0,(('Rijdend personeel'!$G$46/'Rijdend personeel'!$G$68)*Reis!G19)) -> 0 | G20: =IF(Reis!H13<1,0,(('Rijdend personeel'!$G$46/'Rijdend personeel'!$G$68)*Reis!H19)) -> 0 | H20: =IF(Reis!I13<1,0,(('Rijdend personeel'!$G$46/'Rijdend personeel'!$G$68)*Reis!I19)) -> 0 | I20: =IF(Reis!J13<1,0,(('Rijdend personeel'!$G$46/'Rijdend personeel'!$G$68)*Reis!J19)) -> 0 | J20: =IF(Reis!K13<1,0,(('Rijdend personeel'!$G$46/'Rijdend personeel'!$G$68)*Reis!K19)) -> 0 | K20: =IF(Reis!L13<1,0,(('Rijdend personeel'!$G$46/'Rijdend personeel'!$G$68)*Reis!L19)) -> 0 | L20: =IF(Reis!M13<1,0,(('Rijdend personeel'!$G$46/'Rijdend personeel'!$G$68)*Reis!M19)) -> 0 | M20: =IF(Reis!N13<1,0,(('Rijdend personeel'!$G$46/'Rijdend personeel'!$G$68)*Reis!N19)) -> 0 | N20: =IF(Reis!O13<1,0,(('Rijdend personeel'!$G$46/'Rijdend personeel'!$G$68)*Reis!O19)) -> 0 | O20: =IF(Reis!P13<1,0,(('Rijdend personeel'!$G$46/'Rijdend personeel'!$G$68)*Reis!P19)) -> 0 | P20: =IF(Reis!Q13<1,0,(('Rijdend personeel'!$G$46/'Rijdend personeel'!$G$68)*Reis!Q19)) -> 0 | Q20: =IF(Reis!R13<1,0,(('Rijdend personeel'!$G$46/'Rijdend personeel'!$G$68)*Reis!R19)) -> 0 | R20: =IF(Reis!S13<1,0,(('Rijdend personeel'!$G$46/'Rijdend personeel'!$G$68)*Reis!S19)) -> 0 | S20: =IF(Reis!T13<1,0,(('Rijdend personeel'!$G$46/'Rijdend personeel'!$G$68)*Reis!T19)) -> 0
C21: RSZ werkgever alle CH | E21: =IF(Reis!F13<1,0,((E15+E16+E17+E18+E19+E20)*1.08*'Rijdend personeel'!$G$52)) ->  | F21: =IF(Reis!G13<1,0,((F15+F16+F17+F18+F19+F20)*1.08*'Rijdend personeel'!$G$52)) -> 0 | G21: =IF(Reis!H13<1,0,((G15+G16+G17+G18+G19+G20)*1.08*'Rijdend personeel'!$G$52)) -> 0 | H21: =IF(Reis!I13<1,0,((H15+H16+H17+H18+H19+H20)*1.08*'Rijdend personeel'!$G$52)) -> 0 | I21: =IF(Reis!J13<1,0,((I15+I16+I17+I18+I19+I20)*1.08*'Rijdend personeel'!$G$52)) -> 0 | J21: =IF(Reis!K13<1,0,((J15+J16+J17+J18+J19+J20)*1.08*'Rijdend personeel'!$G$52)) -> 0 | K21: =IF(Reis!L13<1,0,((K15+K16+K17+K18+K19+K20)*1.08*'Rijdend personeel'!$G$52)) -> 0 | L21: =IF(Reis!M13<1,0,((L15+L16+L17+L18+L19+L20)*1.08*'Rijdend personeel'!$G$52)) -> 0 | M21: =IF(Reis!N13<1,0,((M15+M16+M17+M18+M19+M20)*1.08*'Rijdend personeel'!$G$52)) -> 0 | N21: =IF(Reis!O13<1,0,((N15+N16+N17+N18+N19+N20)*1.08*'Rijdend personeel'!$G$52)) -> 0 | O21: =IF(Reis!P13<1,0,((O15+O16+O17+O18+O19+O20)*1.08*'Rijdend personeel'!$G$52)) -> 0 | P21: =IF(Reis!Q13<1,0,((P15+P16+P17+P18+P19+P20)*1.08*'Rijdend personeel'!$G$52)) -> 0 | Q21: =IF(Reis!R13<1,0,((Q15+Q16+Q17+Q18+Q19+Q20)*1.08*'Rijdend personeel'!$G$52)) -> 0 | R21: =IF(Reis!S13<1,0,((R15+R16+R17+R18+R19+R20)*1.08*'Rijdend personeel'!$G$52)) -> 0 | S21: =IF(Reis!T13<1,0,((S15+S16+S17+S18+S19+S20)*1.08*'Rijdend personeel'!$G$52)) -> 0
C22: Eco-cheques alle CH | E22: =IF(Reis!F13<1,0,(('Rijdend personeel'!$G$44/'Rijdend personeel'!$G$68)*Reis!F19)) ->  | F22: =IF(Reis!G13<1,0,(('Rijdend personeel'!$G$44/'Rijdend personeel'!$G$68)*Reis!G19)) -> 0 | G22: =IF(Reis!H13<1,0,(('Rijdend personeel'!$G$44/'Rijdend personeel'!$G$68)*Reis!H19)) -> 0 | H22: =IF(Reis!I13<1,0,(('Rijdend personeel'!$G$44/'Rijdend personeel'!$G$68)*Reis!I19)) -> 0 | I22: =IF(Reis!J13<1,0,(('Rijdend personeel'!$G$44/'Rijdend personeel'!$G$68)*Reis!J19)) -> 0 | J22: =IF(Reis!K13<1,0,(('Rijdend personeel'!$G$44/'Rijdend personeel'!$G$68)*Reis!K19)) -> 0 | K22: =IF(Reis!L13<1,0,(('Rijdend personeel'!$G$44/'Rijdend personeel'!$G$68)*Reis!L19)) -> 0 | L22: =IF(Reis!M13<1,0,(('Rijdend personeel'!$G$44/'Rijdend personeel'!$G$68)*Reis!M19)) -> 0 | M22: =IF(Reis!N13<1,0,(('Rijdend personeel'!$G$44/'Rijdend personeel'!$G$68)*Reis!N19)) -> 0 | N22: =IF(Reis!O13<1,0,(('Rijdend personeel'!$G$44/'Rijdend personeel'!$G$68)*Reis!O19)) -> 0 | O22: =IF(Reis!P13<1,0,(('Rijdend personeel'!$G$44/'Rijdend personeel'!$G$68)*Reis!P19)) -> 0 | P22: =IF(Reis!Q13<1,0,(('Rijdend personeel'!$G$44/'Rijdend personeel'!$G$68)*Reis!Q19)) -> 0 | Q22: =IF(Reis!R13<1,0,(('Rijdend personeel'!$G$44/'Rijdend personeel'!$G$68)*Reis!R19)) -> 0 | R22: =IF(Reis!S13<1,0,(('Rijdend personeel'!$G$44/'Rijdend personeel'!$G$68)*Reis!S19)) -> 0 | S22: =IF(Reis!T13<1,0,(('Rijdend personeel'!$G$44/'Rijdend personeel'!$G$68)*Reis!T19)) -> 0
C23: ARAB CH ENKEL | E23: =ROUNDUP(E12,0)*'Rijdend personeel'!$G$40 -> 0 | F23: =ROUNDUP(F12,0)*'Rijdend personeel'!$G$40 -> 0 | G23: =ROUNDUP(G12,0)*'Rijdend personeel'!$G$40 -> 0 | H23: =ROUNDUP(H12,0)*'Rijdend personeel'!$G$40 -> 0 | I23: =ROUNDUP(I12,0)*'Rijdend personeel'!$G$40 -> 0 | J23: =ROUNDUP(J12,0)*'Rijdend personeel'!$G$40 -> 0 | K23: =ROUNDUP(K12,0)*'Rijdend personeel'!$G$40 -> 0 | L23: =ROUNDUP(L12,0)*'Rijdend personeel'!$G$40 -> 0 | M23: =ROUNDUP(M12,0)*'Rijdend personeel'!$G$40 -> 0 | N23: =ROUNDUP(N12,0)*'Rijdend personeel'!$G$40 -> 0 | O23: =ROUNDUP(O12,0)*'Rijdend personeel'!$G$40 -> 0 | P23: =ROUNDUP(P12,0)*'Rijdend personeel'!$G$40 -> 0 | Q23: =ROUNDUP(Q12,0)*'Rijdend personeel'!$G$40 -> 0 | R23: =ROUNDUP(R12,0)*'Rijdend personeel'!$G$40 -> 0 | S23: =ROUNDUP(S12,0)*'Rijdend personeel'!$G$40 -> 0
C24: ARAB CH1 DUBBEL | E24: =ROUNDUP(E13,0)*'Rijdend personeel'!$G$40 -> 0 | F24: =ROUNDUP(F13,0)*'Rijdend personeel'!$G$40 -> 0 | G24: =ROUNDUP(G13,0)*'Rijdend personeel'!$G$40 -> 0 | H24: =ROUNDUP(H13,0)*'Rijdend personeel'!$G$40 -> 0 | I24: =ROUNDUP(I13,0)*'Rijdend personeel'!$G$40 -> 0 | J24: =ROUNDUP(J13,0)*'Rijdend personeel'!$G$40 -> 0 | K24: =ROUNDUP(K13,0)*'Rijdend personeel'!$G$40 -> 0 | L24: =ROUNDUP(L13,0)*'Rijdend personeel'!$G$40 -> 0 | M24: =ROUNDUP(M13,0)*'Rijdend personeel'!$G$40 -> 0 | N24: =ROUNDUP(N13,0)*'Rijdend personeel'!$G$40 -> 0 | O24: =ROUNDUP(O13,0)*'Rijdend personeel'!$G$40 -> 0 | P24: =ROUNDUP(P13,0)*'Rijdend personeel'!$G$40 -> 0 | Q24: =ROUNDUP(Q13,0)*'Rijdend personeel'!$G$40 -> 0 | R24: =ROUNDUP(R13,0)*'Rijdend personeel'!$G$40 -> 0 | S24: =ROUNDUP(S13,0)*'Rijdend personeel'!$G$40 -> 0
C25: ARAB CH2 DUBBEL | E25: =ROUNDUP(E14,0)*'Rijdend personeel'!$G$40 -> 0 | F25: =ROUNDUP(F14,0)*'Rijdend personeel'!$G$40 -> 0 | G25: =ROUNDUP(G14,0)*'Rijdend personeel'!$G$40 -> 0 | H25: =ROUNDUP(H14,0)*'Rijdend personeel'!$G$40 -> 0 | I25: =ROUNDUP(I14,0)*'Rijdend personeel'!$G$40 -> 0 | J25: =ROUNDUP(J14,0)*'Rijdend personeel'!$G$40 -> 0 | K25: =ROUNDUP(K14,0)*'Rijdend personeel'!$G$40 -> 0 | L25: =ROUNDUP(L14,0)*'Rijdend personeel'!$G$40 -> 0 | M25: =ROUNDUP(M14,0)*'Rijdend personeel'!$G$40 -> 0 | N25: =ROUNDUP(N14,0)*'Rijdend personeel'!$G$40 -> 0 | O25: =ROUNDUP(O14,0)*'Rijdend personeel'!$G$40 -> 0 | P25: =ROUNDUP(P14,0)*'Rijdend personeel'!$G$40 -> 0 | Q25: =ROUNDUP(Q14,0)*'Rijdend personeel'!$G$40 -> 0 | R25: =ROUNDUP(R14,0)*'Rijdend personeel'!$G$40 -> 0 | S25: =ROUNDUP(S14,0)*'Rijdend personeel'!$G$40 -> 0
C26: Overige kosten alle CH | E26: =IF(Reis!F13<1,0,((('Rijdend personeel'!$G$54+'Rijdend personeel'!$G$56+'Rijdend personeel'!$G$58+'Rijdend personeel'!$G$60+'Rijdend personeel'!$G$62+'Rijdend personeel'!$G$64+'Rijdend personeel'!$G$66)/'Rijdend personeel'!$G$68)*Reis!F19)) ->  | F26: =IF(Reis!G13<1,0,((('Rijdend personeel'!$G$54+'Rijdend personeel'!$G$56+'Rijdend personeel'!$G$58+'Rijdend personeel'!$G$60+'Rijdend personeel'!$G$62+'Rijdend personeel'!$G$64+'Rijdend personeel'!$G$66)/'Rijdend personeel'!$G$68)*Reis!G19)) -> 0 | G26: =IF(Reis!H13<1,0,((('Rijdend personeel'!$G$54+'Rijdend personeel'!$G$56+'Rijdend personeel'!$G$58+'Rijdend personeel'!$G$60+'Rijdend personeel'!$G$62+'Rijdend personeel'!$G$64+'Rijdend personeel'!$G$66)/'Rijdend personeel'!$G$68)*Reis!H19)) -> 0 | H26: =IF(Reis!I13<1,0,((('Rijdend personeel'!$G$54+'Rijdend personeel'!$G$56+'Rijdend personeel'!$G$58+'Rijdend personeel'!$G$60+'Rijdend personeel'!$G$62+'Rijdend personeel'!$G$64+'Rijdend personeel'!$G$66)/'Rijdend personeel'!$G$68)*Reis!I19)) -> 0 | I26: =IF(Reis!J13<1,0,((('Rijdend personeel'!$G$54+'Rijdend personeel'!$G$56+'Rijdend personeel'!$G$58+'Rijdend personeel'!$G$60+'Rijdend personeel'!$G$62+'Rijdend personeel'!$G$64+'Rijdend personeel'!$G$66)/'Rijdend personeel'!$G$68)*Reis!J19)) -> 0 | J26: =IF(Reis!K13<1,0,((('Rijdend personeel'!$G$54+'Rijdend personeel'!$G$56+'Rijdend personeel'!$G$58+'Rijdend personeel'!$G$60+'Rijdend personeel'!$G$62+'Rijdend personeel'!$G$64+'Rijdend personeel'!$G$66)/'Rijdend personeel'!$G$68)*Reis!K19)) -> 0 | K26: =IF(Reis!L13<1,0,((('Rijdend personeel'!$G$54+'Rijdend personeel'!$G$56+'Rijdend personeel'!$G$58+'Rijdend personeel'!$G$60+'Rijdend personeel'!$G$62+'Rijdend personeel'!$G$64+'Rijdend personeel'!$G$66)/'Rijdend personeel'!$G$68)*Reis!L19)) -> 0 | L26: =IF(Reis!M13<1,0,((('Rijdend personeel'!$G$54+'Rijdend personeel'!$G$56+'Rijdend personeel'!$G$58+'Rijdend personeel'!$G$60+'Rijdend personeel'!$G$62+'Rijdend personeel'!$G$64+'Rijdend personeel'!$G$66)/'Rijdend personeel'!$G$68)*Reis!M19)) -> 0 | M26: =IF(Reis!N13<1,0,((('Rijdend personeel'!$G$54+'Rijdend personeel'!$G$56+'Rijdend personeel'!$G$58+'Rijdend personeel'!$G$60+'Rijdend personeel'!$G$62+'Rijdend personeel'!$G$64+'Rijdend personeel'!$G$66)/'Rijdend personeel'!$G$68)*Reis!N19)) -> 0 | N26: =IF(Reis!O13<1,0,((('Rijdend personeel'!$G$54+'Rijdend personeel'!$G$56+'Rijdend personeel'!$G$58+'Rijdend personeel'!$G$60+'Rijdend personeel'!$G$62+'Rijdend personeel'!$G$64+'Rijdend personeel'!$G$66)/'Rijdend personeel'!$G$68)*Reis!O19)) -> 0 | O26: =IF(Reis!P13<1,0,((('Rijdend personeel'!$G$54+'Rijdend personeel'!$G$56+'Rijdend personeel'!$G$58+'Rijdend personeel'!$G$60+'Rijdend personeel'!$G$62+'Rijdend personeel'!$G$64+'Rijdend personeel'!$G$66)/'Rijdend personeel'!$G$68)*Reis!P19)) -> 0 | P26: =IF(Reis!Q13<1,0,((('Rijdend personeel'!$G$54+'Rijdend personeel'!$G$56+'Rijdend personeel'!$G$58+'Rijdend personeel'!$G$60+'Rijdend personeel'!$G$62+'Rijdend personeel'!$G$64+'Rijdend personeel'!$G$66)/'Rijdend personeel'!$G$68)*Reis!Q19)) -> 0 | Q26: =IF(Reis!R13<1,0,((('Rijdend personeel'!$G$54+'Rijdend personeel'!$G$56+'Rijdend personeel'!$G$58+'Rijdend personeel'!$G$60+'Rijdend personeel'!$G$62+'Rijdend personeel'!$G$64+'Rijdend personeel'!$G$66)/'Rijdend personeel'!$G$68)*Reis!R19)) -> 0 | R26: =IF(Reis!S13<1,0,((('Rijdend personeel'!$G$54+'Rijdend personeel'!$G$56+'Rijdend personeel'!$G$58+'Rijdend personeel'!$G$60+'Rijdend personeel'!$G$62+'Rijdend personeel'!$G$64+'Rijdend personeel'!$G$66)/'Rijdend personeel'!$G$68)*Reis!S19)) -> 0 | S26: =IF(Reis!T13<1,0,((('Rijdend personeel'!$G$54+'Rijdend personeel'!$G$56+'Rijdend personeel'!$G$58+'Rijdend personeel'!$G$60+'Rijdend personeel'!$G$62+'Rijdend personeel'!$G$64+'Rijdend personeel'!$G$66)/'Rijdend personeel'!$G$68)*Reis!T19)) -> 0
C27: Extra bonussen zondag + feestdag | E27: =IF(Reis!F24>0,0,IF(Reis!F19="","",IF(Reis!F19=1,Reis!AD17,IF(Reis!F19=2,Reis!AD18+Reis!AD19,IF(Reis!F19=3,Reis!AD18+Reis!AD19+Reis!AD17))))) ->  | F27: =IF(Reis!G24>0,0,IF(Reis!G19="","",IF(Reis!G19=1,Reis!AE17,IF(Reis!G19=2,Reis!AE18+Reis!AE19,IF(Reis!G19=3,Reis!AE18+Reis!AE19+Reis!AE17))))) ->  | G27: =IF(Reis!H24>0,0,IF(Reis!H19="","",IF(Reis!H19=1,Reis!AF17,IF(Reis!H19=2,Reis!AF18+Reis!AF19,IF(Reis!H19=3,Reis!AF18+Reis!AF19+Reis!AF17))))) ->  | H27: =IF(Reis!I24>0,0,IF(Reis!I19="","",IF(Reis!I19=1,Reis!AG17,IF(Reis!I19=2,Reis!AG18+Reis!AG19,IF(Reis!I19=3,Reis!AG18+Reis!AG19+Reis!AG17))))) ->  | I27: =IF(Reis!J24>0,0,IF(Reis!J19="","",IF(Reis!J19=1,Reis!AH17,IF(Reis!J19=2,Reis!AH18+Reis!AH19,IF(Reis!J19=3,Reis!AH18+Reis!AH19+Reis!AH17))))) ->  | J27: =IF(Reis!K24>0,0,IF(Reis!K19="","",IF(Reis!K19=1,Reis!AI17,IF(Reis!K19=2,Reis!AI18+Reis!AI19,IF(Reis!K19=3,Reis!AI18+Reis!AI19+Reis!AI17))))) ->  | K27: =IF(Reis!L24>0,0,IF(Reis!L19="","",IF(Reis!L19=1,Reis!AJ17,IF(Reis!L19=2,Reis!AJ18+Reis!AJ19,IF(Reis!L19=3,Reis!AJ18+Reis!AJ19+Reis!AJ17))))) ->  | L27: =IF(Reis!M24>0,0,IF(Reis!M19="","",IF(Reis!M19=1,Reis!AK17,IF(Reis!M19=2,Reis!AK18+Reis!AK19,IF(Reis!M19=3,Reis!AK18+Reis!AK19+Reis!AK17))))) ->  | M27: =IF(Reis!N24>0,0,IF(Reis!N19="","",IF(Reis!N19=1,Reis!AL17,IF(Reis!N19=2,Reis!AL18+Reis!AL19,IF(Reis!N19=3,Reis!AL18+Reis!AL19+Reis!AL17))))) ->  | N27: =IF(Reis!O24>0,0,IF(Reis!O19="","",IF(Reis!O19=1,Reis!AM17,IF(Reis!O19=2,Reis!AM18+Reis!AM19,IF(Reis!O19=3,Reis!AM18+Reis!AM19+Reis!AM17))))) ->  | O27: =IF(Reis!P24>0,0,IF(Reis!P19="","",IF(Reis!P19=1,Reis!AN17,IF(Reis!P19=2,Reis!AN18+Reis!AN19,IF(Reis!P19=3,Reis!AN18+Reis!AN19+Reis!AN17))))) ->  | P27: =IF(Reis!Q24>0,0,IF(Reis!Q19="","",IF(Reis!Q19=1,Reis!AO17,IF(Reis!Q19=2,Reis!AO18+Reis!AO19,IF(Reis!Q19=3,Reis!AO18+Reis!AO19+Reis!AO17))))) ->  | Q27: =IF(Reis!R24>0,0,IF(Reis!R19="","",IF(Reis!R19=1,Reis!AP17,IF(Reis!R19=2,Reis!AP18+Reis!AP19,IF(Reis!R19=3,Reis!AP18+Reis!AP19+Reis!AP17))))) ->  | R27: =IF(Reis!S24>0,0,IF(Reis!S19="","",IF(Reis!S19=1,Reis!AQ17,IF(Reis!S19=2,Reis!AQ18+Reis!AQ19,IF(Reis!S19=3,Reis!AQ18+Reis!AQ19+Reis!AQ17))))) ->  | S27: =IF(Reis!T24>0,0,IF(Reis!T19="","",IF(Reis!T19=1,Reis!AR17,IF(Reis!T19=2,Reis!AR18+Reis!AR19,IF(Reis!T19=3,Reis!AR18+Reis!AR19+Reis!AR17))))) -> 
C28: Maaltijdcheques | E28: =IF(Reis!F13<1,0,(('Rijdend personeel'!$G$70*Reis!F19))) -> 0 | F28: =IF(Reis!G13<1,0,(('Rijdend personeel'!$G$70*Reis!G19))) -> 0 | G28: =IF(Reis!H13<1,0,(('Rijdend personeel'!$G$70*Reis!H19))) -> 0 | H28: =IF(Reis!I13<1,0,(('Rijdend personeel'!$G$70*Reis!I19))) -> 0 | I28: =IF(Reis!J13<1,0,(('Rijdend personeel'!$G$70*Reis!J19))) -> 0 | J28: =IF(Reis!K13<1,0,(('Rijdend personeel'!$G$70*Reis!K19))) -> 0 | K28: =IF(Reis!L13<1,0,(('Rijdend personeel'!$G$70*Reis!L19))) -> 0 | L28: =IF(Reis!M13<1,0,(('Rijdend personeel'!$G$70*Reis!M19))) -> 0 | M28: =IF(Reis!N13<1,0,(('Rijdend personeel'!$G$70*Reis!N19))) -> 0 | N28: =IF(Reis!O13<1,0,(('Rijdend personeel'!$G$70*Reis!O19))) -> 0 | O28: =IF(Reis!P13<1,0,(('Rijdend personeel'!$G$70*Reis!P19))) -> 0 | P28: =IF(Reis!Q13<1,0,(('Rijdend personeel'!$G$70*Reis!Q19))) -> 0 | Q28: =IF(Reis!R13<1,0,(('Rijdend personeel'!$G$70*Reis!R19))) -> 0 | R28: =IF(Reis!S13<1,0,(('Rijdend personeel'!$G$70*Reis!S19))) -> 0 | S28: =IF(Reis!T13<1,0,(('Rijdend personeel'!$G$70*Reis!T19))) -> 0
C29: Extra loonkosten alle CH
C30: Totale loonkost alle CH | E30: =IF(Reis!F13<1,0,(E15+E16+E17+E18+E19+E20+E22+E21+E23+E24+E25+E26+E27+E29+E28)) ->  | F30: =IF(Reis!G13<1,0,(F15+F16+F17+F18+F19+F20+F22+F21+F23+F24+F25+F26+F27+F29+F28)) -> 0 | G30: =IF(Reis!H13<1,0,(G15+G16+G17+G18+G19+G20+G22+G21+G23+G24+G25+G26+G27+G29+G28)) -> 0 | H30: =IF(Reis!I13<1,0,(H15+H16+H17+H18+H19+H20+H22+H21+H23+H24+H25+H26+H27+H29+H28)) -> 0 | I30: =IF(Reis!J13<1,0,(I15+I16+I17+I18+I19+I20+I22+I21+I23+I24+I25+I26+I27+I29+I28)) -> 0 | J30: =IF(Reis!K13<1,0,(J15+J16+J17+J18+J19+J20+J22+J21+J23+J24+J25+J26+J27+J29+J28)) -> 0 | K30: =IF(Reis!L13<1,0,(K15+K16+K17+K18+K19+K20+K22+K21+K23+K24+K25+K26+K27+K29+K28)) -> 0 | L30: =IF(Reis!M13<1,0,(L15+L16+L17+L18+L19+L20+L22+L21+L23+L24+L25+L26+L27+L29+L28)) -> 0 | M30: =IF(Reis!N13<1,0,(M15+M16+M17+M18+M19+M20+M22+M21+M23+M24+M25+M26+M27+M29+M28)) -> 0 | N30: =IF(Reis!O13<1,0,(N15+N16+N17+N18+N19+N20+N22+N21+N23+N24+N25+N26+N27+N29+N28)) -> 0 | O30: =IF(Reis!P13<1,0,(O15+O16+O17+O18+O19+O20+O22+O21+O23+O24+O25+O26+O27+O29+O28)) -> 0 | P30: =IF(Reis!Q13<1,0,(P15+P16+P17+P18+P19+P20+P22+P21+P23+P24+P25+P26+P27+P29+P28)) -> 0 | Q30: =IF(Reis!R13<1,0,(Q15+Q16+Q17+Q18+Q19+Q20+Q22+Q21+Q23+Q24+Q25+Q26+Q27+Q29+Q28)) -> 0 | R30: =IF(Reis!S13<1,0,(R15+R16+R17+R18+R19+R20+R22+R21+R23+R24+R25+R26+R27+R29+R28)) -> 0 | S30: =IF(Reis!T13<1,0,(S15+S16+S17+S18+S19+S20+S22+S21+S23+S24+S25+S26+S27+S29+S28)) -> 0
G33: Coût personnel roulant | J33: =Bestemmingen!W10 ->  | L33: =Bestemmingen!S10 -> 0
E38: dag | F38: dag | G38: dag | H38: dag | I38: dag | J38: dag | K38: dag | L38: dag | M38: dag | N38: dag | O38: dag | P38: dag | Q38: dag | R38: dag | S38: dag
E39: 1 | F39: 2 | G39: 3 | H39: 4 | I39: 5 | J39: 6 | K39: 7 | L39: 8 | M39: 9 | N39: 10 | O39: 11 | P39: 12 | Q39: 13 | R39: 14 | S39: 15
C40: Diensttijd CH ENKEL | E40: =Reis!F54*24 -> 0 | F40: =Reis!G54*24 -> 0 | G40: =Reis!H54*24 -> 0 | H40: =Reis!I54*24 -> 0 | I40: =Reis!J54*24 -> 0 | J40: =Reis!K54*24 -> 0 | K40: =Reis!L54*24 -> 0 | L40: =Reis!M54*24 -> 0 | M40: =Reis!N54*24 -> 0 | N40: =Reis!O54*24 -> 0 | O40: =Reis!P54*24 -> 0 | P40: =Reis!Q54*24 -> 0 | Q40: =Reis!R54*24 -> 0 | R40: =Reis!S54*24 -> 0 | S40: =Reis!T54*24 -> 0
C41: Diensttijd CH1 DUBBEL | E41: =Reis!F55*24 -> 0 | F41: =Reis!G55*24 -> 0 | G41: =Reis!H55*24 -> 0 | H41: =Reis!I55*24 -> 0 | I41: =Reis!J55*24 -> 0 | J41: =Reis!K55*24 -> 0 | K41: =Reis!L55*24 -> 0 | L41: =Reis!M55*24 -> 0 | M41: =Reis!N55*24 -> 0 | N41: =Reis!O55*24 -> 0 | O41: =Reis!P55*24 -> 0 | P41: =Reis!Q55*24 -> 0 | Q41: =Reis!R55*24 -> 0 | R41: =Reis!S55*24 -> 0 | S41: =Reis!T55*24 -> 0
C42: Diensttijd CH2 DUBBEL | E42: =Reis!F56*24 -> 0 | F42: =Reis!G56*24 -> 0 | G42: =Reis!H56*24 -> 0 | H42: =Reis!I56*24 -> 0 | I42: =Reis!J56*24 -> 0 | J42: =Reis!K56*24 -> 0 | K42: =Reis!L56*24 -> 0 | L42: =Reis!M56*24 -> 0 | M42: =Reis!N56*24 -> 0 | N42: =Reis!O56*24 -> 0 | O42: =Reis!P56*24 -> 0 | P42: =Reis!Q56*24 -> 0 | Q42: =Reis!R56*24 -> 0 | R42: =Reis!S56*24 -> 0 | S42: =Reis!T56*24 -> 0
C43: Bruto Sal CH ENKEL | E43: =IF(AND(E40>0,E40<=6,Reis!F53="Autre"),('Rijdend personeel'!$G$50+'Rijdend personeel'!$G$42),IF(AND(E40>0,E40<=6),('Rijdend personeel'!$G$9+'Rijdend personeel'!$G$42),IF(AND(E40>6,E40<=12),'Rijdend personeel'!$G$11+'Rijdend personeel'!$G$42,IF(E40>0,'Rijdend personeel'!$G$11+(ROUNDUP(E40,0)-12)*'Rijdend personeel'!$G$13+'Rijdend personeel'!$G$42,0)))) -> 0 | F43: =IF(AND(F40>0,F40<=6,Reis!G53="Autre"),('Rijdend personeel'!$G$50+'Rijdend personeel'!$G$42),IF(AND(F40>0,F40<=6),('Rijdend personeel'!$G$9+'Rijdend personeel'!$G$42),IF(AND(F40>6,F40<=12),'Rijdend personeel'!$G$11+'Rijdend personeel'!$G$42,IF(F40>0,'Rijdend personeel'!$G$11+(ROUNDUP(F40,0)-12)*'Rijdend personeel'!$G$13+'Rijdend personeel'!$G$42,0)))) -> 0 | G43: =IF(AND(G40>0,G40<=6,Reis!H53="Autre"),('Rijdend personeel'!$G$50+'Rijdend personeel'!$G$42),IF(AND(G40>0,G40<=6),('Rijdend personeel'!$G$9+'Rijdend personeel'!$G$42),IF(AND(G40>6,G40<=12),'Rijdend personeel'!$G$11+'Rijdend personeel'!$G$42,IF(G40>0,'Rijdend personeel'!$G$11+(ROUNDUP(G40,0)-12)*'Rijdend personeel'!$G$13+'Rijdend personeel'!$G$42,0)))) -> 0 | H43: =IF(AND(H40>0,H40<=6,Reis!I53="Autre"),('Rijdend personeel'!$G$50+'Rijdend personeel'!$G$42),IF(AND(H40>0,H40<=6),('Rijdend personeel'!$G$9+'Rijdend personeel'!$G$42),IF(AND(H40>6,H40<=12),'Rijdend personeel'!$G$11+'Rijdend personeel'!$G$42,IF(H40>0,'Rijdend personeel'!$G$11+(ROUNDUP(H40,0)-12)*'Rijdend personeel'!$G$13+'Rijdend personeel'!$G$42,0)))) -> 0 | I43: =IF(AND(I40>0,I40<=6,Reis!J53="Autre"),('Rijdend personeel'!$G$50+'Rijdend personeel'!$G$42),IF(AND(I40>0,I40<=6),('Rijdend personeel'!$G$9+'Rijdend personeel'!$G$42),IF(AND(I40>6,I40<=12),'Rijdend personeel'!$G$11+'Rijdend personeel'!$G$42,IF(I40>0,'Rijdend personeel'!$G$11+(ROUNDUP(I40,0)-12)*'Rijdend personeel'!$G$13+'Rijdend personeel'!$G$42,0)))) -> 0 | J43: =IF(AND(J40>0,J40<=6,Reis!K53="Autre"),('Rijdend personeel'!$G$50+'Rijdend personeel'!$G$42),IF(AND(J40>0,J40<=6),('Rijdend personeel'!$G$9+'Rijdend personeel'!$G$42),IF(AND(J40>6,J40<=12),'Rijdend personeel'!$G$11+'Rijdend personeel'!$G$42,IF(J40>0,'Rijdend personeel'!$G$11+(ROUNDUP(J40,0)-12)*'Rijdend personeel'!$G$13+'Rijdend personeel'!$G$42,0)))) -> 0 | K43: =IF(AND(K40>0,K40<=6,Reis!L53="Autre"),('Rijdend personeel'!$G$50+'Rijdend personeel'!$G$42),IF(AND(K40>0,K40<=6),('Rijdend personeel'!$G$9+'Rijdend personeel'!$G$42),IF(AND(K40>6,K40<=12),'Rijdend personeel'!$G$11+'Rijdend personeel'!$G$42,IF(K40>0,'Rijdend personeel'!$G$11+(ROUNDUP(K40,0)-12)*'Rijdend personeel'!$G$13+'Rijdend personeel'!$G$42,0)))) -> 0 | L43: =IF(AND(L40>0,L40<=6,Reis!M53="Autre"),('Rijdend personeel'!$G$50+'Rijdend personeel'!$G$42),IF(AND(L40>0,L40<=6),('Rijdend personeel'!$G$9+'Rijdend personeel'!$G$42),IF(AND(L40>6,L40<=12),'Rijdend personeel'!$G$11+'Rijdend personeel'!$G$42,IF(L40>0,'Rijdend personeel'!$G$11+(ROUNDUP(L40,0)-12)*'Rijdend personeel'!$G$13+'Rijdend personeel'!$G$42,0)))) -> 0 | M43: =IF(AND(M40>0,M40<=6,Reis!N53="Autre"),('Rijdend personeel'!$G$50+'Rijdend personeel'!$G$42),IF(AND(M40>0,M40<=6),('Rijdend personeel'!$G$9+'Rijdend personeel'!$G$42),IF(AND(M40>6,M40<=12),'Rijdend personeel'!$G$11+'Rijdend personeel'!$G$42,IF(M40>0,'Rijdend personeel'!$G$11+(ROUNDUP(M40,0)-12)*'Rijdend personeel'!$G$13+'Rijdend personeel'!$G$42,0)))) -> 0 | N43: =IF(AND(N40>0,N40<=6,Reis!O53="Autre"),('Rijdend personeel'!$G$50+'Rijdend personeel'!$G$42),IF(AND(N40>0,N40<=6),('Rijdend personeel'!$G$9+'Rijdend personeel'!$G$42),IF(AND(N40>6,N40<=12),'Rijdend personeel'!$G$11+'Rijdend personeel'!$G$42,IF(N40>0,'Rijdend personeel'!$G$11+(ROUNDUP(N40,0)-12)*'Rijdend personeel'!$G$13+'Rijdend personeel'!$G$42,0)))) -> 0 | O43: =IF(AND(O40>0,O40<=6,Reis!P53="Autre"),('Rijdend personeel'!$G$50+'Rijdend personeel'!$G$42),IF(AND(O40>0,O40<=6),('Rijdend personeel'!$G$9+'Rijdend personeel'!$G$42),IF(AND(O40>6,O40<=12),'Rijdend personeel'!$G$11+'Rijdend personeel'!$G$42,IF(O40>0,'Rijdend personeel'!$G$11+(ROUNDUP(O40,0)-12)*'Rijdend personeel'!$G$13+'Rijdend personeel'!$G$42,0)))) -> 0 | P43: =IF(AND(P40>0,P40<=6,Reis!Q53="Autre"),('Rijdend personeel'!$G$50+'Rijdend personeel'!$G$42),IF(AND(P40>0,P40<=6),('Rijdend personeel'!$G$9+'Rijdend personeel'!$G$42),IF(AND(P40>6,P40<=12),'Rijdend personeel'!$G$11+'Rijdend personeel'!$G$42,IF(P40>0,'Rijdend personeel'!$G$11+(ROUNDUP(P40,0)-12)*'Rijdend personeel'!$G$13+'Rijdend personeel'!$G$42,0)))) -> 0 | Q43: =IF(AND(Q40>0,Q40<=6,Reis!R53="Autre"),('Rijdend personeel'!$G$50+'Rijdend personeel'!$G$42),IF(AND(Q40>0,Q40<=6),('Rijdend personeel'!$G$9+'Rijdend personeel'!$G$42),IF(AND(Q40>6,Q40<=12),'Rijdend personeel'!$G$11+'Rijdend personeel'!$G$42,IF(Q40>0,'Rijdend personeel'!$G$11+(ROUNDUP(Q40,0)-12)*'Rijdend personeel'!$G$13+'Rijdend personeel'!$G$42,0)))) -> 0 | R43: =IF(AND(R40>0,R40<=6,Reis!S53="Autre"),('Rijdend personeel'!$G$50+'Rijdend personeel'!$G$42),IF(AND(R40>0,R40<=6),('Rijdend personeel'!$G$9+'Rijdend personeel'!$G$42),IF(AND(R40>6,R40<=12),'Rijdend personeel'!$G$11+'Rijdend personeel'!$G$42,IF(R40>0,'Rijdend personeel'!$G$11+(ROUNDUP(R40,0)-12)*'Rijdend personeel'!$G$13+'Rijdend personeel'!$G$42,0)))) -> 0 | S43: =IF(AND(S40>0,S40<=6,Reis!T53="Autre"),('Rijdend personeel'!$G$50+'Rijdend personeel'!$G$42),IF(AND(S40>0,S40<=6),('Rijdend personeel'!$G$9+'Rijdend personeel'!$G$42),IF(AND(S40>6,S40<=12),'Rijdend personeel'!$G$11+'Rijdend personeel'!$G$42,IF(S40>0,'Rijdend personeel'!$G$11+(ROUNDUP(S40,0)-12)*'Rijdend personeel'!$G$13+'Rijdend personeel'!$G$42,0)))) -> 0
C44: Bruto Sal CH1 DUBBEL | E44: =IF(E41=0,0,IF(E41<12,'Rijdend personeel'!$G$16+'Rijdend personeel'!$G$42,IF(E41<13,'Rijdend personeel'!$G$18+'Rijdend personeel'!$G$42,IF(E41<14,'Rijdend personeel'!$G$20+'Rijdend personeel'!$G$42,IF(E41<15,'Rijdend personeel'!$G$22+'Rijdend personeel'!$G$42,IF(E41<16,'Rijdend personeel'!$G$24+'Rijdend personeel'!$G$42,IF(E41<17,'Rijdend personeel'!$G$26+'Rijdend personeel'!$G$42,IF(E41<18,'Rijdend personeel'!$G$28+'Rijdend personeel'!$G$42,IF(E41<19,'Rijdend personeel'!$G$30+'Rijdend personeel'!$G$42,IF(E41<20,'Rijdend personeel'!$G$32+'Rijdend personeel'!$G$42,IF(E41<21,'Rijdend personeel'!$G$34+'Rijdend personeel'!$G$42,IF(E41<22,'Rijdend personeel'!$G$36+'Rijdend personeel'!$G$42)))))))))))) -> 0 | F44: =IF(F41=0,0,IF(F41<12,'Rijdend personeel'!$G$16+'Rijdend personeel'!$G$42,IF(F41<13,'Rijdend personeel'!$G$18+'Rijdend personeel'!$G$42,IF(F41<14,'Rijdend personeel'!$G$20+'Rijdend personeel'!$G$42,IF(F41<15,'Rijdend personeel'!$G$22+'Rijdend personeel'!$G$42,IF(F41<16,'Rijdend personeel'!$G$24+'Rijdend personeel'!$G$42,IF(F41<17,'Rijdend personeel'!$G$26+'Rijdend personeel'!$G$42,IF(F41<18,'Rijdend personeel'!$G$28+'Rijdend personeel'!$G$42,IF(F41<19,'Rijdend personeel'!$G$30+'Rijdend personeel'!$G$42,IF(F41<20,'Rijdend personeel'!$G$32+'Rijdend personeel'!$G$42,IF(F41<21,'Rijdend personeel'!$G$34+'Rijdend personeel'!$G$42,IF(F41<22,'Rijdend personeel'!$G$36+'Rijdend personeel'!$G$42)))))))))))) -> 0 | G44: =IF(G41=0,0,IF(G41<12,'Rijdend personeel'!$G$16+'Rijdend personeel'!$G$42,IF(G41<13,'Rijdend personeel'!$G$18+'Rijdend personeel'!$G$42,IF(G41<14,'Rijdend personeel'!$G$20+'Rijdend personeel'!$G$42,IF(G41<15,'Rijdend personeel'!$G$22+'Rijdend personeel'!$G$42,IF(G41<16,'Rijdend personeel'!$G$24+'Rijdend personeel'!$G$42,IF(G41<17,'Rijdend personeel'!$G$26+'Rijdend personeel'!$G$42,IF(G41<18,'Rijdend personeel'!$G$28+'Rijdend personeel'!$G$42,IF(G41<19,'Rijdend personeel'!$G$30+'Rijdend personeel'!$G$42,IF(G41<20,'Rijdend personeel'!$G$32+'Rijdend personeel'!$G$42,IF(G41<21,'Rijdend personeel'!$G$34+'Rijdend personeel'!$G$42,IF(G41<22,'Rijdend personeel'!$G$36+'Rijdend personeel'!$G$42)))))))))))) -> 0 | H44: =IF(H41=0,0,IF(H41<12,'Rijdend personeel'!$G$16+'Rijdend personeel'!$G$42,IF(H41<13,'Rijdend personeel'!$G$18+'Rijdend personeel'!$G$42,IF(H41<14,'Rijdend personeel'!$G$20+'Rijdend personeel'!$G$42,IF(H41<15,'Rijdend personeel'!$G$22+'Rijdend personeel'!$G$42,IF(H41<16,'Rijdend personeel'!$G$24+'Rijdend personeel'!$G$42,IF(H41<17,'Rijdend personeel'!$G$26+'Rijdend personeel'!$G$42,IF(H41<18,'Rijdend personeel'!$G$28+'Rijdend personeel'!$G$42,IF(H41<19,'Rijdend personeel'!$G$30+'Rijdend personeel'!$G$42,IF(H41<20,'Rijdend personeel'!$G$32+'Rijdend personeel'!$G$42,IF(H41<21,'Rijdend personeel'!$G$34+'Rijdend personeel'!$G$42,IF(H41<22,'Rijdend personeel'!$G$36+'Rijdend personeel'!$G$42)))))))))))) -> 0 | I44: =IF(I41=0,0,IF(I41<12,'Rijdend personeel'!$G$16+'Rijdend personeel'!$G$42,IF(I41<13,'Rijdend personeel'!$G$18+'Rijdend personeel'!$G$42,IF(I41<14,'Rijdend personeel'!$G$20+'Rijdend personeel'!$G$42,IF(I41<15,'Rijdend personeel'!$G$22+'Rijdend personeel'!$G$42,IF(I41<16,'Rijdend personeel'!$G$24+'Rijdend personeel'!$G$42,IF(I41<17,'Rijdend personeel'!$G$26+'Rijdend personeel'!$G$42,IF(I41<18,'Rijdend personeel'!$G$28+'Rijdend personeel'!$G$42,IF(I41<19,'Rijdend personeel'!$G$30+'Rijdend personeel'!$G$42,IF(I41<20,'Rijdend personeel'!$G$32+'Rijdend personeel'!$G$42,IF(I41<21,'Rijdend personeel'!$G$34+'Rijdend personeel'!$G$42,IF(I41<22,'Rijdend personeel'!$G$36+'Rijdend personeel'!$G$42)))))))))))) -> 0 | J44: =IF(J41=0,0,IF(J41<12,'Rijdend personeel'!$G$16+'Rijdend personeel'!$G$42,IF(J41<13,'Rijdend personeel'!$G$18+'Rijdend personeel'!$G$42,IF(J41<14,'Rijdend personeel'!$G$20+'Rijdend personeel'!$G$42,IF(J41<15,'Rijdend personeel'!$G$22+'Rijdend personeel'!$G$42,IF(J41<16,'Rijdend personeel'!$G$24+'Rijdend personeel'!$G$42,IF(J41<17,'Rijdend personeel'!$G$26+'Rijdend personeel'!$G$42,IF(J41<18,'Rijdend personeel'!$G$28+'Rijdend personeel'!$G$42,IF(J41<19,'Rijdend personeel'!$G$30+'Rijdend personeel'!$G$42,IF(J41<20,'Rijdend personeel'!$G$32+'Rijdend personeel'!$G$42,IF(J41<21,'Rijdend personeel'!$G$34+'Rijdend personeel'!$G$42,IF(J41<22,'Rijdend personeel'!$G$36+'Rijdend personeel'!$G$42)))))))))))) -> 0 | K44: =IF(K41=0,0,IF(K41<12,'Rijdend personeel'!$G$16+'Rijdend personeel'!$G$42,IF(K41<13,'Rijdend personeel'!$G$18+'Rijdend personeel'!$G$42,IF(K41<14,'Rijdend personeel'!$G$20+'Rijdend personeel'!$G$42,IF(K41<15,'Rijdend personeel'!$G$22+'Rijdend personeel'!$G$42,IF(K41<16,'Rijdend personeel'!$G$24+'Rijdend personeel'!$G$42,IF(K41<17,'Rijdend personeel'!$G$26+'Rijdend personeel'!$G$42,IF(K41<18,'Rijdend personeel'!$G$28+'Rijdend personeel'!$G$42,IF(K41<19,'Rijdend personeel'!$G$30+'Rijdend personeel'!$G$42,IF(K41<20,'Rijdend personeel'!$G$32+'Rijdend personeel'!$G$42,IF(K41<21,'Rijdend personeel'!$G$34+'Rijdend personeel'!$G$42,IF(K41<22,'Rijdend personeel'!$G$36+'Rijdend personeel'!$G$42)))))))))))) -> 0 | L44: =IF(L41=0,0,IF(L41<12,'Rijdend personeel'!$G$16+'Rijdend personeel'!$G$42,IF(L41<13,'Rijdend personeel'!$G$18+'Rijdend personeel'!$G$42,IF(L41<14,'Rijdend personeel'!$G$20+'Rijdend personeel'!$G$42,IF(L41<15,'Rijdend personeel'!$G$22+'Rijdend personeel'!$G$42,IF(L41<16,'Rijdend personeel'!$G$24+'Rijdend personeel'!$G$42,IF(L41<17,'Rijdend personeel'!$G$26+'Rijdend personeel'!$G$42,IF(L41<18,'Rijdend personeel'!$G$28+'Rijdend personeel'!$G$42,IF(L41<19,'Rijdend personeel'!$G$30+'Rijdend personeel'!$G$42,IF(L41<20,'Rijdend personeel'!$G$32+'Rijdend personeel'!$G$42,IF(L41<21,'Rijdend personeel'!$G$34+'Rijdend personeel'!$G$42,IF(L41<22,'Rijdend personeel'!$G$36+'Rijdend personeel'!$G$42)))))))))))) -> 0 | M44: =IF(M41=0,0,IF(M41<12,'Rijdend personeel'!$G$16+'Rijdend personeel'!$G$42,IF(M41<13,'Rijdend personeel'!$G$18+'Rijdend personeel'!$G$42,IF(M41<14,'Rijdend personeel'!$G$20+'Rijdend personeel'!$G$42,IF(M41<15,'Rijdend personeel'!$G$22+'Rijdend personeel'!$G$42,IF(M41<16,'Rijdend personeel'!$G$24+'Rijdend personeel'!$G$42,IF(M41<17,'Rijdend personeel'!$G$26+'Rijdend personeel'!$G$42,IF(M41<18,'Rijdend personeel'!$G$28+'Rijdend personeel'!$G$42,IF(M41<19,'Rijdend personeel'!$G$30+'Rijdend personeel'!$G$42,IF(M41<20,'Rijdend personeel'!$G$32+'Rijdend personeel'!$G$42,IF(M41<21,'Rijdend personeel'!$G$34+'Rijdend personeel'!$G$42,IF(M41<22,'Rijdend personeel'!$G$36+'Rijdend personeel'!$G$42)))))))))))) -> 0 | N44: =IF(N41=0,0,IF(N41<12,'Rijdend personeel'!$G$16+'Rijdend personeel'!$G$42,IF(N41<13,'Rijdend personeel'!$G$18+'Rijdend personeel'!$G$42,IF(N41<14,'Rijdend personeel'!$G$20+'Rijdend personeel'!$G$42,IF(N41<15,'Rijdend personeel'!$G$22+'Rijdend personeel'!$G$42,IF(N41<16,'Rijdend personeel'!$G$24+'Rijdend personeel'!$G$42,IF(N41<17,'Rijdend personeel'!$G$26+'Rijdend personeel'!$G$42,IF(N41<18,'Rijdend personeel'!$G$28+'Rijdend personeel'!$G$42,IF(N41<19,'Rijdend personeel'!$G$30+'Rijdend personeel'!$G$42,IF(N41<20,'Rijdend personeel'!$G$32+'Rijdend personeel'!$G$42,IF(N41<21,'Rijdend personeel'!$G$34+'Rijdend personeel'!$G$42,IF(N41<22,'Rijdend personeel'!$G$36+'Rijdend personeel'!$G$42)))))))))))) -> 0 | O44: =IF(O41=0,0,IF(O41<12,'Rijdend personeel'!$G$16+'Rijdend personeel'!$G$42,IF(O41<13,'Rijdend personeel'!$G$18+'Rijdend personeel'!$G$42,IF(O41<14,'Rijdend personeel'!$G$20+'Rijdend personeel'!$G$42,IF(O41<15,'Rijdend personeel'!$G$22+'Rijdend personeel'!$G$42,IF(O41<16,'Rijdend personeel'!$G$24+'Rijdend personeel'!$G$42,IF(O41<17,'Rijdend personeel'!$G$26+'Rijdend personeel'!$G$42,IF(O41<18,'Rijdend personeel'!$G$28+'Rijdend personeel'!$G$42,IF(O41<19,'Rijdend personeel'!$G$30+'Rijdend personeel'!$G$42,IF(O41<20,'Rijdend personeel'!$G$32+'Rijdend personeel'!$G$42,IF(O41<21,'Rijdend personeel'!$G$34+'Rijdend personeel'!$G$42,IF(O41<22,'Rijdend personeel'!$G$36+'Rijdend personeel'!$G$42)))))))))))) -> 0 | P44: =IF(P41=0,0,IF(P41<12,'Rijdend personeel'!$G$16+'Rijdend personeel'!$G$42,IF(P41<13,'Rijdend personeel'!$G$18+'Rijdend personeel'!$G$42,IF(P41<14,'Rijdend personeel'!$G$20+'Rijdend personeel'!$G$42,IF(P41<15,'Rijdend personeel'!$G$22+'Rijdend personeel'!$G$42,IF(P41<16,'Rijdend personeel'!$G$24+'Rijdend personeel'!$G$42,IF(P41<17,'Rijdend personeel'!$G$26+'Rijdend personeel'!$G$42,IF(P41<18,'Rijdend personeel'!$G$28+'Rijdend personeel'!$G$42,IF(P41<19,'Rijdend personeel'!$G$30+'Rijdend personeel'!$G$42,IF(P41<20,'Rijdend personeel'!$G$32+'Rijdend personeel'!$G$42,IF(P41<21,'Rijdend personeel'!$G$34+'Rijdend personeel'!$G$42,IF(P41<22,'Rijdend personeel'!$G$36+'Rijdend personeel'!$G$42)))))))))))) -> 0 | Q44: =IF(Q41=0,0,IF(Q41<12,'Rijdend personeel'!$G$16+'Rijdend personeel'!$G$42,IF(Q41<13,'Rijdend personeel'!$G$18+'Rijdend personeel'!$G$42,IF(Q41<14,'Rijdend personeel'!$G$20+'Rijdend personeel'!$G$42,IF(Q41<15,'Rijdend personeel'!$G$22+'Rijdend personeel'!$G$42,IF(Q41<16,'Rijdend personeel'!$G$24+'Rijdend personeel'!$G$42,IF(Q41<17,'Rijdend personeel'!$G$26+'Rijdend personeel'!$G$42,IF(Q41<18,'Rijdend personeel'!$G$28+'Rijdend personeel'!$G$42,IF(Q41<19,'Rijdend personeel'!$G$30+'Rijdend personeel'!$G$42,IF(Q41<20,'Rijdend personeel'!$G$32+'Rijdend personeel'!$G$42,IF(Q41<21,'Rijdend personeel'!$G$34+'Rijdend personeel'!$G$42,IF(Q41<22,'Rijdend personeel'!$G$36+'Rijdend personeel'!$G$42)))))))))))) -> 0 | R44: =IF(R41=0,0,IF(R41<12,'Rijdend personeel'!$G$16+'Rijdend personeel'!$G$42,IF(R41<13,'Rijdend personeel'!$G$18+'Rijdend personeel'!$G$42,IF(R41<14,'Rijdend personeel'!$G$20+'Rijdend personeel'!$G$42,IF(R41<15,'Rijdend personeel'!$G$22+'Rijdend personeel'!$G$42,IF(R41<16,'Rijdend personeel'!$G$24+'Rijdend personeel'!$G$42,IF(R41<17,'Rijdend personeel'!$G$26+'Rijdend personeel'!$G$42,IF(R41<18,'Rijdend personeel'!$G$28+'Rijdend personeel'!$G$42,IF(R41<19,'Rijdend personeel'!$G$30+'Rijdend personeel'!$G$42,IF(R41<20,'Rijdend personeel'!$G$32+'Rijdend personeel'!$G$42,IF(R41<21,'Rijdend personeel'!$G$34+'Rijdend personeel'!$G$42,IF(R41<22,'Rijdend personeel'!$G$36+'Rijdend personeel'!$G$42)))))))))))) -> 0 | S44: =IF(S41=0,0,IF(S41<12,'Rijdend personeel'!$G$16+'Rijdend personeel'!$G$42,IF(S41<13,'Rijdend personeel'!$G$18+'Rijdend personeel'!$G$42,IF(S41<14,'Rijdend personeel'!$G$20+'Rijdend personeel'!$G$42,IF(S41<15,'Rijdend personeel'!$G$22+'Rijdend personeel'!$G$42,IF(S41<16,'Rijdend personeel'!$G$24+'Rijdend personeel'!$G$42,IF(S41<17,'Rijdend personeel'!$G$26+'Rijdend personeel'!$G$42,IF(S41<18,'Rijdend personeel'!$G$28+'Rijdend personeel'!$G$42,IF(S41<19,'Rijdend personeel'!$G$30+'Rijdend personeel'!$G$42,IF(S41<20,'Rijdend personeel'!$G$32+'Rijdend personeel'!$G$42,IF(S41<21,'Rijdend personeel'!$G$34+'Rijdend personeel'!$G$42,IF(S41<22,'Rijdend personeel'!$G$36+'Rijdend personeel'!$G$42)))))))))))) -> 0
C45: Bruto Sal CH2 DUBBEL | E45: =IF(E42=0,0,IF(E42<12,'Rijdend personeel'!$G$16+'Rijdend personeel'!$G$42,IF(E42<13,'Rijdend personeel'!$G$18+'Rijdend personeel'!$G$42,IF(E42<14,'Rijdend personeel'!$G$20+'Rijdend personeel'!$G$42,IF(E42<15,'Rijdend personeel'!$G$22+'Rijdend personeel'!$G$42,IF(E42<16,'Rijdend personeel'!$G$24+'Rijdend personeel'!$G$42,IF(E42<17,'Rijdend personeel'!$G$26+'Rijdend personeel'!$G$42,IF(E42<18,'Rijdend personeel'!$G$28+'Rijdend personeel'!$G$42,IF(E42<19,'Rijdend personeel'!$G$30+'Rijdend personeel'!$G$42,IF(E42<20,'Rijdend personeel'!$G$32+'Rijdend personeel'!$G$42,IF(E42<21,'Rijdend personeel'!$G$34+'Rijdend personeel'!$G$42,IF(E42<22,'Rijdend personeel'!$G$36+'Rijdend personeel'!$G$42)))))))))))) -> 0 | F45: =IF(F42=0,0,IF(F42<12,'Rijdend personeel'!$G$16+'Rijdend personeel'!$G$42,IF(F42<13,'Rijdend personeel'!$G$18+'Rijdend personeel'!$G$42,IF(F42<14,'Rijdend personeel'!$G$20+'Rijdend personeel'!$G$42,IF(F42<15,'Rijdend personeel'!$G$22+'Rijdend personeel'!$G$42,IF(F42<16,'Rijdend personeel'!$G$24+'Rijdend personeel'!$G$42,IF(F42<17,'Rijdend personeel'!$G$26+'Rijdend personeel'!$G$42,IF(F42<18,'Rijdend personeel'!$G$28+'Rijdend personeel'!$G$42,IF(F42<19,'Rijdend personeel'!$G$30+'Rijdend personeel'!$G$42,IF(F42<20,'Rijdend personeel'!$G$32+'Rijdend personeel'!$G$42,IF(F42<21,'Rijdend personeel'!$G$34+'Rijdend personeel'!$G$42,IF(F42<22,'Rijdend personeel'!$G$36+'Rijdend personeel'!$G$42)))))))))))) -> 0 | G45: =IF(G42=0,0,IF(G42<12,'Rijdend personeel'!$G$16+'Rijdend personeel'!$G$42,IF(G42<13,'Rijdend personeel'!$G$18+'Rijdend personeel'!$G$42,IF(G42<14,'Rijdend personeel'!$G$20+'Rijdend personeel'!$G$42,IF(G42<15,'Rijdend personeel'!$G$22+'Rijdend personeel'!$G$42,IF(G42<16,'Rijdend personeel'!$G$24+'Rijdend personeel'!$G$42,IF(G42<17,'Rijdend personeel'!$G$26+'Rijdend personeel'!$G$42,IF(G42<18,'Rijdend personeel'!$G$28+'Rijdend personeel'!$G$42,IF(G42<19,'Rijdend personeel'!$G$30+'Rijdend personeel'!$G$42,IF(G42<20,'Rijdend personeel'!$G$32+'Rijdend personeel'!$G$42,IF(G42<21,'Rijdend personeel'!$G$34+'Rijdend personeel'!$G$42,IF(G42<22,'Rijdend personeel'!$G$36+'Rijdend personeel'!$G$42)))))))))))) -> 0 | H45: =IF(H42=0,0,IF(H42<12,'Rijdend personeel'!$G$16+'Rijdend personeel'!$G$42,IF(H42<13,'Rijdend personeel'!$G$18+'Rijdend personeel'!$G$42,IF(H42<14,'Rijdend personeel'!$G$20+'Rijdend personeel'!$G$42,IF(H42<15,'Rijdend personeel'!$G$22+'Rijdend personeel'!$G$42,IF(H42<16,'Rijdend personeel'!$G$24+'Rijdend personeel'!$G$42,IF(H42<17,'Rijdend personeel'!$G$26+'Rijdend personeel'!$G$42,IF(H42<18,'Rijdend personeel'!$G$28+'Rijdend personeel'!$G$42,IF(H42<19,'Rijdend personeel'!$G$30+'Rijdend personeel'!$G$42,IF(H42<20,'Rijdend personeel'!$G$32+'Rijdend personeel'!$G$42,IF(H42<21,'Rijdend personeel'!$G$34+'Rijdend personeel'!$G$42,IF(H42<22,'Rijdend personeel'!$G$36+'Rijdend personeel'!$G$42)))))))))))) -> 0 | I45: =IF(I42=0,0,IF(I42<12,'Rijdend personeel'!$G$16+'Rijdend personeel'!$G$42,IF(I42<13,'Rijdend personeel'!$G$18+'Rijdend personeel'!$G$42,IF(I42<14,'Rijdend personeel'!$G$20+'Rijdend personeel'!$G$42,IF(I42<15,'Rijdend personeel'!$G$22+'Rijdend personeel'!$G$42,IF(I42<16,'Rijdend personeel'!$G$24+'Rijdend personeel'!$G$42,IF(I42<17,'Rijdend personeel'!$G$26+'Rijdend personeel'!$G$42,IF(I42<18,'Rijdend personeel'!$G$28+'Rijdend personeel'!$G$42,IF(I42<19,'Rijdend personeel'!$G$30+'Rijdend personeel'!$G$42,IF(I42<20,'Rijdend personeel'!$G$32+'Rijdend personeel'!$G$42,IF(I42<21,'Rijdend personeel'!$G$34+'Rijdend personeel'!$G$42,IF(I42<22,'Rijdend personeel'!$G$36+'Rijdend personeel'!$G$42)))))))))))) -> 0 | J45: =IF(J42=0,0,IF(J42<12,'Rijdend personeel'!$G$16+'Rijdend personeel'!$G$42,IF(J42<13,'Rijdend personeel'!$G$18+'Rijdend personeel'!$G$42,IF(J42<14,'Rijdend personeel'!$G$20+'Rijdend personeel'!$G$42,IF(J42<15,'Rijdend personeel'!$G$22+'Rijdend personeel'!$G$42,IF(J42<16,'Rijdend personeel'!$G$24+'Rijdend personeel'!$G$42,IF(J42<17,'Rijdend personeel'!$G$26+'Rijdend personeel'!$G$42,IF(J42<18,'Rijdend personeel'!$G$28+'Rijdend personeel'!$G$42,IF(J42<19,'Rijdend personeel'!$G$30+'Rijdend personeel'!$G$42,IF(J42<20,'Rijdend personeel'!$G$32+'Rijdend personeel'!$G$42,IF(J42<21,'Rijdend personeel'!$G$34+'Rijdend personeel'!$G$42,IF(J42<22,'Rijdend personeel'!$G$36+'Rijdend personeel'!$G$42)))))))))))) -> 0 | K45: =IF(K42=0,0,IF(K42<12,'Rijdend personeel'!$G$16+'Rijdend personeel'!$G$42,IF(K42<13,'Rijdend personeel'!$G$18+'Rijdend personeel'!$G$42,IF(K42<14,'Rijdend personeel'!$G$20+'Rijdend personeel'!$G$42,IF(K42<15,'Rijdend personeel'!$G$22+'Rijdend personeel'!$G$42,IF(K42<16,'Rijdend personeel'!$G$24+'Rijdend personeel'!$G$42,IF(K42<17,'Rijdend personeel'!$G$26+'Rijdend personeel'!$G$42,IF(K42<18,'Rijdend personeel'!$G$28+'Rijdend personeel'!$G$42,IF(K42<19,'Rijdend personeel'!$G$30+'Rijdend personeel'!$G$42,IF(K42<20,'Rijdend personeel'!$G$32+'Rijdend personeel'!$G$42,IF(K42<21,'Rijdend personeel'!$G$34+'Rijdend personeel'!$G$42,IF(K42<22,'Rijdend personeel'!$G$36+'Rijdend personeel'!$G$42)))))))))))) -> 0 | L45: =IF(L42=0,0,IF(L42<12,'Rijdend personeel'!$G$16+'Rijdend personeel'!$G$42,IF(L42<13,'Rijdend personeel'!$G$18+'Rijdend personeel'!$G$42,IF(L42<14,'Rijdend personeel'!$G$20+'Rijdend personeel'!$G$42,IF(L42<15,'Rijdend personeel'!$G$22+'Rijdend personeel'!$G$42,IF(L42<16,'Rijdend personeel'!$G$24+'Rijdend personeel'!$G$42,IF(L42<17,'Rijdend personeel'!$G$26+'Rijdend personeel'!$G$42,IF(L42<18,'Rijdend personeel'!$G$28+'Rijdend personeel'!$G$42,IF(L42<19,'Rijdend personeel'!$G$30+'Rijdend personeel'!$G$42,IF(L42<20,'Rijdend personeel'!$G$32+'Rijdend personeel'!$G$42,IF(L42<21,'Rijdend personeel'!$G$34+'Rijdend personeel'!$G$42,IF(L42<22,'Rijdend personeel'!$G$36+'Rijdend personeel'!$G$42)))))))))))) -> 0 | M45: =IF(M42=0,0,IF(M42<12,'Rijdend personeel'!$G$16+'Rijdend personeel'!$G$42,IF(M42<13,'Rijdend personeel'!$G$18+'Rijdend personeel'!$G$42,IF(M42<14,'Rijdend personeel'!$G$20+'Rijdend personeel'!$G$42,IF(M42<15,'Rijdend personeel'!$G$22+'Rijdend personeel'!$G$42,IF(M42<16,'Rijdend personeel'!$G$24+'Rijdend personeel'!$G$42,IF(M42<17,'Rijdend personeel'!$G$26+'Rijdend personeel'!$G$42,IF(M42<18,'Rijdend personeel'!$G$28+'Rijdend personeel'!$G$42,IF(M42<19,'Rijdend personeel'!$G$30+'Rijdend personeel'!$G$42,IF(M42<20,'Rijdend personeel'!$G$32+'Rijdend personeel'!$G$42,IF(M42<21,'Rijdend personeel'!$G$34+'Rijdend personeel'!$G$42,IF(M42<22,'Rijdend personeel'!$G$36+'Rijdend personeel'!$G$42)))))))))))) -> 0 | N45: =IF(N42=0,0,IF(N42<12,'Rijdend personeel'!$G$16+'Rijdend personeel'!$G$42,IF(N42<13,'Rijdend personeel'!$G$18+'Rijdend personeel'!$G$42,IF(N42<14,'Rijdend personeel'!$G$20+'Rijdend personeel'!$G$42,IF(N42<15,'Rijdend personeel'!$G$22+'Rijdend personeel'!$G$42,IF(N42<16,'Rijdend personeel'!$G$24+'Rijdend personeel'!$G$42,IF(N42<17,'Rijdend personeel'!$G$26+'Rijdend personeel'!$G$42,IF(N42<18,'Rijdend personeel'!$G$28+'Rijdend personeel'!$G$42,IF(N42<19,'Rijdend personeel'!$G$30+'Rijdend personeel'!$G$42,IF(N42<20,'Rijdend personeel'!$G$32+'Rijdend personeel'!$G$42,IF(N42<21,'Rijdend personeel'!$G$34+'Rijdend personeel'!$G$42,IF(N42<22,'Rijdend personeel'!$G$36+'Rijdend personeel'!$G$42)))))))))))) -> 0 | O45: =IF(O42=0,0,IF(O42<12,'Rijdend personeel'!$G$16+'Rijdend personeel'!$G$42,IF(O42<13,'Rijdend personeel'!$G$18+'Rijdend personeel'!$G$42,IF(O42<14,'Rijdend personeel'!$G$20+'Rijdend personeel'!$G$42,IF(O42<15,'Rijdend personeel'!$G$22+'Rijdend personeel'!$G$42,IF(O42<16,'Rijdend personeel'!$G$24+'Rijdend personeel'!$G$42,IF(O42<17,'Rijdend personeel'!$G$26+'Rijdend personeel'!$G$42,IF(O42<18,'Rijdend personeel'!$G$28+'Rijdend personeel'!$G$42,IF(O42<19,'Rijdend personeel'!$G$30+'Rijdend personeel'!$G$42,IF(O42<20,'Rijdend personeel'!$G$32+'Rijdend personeel'!$G$42,IF(O42<21,'Rijdend personeel'!$G$34+'Rijdend personeel'!$G$42,IF(O42<22,'Rijdend personeel'!$G$36+'Rijdend personeel'!$G$42)))))))))))) -> 0 | P45: =IF(P42=0,0,IF(P42<12,'Rijdend personeel'!$G$16+'Rijdend personeel'!$G$42,IF(P42<13,'Rijdend personeel'!$G$18+'Rijdend personeel'!$G$42,IF(P42<14,'Rijdend personeel'!$G$20+'Rijdend personeel'!$G$42,IF(P42<15,'Rijdend personeel'!$G$22+'Rijdend personeel'!$G$42,IF(P42<16,'Rijdend personeel'!$G$24+'Rijdend personeel'!$G$42,IF(P42<17,'Rijdend personeel'!$G$26+'Rijdend personeel'!$G$42,IF(P42<18,'Rijdend personeel'!$G$28+'Rijdend personeel'!$G$42,IF(P42<19,'Rijdend personeel'!$G$30+'Rijdend personeel'!$G$42,IF(P42<20,'Rijdend personeel'!$G$32+'Rijdend personeel'!$G$42,IF(P42<21,'Rijdend personeel'!$G$34+'Rijdend personeel'!$G$42,IF(P42<22,'Rijdend personeel'!$G$36+'Rijdend personeel'!$G$42)))))))))))) -> 0 | Q45: =IF(Q42=0,0,IF(Q42<12,'Rijdend personeel'!$G$16+'Rijdend personeel'!$G$42,IF(Q42<13,'Rijdend personeel'!$G$18+'Rijdend personeel'!$G$42,IF(Q42<14,'Rijdend personeel'!$G$20+'Rijdend personeel'!$G$42,IF(Q42<15,'Rijdend personeel'!$G$22+'Rijdend personeel'!$G$42,IF(Q42<16,'Rijdend personeel'!$G$24+'Rijdend personeel'!$G$42,IF(Q42<17,'Rijdend personeel'!$G$26+'Rijdend personeel'!$G$42,IF(Q42<18,'Rijdend personeel'!$G$28+'Rijdend personeel'!$G$42,IF(Q42<19,'Rijdend personeel'!$G$30+'Rijdend personeel'!$G$42,IF(Q42<20,'Rijdend personeel'!$G$32+'Rijdend personeel'!$G$42,IF(Q42<21,'Rijdend personeel'!$G$34+'Rijdend personeel'!$G$42,IF(Q42<22,'Rijdend personeel'!$G$36+'Rijdend personeel'!$G$42)))))))))))) -> 0 | R45: =IF(R42=0,0,IF(R42<12,'Rijdend personeel'!$G$16+'Rijdend personeel'!$G$42,IF(R42<13,'Rijdend personeel'!$G$18+'Rijdend personeel'!$G$42,IF(R42<14,'Rijdend personeel'!$G$20+'Rijdend personeel'!$G$42,IF(R42<15,'Rijdend personeel'!$G$22+'Rijdend personeel'!$G$42,IF(R42<16,'Rijdend personeel'!$G$24+'Rijdend personeel'!$G$42,IF(R42<17,'Rijdend personeel'!$G$26+'Rijdend personeel'!$G$42,IF(R42<18,'Rijdend personeel'!$G$28+'Rijdend personeel'!$G$42,IF(R42<19,'Rijdend personeel'!$G$30+'Rijdend personeel'!$G$42,IF(R42<20,'Rijdend personeel'!$G$32+'Rijdend personeel'!$G$42,IF(R42<21,'Rijdend personeel'!$G$34+'Rijdend personeel'!$G$42,IF(R42<22,'Rijdend personeel'!$G$36+'Rijdend personeel'!$G$42)))))))))))) -> 0 | S45: =IF(S42=0,0,IF(S42<12,'Rijdend personeel'!$G$16+'Rijdend personeel'!$G$42,IF(S42<13,'Rijdend personeel'!$G$18+'Rijdend personeel'!$G$42,IF(S42<14,'Rijdend personeel'!$G$20+'Rijdend personeel'!$G$42,IF(S42<15,'Rijdend personeel'!$G$22+'Rijdend personeel'!$G$42,IF(S42<16,'Rijdend personeel'!$G$24+'Rijdend personeel'!$G$42,IF(S42<17,'Rijdend personeel'!$G$26+'Rijdend personeel'!$G$42,IF(S42<18,'Rijdend personeel'!$G$28+'Rijdend personeel'!$G$42,IF(S42<19,'Rijdend personeel'!$G$30+'Rijdend personeel'!$G$42,IF(S42<20,'Rijdend personeel'!$G$32+'Rijdend personeel'!$G$42,IF(S42<21,'Rijdend personeel'!$G$34+'Rijdend personeel'!$G$42,IF(S42<22,'Rijdend personeel'!$G$36+'Rijdend personeel'!$G$42)))))))))))) -> 0
C46: Zondagsrust alle CH | E46: =Reis!F57*'Rijdend personeel'!$G$48 -> 0 | F46: =Reis!G57*'Rijdend personeel'!$G$48 -> 0 | G46: =Reis!H57*'Rijdend personeel'!$G$48 -> 0 | H46: =Reis!I57*'Rijdend personeel'!$G$48 -> 0 | I46: =Reis!J57*'Rijdend personeel'!$G$48 -> 0 | J46: =Reis!K57*'Rijdend personeel'!$G$48 -> 0 | K46: =Reis!L57*'Rijdend personeel'!$G$48 -> 0 | L46: =Reis!M57*'Rijdend personeel'!$G$48 -> 0 | M46: =Reis!N57*'Rijdend personeel'!$G$48 -> 0 | N46: =Reis!O57*'Rijdend personeel'!$G$48 -> 0 | O46: =Reis!P57*'Rijdend personeel'!$G$48 -> 0 | P46: =Reis!Q57*'Rijdend personeel'!$G$48 -> 0 | Q46: =Reis!R57*'Rijdend personeel'!$G$48 -> 0 | R46: =Reis!S57*'Rijdend personeel'!$G$48 -> 0 | S46: =Reis!T57*'Rijdend personeel'!$G$48 -> 0
C47: Inactiviteitsdag alle CH | E47: =Reis!F58*'Rijdend personeel'!$G$50 -> 0 | F47: =Reis!G58*'Rijdend personeel'!$G$50 -> 0 | G47: =Reis!H58*'Rijdend personeel'!$G$50 -> 0 | H47: =Reis!I58*'Rijdend personeel'!$G$50 -> 0 | I47: =Reis!J58*'Rijdend personeel'!$G$50 -> 0 | J47: =Reis!K58*'Rijdend personeel'!$G$50 -> 0 | K47: =Reis!L58*'Rijdend personeel'!$G$50 -> 0 | L47: =Reis!M58*'Rijdend personeel'!$G$50 -> 0 | M47: =Reis!N58*'Rijdend personeel'!$G$50 -> 0 | N47: =Reis!O58*'Rijdend personeel'!$G$50 -> 0 | O47: =Reis!P58*'Rijdend personeel'!$G$50 -> 0 | P47: =Reis!Q58*'Rijdend personeel'!$G$50 -> 0 | Q47: =Reis!R58*'Rijdend personeel'!$G$50 -> 0 | R47: =Reis!S58*'Rijdend personeel'!$G$50 -> 0 | S47: =Reis!T58*'Rijdend personeel'!$G$50 -> 0
C48: Eindejaarspremie alle CH | E48: =IF(Reis!F46<1,0,(('Rijdend personeel'!$G$46/'Rijdend personeel'!$G$68)*Reis!F52)) ->  | F48: =IF(Reis!G46<1,0,(('Rijdend personeel'!$G$46/'Rijdend personeel'!$G$68)*Reis!G52)) -> 0 | G48: =IF(Reis!H46<1,0,(('Rijdend personeel'!$G$46/'Rijdend personeel'!$G$68)*Reis!H52)) -> 0 | H48: =IF(Reis!I46<1,0,(('Rijdend personeel'!$G$46/'Rijdend personeel'!$G$68)*Reis!I52)) -> 0 | I48: =IF(Reis!J46<1,0,(('Rijdend personeel'!$G$46/'Rijdend personeel'!$G$68)*Reis!J52)) -> 0 | J48: =IF(Reis!K46<1,0,(('Rijdend personeel'!$G$46/'Rijdend personeel'!$G$68)*Reis!K52)) -> 0 | K48: =IF(Reis!L46<1,0,(('Rijdend personeel'!$G$46/'Rijdend personeel'!$G$68)*Reis!L52)) -> 0 | L48: =IF(Reis!M46<1,0,(('Rijdend personeel'!$G$46/'Rijdend personeel'!$G$68)*Reis!M52)) -> 0 | M48: =IF(Reis!N46<1,0,(('Rijdend personeel'!$G$46/'Rijdend personeel'!$G$68)*Reis!N52)) -> 0 | N48: =IF(Reis!O46<1,0,(('Rijdend personeel'!$G$46/'Rijdend personeel'!$G$68)*Reis!O52)) -> 0 | O48: =IF(Reis!P46<1,0,(('Rijdend personeel'!$G$46/'Rijdend personeel'!$G$68)*Reis!P52)) -> 0 | P48: =IF(Reis!Q46<1,0,(('Rijdend personeel'!$G$46/'Rijdend personeel'!$G$68)*Reis!Q52)) -> 0 | Q48: =IF(Reis!R46<1,0,(('Rijdend personeel'!$G$46/'Rijdend personeel'!$G$68)*Reis!R52)) -> 0 | R48: =IF(Reis!S46<1,0,(('Rijdend personeel'!$G$46/'Rijdend personeel'!$G$68)*Reis!S52)) -> 0 | S48: =IF(Reis!T46<1,0,(('Rijdend personeel'!$G$46/'Rijdend personeel'!$G$68)*Reis!T52)) -> 0
C49: RSZ werkgever alle CH | E49: =IF(Reis!F46<1,0,((E43+E44+E45+E46+E47+E48)*1.08*'Rijdend personeel'!$G$52)) ->  | F49: =IF(Reis!G46<1,0,((F43+F44+F45+F46+F47+F48)*1.08*'Rijdend personeel'!$G$52)) -> 0 | G49: =IF(Reis!H46<1,0,((G43+G44+G45+G46+G47+G48)*1.08*'Rijdend personeel'!$G$52)) -> 0 | H49: =IF(Reis!I46<1,0,((H43+H44+H45+H46+H47+H48)*1.08*'Rijdend personeel'!$G$52)) -> 0 | I49: =IF(Reis!J46<1,0,((I43+I44+I45+I46+I47+I48)*1.08*'Rijdend personeel'!$G$52)) -> 0 | J49: =IF(Reis!K46<1,0,((J43+J44+J45+J46+J47+J48)*1.08*'Rijdend personeel'!$G$52)) -> 0 | K49: =IF(Reis!L46<1,0,((K43+K44+K45+K46+K47+K48)*1.08*'Rijdend personeel'!$G$52)) -> 0 | L49: =IF(Reis!M46<1,0,((L43+L44+L45+L46+L47+L48)*1.08*'Rijdend personeel'!$G$52)) -> 0 | M49: =IF(Reis!N46<1,0,((M43+M44+M45+M46+M47+M48)*1.08*'Rijdend personeel'!$G$52)) -> 0 | N49: =IF(Reis!O46<1,0,((N43+N44+N45+N46+N47+N48)*1.08*'Rijdend personeel'!$G$52)) -> 0 | O49: =IF(Reis!P46<1,0,((O43+O44+O45+O46+O47+O48)*1.08*'Rijdend personeel'!$G$52)) -> 0 | P49: =IF(Reis!Q46<1,0,((P43+P44+P45+P46+P47+P48)*1.08*'Rijdend personeel'!$G$52)) -> 0 | Q49: =IF(Reis!R46<1,0,((Q43+Q44+Q45+Q46+Q47+Q48)*1.08*'Rijdend personeel'!$G$52)) -> 0 | R49: =IF(Reis!S46<1,0,((R43+R44+R45+R46+R47+R48)*1.08*'Rijdend personeel'!$G$52)) -> 0 | S49: =IF(Reis!T46<1,0,((S43+S44+S45+S46+S47+S48)*1.08*'Rijdend personeel'!$G$52)) -> 0
C50: Eco-cheques alle CH | E50: =IF(Reis!F46<1,0,(('Rijdend personeel'!$G$44/'Rijdend personeel'!$G$68)*Reis!F52)) ->  | F50: =IF(Reis!G46<1,0,(('Rijdend personeel'!$G$44/'Rijdend personeel'!$G$68)*Reis!G52)) -> 0 | G50: =IF(Reis!H46<1,0,(('Rijdend personeel'!$G$44/'Rijdend personeel'!$G$68)*Reis!H52)) -> 0 | H50: =IF(Reis!I46<1,0,(('Rijdend personeel'!$G$44/'Rijdend personeel'!$G$68)*Reis!I52)) -> 0 | I50: =IF(Reis!J46<1,0,(('Rijdend personeel'!$G$44/'Rijdend personeel'!$G$68)*Reis!J52)) -> 0 | J50: =IF(Reis!K46<1,0,(('Rijdend personeel'!$G$44/'Rijdend personeel'!$G$68)*Reis!K52)) -> 0 | K50: =IF(Reis!L46<1,0,(('Rijdend personeel'!$G$44/'Rijdend personeel'!$G$68)*Reis!L52)) -> 0 | L50: =IF(Reis!M46<1,0,(('Rijdend personeel'!$G$44/'Rijdend personeel'!$G$68)*Reis!M52)) -> 0 | M50: =IF(Reis!N46<1,0,(('Rijdend personeel'!$G$44/'Rijdend personeel'!$G$68)*Reis!N52)) -> 0 | N50: =IF(Reis!O46<1,0,(('Rijdend personeel'!$G$44/'Rijdend personeel'!$G$68)*Reis!O52)) -> 0 | O50: =IF(Reis!P46<1,0,(('Rijdend personeel'!$G$44/'Rijdend personeel'!$G$68)*Reis!P52)) -> 0 | P50: =IF(Reis!Q46<1,0,(('Rijdend personeel'!$G$44/'Rijdend personeel'!$G$68)*Reis!Q52)) -> 0 | Q50: =IF(Reis!R46<1,0,(('Rijdend personeel'!$G$44/'Rijdend personeel'!$G$68)*Reis!R52)) -> 0 | R50: =IF(Reis!S46<1,0,(('Rijdend personeel'!$G$44/'Rijdend personeel'!$G$68)*Reis!S52)) -> 0 | S50: =IF(Reis!T46<1,0,(('Rijdend personeel'!$G$44/'Rijdend personeel'!$G$68)*Reis!T52)) -> 0
C51: ARAB CH ENKEL | E51: =ROUNDUP(E40,0)*'Rijdend personeel'!$G$40 -> 0 | F51: =ROUNDUP(F40,0)*'Rijdend personeel'!$G$40 -> 0 | G51: =ROUNDUP(G40,0)*'Rijdend personeel'!$G$40 -> 0 | H51: =ROUNDUP(H40,0)*'Rijdend personeel'!$G$40 -> 0 | I51: =ROUNDUP(I40,0)*'Rijdend personeel'!$G$40 -> 0 | J51: =ROUNDUP(J40,0)*'Rijdend personeel'!$G$40 -> 0 | K51: =ROUNDUP(K40,0)*'Rijdend personeel'!$G$40 -> 0 | L51: =ROUNDUP(L40,0)*'Rijdend personeel'!$G$40 -> 0 | M51: =ROUNDUP(M40,0)*'Rijdend personeel'!$G$40 -> 0 | N51: =ROUNDUP(N40,0)*'Rijdend personeel'!$G$40 -> 0 | O51: =ROUNDUP(O40,0)*'Rijdend personeel'!$G$40 -> 0 | P51: =ROUNDUP(P40,0)*'Rijdend personeel'!$G$40 -> 0 | Q51: =ROUNDUP(Q40,0)*'Rijdend personeel'!$G$40 -> 0 | R51: =ROUNDUP(R40,0)*'Rijdend personeel'!$G$40 -> 0 | S51: =ROUNDUP(S40,0)*'Rijdend personeel'!$G$40 -> 0
C52: ARAB CH1 DUBBEL | E52: =ROUNDUP(E41,0)*'Rijdend personeel'!$G$40 -> 0 | F52: =ROUNDUP(F41,0)*'Rijdend personeel'!$G$40 -> 0 | G52: =ROUNDUP(G41,0)*'Rijdend personeel'!$G$40 -> 0 | H52: =ROUNDUP(H41,0)*'Rijdend personeel'!$G$40 -> 0 | I52: =ROUNDUP(I41,0)*'Rijdend personeel'!$G$40 -> 0 | J52: =ROUNDUP(J41,0)*'Rijdend personeel'!$G$40 -> 0 | K52: =ROUNDUP(K41,0)*'Rijdend personeel'!$G$40 -> 0 | L52: =ROUNDUP(L41,0)*'Rijdend personeel'!$G$40 -> 0 | M52: =ROUNDUP(M41,0)*'Rijdend personeel'!$G$40 -> 0 | N52: =ROUNDUP(N41,0)*'Rijdend personeel'!$G$40 -> 0 | O52: =ROUNDUP(O41,0)*'Rijdend personeel'!$G$40 -> 0 | P52: =ROUNDUP(P41,0)*'Rijdend personeel'!$G$40 -> 0 | Q52: =ROUNDUP(Q41,0)*'Rijdend personeel'!$G$40 -> 0 | R52: =ROUNDUP(R41,0)*'Rijdend personeel'!$G$40 -> 0 | S52: =ROUNDUP(S41,0)*'Rijdend personeel'!$G$40 -> 0
C53: ARAB CH2 DUBBEL | E53: =ROUNDUP(E42,0)*'Rijdend personeel'!$G$40 -> 0 | F53: =ROUNDUP(F42,0)*'Rijdend personeel'!$G$40 -> 0 | G53: =ROUNDUP(G42,0)*'Rijdend personeel'!$G$40 -> 0 | H53: =ROUNDUP(H42,0)*'Rijdend personeel'!$G$40 -> 0 | I53: =ROUNDUP(I42,0)*'Rijdend personeel'!$G$40 -> 0 | J53: =ROUNDUP(J42,0)*'Rijdend personeel'!$G$40 -> 0 | K53: =ROUNDUP(K42,0)*'Rijdend personeel'!$G$40 -> 0 | L53: =ROUNDUP(L42,0)*'Rijdend personeel'!$G$40 -> 0 | M53: =ROUNDUP(M42,0)*'Rijdend personeel'!$G$40 -> 0 | N53: =ROUNDUP(N42,0)*'Rijdend personeel'!$G$40 -> 0 | O53: =ROUNDUP(O42,0)*'Rijdend personeel'!$G$40 -> 0 | P53: =ROUNDUP(P42,0)*'Rijdend personeel'!$G$40 -> 0 | Q53: =ROUNDUP(Q42,0)*'Rijdend personeel'!$G$40 -> 0 | R53: =ROUNDUP(R42,0)*'Rijdend personeel'!$G$40 -> 0 | S53: =ROUNDUP(S42,0)*'Rijdend personeel'!$G$40 -> 0
C54: Overige kosten alle CH | E54: =IF(Reis!F46<1,0,((('Rijdend personeel'!$G$54+'Rijdend personeel'!$G$56+'Rijdend personeel'!$G$58+'Rijdend personeel'!$G$60+'Rijdend personeel'!$G$62+'Rijdend personeel'!$G$64+'Rijdend personeel'!$G$66)/'Rijdend personeel'!$G$68)*Reis!F52)) ->  | F54: =IF(Reis!G46<1,0,((('Rijdend personeel'!$G$54+'Rijdend personeel'!$G$56+'Rijdend personeel'!$G$58+'Rijdend personeel'!$G$60+'Rijdend personeel'!$G$62+'Rijdend personeel'!$G$64+'Rijdend personeel'!$G$66)/'Rijdend personeel'!$G$68)*Reis!G52)) -> 0 | G54: =IF(Reis!H46<1,0,((('Rijdend personeel'!$G$54+'Rijdend personeel'!$G$56+'Rijdend personeel'!$G$58+'Rijdend personeel'!$G$60+'Rijdend personeel'!$G$62+'Rijdend personeel'!$G$64+'Rijdend personeel'!$G$66)/'Rijdend personeel'!$G$68)*Reis!H52)) -> 0 | H54: =IF(Reis!I46<1,0,((('Rijdend personeel'!$G$54+'Rijdend personeel'!$G$56+'Rijdend personeel'!$G$58+'Rijdend personeel'!$G$60+'Rijdend personeel'!$G$62+'Rijdend personeel'!$G$64+'Rijdend personeel'!$G$66)/'Rijdend personeel'!$G$68)*Reis!I52)) -> 0 | I54: =IF(Reis!J46<1,0,((('Rijdend personeel'!$G$54+'Rijdend personeel'!$G$56+'Rijdend personeel'!$G$58+'Rijdend personeel'!$G$60+'Rijdend personeel'!$G$62+'Rijdend personeel'!$G$64+'Rijdend personeel'!$G$66)/'Rijdend personeel'!$G$68)*Reis!J52)) -> 0 | J54: =IF(Reis!K46<1,0,((('Rijdend personeel'!$G$54+'Rijdend personeel'!$G$56+'Rijdend personeel'!$G$58+'Rijdend personeel'!$G$60+'Rijdend personeel'!$G$62+'Rijdend personeel'!$G$64+'Rijdend personeel'!$G$66)/'Rijdend personeel'!$G$68)*Reis!K52)) -> 0 | K54: =IF(Reis!L46<1,0,((('Rijdend personeel'!$G$54+'Rijdend personeel'!$G$56+'Rijdend personeel'!$G$58+'Rijdend personeel'!$G$60+'Rijdend personeel'!$G$62+'Rijdend personeel'!$G$64+'Rijdend personeel'!$G$66)/'Rijdend personeel'!$G$68)*Reis!L52)) -> 0 | L54: =IF(Reis!M46<1,0,((('Rijdend personeel'!$G$54+'Rijdend personeel'!$G$56+'Rijdend personeel'!$G$58+'Rijdend personeel'!$G$60+'Rijdend personeel'!$G$62+'Rijdend personeel'!$G$64+'Rijdend personeel'!$G$66)/'Rijdend personeel'!$G$68)*Reis!M52)) -> 0 | M54: =IF(Reis!N46<1,0,((('Rijdend personeel'!$G$54+'Rijdend personeel'!$G$56+'Rijdend personeel'!$G$58+'Rijdend personeel'!$G$60+'Rijdend personeel'!$G$62+'Rijdend personeel'!$G$64+'Rijdend personeel'!$G$66)/'Rijdend personeel'!$G$68)*Reis!N52)) -> 0 | N54: =IF(Reis!O46<1,0,((('Rijdend personeel'!$G$54+'Rijdend personeel'!$G$56+'Rijdend personeel'!$G$58+'Rijdend personeel'!$G$60+'Rijdend personeel'!$G$62+'Rijdend personeel'!$G$64+'Rijdend personeel'!$G$66)/'Rijdend personeel'!$G$68)*Reis!O52)) -> 0 | O54: =IF(Reis!P46<1,0,((('Rijdend personeel'!$G$54+'Rijdend personeel'!$G$56+'Rijdend personeel'!$G$58+'Rijdend personeel'!$G$60+'Rijdend personeel'!$G$62+'Rijdend personeel'!$G$64+'Rijdend personeel'!$G$66)/'Rijdend personeel'!$G$68)*Reis!P52)) -> 0 | P54: =IF(Reis!Q46<1,0,((('Rijdend personeel'!$G$54+'Rijdend personeel'!$G$56+'Rijdend personeel'!$G$58+'Rijdend personeel'!$G$60+'Rijdend personeel'!$G$62+'Rijdend personeel'!$G$64+'Rijdend personeel'!$G$66)/'Rijdend personeel'!$G$68)*Reis!Q52)) -> 0 | Q54: =IF(Reis!R46<1,0,((('Rijdend personeel'!$G$54+'Rijdend personeel'!$G$56+'Rijdend personeel'!$G$58+'Rijdend personeel'!$G$60+'Rijdend personeel'!$G$62+'Rijdend personeel'!$G$64+'Rijdend personeel'!$G$66)/'Rijdend personeel'!$G$68)*Reis!R52)) -> 0 | R54: =IF(Reis!S46<1,0,((('Rijdend personeel'!$G$54+'Rijdend personeel'!$G$56+'Rijdend personeel'!$G$58+'Rijdend personeel'!$G$60+'Rijdend personeel'!$G$62+'Rijdend personeel'!$G$64+'Rijdend personeel'!$G$66)/'Rijdend personeel'!$G$68)*Reis!S52)) -> 0 | S54: =IF(Reis!T46<1,0,((('Rijdend personeel'!$G$54+'Rijdend personeel'!$G$56+'Rijdend personeel'!$G$58+'Rijdend personeel'!$G$60+'Rijdend personeel'!$G$62+'Rijdend personeel'!$G$64+'Rijdend personeel'!$G$66)/'Rijdend personeel'!$G$68)*Reis!T52)) -> 0
C55: Extra bonussen zondag + feestdag | D55: =IF(Reis!E57>0,"",IF(AND(Reis!AB51=0,Reis!AC51=1,Reis!E54*24>=3,Reis!E54*24+Reis!D54*24>6),50,IF(AND(Reis!AB51=0,Reis!AC51=1,Reis!E54*24>=3,Reis!E54*24+Reis!D54*24<=6),30,IF(AND(Reis!AB51=0,Reis!AC51=1,Reis!E55*24>=3,Reis!E55*24+Reis!D55*24>6),50,IF(AND(Reis!AB51=0,Reis!AC51=1,Reis!E55*24>=3,Reis!E55*24+Reis!D55*24<=6),30,IF(AND(Reis!AB51=0,Reis!AC51=1,Reis!E56*24>=3,Reis!E56*24+Reis!D56*24>6),50,IF(AND(Reis!AB51=0,Reis!AC51=1,Reis!E56*24>=3,Reis!E56*24+Reis!D56*24<=6),30,IF(AND(Reis!AC51=1,Reis!E54*24<=6,Reis!E54*24>0),30,IF(AND(Reis!AC51=1,Reis!E54*24>6,Reis!E54*24>0),50,IF(AND(Reis!AC51=1,Reis!E55*24<=6,Reis!E55*24>0),30,IF(AND(Reis!AC51=1,Reis!E55*24>6,Reis!E55*24>0),50,IF(AND(Reis!AC51=1,Reis!E56*24<=6,Reis!E56*24>0),30,IF(AND(Reis!AC51=1,Reis!E56*24>6,Reis!E56*24>0),50,""))))))))))))) ->  | E55: =IF(Reis!F57>0,0,IF(Reis!F52="","",IF(Reis!F52=1,Reis!AD50,IF(Reis!F52=2,Reis!AD51+Reis!AD52,IF(Reis!F52=3,Reis!AD50+Reis!AD51+Reis!AD52))))) ->  | F55: =IF(Reis!G57>0,0,IF(Reis!G52="","",IF(Reis!G52=1,Reis!AE50,IF(Reis!G52=2,Reis!AE51+Reis!AE52,IF(Reis!G52=3,Reis!AE50+Reis!AE51+Reis!AE52))))) ->  | G55: =IF(Reis!H57>0,0,IF(Reis!H52="","",IF(Reis!H52=1,Reis!AF50,IF(Reis!H52=2,Reis!AF51+Reis!AF52,IF(Reis!H52=3,Reis!AF50+Reis!AF51+Reis!AF52))))) ->  | H55: =IF(Reis!I57>0,0,IF(Reis!I52="","",IF(Reis!I52=1,Reis!AG50,IF(Reis!I52=2,Reis!AG51+Reis!AG52,IF(Reis!I52=3,Reis!AG50+Reis!AG51+Reis!AG52))))) ->  | I55: =IF(Reis!J57>0,0,IF(Reis!J52="","",IF(Reis!J52=1,Reis!AH50,IF(Reis!J52=2,Reis!AH51+Reis!AH52,IF(Reis!J52=3,Reis!AH50+Reis!AH51+Reis!AH52))))) ->  | J55: =IF(Reis!K57>0,0,IF(Reis!K52="","",IF(Reis!K52=1,Reis!AI50,IF(Reis!K52=2,Reis!AI51+Reis!AI52,IF(Reis!K52=3,Reis!AI50+Reis!AI51+Reis!AI52))))) ->  | K55: =IF(Reis!L57>0,0,IF(Reis!L52="","",IF(Reis!L52=1,Reis!AJ50,IF(Reis!L52=2,Reis!AJ51+Reis!AJ52,IF(Reis!L52=3,Reis!AJ50+Reis!AJ51+Reis!AJ52))))) ->  | L55: =IF(Reis!M57>0,0,IF(Reis!M52="","",IF(Reis!M52=1,Reis!AK50,IF(Reis!M52=2,Reis!AK51+Reis!AK52,IF(Reis!M52=3,Reis!AK50+Reis!AK51+Reis!AK52))))) ->  | M55: =IF(Reis!N57>0,0,IF(Reis!N52="","",IF(Reis!N52=1,Reis!AL50,IF(Reis!N52=2,Reis!AL51+Reis!AL52,IF(Reis!N52=3,Reis!AL50+Reis!AL51+Reis!AL52))))) ->  | N55: =IF(Reis!O57>0,0,IF(Reis!O52="","",IF(Reis!O52=1,Reis!AM50,IF(Reis!O52=2,Reis!AM51+Reis!AM52,IF(Reis!O52=3,Reis!AM50+Reis!AM51+Reis!AM52))))) ->  | O55: =IF(Reis!P57>0,0,IF(Reis!P52="","",IF(Reis!P52=1,Reis!AN50,IF(Reis!P52=2,Reis!AN51+Reis!AN52,IF(Reis!P52=3,Reis!AN50+Reis!AN51+Reis!AN52))))) ->  | P55: =IF(Reis!Q57>0,0,IF(Reis!Q52="","",IF(Reis!Q52=1,Reis!AO50,IF(Reis!Q52=2,Reis!AO51+Reis!AO52,IF(Reis!Q52=3,Reis!AO50+Reis!AO51+Reis!AO52))))) ->  | Q55: =IF(Reis!R57>0,0,IF(Reis!R52="","",IF(Reis!R52=1,Reis!AP50,IF(Reis!R52=2,Reis!AP51+Reis!AP52,IF(Reis!R52=3,Reis!AP50+Reis!AP51+Reis!AP52))))) ->  | R55: =IF(Reis!S57>0,0,IF(Reis!S52="","",IF(Reis!S52=1,Reis!AQ50,IF(Reis!S52=2,Reis!AQ51+Reis!AQ52,IF(Reis!S52=3,Reis!AQ50+Reis!AQ51+Reis!AQ52))))) ->  | S55: =IF(Reis!T57>0,0,IF(Reis!T52="","",IF(Reis!T52=1,Reis!AR50,IF(Reis!T52=2,Reis!AR51+Reis!AR52,IF(Reis!T52=3,Reis!AR50+Reis!AR51+Reis!AR52))))) -> 
C56: Maaltijdcheques | D56: =IF(Reis!E58>0,"",IF(AND(Reis!AB52=0,Reis!AC52=1,Reis!E55*24>=3,Reis!E55*24+Reis!D55*24>6),50,IF(AND(Reis!AB52=0,Reis!AC52=1,Reis!E55*24>=3,Reis!E55*24+Reis!D55*24<=6),30,IF(AND(Reis!AB52=0,Reis!AC52=1,Reis!E56*24>=3,Reis!E56*24+Reis!D56*24>6),50,IF(AND(Reis!AB52=0,Reis!AC52=1,Reis!E56*24>=3,Reis!E56*24+Reis!D56*24<=6),30,IF(AND(Reis!AB52=0,Reis!AC52=1,Reis!E57*24>=3,Reis!E57*24+Reis!D57*24>6),50,IF(AND(Reis!AB52=0,Reis!AC52=1,Reis!E57*24>=3,Reis!E57*24+Reis!D57*24<=6),30,IF(AND(Reis!AC52=1,Reis!E55*24<=6,Reis!E55*24>0),30,IF(AND(Reis!AC52=1,Reis!E55*24>6,Reis!E55*24>0),50,IF(AND(Reis!AC52=1,Reis!E56*24<=6,Reis!E56*24>0),30,IF(AND(Reis!AC52=1,Reis!E56*24>6,Reis!E56*24>0),50,IF(AND(Reis!AC52=1,Reis!E57*24<=6,Reis!E57*24>0),30,IF(AND(Reis!AC52=1,Reis!E57*24>6,Reis!E57*24>0),50,""))))))))))))) ->  | E56: =IF(Reis!F46<1,0,(('Rijdend personeel'!$G$70*Reis!F52))) -> 0 | F56: =IF(Reis!G46<1,0,(('Rijdend personeel'!$G$70*Reis!G52))) -> 0 | G56: =IF(Reis!H46<1,0,(('Rijdend personeel'!$G$70*Reis!H52))) -> 0 | H56: =IF(Reis!I46<1,0,(('Rijdend personeel'!$G$70*Reis!I52))) -> 0 | I56: =IF(Reis!J46<1,0,(('Rijdend personeel'!$G$70*Reis!J52))) -> 0 | J56: =IF(Reis!K46<1,0,(('Rijdend personeel'!$G$70*Reis!K52))) -> 0 | K56: =IF(Reis!L46<1,0,(('Rijdend personeel'!$G$70*Reis!L52))) -> 0 | L56: =IF(Reis!M46<1,0,(('Rijdend personeel'!$G$70*Reis!M52))) -> 0 | M56: =IF(Reis!N46<1,0,(('Rijdend personeel'!$G$70*Reis!N52))) -> 0 | N56: =IF(Reis!O46<1,0,(('Rijdend personeel'!$G$70*Reis!O52))) -> 0 | O56: =IF(Reis!P46<1,0,(('Rijdend personeel'!$G$70*Reis!P52))) -> 0 | P56: =IF(Reis!Q46<1,0,(('Rijdend personeel'!$G$70*Reis!Q52))) -> 0 | Q56: =IF(Reis!R46<1,0,(('Rijdend personeel'!$G$70*Reis!R52))) -> 0 | R56: =IF(Reis!S46<1,0,(('Rijdend personeel'!$G$70*Reis!S52))) -> 0 | S56: =IF(Reis!T46<1,0,(('Rijdend personeel'!$G$70*Reis!T52))) -> 0
C57: Extra loonkosten alle CH
C58: Totale loonkost alle CH | E58: =IF(Reis!F46<1,0,(E43+E44+E45+E46+E47+E48+E50+E49+E51+E52+E53+E54+E55+E57+E56)) ->  | F58: =IF(Reis!G46<1,0,(F43+F44+F45+F46+F47+F48+F50+F49+F51+F52+F53+F54+F55+F57+F56)) -> 0 | G58: =IF(Reis!H46<1,0,(G43+G44+G45+G46+G47+G48+G50+G49+G51+G52+G53+G54+G55+G57+G56)) -> 0 | H58: =IF(Reis!I46<1,0,(H43+H44+H45+H46+H47+H48+H50+H49+H51+H52+H53+H54+H55+H57+H56)) -> 0 | I58: =IF(Reis!J46<1,0,(I43+I44+I45+I46+I47+I48+I50+I49+I51+I52+I53+I54+I55+I57+I56)) -> 0 | J58: =IF(Reis!K46<1,0,(J43+J44+J45+J46+J47+J48+J50+J49+J51+J52+J53+J54+J55+J57+J56)) -> 0 | K58: =IF(Reis!L46<1,0,(K43+K44+K45+K46+K47+K48+K50+K49+K51+K52+K53+K54+K55+K57+K56)) -> 0 | L58: =IF(Reis!M46<1,0,(L43+L44+L45+L46+L47+L48+L50+L49+L51+L52+L53+L54+L55+L57+L56)) -> 0 | M58: =IF(Reis!N46<1,0,(M43+M44+M45+M46+M47+M48+M50+M49+M51+M52+M53+M54+M55+M57+M56)) -> 0 | N58: =IF(Reis!O46<1,0,(N43+N44+N45+N46+N47+N48+N50+N49+N51+N52+N53+N54+N55+N57+N56)) -> 0 | O58: =IF(Reis!P46<1,0,(O43+O44+O45+O46+O47+O48+O50+O49+O51+O52+O53+O54+O55+O57+O56)) -> 0 | P58: =IF(Reis!Q46<1,0,(P43+P44+P45+P46+P47+P48+P50+P49+P51+P52+P53+P54+P55+P57+P56)) -> 0 | Q58: =IF(Reis!R46<1,0,(Q43+Q44+Q45+Q46+Q47+Q48+Q50+Q49+Q51+Q52+Q53+Q54+Q55+Q57+Q56)) -> 0 | R58: =IF(Reis!S46<1,0,(R43+R44+R45+R46+R47+R48+R50+R49+R51+R52+R53+R54+R55+R57+R56)) -> 0 | S58: =IF(Reis!T46<1,0,(S43+S44+S45+S46+S47+S48+S50+S49+S51+S52+S53+S54+S55+S57+S56)) -> 0
G61: Coût personnel roulant | J61: =Bestemmingen!W12 ->  | L61: =Bestemmingen!S12 -> vehicule1
E66: dag | F66: dag | G66: dag | H66: dag | I66: dag | J66: dag | K66: dag | L66: dag | M66: dag | N66: dag | O66: dag | P66: dag | Q66: dag | R66: dag | S66: dag
E67: 1 | F67: 2 | G67: 3 | H67: 4 | I67: 5 | J67: 6 | K67: 7 | L67: 8 | M67: 9 | N67: 10 | O67: 11 | P67: 12 | Q67: 13 | R67: 14 | S67: 15
C68: Diensttijd CH ENKEL | E68: =Reis!F85*24 -> 0 | F68: =Reis!G85*24 -> 0 | G68: =Reis!H85*24 -> 0 | H68: =Reis!I85*24 -> 0 | I68: =Reis!J85*24 -> 0 | J68: =Reis!K85*24 -> 0 | K68: =Reis!L85*24 -> 0 | L68: =Reis!M85*24 -> 0 | M68: =Reis!N85*24 -> 0 | N68: =Reis!O85*24 -> 0 | O68: =Reis!P85*24 -> 0 | P68: =Reis!Q85*24 -> 0 | Q68: =Reis!R85*24 -> 0 | R68: =Reis!S85*24 -> 0 | S68: =Reis!T85*24 -> 0
C69: Diensttijd CH1 DUBBEL | E69: =Reis!F86*24 -> 0 | F69: =Reis!G86*24 -> 0 | G69: =Reis!H86*24 -> 0 | H69: =Reis!I86*24 -> 0 | I69: =Reis!J86*24 -> 0 | J69: =Reis!K86*24 -> 0 | K69: =Reis!L86*24 -> 0 | L69: =Reis!M86*24 -> 0 | M69: =Reis!N86*24 -> 0 | N69: =Reis!O86*24 -> 0 | O69: =Reis!P86*24 -> 0 | P69: =Reis!Q86*24 -> 0 | Q69: =Reis!R86*24 -> 0 | R69: =Reis!S86*24 -> 0 | S69: =Reis!T86*24 -> 0
C70: Diensttijd CH2 DUBBEL | E70: =Reis!F87*24 -> 0 | F70: =Reis!G87*24 -> 0 | G70: =Reis!H87*24 -> 0 | H70: =Reis!I87*24 -> 0 | I70: =Reis!J87*24 -> 0 | J70: =Reis!K87*24 -> 0 | K70: =Reis!L87*24 -> 0 | L70: =Reis!M87*24 -> 0 | M70: =Reis!N87*24 -> 0 | N70: =Reis!O87*24 -> 0 | O70: =Reis!P87*24 -> 0 | P70: =Reis!Q87*24 -> 0 | Q70: =Reis!R87*24 -> 0 | R70: =Reis!S87*24 -> 0 | S70: =Reis!T87*24 -> 0
C71: Bruto Sal CH ENKEL | E71: =IF(AND(E68>0,E68<=6,Reis!F79="Autre"),('Rijdend personeel'!$G$50+'Rijdend personeel'!$G$42),IF(AND(E68>0,E68<=6),('Rijdend personeel'!$G$9+'Rijdend personeel'!$G$42),IF(AND(E68>6,E68<=12),'Rijdend personeel'!$G$11+'Rijdend personeel'!$G$42,IF(E68>0,'Rijdend personeel'!$G$11+(ROUNDUP(E68,0)-12)*'Rijdend personeel'!$G$13+'Rijdend personeel'!$G$42,0)))) -> 0 | F71: =IF(AND(F68>0,F68<=6,Reis!G79="Autre"),('Rijdend personeel'!$G$50+'Rijdend personeel'!$G$42),IF(AND(F68>0,F68<=6),('Rijdend personeel'!$G$9+'Rijdend personeel'!$G$42),IF(AND(F68>6,F68<=12),'Rijdend personeel'!$G$11+'Rijdend personeel'!$G$42,IF(F68>0,'Rijdend personeel'!$G$11+(ROUNDUP(F68,0)-12)*'Rijdend personeel'!$G$13+'Rijdend personeel'!$G$42,0)))) -> 0 | G71: =IF(AND(G68>0,G68<=6,Reis!H79="Autre"),('Rijdend personeel'!$G$50+'Rijdend personeel'!$G$42),IF(AND(G68>0,G68<=6),('Rijdend personeel'!$G$9+'Rijdend personeel'!$G$42),IF(AND(G68>6,G68<=12),'Rijdend personeel'!$G$11+'Rijdend personeel'!$G$42,IF(G68>0,'Rijdend personeel'!$G$11+(ROUNDUP(G68,0)-12)*'Rijdend personeel'!$G$13+'Rijdend personeel'!$G$42,0)))) -> 0 | H71: =IF(AND(H68>0,H68<=6,Reis!I79="Autre"),('Rijdend personeel'!$G$50+'Rijdend personeel'!$G$42),IF(AND(H68>0,H68<=6),('Rijdend personeel'!$G$9+'Rijdend personeel'!$G$42),IF(AND(H68>6,H68<=12),'Rijdend personeel'!$G$11+'Rijdend personeel'!$G$42,IF(H68>0,'Rijdend personeel'!$G$11+(ROUNDUP(H68,0)-12)*'Rijdend personeel'!$G$13+'Rijdend personeel'!$G$42,0)))) -> 0 | I71: =IF(AND(I68>0,I68<=6,Reis!J79="Autre"),('Rijdend personeel'!$G$50+'Rijdend personeel'!$G$42),IF(AND(I68>0,I68<=6),('Rijdend personeel'!$G$9+'Rijdend personeel'!$G$42),IF(AND(I68>6,I68<=12),'Rijdend personeel'!$G$11+'Rijdend personeel'!$G$42,IF(I68>0,'Rijdend personeel'!$G$11+(ROUNDUP(I68,0)-12)*'Rijdend personeel'!$G$13+'Rijdend personeel'!$G$42,0)))) -> 0 | J71: =IF(AND(J68>0,J68<=6,Reis!K79="Autre"),('Rijdend personeel'!$G$50+'Rijdend personeel'!$G$42),IF(AND(J68>0,J68<=6),('Rijdend personeel'!$G$9+'Rijdend personeel'!$G$42),IF(AND(J68>6,J68<=12),'Rijdend personeel'!$G$11+'Rijdend personeel'!$G$42,IF(J68>0,'Rijdend personeel'!$G$11+(ROUNDUP(J68,0)-12)*'Rijdend personeel'!$G$13+'Rijdend personeel'!$G$42,0)))) -> 0 | K71: =IF(AND(K68>0,K68<=6,Reis!L79="Autre"),('Rijdend personeel'!$G$50+'Rijdend personeel'!$G$42),IF(AND(K68>0,K68<=6),('Rijdend personeel'!$G$9+'Rijdend personeel'!$G$42),IF(AND(K68>6,K68<=12),'Rijdend personeel'!$G$11+'Rijdend personeel'!$G$42,IF(K68>0,'Rijdend personeel'!$G$11+(ROUNDUP(K68,0)-12)*'Rijdend personeel'!$G$13+'Rijdend personeel'!$G$42,0)))) -> 0 | L71: =IF(AND(L68>0,L68<=6,Reis!M79="Autre"),('Rijdend personeel'!$G$50+'Rijdend personeel'!$G$42),IF(AND(L68>0,L68<=6),('Rijdend personeel'!$G$9+'Rijdend personeel'!$G$42),IF(AND(L68>6,L68<=12),'Rijdend personeel'!$G$11+'Rijdend personeel'!$G$42,IF(L68>0,'Rijdend personeel'!$G$11+(ROUNDUP(L68,0)-12)*'Rijdend personeel'!$G$13+'Rijdend personeel'!$G$42,0)))) -> 0 | M71: =IF(AND(M68>0,M68<=6,Reis!N79="Autre"),('Rijdend personeel'!$G$50+'Rijdend personeel'!$G$42),IF(AND(M68>0,M68<=6),('Rijdend personeel'!$G$9+'Rijdend personeel'!$G$42),IF(AND(M68>6,M68<=12),'Rijdend personeel'!$G$11+'Rijdend personeel'!$G$42,IF(M68>0,'Rijdend personeel'!$G$11+(ROUNDUP(M68,0)-12)*'Rijdend personeel'!$G$13+'Rijdend personeel'!$G$42,0)))) -> 0 | N71: =IF(AND(N68>0,N68<=6,Reis!O79="Autre"),('Rijdend personeel'!$G$50+'Rijdend personeel'!$G$42),IF(AND(N68>0,N68<=6),('Rijdend personeel'!$G$9+'Rijdend personeel'!$G$42),IF(AND(N68>6,N68<=12),'Rijdend personeel'!$G$11+'Rijdend personeel'!$G$42,IF(N68>0,'Rijdend personeel'!$G$11+(ROUNDUP(N68,0)-12)*'Rijdend personeel'!$G$13+'Rijdend personeel'!$G$42,0)))) -> 0 | O71: =IF(AND(O68>0,O68<=6,Reis!P79="Autre"),('Rijdend personeel'!$G$50+'Rijdend personeel'!$G$42),IF(AND(O68>0,O68<=6),('Rijdend personeel'!$G$9+'Rijdend personeel'!$G$42),IF(AND(O68>6,O68<=12),'Rijdend personeel'!$G$11+'Rijdend personeel'!$G$42,IF(O68>0,'Rijdend personeel'!$G$11+(ROUNDUP(O68,0)-12)*'Rijdend personeel'!$G$13+'Rijdend personeel'!$G$42,0)))) -> 0 | P71: =IF(AND(P68>0,P68<=6,Reis!Q79="Autre"),('Rijdend personeel'!$G$50+'Rijdend personeel'!$G$42),IF(AND(P68>0,P68<=6),('Rijdend personeel'!$G$9+'Rijdend personeel'!$G$42),IF(AND(P68>6,P68<=12),'Rijdend personeel'!$G$11+'Rijdend personeel'!$G$42,IF(P68>0,'Rijdend personeel'!$G$11+(ROUNDUP(P68,0)-12)*'Rijdend personeel'!$G$13+'Rijdend personeel'!$G$42,0)))) -> 0 | Q71: =IF(AND(Q68>0,Q68<=6,Reis!R79="Autre"),('Rijdend personeel'!$G$50+'Rijdend personeel'!$G$42),IF(AND(Q68>0,Q68<=6),('Rijdend personeel'!$G$9+'Rijdend personeel'!$G$42),IF(AND(Q68>6,Q68<=12),'Rijdend personeel'!$G$11+'Rijdend personeel'!$G$42,IF(Q68>0,'Rijdend personeel'!$G$11+(ROUNDUP(Q68,0)-12)*'Rijdend personeel'!$G$13+'Rijdend personeel'!$G$42,0)))) -> 0 | R71: =IF(AND(R68>0,R68<=6,Reis!S79="Autre"),('Rijdend personeel'!$G$50+'Rijdend personeel'!$G$42),IF(AND(R68>0,R68<=6),('Rijdend personeel'!$G$9+'Rijdend personeel'!$G$42),IF(AND(R68>6,R68<=12),'Rijdend personeel'!$G$11+'Rijdend personeel'!$G$42,IF(R68>0,'Rijdend personeel'!$G$11+(ROUNDUP(R68,0)-12)*'Rijdend personeel'!$G$13+'Rijdend personeel'!$G$42,0)))) -> 0 | S71: =IF(AND(S68>0,S68<=6,Reis!T79="Autre"),('Rijdend personeel'!$G$50+'Rijdend personeel'!$G$42),IF(AND(S68>0,S68<=6),('Rijdend personeel'!$G$9+'Rijdend personeel'!$G$42),IF(AND(S68>6,S68<=12),'Rijdend personeel'!$G$11+'Rijdend personeel'!$G$42,IF(S68>0,'Rijdend personeel'!$G$11+(ROUNDUP(S68,0)-12)*'Rijdend personeel'!$G$13+'Rijdend personeel'!$G$42,0)))) -> 0
C72: Bruto Sal CH1 DUBBEL | E72: =IF(E69=0,0,IF(E69<12,'Rijdend personeel'!$G$16+'Rijdend personeel'!$G$42,IF(E69<13,'Rijdend personeel'!$G$18+'Rijdend personeel'!$G$42,IF(E69<14,'Rijdend personeel'!$G$20+'Rijdend personeel'!$G$42,IF(E69<15,'Rijdend personeel'!$G$22+'Rijdend personeel'!$G$42,IF(E69<16,'Rijdend personeel'!$G$24+'Rijdend personeel'!$G$42,IF(E69<17,'Rijdend personeel'!$G$26+'Rijdend personeel'!$G$42,IF(E69<18,'Rijdend personeel'!$G$28+'Rijdend personeel'!$G$42,IF(E69<19,'Rijdend personeel'!$G$30+'Rijdend personeel'!$G$42,IF(E69<20,'Rijdend personeel'!$G$32+'Rijdend personeel'!$G$42,IF(E69<21,'Rijdend personeel'!$G$34+'Rijdend personeel'!$G$42,IF(E69<22,'Rijdend personeel'!$G$36+'Rijdend personeel'!$G$42)))))))))))) -> 0 | F72: =IF(F69=0,0,IF(F69<12,'Rijdend personeel'!$G$16+'Rijdend personeel'!$G$42,IF(F69<13,'Rijdend personeel'!$G$18+'Rijdend personeel'!$G$42,IF(F69<14,'Rijdend personeel'!$G$20+'Rijdend personeel'!$G$42,IF(F69<15,'Rijdend personeel'!$G$22+'Rijdend personeel'!$G$42,IF(F69<16,'Rijdend personeel'!$G$24+'Rijdend personeel'!$G$42,IF(F69<17,'Rijdend personeel'!$G$26+'Rijdend personeel'!$G$42,IF(F69<18,'Rijdend personeel'!$G$28+'Rijdend personeel'!$G$42,IF(F69<19,'Rijdend personeel'!$G$30+'Rijdend personeel'!$G$42,IF(F69<20,'Rijdend personeel'!$G$32+'Rijdend personeel'!$G$42,IF(F69<21,'Rijdend personeel'!$G$34+'Rijdend personeel'!$G$42,IF(F69<22,'Rijdend personeel'!$G$36+'Rijdend personeel'!$G$42)))))))))))) -> 0 | G72: =IF(G69=0,0,IF(G69<12,'Rijdend personeel'!$G$16+'Rijdend personeel'!$G$42,IF(G69<13,'Rijdend personeel'!$G$18+'Rijdend personeel'!$G$42,IF(G69<14,'Rijdend personeel'!$G$20+'Rijdend personeel'!$G$42,IF(G69<15,'Rijdend personeel'!$G$22+'Rijdend personeel'!$G$42,IF(G69<16,'Rijdend personeel'!$G$24+'Rijdend personeel'!$G$42,IF(G69<17,'Rijdend personeel'!$G$26+'Rijdend personeel'!$G$42,IF(G69<18,'Rijdend personeel'!$G$28+'Rijdend personeel'!$G$42,IF(G69<19,'Rijdend personeel'!$G$30+'Rijdend personeel'!$G$42,IF(G69<20,'Rijdend personeel'!$G$32+'Rijdend personeel'!$G$42,IF(G69<21,'Rijdend personeel'!$G$34+'Rijdend personeel'!$G$42,IF(G69<22,'Rijdend personeel'!$G$36+'Rijdend personeel'!$G$42)))))))))))) -> 0 | H72: =IF(H69=0,0,IF(H69<12,'Rijdend personeel'!$G$16+'Rijdend personeel'!$G$42,IF(H69<13,'Rijdend personeel'!$G$18+'Rijdend personeel'!$G$42,IF(H69<14,'Rijdend personeel'!$G$20+'Rijdend personeel'!$G$42,IF(H69<15,'Rijdend personeel'!$G$22+'Rijdend personeel'!$G$42,IF(H69<16,'Rijdend personeel'!$G$24+'Rijdend personeel'!$G$42,IF(H69<17,'Rijdend personeel'!$G$26+'Rijdend personeel'!$G$42,IF(H69<18,'Rijdend personeel'!$G$28+'Rijdend personeel'!$G$42,IF(H69<19,'Rijdend personeel'!$G$30+'Rijdend personeel'!$G$42,IF(H69<20,'Rijdend personeel'!$G$32+'Rijdend personeel'!$G$42,IF(H69<21,'Rijdend personeel'!$G$34+'Rijdend personeel'!$G$42,IF(H69<22,'Rijdend personeel'!$G$36+'Rijdend personeel'!$G$42)))))))))))) -> 0 | I72: =IF(I69=0,0,IF(I69<12,'Rijdend personeel'!$G$16+'Rijdend personeel'!$G$42,IF(I69<13,'Rijdend personeel'!$G$18+'Rijdend personeel'!$G$42,IF(I69<14,'Rijdend personeel'!$G$20+'Rijdend personeel'!$G$42,IF(I69<15,'Rijdend personeel'!$G$22+'Rijdend personeel'!$G$42,IF(I69<16,'Rijdend personeel'!$G$24+'Rijdend personeel'!$G$42,IF(I69<17,'Rijdend personeel'!$G$26+'Rijdend personeel'!$G$42,IF(I69<18,'Rijdend personeel'!$G$28+'Rijdend personeel'!$G$42,IF(I69<19,'Rijdend personeel'!$G$30+'Rijdend personeel'!$G$42,IF(I69<20,'Rijdend personeel'!$G$32+'Rijdend personeel'!$G$42,IF(I69<21,'Rijdend personeel'!$G$34+'Rijdend personeel'!$G$42,IF(I69<22,'Rijdend personeel'!$G$36+'Rijdend personeel'!$G$42)))))))))))) -> 0 | J72: =IF(J69=0,0,IF(J69<12,'Rijdend personeel'!$G$16+'Rijdend personeel'!$G$42,IF(J69<13,'Rijdend personeel'!$G$18+'Rijdend personeel'!$G$42,IF(J69<14,'Rijdend personeel'!$G$20+'Rijdend personeel'!$G$42,IF(J69<15,'Rijdend personeel'!$G$22+'Rijdend personeel'!$G$42,IF(J69<16,'Rijdend personeel'!$G$24+'Rijdend personeel'!$G$42,IF(J69<17,'Rijdend personeel'!$G$26+'Rijdend personeel'!$G$42,IF(J69<18,'Rijdend personeel'!$G$28+'Rijdend personeel'!$G$42,IF(J69<19,'Rijdend personeel'!$G$30+'Rijdend personeel'!$G$42,IF(J69<20,'Rijdend personeel'!$G$32+'Rijdend personeel'!$G$42,IF(J69<21,'Rijdend personeel'!$G$34+'Rijdend personeel'!$G$42,IF(J69<22,'Rijdend personeel'!$G$36+'Rijdend personeel'!$G$42)))))))))))) -> 0 | K72: =IF(K69=0,0,IF(K69<12,'Rijdend personeel'!$G$16+'Rijdend personeel'!$G$42,IF(K69<13,'Rijdend personeel'!$G$18+'Rijdend personeel'!$G$42,IF(K69<14,'Rijdend personeel'!$G$20+'Rijdend personeel'!$G$42,IF(K69<15,'Rijdend personeel'!$G$22+'Rijdend personeel'!$G$42,IF(K69<16,'Rijdend personeel'!$G$24+'Rijdend personeel'!$G$42,IF(K69<17,'Rijdend personeel'!$G$26+'Rijdend personeel'!$G$42,IF(K69<18,'Rijdend personeel'!$G$28+'Rijdend personeel'!$G$42,IF(K69<19,'Rijdend personeel'!$G$30+'Rijdend personeel'!$G$42,IF(K69<20,'Rijdend personeel'!$G$32+'Rijdend personeel'!$G$42,IF(K69<21,'Rijdend personeel'!$G$34+'Rijdend personeel'!$G$42,IF(K69<22,'Rijdend personeel'!$G$36+'Rijdend personeel'!$G$42)))))))))))) -> 0 | L72: =IF(L69=0,0,IF(L69<12,'Rijdend personeel'!$G$16+'Rijdend personeel'!$G$42,IF(L69<13,'Rijdend personeel'!$G$18+'Rijdend personeel'!$G$42,IF(L69<14,'Rijdend personeel'!$G$20+'Rijdend personeel'!$G$42,IF(L69<15,'Rijdend personeel'!$G$22+'Rijdend personeel'!$G$42,IF(L69<16,'Rijdend personeel'!$G$24+'Rijdend personeel'!$G$42,IF(L69<17,'Rijdend personeel'!$G$26+'Rijdend personeel'!$G$42,IF(L69<18,'Rijdend personeel'!$G$28+'Rijdend personeel'!$G$42,IF(L69<19,'Rijdend personeel'!$G$30+'Rijdend personeel'!$G$42,IF(L69<20,'Rijdend personeel'!$G$32+'Rijdend personeel'!$G$42,IF(L69<21,'Rijdend personeel'!$G$34+'Rijdend personeel'!$G$42,IF(L69<22,'Rijdend personeel'!$G$36+'Rijdend personeel'!$G$42)))))))))))) -> 0 | M72: =IF(M69=0,0,IF(M69<12,'Rijdend personeel'!$G$16+'Rijdend personeel'!$G$42,IF(M69<13,'Rijdend personeel'!$G$18+'Rijdend personeel'!$G$42,IF(M69<14,'Rijdend personeel'!$G$20+'Rijdend personeel'!$G$42,IF(M69<15,'Rijdend personeel'!$G$22+'Rijdend personeel'!$G$42,IF(M69<16,'Rijdend personeel'!$G$24+'Rijdend personeel'!$G$42,IF(M69<17,'Rijdend personeel'!$G$26+'Rijdend personeel'!$G$42,IF(M69<18,'Rijdend personeel'!$G$28+'Rijdend personeel'!$G$42,IF(M69<19,'Rijdend personeel'!$G$30+'Rijdend personeel'!$G$42,IF(M69<20,'Rijdend personeel'!$G$32+'Rijdend personeel'!$G$42,IF(M69<21,'Rijdend personeel'!$G$34+'Rijdend personeel'!$G$42,IF(M69<22,'Rijdend personeel'!$G$36+'Rijdend personeel'!$G$42)))))))))))) -> 0 | N72: =IF(N69=0,0,IF(N69<12,'Rijdend personeel'!$G$16+'Rijdend personeel'!$G$42,IF(N69<13,'Rijdend personeel'!$G$18+'Rijdend personeel'!$G$42,IF(N69<14,'Rijdend personeel'!$G$20+'Rijdend personeel'!$G$42,IF(N69<15,'Rijdend personeel'!$G$22+'Rijdend personeel'!$G$42,IF(N69<16,'Rijdend personeel'!$G$24+'Rijdend personeel'!$G$42,IF(N69<17,'Rijdend personeel'!$G$26+'Rijdend personeel'!$G$42,IF(N69<18,'Rijdend personeel'!$G$28+'Rijdend personeel'!$G$42,IF(N69<19,'Rijdend personeel'!$G$30+'Rijdend personeel'!$G$42,IF(N69<20,'Rijdend personeel'!$G$32+'Rijdend personeel'!$G$42,IF(N69<21,'Rijdend personeel'!$G$34+'Rijdend personeel'!$G$42,IF(N69<22,'Rijdend personeel'!$G$36+'Rijdend personeel'!$G$42)))))))))))) -> 0 | O72: =IF(O69=0,0,IF(O69<12,'Rijdend personeel'!$G$16+'Rijdend personeel'!$G$42,IF(O69<13,'Rijdend personeel'!$G$18+'Rijdend personeel'!$G$42,IF(O69<14,'Rijdend personeel'!$G$20+'Rijdend personeel'!$G$42,IF(O69<15,'Rijdend personeel'!$G$22+'Rijdend personeel'!$G$42,IF(O69<16,'Rijdend personeel'!$G$24+'Rijdend personeel'!$G$42,IF(O69<17,'Rijdend personeel'!$G$26+'Rijdend personeel'!$G$42,IF(O69<18,'Rijdend personeel'!$G$28+'Rijdend personeel'!$G$42,IF(O69<19,'Rijdend personeel'!$G$30+'Rijdend personeel'!$G$42,IF(O69<20,'Rijdend personeel'!$G$32+'Rijdend personeel'!$G$42,IF(O69<21,'Rijdend personeel'!$G$34+'Rijdend personeel'!$G$42,IF(O69<22,'Rijdend personeel'!$G$36+'Rijdend personeel'!$G$42)))))))))))) -> 0 | P72: =IF(P69=0,0,IF(P69<12,'Rijdend personeel'!$G$16+'Rijdend personeel'!$G$42,IF(P69<13,'Rijdend personeel'!$G$18+'Rijdend personeel'!$G$42,IF(P69<14,'Rijdend personeel'!$G$20+'Rijdend personeel'!$G$42,IF(P69<15,'Rijdend personeel'!$G$22+'Rijdend personeel'!$G$42,IF(P69<16,'Rijdend personeel'!$G$24+'Rijdend personeel'!$G$42,IF(P69<17,'Rijdend personeel'!$G$26+'Rijdend personeel'!$G$42,IF(P69<18,'Rijdend personeel'!$G$28+'Rijdend personeel'!$G$42,IF(P69<19,'Rijdend personeel'!$G$30+'Rijdend personeel'!$G$42,IF(P69<20,'Rijdend personeel'!$G$32+'Rijdend personeel'!$G$42,IF(P69<21,'Rijdend personeel'!$G$34+'Rijdend personeel'!$G$42,IF(P69<22,'Rijdend personeel'!$G$36+'Rijdend personeel'!$G$42)))))))))))) -> 0 | Q72: =IF(Q69=0,0,IF(Q69<12,'Rijdend personeel'!$G$16+'Rijdend personeel'!$G$42,IF(Q69<13,'Rijdend personeel'!$G$18+'Rijdend personeel'!$G$42,IF(Q69<14,'Rijdend personeel'!$G$20+'Rijdend personeel'!$G$42,IF(Q69<15,'Rijdend personeel'!$G$22+'Rijdend personeel'!$G$42,IF(Q69<16,'Rijdend personeel'!$G$24+'Rijdend personeel'!$G$42,IF(Q69<17,'Rijdend personeel'!$G$26+'Rijdend personeel'!$G$42,IF(Q69<18,'Rijdend personeel'!$G$28+'Rijdend personeel'!$G$42,IF(Q69<19,'Rijdend personeel'!$G$30+'Rijdend personeel'!$G$42,IF(Q69<20,'Rijdend personeel'!$G$32+'Rijdend personeel'!$G$42,IF(Q69<21,'Rijdend personeel'!$G$34+'Rijdend personeel'!$G$42,IF(Q69<22,'Rijdend personeel'!$G$36+'Rijdend personeel'!$G$42)))))))))))) -> 0 | R72: =IF(R69=0,0,IF(R69<12,'Rijdend personeel'!$G$16+'Rijdend personeel'!$G$42,IF(R69<13,'Rijdend personeel'!$G$18+'Rijdend personeel'!$G$42,IF(R69<14,'Rijdend personeel'!$G$20+'Rijdend personeel'!$G$42,IF(R69<15,'Rijdend personeel'!$G$22+'Rijdend personeel'!$G$42,IF(R69<16,'Rijdend personeel'!$G$24+'Rijdend personeel'!$G$42,IF(R69<17,'Rijdend personeel'!$G$26+'Rijdend personeel'!$G$42,IF(R69<18,'Rijdend personeel'!$G$28+'Rijdend personeel'!$G$42,IF(R69<19,'Rijdend personeel'!$G$30+'Rijdend personeel'!$G$42,IF(R69<20,'Rijdend personeel'!$G$32+'Rijdend personeel'!$G$42,IF(R69<21,'Rijdend personeel'!$G$34+'Rijdend personeel'!$G$42,IF(R69<22,'Rijdend personeel'!$G$36+'Rijdend personeel'!$G$42)))))))))))) -> 0 | S72: =IF(S69=0,0,IF(S69<12,'Rijdend personeel'!$G$16+'Rijdend personeel'!$G$42,IF(S69<13,'Rijdend personeel'!$G$18+'Rijdend personeel'!$G$42,IF(S69<14,'Rijdend personeel'!$G$20+'Rijdend personeel'!$G$42,IF(S69<15,'Rijdend personeel'!$G$22+'Rijdend personeel'!$G$42,IF(S69<16,'Rijdend personeel'!$G$24+'Rijdend personeel'!$G$42,IF(S69<17,'Rijdend personeel'!$G$26+'Rijdend personeel'!$G$42,IF(S69<18,'Rijdend personeel'!$G$28+'Rijdend personeel'!$G$42,IF(S69<19,'Rijdend personeel'!$G$30+'Rijdend personeel'!$G$42,IF(S69<20,'Rijdend personeel'!$G$32+'Rijdend personeel'!$G$42,IF(S69<21,'Rijdend personeel'!$G$34+'Rijdend personeel'!$G$42,IF(S69<22,'Rijdend personeel'!$G$36+'Rijdend personeel'!$G$42)))))))))))) -> 0
C73: Bruto Sal CH2 DUBBEL | E73: =IF(E70=0,0,IF(E70<12,'Rijdend personeel'!$G$16+'Rijdend personeel'!$G$42,IF(E70<13,'Rijdend personeel'!$G$18+'Rijdend personeel'!$G$42,IF(E70<14,'Rijdend personeel'!$G$20+'Rijdend personeel'!$G$42,IF(E70<15,'Rijdend personeel'!$G$22+'Rijdend personeel'!$G$42,IF(E70<16,'Rijdend personeel'!$G$24+'Rijdend personeel'!$G$42,IF(E70<17,'Rijdend personeel'!$G$26+'Rijdend personeel'!$G$42,IF(E70<18,'Rijdend personeel'!$G$28+'Rijdend personeel'!$G$42,IF(E70<19,'Rijdend personeel'!$G$30+'Rijdend personeel'!$G$42,IF(E70<20,'Rijdend personeel'!$G$32+'Rijdend personeel'!$G$42,IF(E70<21,'Rijdend personeel'!$G$34+'Rijdend personeel'!$G$42,IF(E70<22,'Rijdend personeel'!$G$36+'Rijdend personeel'!$G$42)))))))))))) -> 0 | F73: =IF(F70=0,0,IF(F70<12,'Rijdend personeel'!$G$16+'Rijdend personeel'!$G$42,IF(F70<13,'Rijdend personeel'!$G$18+'Rijdend personeel'!$G$42,IF(F70<14,'Rijdend personeel'!$G$20+'Rijdend personeel'!$G$42,IF(F70<15,'Rijdend personeel'!$G$22+'Rijdend personeel'!$G$42,IF(F70<16,'Rijdend personeel'!$G$24+'Rijdend personeel'!$G$42,IF(F70<17,'Rijdend personeel'!$G$26+'Rijdend personeel'!$G$42,IF(F70<18,'Rijdend personeel'!$G$28+'Rijdend personeel'!$G$42,IF(F70<19,'Rijdend personeel'!$G$30+'Rijdend personeel'!$G$42,IF(F70<20,'Rijdend personeel'!$G$32+'Rijdend personeel'!$G$42,IF(F70<21,'Rijdend personeel'!$G$34+'Rijdend personeel'!$G$42,IF(F70<22,'Rijdend personeel'!$G$36+'Rijdend personeel'!$G$42)))))))))))) -> 0 | G73: =IF(G70=0,0,IF(G70<12,'Rijdend personeel'!$G$16+'Rijdend personeel'!$G$42,IF(G70<13,'Rijdend personeel'!$G$18+'Rijdend personeel'!$G$42,IF(G70<14,'Rijdend personeel'!$G$20+'Rijdend personeel'!$G$42,IF(G70<15,'Rijdend personeel'!$G$22+'Rijdend personeel'!$G$42,IF(G70<16,'Rijdend personeel'!$G$24+'Rijdend personeel'!$G$42,IF(G70<17,'Rijdend personeel'!$G$26+'Rijdend personeel'!$G$42,IF(G70<18,'Rijdend personeel'!$G$28+'Rijdend personeel'!$G$42,IF(G70<19,'Rijdend personeel'!$G$30+'Rijdend personeel'!$G$42,IF(G70<20,'Rijdend personeel'!$G$32+'Rijdend personeel'!$G$42,IF(G70<21,'Rijdend personeel'!$G$34+'Rijdend personeel'!$G$42,IF(G70<22,'Rijdend personeel'!$G$36+'Rijdend personeel'!$G$42)))))))))))) -> 0 | H73: =IF(H70=0,0,IF(H70<12,'Rijdend personeel'!$G$16+'Rijdend personeel'!$G$42,IF(H70<13,'Rijdend personeel'!$G$18+'Rijdend personeel'!$G$42,IF(H70<14,'Rijdend personeel'!$G$20+'Rijdend personeel'!$G$42,IF(H70<15,'Rijdend personeel'!$G$22+'Rijdend personeel'!$G$42,IF(H70<16,'Rijdend personeel'!$G$24+'Rijdend personeel'!$G$42,IF(H70<17,'Rijdend personeel'!$G$26+'Rijdend personeel'!$G$42,IF(H70<18,'Rijdend personeel'!$G$28+'Rijdend personeel'!$G$42,IF(H70<19,'Rijdend personeel'!$G$30+'Rijdend personeel'!$G$42,IF(H70<20,'Rijdend personeel'!$G$32+'Rijdend personeel'!$G$42,IF(H70<21,'Rijdend personeel'!$G$34+'Rijdend personeel'!$G$42,IF(H70<22,'Rijdend personeel'!$G$36+'Rijdend personeel'!$G$42)))))))))))) -> 0 | I73: =IF(I70=0,0,IF(I70<12,'Rijdend personeel'!$G$16+'Rijdend personeel'!$G$42,IF(I70<13,'Rijdend personeel'!$G$18+'Rijdend personeel'!$G$42,IF(I70<14,'Rijdend personeel'!$G$20+'Rijdend personeel'!$G$42,IF(I70<15,'Rijdend personeel'!$G$22+'Rijdend personeel'!$G$42,IF(I70<16,'Rijdend personeel'!$G$24+'Rijdend personeel'!$G$42,IF(I70<17,'Rijdend personeel'!$G$26+'Rijdend personeel'!$G$42,IF(I70<18,'Rijdend personeel'!$G$28+'Rijdend personeel'!$G$42,IF(I70<19,'Rijdend personeel'!$G$30+'Rijdend personeel'!$G$42,IF(I70<20,'Rijdend personeel'!$G$32+'Rijdend personeel'!$G$42,IF(I70<21,'Rijdend personeel'!$G$34+'Rijdend personeel'!$G$42,IF(I70<22,'Rijdend personeel'!$G$36+'Rijdend personeel'!$G$42)))))))))))) -> 0 | J73: =IF(J70=0,0,IF(J70<12,'Rijdend personeel'!$G$16+'Rijdend personeel'!$G$42,IF(J70<13,'Rijdend personeel'!$G$18+'Rijdend personeel'!$G$42,IF(J70<14,'Rijdend personeel'!$G$20+'Rijdend personeel'!$G$42,IF(J70<15,'Rijdend personeel'!$G$22+'Rijdend personeel'!$G$42,IF(J70<16,'Rijdend personeel'!$G$24+'Rijdend personeel'!$G$42,IF(J70<17,'Rijdend personeel'!$G$26+'Rijdend personeel'!$G$42,IF(J70<18,'Rijdend personeel'!$G$28+'Rijdend personeel'!$G$42,IF(J70<19,'Rijdend personeel'!$G$30+'Rijdend personeel'!$G$42,IF(J70<20,'Rijdend personeel'!$G$32+'Rijdend personeel'!$G$42,IF(J70<21,'Rijdend personeel'!$G$34+'Rijdend personeel'!$G$42,IF(J70<22,'Rijdend personeel'!$G$36+'Rijdend personeel'!$G$42)))))))))))) -> 0 | K73: =IF(K70=0,0,IF(K70<12,'Rijdend personeel'!$G$16+'Rijdend personeel'!$G$42,IF(K70<13,'Rijdend personeel'!$G$18+'Rijdend personeel'!$G$42,IF(K70<14,'Rijdend personeel'!$G$20+'Rijdend personeel'!$G$42,IF(K70<15,'Rijdend personeel'!$G$22+'Rijdend personeel'!$G$42,IF(K70<16,'Rijdend personeel'!$G$24+'Rijdend personeel'!$G$42,IF(K70<17,'Rijdend personeel'!$G$26+'Rijdend personeel'!$G$42,IF(K70<18,'Rijdend personeel'!$G$28+'Rijdend personeel'!$G$42,IF(K70<19,'Rijdend personeel'!$G$30+'Rijdend personeel'!$G$42,IF(K70<20,'Rijdend personeel'!$G$32+'Rijdend personeel'!$G$42,IF(K70<21,'Rijdend personeel'!$G$34+'Rijdend personeel'!$G$42,IF(K70<22,'Rijdend personeel'!$G$36+'Rijdend personeel'!$G$42)))))))))))) -> 0 | L73: =IF(L70=0,0,IF(L70<12,'Rijdend personeel'!$G$16+'Rijdend personeel'!$G$42,IF(L70<13,'Rijdend personeel'!$G$18+'Rijdend personeel'!$G$42,IF(L70<14,'Rijdend personeel'!$G$20+'Rijdend personeel'!$G$42,IF(L70<15,'Rijdend personeel'!$G$22+'Rijdend personeel'!$G$42,IF(L70<16,'Rijdend personeel'!$G$24+'Rijdend personeel'!$G$42,IF(L70<17,'Rijdend personeel'!$G$26+'Rijdend personeel'!$G$42,IF(L70<18,'Rijdend personeel'!$G$28+'Rijdend personeel'!$G$42,IF(L70<19,'Rijdend personeel'!$G$30+'Rijdend personeel'!$G$42,IF(L70<20,'Rijdend personeel'!$G$32+'Rijdend personeel'!$G$42,IF(L70<21,'Rijdend personeel'!$G$34+'Rijdend personeel'!$G$42,IF(L70<22,'Rijdend personeel'!$G$36+'Rijdend personeel'!$G$42)))))))))))) -> 0 | M73: =IF(M70=0,0,IF(M70<12,'Rijdend personeel'!$G$16+'Rijdend personeel'!$G$42,IF(M70<13,'Rijdend personeel'!$G$18+'Rijdend personeel'!$G$42,IF(M70<14,'Rijdend personeel'!$G$20+'Rijdend personeel'!$G$42,IF(M70<15,'Rijdend personeel'!$G$22+'Rijdend personeel'!$G$42,IF(M70<16,'Rijdend personeel'!$G$24+'Rijdend personeel'!$G$42,IF(M70<17,'Rijdend personeel'!$G$26+'Rijdend personeel'!$G$42,IF(M70<18,'Rijdend personeel'!$G$28+'Rijdend personeel'!$G$42,IF(M70<19,'Rijdend personeel'!$G$30+'Rijdend personeel'!$G$42,IF(M70<20,'Rijdend personeel'!$G$32+'Rijdend personeel'!$G$42,IF(M70<21,'Rijdend personeel'!$G$34+'Rijdend personeel'!$G$42,IF(M70<22,'Rijdend personeel'!$G$36+'Rijdend personeel'!$G$42)))))))))))) -> 0 | N73: =IF(N70=0,0,IF(N70<12,'Rijdend personeel'!$G$16+'Rijdend personeel'!$G$42,IF(N70<13,'Rijdend personeel'!$G$18+'Rijdend personeel'!$G$42,IF(N70<14,'Rijdend personeel'!$G$20+'Rijdend personeel'!$G$42,IF(N70<15,'Rijdend personeel'!$G$22+'Rijdend personeel'!$G$42,IF(N70<16,'Rijdend personeel'!$G$24+'Rijdend personeel'!$G$42,IF(N70<17,'Rijdend personeel'!$G$26+'Rijdend personeel'!$G$42,IF(N70<18,'Rijdend personeel'!$G$28+'Rijdend personeel'!$G$42,IF(N70<19,'Rijdend personeel'!$G$30+'Rijdend personeel'!$G$42,IF(N70<20,'Rijdend personeel'!$G$32+'Rijdend personeel'!$G$42,IF(N70<21,'Rijdend personeel'!$G$34+'Rijdend personeel'!$G$42,IF(N70<22,'Rijdend personeel'!$G$36+'Rijdend personeel'!$G$42)))))))))))) -> 0 | O73: =IF(O70=0,0,IF(O70<12,'Rijdend personeel'!$G$16+'Rijdend personeel'!$G$42,IF(O70<13,'Rijdend personeel'!$G$18+'Rijdend personeel'!$G$42,IF(O70<14,'Rijdend personeel'!$G$20+'Rijdend personeel'!$G$42,IF(O70<15,'Rijdend personeel'!$G$22+'Rijdend personeel'!$G$42,IF(O70<16,'Rijdend personeel'!$G$24+'Rijdend personeel'!$G$42,IF(O70<17,'Rijdend personeel'!$G$26+'Rijdend personeel'!$G$42,IF(O70<18,'Rijdend personeel'!$G$28+'Rijdend personeel'!$G$42,IF(O70<19,'Rijdend personeel'!$G$30+'Rijdend personeel'!$G$42,IF(O70<20,'Rijdend personeel'!$G$32+'Rijdend personeel'!$G$42,IF(O70<21,'Rijdend personeel'!$G$34+'Rijdend personeel'!$G$42,IF(O70<22,'Rijdend personeel'!$G$36+'Rijdend personeel'!$G$42)))))))))))) -> 0 | P73: =IF(P70=0,0,IF(P70<12,'Rijdend personeel'!$G$16+'Rijdend personeel'!$G$42,IF(P70<13,'Rijdend personeel'!$G$18+'Rijdend personeel'!$G$42,IF(P70<14,'Rijdend personeel'!$G$20+'Rijdend personeel'!$G$42,IF(P70<15,'Rijdend personeel'!$G$22+'Rijdend personeel'!$G$42,IF(P70<16,'Rijdend personeel'!$G$24+'Rijdend personeel'!$G$42,IF(P70<17,'Rijdend personeel'!$G$26+'Rijdend personeel'!$G$42,IF(P70<18,'Rijdend personeel'!$G$28+'Rijdend personeel'!$G$42,IF(P70<19,'Rijdend personeel'!$G$30+'Rijdend personeel'!$G$42,IF(P70<20,'Rijdend personeel'!$G$32+'Rijdend personeel'!$G$42,IF(P70<21,'Rijdend personeel'!$G$34+'Rijdend personeel'!$G$42,IF(P70<22,'Rijdend personeel'!$G$36+'Rijdend personeel'!$G$42)))))))))))) -> 0 | Q73: =IF(Q70=0,0,IF(Q70<12,'Rijdend personeel'!$G$16+'Rijdend personeel'!$G$42,IF(Q70<13,'Rijdend personeel'!$G$18+'Rijdend personeel'!$G$42,IF(Q70<14,'Rijdend personeel'!$G$20+'Rijdend personeel'!$G$42,IF(Q70<15,'Rijdend personeel'!$G$22+'Rijdend personeel'!$G$42,IF(Q70<16,'Rijdend personeel'!$G$24+'Rijdend personeel'!$G$42,IF(Q70<17,'Rijdend personeel'!$G$26+'Rijdend personeel'!$G$42,IF(Q70<18,'Rijdend personeel'!$G$28+'Rijdend personeel'!$G$42,IF(Q70<19,'Rijdend personeel'!$G$30+'Rijdend personeel'!$G$42,IF(Q70<20,'Rijdend personeel'!$G$32+'Rijdend personeel'!$G$42,IF(Q70<21,'Rijdend personeel'!$G$34+'Rijdend personeel'!$G$42,IF(Q70<22,'Rijdend personeel'!$G$36+'Rijdend personeel'!$G$42)))))))))))) -> 0 | R73: =IF(R70=0,0,IF(R70<12,'Rijdend personeel'!$G$16+'Rijdend personeel'!$G$42,IF(R70<13,'Rijdend personeel'!$G$18+'Rijdend personeel'!$G$42,IF(R70<14,'Rijdend personeel'!$G$20+'Rijdend personeel'!$G$42,IF(R70<15,'Rijdend personeel'!$G$22+'Rijdend personeel'!$G$42,IF(R70<16,'Rijdend personeel'!$G$24+'Rijdend personeel'!$G$42,IF(R70<17,'Rijdend personeel'!$G$26+'Rijdend personeel'!$G$42,IF(R70<18,'Rijdend personeel'!$G$28+'Rijdend personeel'!$G$42,IF(R70<19,'Rijdend personeel'!$G$30+'Rijdend personeel'!$G$42,IF(R70<20,'Rijdend personeel'!$G$32+'Rijdend personeel'!$G$42,IF(R70<21,'Rijdend personeel'!$G$34+'Rijdend personeel'!$G$42,IF(R70<22,'Rijdend personeel'!$G$36+'Rijdend personeel'!$G$42)))))))))))) -> 0 | S73: =IF(S70=0,0,IF(S70<12,'Rijdend personeel'!$G$16+'Rijdend personeel'!$G$42,IF(S70<13,'Rijdend personeel'!$G$18+'Rijdend personeel'!$G$42,IF(S70<14,'Rijdend personeel'!$G$20+'Rijdend personeel'!$G$42,IF(S70<15,'Rijdend personeel'!$G$22+'Rijdend personeel'!$G$42,IF(S70<16,'Rijdend personeel'!$G$24+'Rijdend personeel'!$G$42,IF(S70<17,'Rijdend personeel'!$G$26+'Rijdend personeel'!$G$42,IF(S70<18,'Rijdend personeel'!$G$28+'Rijdend personeel'!$G$42,IF(S70<19,'Rijdend personeel'!$G$30+'Rijdend personeel'!$G$42,IF(S70<20,'Rijdend personeel'!$G$32+'Rijdend personeel'!$G$42,IF(S70<21,'Rijdend personeel'!$G$34+'Rijdend personeel'!$G$42,IF(S70<22,'Rijdend personeel'!$G$36+'Rijdend personeel'!$G$42)))))))))))) -> 0
C74: Zondagsrust alle CH | E74: =Reis!F88*'Rijdend personeel'!$G$48 -> 0 | F74: =Reis!G88*'Rijdend personeel'!$G$48 -> 0 | G74: =Reis!H88*'Rijdend personeel'!$G$48 -> 0 | H74: =Reis!I88*'Rijdend personeel'!$G$48 -> 0 | I74: =Reis!J88*'Rijdend personeel'!$G$48 -> 0 | J74: =Reis!K88*'Rijdend personeel'!$G$48 -> 0 | K74: =Reis!L88*'Rijdend personeel'!$G$48 -> 0 | L74: =Reis!M88*'Rijdend personeel'!$G$48 -> 0 | M74: =Reis!N88*'Rijdend personeel'!$G$48 -> 0 | N74: =Reis!O88*'Rijdend personeel'!$G$48 -> 0 | O74: =Reis!P88*'Rijdend personeel'!$G$48 -> 0 | P74: =Reis!Q88*'Rijdend personeel'!$G$48 -> 0 | Q74: =Reis!R88*'Rijdend personeel'!$G$48 -> 0 | R74: =Reis!S88*'Rijdend personeel'!$G$48 -> 0 | S74: =Reis!T88*'Rijdend personeel'!$G$48 -> 0
C75: Inactiviteitsdag alle CH | E75: =Reis!F89*'Rijdend personeel'!$G$50 -> 0 | F75: =Reis!G89*'Rijdend personeel'!$G$50 -> 0 | G75: =Reis!H89*'Rijdend personeel'!$G$50 -> 0 | H75: =Reis!I89*'Rijdend personeel'!$G$50 -> 0 | I75: =Reis!J89*'Rijdend personeel'!$G$50 -> 0 | J75: =Reis!K89*'Rijdend personeel'!$G$50 -> 0 | K75: =Reis!L89*'Rijdend personeel'!$G$50 -> 0 | L75: =Reis!M89*'Rijdend personeel'!$G$50 -> 0 | M75: =Reis!N89*'Rijdend personeel'!$G$50 -> 0 | N75: =Reis!O89*'Rijdend personeel'!$G$50 -> 0 | O75: =Reis!P89*'Rijdend personeel'!$G$50 -> 0 | P75: =Reis!Q89*'Rijdend personeel'!$G$50 -> 0 | Q75: =Reis!R89*'Rijdend personeel'!$G$50 -> 0 | R75: =Reis!S89*'Rijdend personeel'!$G$50 -> 0 | S75: =Reis!T89*'Rijdend personeel'!$G$50 -> 0
C76: Eindejaarspremie alle CH | E76: =IF(Reis!F77<1,0,(('Rijdend personeel'!$G$46/'Rijdend personeel'!$G$68)*Reis!F83)) ->  | F76: =IF(Reis!G77<1,0,(('Rijdend personeel'!$G$46/'Rijdend personeel'!$G$68)*Reis!G83)) -> 0 | G76: =IF(Reis!H77<1,0,(('Rijdend personeel'!$G$46/'Rijdend personeel'!$G$68)*Reis!H83)) -> 0 | H76: =IF(Reis!I77<1,0,(('Rijdend personeel'!$G$46/'Rijdend personeel'!$G$68)*Reis!I83)) -> 0 | I76: =IF(Reis!J77<1,0,(('Rijdend personeel'!$G$46/'Rijdend personeel'!$G$68)*Reis!J83)) -> 0 | J76: =IF(Reis!K77<1,0,(('Rijdend personeel'!$G$46/'Rijdend personeel'!$G$68)*Reis!K83)) -> 0 | K76: =IF(Reis!L77<1,0,(('Rijdend personeel'!$G$46/'Rijdend personeel'!$G$68)*Reis!L83)) -> 0 | L76: =IF(Reis!M77<1,0,(('Rijdend personeel'!$G$46/'Rijdend personeel'!$G$68)*Reis!M83)) -> 0 | M76: =IF(Reis!N77<1,0,(('Rijdend personeel'!$G$46/'Rijdend personeel'!$G$68)*Reis!N83)) -> 0 | N76: =IF(Reis!O77<1,0,(('Rijdend personeel'!$G$46/'Rijdend personeel'!$G$68)*Reis!O83)) -> 0 | O76: =IF(Reis!P77<1,0,(('Rijdend personeel'!$G$46/'Rijdend personeel'!$G$68)*Reis!P83)) -> 0 | P76: =IF(Reis!Q77<1,0,(('Rijdend personeel'!$G$46/'Rijdend personeel'!$G$68)*Reis!Q83)) -> 0 | Q76: =IF(Reis!R77<1,0,(('Rijdend personeel'!$G$46/'Rijdend personeel'!$G$68)*Reis!R83)) -> 0 | R76: =IF(Reis!S77<1,0,(('Rijdend personeel'!$G$46/'Rijdend personeel'!$G$68)*Reis!S83)) -> 0 | S76: =IF(Reis!T77<1,0,(('Rijdend personeel'!$G$46/'Rijdend personeel'!$G$68)*Reis!T83)) -> 0
C77: RSZ werkgever alle CH | E77: =IF(Reis!F77<1,0,((E71+E72+E73+E74+E75+E76)*1.08*'Rijdend personeel'!$G$52)) ->  | F77: =IF(Reis!G77<1,0,((F71+F72+F73+F74+F75+F76)*1.08*'Rijdend personeel'!$G$52)) -> 0 | G77: =IF(Reis!H77<1,0,((G71+G72+G73+G74+G75+G76)*1.08*'Rijdend personeel'!$G$52)) -> 0 | H77: =IF(Reis!I77<1,0,((H71+H72+H73+H74+H75+H76)*1.08*'Rijdend personeel'!$G$52)) -> 0 | I77: =IF(Reis!J77<1,0,((I71+I72+I73+I74+I75+I76)*1.08*'Rijdend personeel'!$G$52)) -> 0 | J77: =IF(Reis!K77<1,0,((J71+J72+J73+J74+J75+J76)*1.08*'Rijdend personeel'!$G$52)) -> 0 | K77: =IF(Reis!L77<1,0,((K71+K72+K73+K74+K75+K76)*1.08*'Rijdend personeel'!$G$52)) -> 0 | L77: =IF(Reis!M77<1,0,((L71+L72+L73+L74+L75+L76)*1.08*'Rijdend personeel'!$G$52)) -> 0 | M77: =IF(Reis!N77<1,0,((M71+M72+M73+M74+M75+M76)*1.08*'Rijdend personeel'!$G$52)) -> 0 | N77: =IF(Reis!O77<1,0,((N71+N72+N73+N74+N75+N76)*1.08*'Rijdend personeel'!$G$52)) -> 0 | O77: =IF(Reis!P77<1,0,((O71+O72+O73+O74+O75+O76)*1.08*'Rijdend personeel'!$G$52)) -> 0 | P77: =IF(Reis!Q77<1,0,((P71+P72+P73+P74+P75+P76)*1.08*'Rijdend personeel'!$G$52)) -> 0 | Q77: =IF(Reis!R77<1,0,((Q71+Q72+Q73+Q74+Q75+Q76)*1.08*'Rijdend personeel'!$G$52)) -> 0 | R77: =IF(Reis!S77<1,0,((R71+R72+R73+R74+R75+R76)*1.08*'Rijdend personeel'!$G$52)) -> 0 | S77: =IF(Reis!T77<1,0,((S71+S72+S73+S74+S75+S76)*1.08*'Rijdend personeel'!$G$52)) -> 0
C78: Eco-cheques alle CH | E78: =IF(Reis!F77<1,0,(('Rijdend personeel'!$G$44/'Rijdend personeel'!$G$68)*Reis!F83)) ->  | F78: =IF(Reis!G77<1,0,(('Rijdend personeel'!$G$44/'Rijdend personeel'!$G$68)*Reis!G83)) -> 0 | G78: =IF(Reis!H77<1,0,(('Rijdend personeel'!$G$44/'Rijdend personeel'!$G$68)*Reis!H83)) -> 0 | H78: =IF(Reis!I77<1,0,(('Rijdend personeel'!$G$44/'Rijdend personeel'!$G$68)*Reis!I83)) -> 0 | I78: =IF(Reis!J77<1,0,(('Rijdend personeel'!$G$44/'Rijdend personeel'!$G$68)*Reis!J83)) -> 0 | J78: =IF(Reis!K77<1,0,(('Rijdend personeel'!$G$44/'Rijdend personeel'!$G$68)*Reis!K83)) -> 0 | K78: =IF(Reis!L77<1,0,(('Rijdend personeel'!$G$44/'Rijdend personeel'!$G$68)*Reis!L83)) -> 0 | L78: =IF(Reis!M77<1,0,(('Rijdend personeel'!$G$44/'Rijdend personeel'!$G$68)*Reis!M83)) -> 0 | M78: =IF(Reis!N77<1,0,(('Rijdend personeel'!$G$44/'Rijdend personeel'!$G$68)*Reis!N83)) -> 0 | N78: =IF(Reis!O77<1,0,(('Rijdend personeel'!$G$44/'Rijdend personeel'!$G$68)*Reis!O83)) -> 0 | O78: =IF(Reis!P77<1,0,(('Rijdend personeel'!$G$44/'Rijdend personeel'!$G$68)*Reis!P83)) -> 0 | P78: =IF(Reis!Q77<1,0,(('Rijdend personeel'!$G$44/'Rijdend personeel'!$G$68)*Reis!Q83)) -> 0 | Q78: =IF(Reis!R77<1,0,(('Rijdend personeel'!$G$44/'Rijdend personeel'!$G$68)*Reis!R83)) -> 0 | R78: =IF(Reis!S77<1,0,(('Rijdend personeel'!$G$44/'Rijdend personeel'!$G$68)*Reis!S83)) -> 0 | S78: =IF(Reis!T77<1,0,(('Rijdend personeel'!$G$44/'Rijdend personeel'!$G$68)*Reis!T83)) -> 0
C79: ARAB CH ENKEL | E79: =ROUNDUP(E68,0)*'Rijdend personeel'!$G$40 -> 0 | F79: =ROUNDUP(F68,0)*'Rijdend personeel'!$G$40 -> 0 | G79: =ROUNDUP(G68,0)*'Rijdend personeel'!$G$40 -> 0 | H79: =ROUNDUP(H68,0)*'Rijdend personeel'!$G$40 -> 0 | I79: =ROUNDUP(I68,0)*'Rijdend personeel'!$G$40 -> 0 | J79: =ROUNDUP(J68,0)*'Rijdend personeel'!$G$40 -> 0 | K79: =ROUNDUP(K68,0)*'Rijdend personeel'!$G$40 -> 0 | L79: =ROUNDUP(L68,0)*'Rijdend personeel'!$G$40 -> 0 | M79: =ROUNDUP(M68,0)*'Rijdend personeel'!$G$40 -> 0 | N79: =ROUNDUP(N68,0)*'Rijdend personeel'!$G$40 -> 0 | O79: =ROUNDUP(O68,0)*'Rijdend personeel'!$G$40 -> 0 | P79: =ROUNDUP(P68,0)*'Rijdend personeel'!$G$40 -> 0 | Q79: =ROUNDUP(Q68,0)*'Rijdend personeel'!$G$40 -> 0 | R79: =ROUNDUP(R68,0)*'Rijdend personeel'!$G$40 -> 0 | S79: =ROUNDUP(S68,0)*'Rijdend personeel'!$G$40 -> 0
C80: ARAB CH1 DUBBEL | E80: =ROUNDUP(E69,0)*'Rijdend personeel'!$G$40 -> 0 | F80: =ROUNDUP(F69,0)*'Rijdend personeel'!$G$40 -> 0 | G80: =ROUNDUP(G69,0)*'Rijdend personeel'!$G$40 -> 0 | H80: =ROUNDUP(H69,0)*'Rijdend personeel'!$G$40 -> 0 | I80: =ROUNDUP(I69,0)*'Rijdend personeel'!$G$40 -> 0 | J80: =ROUNDUP(J69,0)*'Rijdend personeel'!$G$40 -> 0 | K80: =ROUNDUP(K69,0)*'Rijdend personeel'!$G$40 -> 0 | L80: =ROUNDUP(L69,0)*'Rijdend personeel'!$G$40 -> 0 | M80: =ROUNDUP(M69,0)*'Rijdend personeel'!$G$40 -> 0 | N80: =ROUNDUP(N69,0)*'Rijdend personeel'!$G$40 -> 0 | O80: =ROUNDUP(O69,0)*'Rijdend personeel'!$G$40 -> 0 | P80: =ROUNDUP(P69,0)*'Rijdend personeel'!$G$40 -> 0 | Q80: =ROUNDUP(Q69,0)*'Rijdend personeel'!$G$40 -> 0 | R80: =ROUNDUP(R69,0)*'Rijdend personeel'!$G$40 -> 0 | S80: =ROUNDUP(S69,0)*'Rijdend personeel'!$G$40 -> 0
C81: ARAB CH2 DUBBEL | E81: =ROUNDUP(E70,0)*'Rijdend personeel'!$G$40 -> 0 | F81: =ROUNDUP(F70,0)*'Rijdend personeel'!$G$40 -> 0 | G81: =ROUNDUP(G70,0)*'Rijdend personeel'!$G$40 -> 0 | H81: =ROUNDUP(H70,0)*'Rijdend personeel'!$G$40 -> 0 | I81: =ROUNDUP(I70,0)*'Rijdend personeel'!$G$40 -> 0 | J81: =ROUNDUP(J70,0)*'Rijdend personeel'!$G$40 -> 0 | K81: =ROUNDUP(K70,0)*'Rijdend personeel'!$G$40 -> 0 | L81: =ROUNDUP(L70,0)*'Rijdend personeel'!$G$40 -> 0 | M81: =ROUNDUP(M70,0)*'Rijdend personeel'!$G$40 -> 0 | N81: =ROUNDUP(N70,0)*'Rijdend personeel'!$G$40 -> 0 | O81: =ROUNDUP(O70,0)*'Rijdend personeel'!$G$40 -> 0 | P81: =ROUNDUP(P70,0)*'Rijdend personeel'!$G$40 -> 0 | Q81: =ROUNDUP(Q70,0)*'Rijdend personeel'!$G$40 -> 0 | R81: =ROUNDUP(R70,0)*'Rijdend personeel'!$G$40 -> 0 | S81: =ROUNDUP(S70,0)*'Rijdend personeel'!$G$40 -> 0
C82: Overige kosten alle CH | E82: =IF(Reis!F77<1,0,((('Rijdend personeel'!$G$54+'Rijdend personeel'!$G$56+'Rijdend personeel'!$G$58+'Rijdend personeel'!$G$60+'Rijdend personeel'!$G$62+'Rijdend personeel'!$G$64+'Rijdend personeel'!$G$66)/'Rijdend personeel'!$G$68)*Reis!F83)) ->  | F82: =IF(Reis!G77<1,0,((('Rijdend personeel'!$G$54+'Rijdend personeel'!$G$56+'Rijdend personeel'!$G$58+'Rijdend personeel'!$G$60+'Rijdend personeel'!$G$62+'Rijdend personeel'!$G$64+'Rijdend personeel'!$G$66)/'Rijdend personeel'!$G$68)*Reis!G83)) -> 0 | G82: =IF(Reis!H77<1,0,((('Rijdend personeel'!$G$54+'Rijdend personeel'!$G$56+'Rijdend personeel'!$G$58+'Rijdend personeel'!$G$60+'Rijdend personeel'!$G$62+'Rijdend personeel'!$G$64+'Rijdend personeel'!$G$66)/'Rijdend personeel'!$G$68)*Reis!H83)) -> 0 | H82: =IF(Reis!I77<1,0,((('Rijdend personeel'!$G$54+'Rijdend personeel'!$G$56+'Rijdend personeel'!$G$58+'Rijdend personeel'!$G$60+'Rijdend personeel'!$G$62+'Rijdend personeel'!$G$64+'Rijdend personeel'!$G$66)/'Rijdend personeel'!$G$68)*Reis!I83)) -> 0 | I82: =IF(Reis!J77<1,0,((('Rijdend personeel'!$G$54+'Rijdend personeel'!$G$56+'Rijdend personeel'!$G$58+'Rijdend personeel'!$G$60+'Rijdend personeel'!$G$62+'Rijdend personeel'!$G$64+'Rijdend personeel'!$G$66)/'Rijdend personeel'!$G$68)*Reis!J83)) -> 0 | J82: =IF(Reis!K77<1,0,((('Rijdend personeel'!$G$54+'Rijdend personeel'!$G$56+'Rijdend personeel'!$G$58+'Rijdend personeel'!$G$60+'Rijdend personeel'!$G$62+'Rijdend personeel'!$G$64+'Rijdend personeel'!$G$66)/'Rijdend personeel'!$G$68)*Reis!K83)) -> 0 | K82: =IF(Reis!L77<1,0,((('Rijdend personeel'!$G$54+'Rijdend personeel'!$G$56+'Rijdend personeel'!$G$58+'Rijdend personeel'!$G$60+'Rijdend personeel'!$G$62+'Rijdend personeel'!$G$64+'Rijdend personeel'!$G$66)/'Rijdend personeel'!$G$68)*Reis!L83)) -> 0 | L82: =IF(Reis!M77<1,0,((('Rijdend personeel'!$G$54+'Rijdend personeel'!$G$56+'Rijdend personeel'!$G$58+'Rijdend personeel'!$G$60+'Rijdend personeel'!$G$62+'Rijdend personeel'!$G$64+'Rijdend personeel'!$G$66)/'Rijdend personeel'!$G$68)*Reis!M83)) -> 0 | M82: =IF(Reis!N77<1,0,((('Rijdend personeel'!$G$54+'Rijdend personeel'!$G$56+'Rijdend personeel'!$G$58+'Rijdend personeel'!$G$60+'Rijdend personeel'!$G$62+'Rijdend personeel'!$G$64+'Rijdend personeel'!$G$66)/'Rijdend personeel'!$G$68)*Reis!N83)) -> 0 | N82: =IF(Reis!O77<1,0,((('Rijdend personeel'!$G$54+'Rijdend personeel'!$G$56+'Rijdend personeel'!$G$58+'Rijdend personeel'!$G$60+'Rijdend personeel'!$G$62+'Rijdend personeel'!$G$64+'Rijdend personeel'!$G$66)/'Rijdend personeel'!$G$68)*Reis!O83)) -> 0 | O82: =IF(Reis!P77<1,0,((('Rijdend personeel'!$G$54+'Rijdend personeel'!$G$56+'Rijdend personeel'!$G$58+'Rijdend personeel'!$G$60+'Rijdend personeel'!$G$62+'Rijdend personeel'!$G$64+'Rijdend personeel'!$G$66)/'Rijdend personeel'!$G$68)*Reis!P83)) -> 0 | P82: =IF(Reis!Q77<1,0,((('Rijdend personeel'!$G$54+'Rijdend personeel'!$G$56+'Rijdend personeel'!$G$58+'Rijdend personeel'!$G$60+'Rijdend personeel'!$G$62+'Rijdend personeel'!$G$64+'Rijdend personeel'!$G$66)/'Rijdend personeel'!$G$68)*Reis!Q83)) -> 0 | Q82: =IF(Reis!R77<1,0,((('Rijdend personeel'!$G$54+'Rijdend personeel'!$G$56+'Rijdend personeel'!$G$58+'Rijdend personeel'!$G$60+'Rijdend personeel'!$G$62+'Rijdend personeel'!$G$64+'Rijdend personeel'!$G$66)/'Rijdend personeel'!$G$68)*Reis!R83)) -> 0 | R82: =IF(Reis!S77<1,0,((('Rijdend personeel'!$G$54+'Rijdend personeel'!$G$56+'Rijdend personeel'!$G$58+'Rijdend personeel'!$G$60+'Rijdend personeel'!$G$62+'Rijdend personeel'!$G$64+'Rijdend personeel'!$G$66)/'Rijdend personeel'!$G$68)*Reis!S83)) -> 0 | S82: =IF(Reis!T77<1,0,((('Rijdend personeel'!$G$54+'Rijdend personeel'!$G$56+'Rijdend personeel'!$G$58+'Rijdend personeel'!$G$60+'Rijdend personeel'!$G$62+'Rijdend personeel'!$G$64+'Rijdend personeel'!$G$66)/'Rijdend personeel'!$G$68)*Reis!T83)) -> 0
C83: Extra bonussen zondag + feestdag | E83: =IF(Reis!F88>0,0,IF(Reis!F83="","",IF(Reis!F83=1,Reis!AD81,IF(Reis!F83=2,Reis!AD81+Reis!AD82,IF(Reis!F83=3,Reis!AD81+Reis!AD82+Reis!AD83))))) ->  | F83: =IF(Reis!G88>0,0,IF(Reis!G83="","",IF(Reis!G83=1,Reis!AE81,IF(Reis!G83=2,Reis!AE81+Reis!AE82,IF(Reis!G83=3,Reis!AE81+Reis!AE82+Reis!AE83))))) ->  | G83: =IF(Reis!H88>0,0,IF(Reis!H83="","",IF(Reis!H83=1,Reis!AF81,IF(Reis!H83=2,Reis!AF81+Reis!AF82,IF(Reis!H83=3,Reis!AF81+Reis!AF82+Reis!AF83))))) ->  | H83: =IF(Reis!I88>0,0,IF(Reis!I83="","",IF(Reis!I83=1,Reis!AG81,IF(Reis!I83=2,Reis!AG81+Reis!AG82,IF(Reis!I83=3,Reis!AG81+Reis!AG82+Reis!AG83))))) ->  | I83: =IF(Reis!J88>0,0,IF(Reis!J83="","",IF(Reis!J83=1,Reis!AH81,IF(Reis!J83=2,Reis!AH81+Reis!AH82,IF(Reis!J83=3,Reis!AH81+Reis!AH82+Reis!AH83))))) ->  | J83: =IF(Reis!K88>0,0,IF(Reis!K83="","",IF(Reis!K83=1,Reis!AI81,IF(Reis!K83=2,Reis!AI81+Reis!AI82,IF(Reis!K83=3,Reis!AI81+Reis!AI82+Reis!AI83))))) ->  | K83: =IF(Reis!L88>0,0,IF(Reis!L83="","",IF(Reis!L83=1,Reis!AJ81,IF(Reis!L83=2,Reis!AJ81+Reis!AJ82,IF(Reis!L83=3,Reis!AJ81+Reis!AJ82+Reis!AJ83))))) ->  | L83: =IF(Reis!M88>0,0,IF(Reis!M83="","",IF(Reis!M83=1,Reis!AK81,IF(Reis!M83=2,Reis!AK81+Reis!AK82,IF(Reis!M83=3,Reis!AK81+Reis!AK82+Reis!AK83))))) ->  | M83: =IF(Reis!N88>0,0,IF(Reis!N83="","",IF(Reis!N83=1,Reis!AL81,IF(Reis!N83=2,Reis!AL81+Reis!AL82,IF(Reis!N83=3,Reis!AL81+Reis!AL82+Reis!AL83))))) ->  | N83: =IF(Reis!O88>0,0,IF(Reis!O83="","",IF(Reis!O83=1,Reis!AM81,IF(Reis!O83=2,Reis!AM81+Reis!AM82,IF(Reis!O83=3,Reis!AM81+Reis!AM82+Reis!AM83))))) ->  | O83: =IF(Reis!P88>0,0,IF(Reis!P83="","",IF(Reis!P83=1,Reis!AN81,IF(Reis!P83=2,Reis!AN81+Reis!AN82,IF(Reis!P83=3,Reis!AN81+Reis!AN82+Reis!AN83))))) ->  | P83: =IF(Reis!Q88>0,0,IF(Reis!Q83="","",IF(Reis!Q83=1,Reis!AO81,IF(Reis!Q83=2,Reis!AO81+Reis!AO82,IF(Reis!Q83=3,Reis!AO81+Reis!AO82+Reis!AO83))))) ->  | Q83: =IF(Reis!R88>0,0,IF(Reis!R83="","",IF(Reis!R83=1,Reis!AP81,IF(Reis!R83=2,Reis!AP81+Reis!AP82,IF(Reis!R83=3,Reis!AP81+Reis!AP82+Reis!AP83))))) ->  | R83: =IF(Reis!S88>0,0,IF(Reis!S83="","",IF(Reis!S83=1,Reis!AQ81,IF(Reis!S83=2,Reis!AQ81+Reis!AQ82,IF(Reis!S83=3,Reis!AQ81+Reis!AQ82+Reis!AQ83))))) ->  | S83: =IF(Reis!T88>0,0,IF(Reis!T83="","",IF(Reis!T83=1,Reis!AR81,IF(Reis!T83=2,Reis!AR81+Reis!AR82,IF(Reis!T83=3,Reis!AR81+Reis!AR82+Reis!AR83))))) -> 
C84: Maaltijdcheques | E84: =IF(Reis!F77<1,0,(('Rijdend personeel'!$G$70*Reis!F83))) -> 0 | F84: =IF(Reis!G77<1,0,(('Rijdend personeel'!$G$70*Reis!G83))) -> 0 | G84: =IF(Reis!H77<1,0,(('Rijdend personeel'!$G$70*Reis!H83))) -> 0 | H84: =IF(Reis!I77<1,0,(('Rijdend personeel'!$G$70*Reis!I83))) -> 0 | I84: =IF(Reis!J77<1,0,(('Rijdend personeel'!$G$70*Reis!J83))) -> 0 | J84: =IF(Reis!K77<1,0,(('Rijdend personeel'!$G$70*Reis!K83))) -> 0 | K84: =IF(Reis!L77<1,0,(('Rijdend personeel'!$G$70*Reis!L83))) -> 0 | L84: =IF(Reis!M77<1,0,(('Rijdend personeel'!$G$70*Reis!M83))) -> 0 | M84: =IF(Reis!N77<1,0,(('Rijdend personeel'!$G$70*Reis!N83))) -> 0 | N84: =IF(Reis!O77<1,0,(('Rijdend personeel'!$G$70*Reis!O83))) -> 0 | O84: =IF(Reis!P77<1,0,(('Rijdend personeel'!$G$70*Reis!P83))) -> 0 | P84: =IF(Reis!Q77<1,0,(('Rijdend personeel'!$G$70*Reis!Q83))) -> 0 | Q84: =IF(Reis!R77<1,0,(('Rijdend personeel'!$G$70*Reis!R83))) -> 0 | R84: =IF(Reis!S77<1,0,(('Rijdend personeel'!$G$70*Reis!S83))) -> 0 | S84: =IF(Reis!T77<1,0,(('Rijdend personeel'!$G$70*Reis!T83))) -> 0
C85: Extra loonkosten alle CH
C86: Totale loonkost alle CH | E86: =IF(Reis!F77<1,0,(E71+E72+E73+E74+E75+E76+E78+E77+E79+E80+E81+E82+E83+E85+E84)) ->  | F86: =IF(Reis!G77<1,0,(F71+F72+F73+F74+F75+F76+F78+F77+F79+F80+F81+F82+F83+F85+F84)) -> 0 | G86: =IF(Reis!H77<1,0,(G71+G72+G73+G74+G75+G76+G78+G77+G79+G80+G81+G82+G83+G85+G84)) -> 0 | H86: =IF(Reis!I77<1,0,(H71+H72+H73+H74+H75+H76+H78+H77+H79+H80+H81+H82+H83+H85+H84)) -> 0 | I86: =IF(Reis!J77<1,0,(I71+I72+I73+I74+I75+I76+I78+I77+I79+I80+I81+I82+I83+I85+I84)) -> 0 | J86: =IF(Reis!K77<1,0,(J71+J72+J73+J74+J75+J76+J78+J77+J79+J80+J81+J82+J83+J85+J84)) -> 0 | K86: =IF(Reis!L77<1,0,(K71+K72+K73+K74+K75+K76+K78+K77+K79+K80+K81+K82+K83+K85+K84)) -> 0 | L86: =IF(Reis!M77<1,0,(L71+L72+L73+L74+L75+L76+L78+L77+L79+L80+L81+L82+L83+L85+L84)) -> 0 | M86: =IF(Reis!N77<1,0,(M71+M72+M73+M74+M75+M76+M78+M77+M79+M80+M81+M82+M83+M85+M84)) -> 0 | N86: =IF(Reis!O77<1,0,(N71+N72+N73+N74+N75+N76+N78+N77+N79+N80+N81+N82+N83+N85+N84)) -> 0 | O86: =IF(Reis!P77<1,0,(O71+O72+O73+O74+O75+O76+O78+O77+O79+O80+O81+O82+O83+O85+O84)) -> 0 | P86: =IF(Reis!Q77<1,0,(P71+P72+P73+P74+P75+P76+P78+P77+P79+P80+P81+P82+P83+P85+P84)) -> 0 | Q86: =IF(Reis!R77<1,0,(Q71+Q72+Q73+Q74+Q75+Q76+Q78+Q77+Q79+Q80+Q81+Q82+Q83+Q85+Q84)) -> 0 | R86: =IF(Reis!S77<1,0,(R71+R72+R73+R74+R75+R76+R78+R77+R79+R80+R81+R82+R83+R85+R84)) -> 0 | S86: =IF(Reis!T77<1,0,(S71+S72+S73+S74+S75+S76+S78+S77+S79+S80+S81+S82+S83+S85+S84)) -> 0
G89: Coût personnel roulant | J89: =Bestemmingen!W14 ->  | L89: =Bestemmingen!S14 -> vehicule1
E94: dag | F94: dag | G94: dag | H94: dag | I94: dag | J94: dag | K94: dag | L94: dag | M94: dag | N94: dag | O94: dag | P94: dag | Q94: dag | R94: dag | S94: dag
E95: 1 | F95: 2 | G95: 3 | H95: 4 | I95: 5 | J95: 6 | K95: 7 | L95: 8 | M95: 9 | N95: 10 | O95: 11 | P95: 12 | Q95: 13 | R95: 14 | S95: 15
C96: Diensttijd CH ENKEL | E96: =Reis!F116*24 -> 0 | F96: =Reis!G116*24 -> 0 | G96: =Reis!H116*24 -> 0 | H96: =Reis!I116*24 -> 0 | I96: =Reis!J116*24 -> 0 | J96: =Reis!K116*24 -> 0 | K96: =Reis!L116*24 -> 0 | L96: =Reis!M116*24 -> 0 | M96: =Reis!N116*24 -> 0 | N96: =Reis!O116*24 -> 0 | O96: =Reis!P116*24 -> 0 | P96: =Reis!Q116*24 -> 0 | Q96: =Reis!R116*24 -> 0 | R96: =Reis!S116*24 -> 0 | S96: =Reis!T116*24 -> 0
C97: Diensttijd CH1 DUBBEL | E97: =Reis!F117*24 -> 0 | F97: =Reis!G117*24 -> 0 | G97: =Reis!H117*24 -> 0 | H97: =Reis!I117*24 -> 0 | I97: =Reis!J117*24 -> 0 | J97: =Reis!K117*24 -> 0 | K97: =Reis!L117*24 -> 0 | L97: =Reis!M117*24 -> 0 | M97: =Reis!N117*24 -> 0 | N97: =Reis!O117*24 -> 0 | O97: =Reis!P117*24 -> 0 | P97: =Reis!Q117*24 -> 0 | Q97: =Reis!R117*24 -> 0 | R97: =Reis!S117*24 -> 0 | S97: =Reis!T117*24 -> 0
C98: Diensttijd CH2 DUBBEL | E98: =Reis!F118*24 -> 0 | F98: =Reis!G118*24 -> 0 | G98: =Reis!H118*24 -> 0 | H98: =Reis!I118*24 -> 0 | I98: =Reis!J118*24 -> 0 | J98: =Reis!K118*24 -> 0 | K98: =Reis!L118*24 -> 0 | L98: =Reis!M118*24 -> 0 | M98: =Reis!N118*24 -> 0 | N98: =Reis!O118*24 -> 0 | O98: =Reis!P118*24 -> 0 | P98: =Reis!Q118*24 -> 0 | Q98: =Reis!R118*24 -> 0 | R98: =Reis!S118*24 -> 0 | S98: =Reis!T118*24 -> 0
C99: Bruto Sal CH ENKEL | E99: =IF(AND(E96>0,E96<=6,Reis!F107="Autre"),('Rijdend personeel'!$G$50+'Rijdend personeel'!$G$42),IF(AND(E96>0,E96<=6),('Rijdend personeel'!$G$9+'Rijdend personeel'!$G$42),IF(AND(E96>6,E96<=12),'Rijdend personeel'!$G$11+'Rijdend personeel'!$G$42,IF(E96>0,'Rijdend personeel'!$G$11+(ROUNDUP(E96,0)-12)*'Rijdend personeel'!$G$13+'Rijdend personeel'!$G$42,0)))) -> 0 | F99: =IF(AND(F96>0,F96<=6,Reis!G107="Autre"),('Rijdend personeel'!$G$50+'Rijdend personeel'!$G$42),IF(AND(F96>0,F96<=6),('Rijdend personeel'!$G$9+'Rijdend personeel'!$G$42),IF(AND(F96>6,F96<=12),'Rijdend personeel'!$G$11+'Rijdend personeel'!$G$42,IF(F96>0,'Rijdend personeel'!$G$11+(ROUNDUP(F96,0)-12)*'Rijdend personeel'!$G$13+'Rijdend personeel'!$G$42,0)))) -> 0 | G99: =IF(AND(G96>0,G96<=6,Reis!H107="Autre"),('Rijdend personeel'!$G$50+'Rijdend personeel'!$G$42),IF(AND(G96>0,G96<=6),('Rijdend personeel'!$G$9+'Rijdend personeel'!$G$42),IF(AND(G96>6,G96<=12),'Rijdend personeel'!$G$11+'Rijdend personeel'!$G$42,IF(G96>0,'Rijdend personeel'!$G$11+(ROUNDUP(G96,0)-12)*'Rijdend personeel'!$G$13+'Rijdend personeel'!$G$42,0)))) -> 0 | H99: =IF(AND(H96>0,H96<=6,Reis!I107="Autre"),('Rijdend personeel'!$G$50+'Rijdend personeel'!$G$42),IF(AND(H96>0,H96<=6),('Rijdend personeel'!$G$9+'Rijdend personeel'!$G$42),IF(AND(H96>6,H96<=12),'Rijdend personeel'!$G$11+'Rijdend personeel'!$G$42,IF(H96>0,'Rijdend personeel'!$G$11+(ROUNDUP(H96,0)-12)*'Rijdend personeel'!$G$13+'Rijdend personeel'!$G$42,0)))) -> 0 | I99: =IF(AND(I96>0,I96<=6,Reis!J107="Autre"),('Rijdend personeel'!$G$50+'Rijdend personeel'!$G$42),IF(AND(I96>0,I96<=6),('Rijdend personeel'!$G$9+'Rijdend personeel'!$G$42),IF(AND(I96>6,I96<=12),'Rijdend personeel'!$G$11+'Rijdend personeel'!$G$42,IF(I96>0,'Rijdend personeel'!$G$11+(ROUNDUP(I96,0)-12)*'Rijdend personeel'!$G$13+'Rijdend personeel'!$G$42,0)))) -> 0 | J99: =IF(AND(J96>0,J96<=6,Reis!K107="Autre"),('Rijdend personeel'!$G$50+'Rijdend personeel'!$G$42),IF(AND(J96>0,J96<=6),('Rijdend personeel'!$G$9+'Rijdend personeel'!$G$42),IF(AND(J96>6,J96<=12),'Rijdend personeel'!$G$11+'Rijdend personeel'!$G$42,IF(J96>0,'Rijdend personeel'!$G$11+(ROUNDUP(J96,0)-12)*'Rijdend personeel'!$G$13+'Rijdend personeel'!$G$42,0)))) -> 0 | K99: =IF(AND(K96>0,K96<=6,Reis!L107="Autre"),('Rijdend personeel'!$G$50+'Rijdend personeel'!$G$42),IF(AND(K96>0,K96<=6),('Rijdend personeel'!$G$9+'Rijdend personeel'!$G$42),IF(AND(K96>6,K96<=12),'Rijdend personeel'!$G$11+'Rijdend personeel'!$G$42,IF(K96>0,'Rijdend personeel'!$G$11+(ROUNDUP(K96,0)-12)*'Rijdend personeel'!$G$13+'Rijdend personeel'!$G$42,0)))) -> 0 | L99: =IF(AND(L96>0,L96<=6,Reis!M107="Autre"),('Rijdend personeel'!$G$50+'Rijdend personeel'!$G$42),IF(AND(L96>0,L96<=6),('Rijdend personeel'!$G$9+'Rijdend personeel'!$G$42),IF(AND(L96>6,L96<=12),'Rijdend personeel'!$G$11+'Rijdend personeel'!$G$42,IF(L96>0,'Rijdend personeel'!$G$11+(ROUNDUP(L96,0)-12)*'Rijdend personeel'!$G$13+'Rijdend personeel'!$G$42,0)))) -> 0 | M99: =IF(AND(M96>0,M96<=6,Reis!N107="Autre"),('Rijdend personeel'!$G$50+'Rijdend personeel'!$G$42),IF(AND(M96>0,M96<=6),('Rijdend personeel'!$G$9+'Rijdend personeel'!$G$42),IF(AND(M96>6,M96<=12),'Rijdend personeel'!$G$11+'Rijdend personeel'!$G$42,IF(M96>0,'Rijdend personeel'!$G$11+(ROUNDUP(M96,0)-12)*'Rijdend personeel'!$G$13+'Rijdend personeel'!$G$42,0)))) -> 0 | N99: =IF(AND(N96>0,N96<=6,Reis!O107="Autre"),('Rijdend personeel'!$G$50+'Rijdend personeel'!$G$42),IF(AND(N96>0,N96<=6),('Rijdend personeel'!$G$9+'Rijdend personeel'!$G$42),IF(AND(N96>6,N96<=12),'Rijdend personeel'!$G$11+'Rijdend personeel'!$G$42,IF(N96>0,'Rijdend personeel'!$G$11+(ROUNDUP(N96,0)-12)*'Rijdend personeel'!$G$13+'Rijdend personeel'!$G$42,0)))) -> 0 | O99: =IF(AND(O96>0,O96<=6,Reis!P107="Autre"),('Rijdend personeel'!$G$50+'Rijdend personeel'!$G$42),IF(AND(O96>0,O96<=6),('Rijdend personeel'!$G$9+'Rijdend personeel'!$G$42),IF(AND(O96>6,O96<=12),'Rijdend personeel'!$G$11+'Rijdend personeel'!$G$42,IF(O96>0,'Rijdend personeel'!$G$11+(ROUNDUP(O96,0)-12)*'Rijdend personeel'!$G$13+'Rijdend personeel'!$G$42,0)))) -> 0 | P99: =IF(AND(P96>0,P96<=6,Reis!Q107="Autre"),('Rijdend personeel'!$G$50+'Rijdend personeel'!$G$42),IF(AND(P96>0,P96<=6),('Rijdend personeel'!$G$9+'Rijdend personeel'!$G$42),IF(AND(P96>6,P96<=12),'Rijdend personeel'!$G$11+'Rijdend personeel'!$G$42,IF(P96>0,'Rijdend personeel'!$G$11+(ROUNDUP(P96,0)-12)*'Rijdend personeel'!$G$13+'Rijdend personeel'!$G$42,0)))) -> 0 | Q99: =IF(AND(Q96>0,Q96<=6,Reis!R107="Autre"),('Rijdend personeel'!$G$50+'Rijdend personeel'!$G$42),IF(AND(Q96>0,Q96<=6),('Rijdend personeel'!$G$9+'Rijdend personeel'!$G$42),IF(AND(Q96>6,Q96<=12),'Rijdend personeel'!$G$11+'Rijdend personeel'!$G$42,IF(Q96>0,'Rijdend personeel'!$G$11+(ROUNDUP(Q96,0)-12)*'Rijdend personeel'!$G$13+'Rijdend personeel'!$G$42,0)))) -> 0 | R99: =IF(AND(R96>0,R96<=6,Reis!S107="Autre"),('Rijdend personeel'!$G$50+'Rijdend personeel'!$G$42),IF(AND(R96>0,R96<=6),('Rijdend personeel'!$G$9+'Rijdend personeel'!$G$42),IF(AND(R96>6,R96<=12),'Rijdend personeel'!$G$11+'Rijdend personeel'!$G$42,IF(R96>0,'Rijdend personeel'!$G$11+(ROUNDUP(R96,0)-12)*'Rijdend personeel'!$G$13+'Rijdend personeel'!$G$42,0)))) -> 0 | S99: =IF(AND(S96>0,S96<=6,Reis!T107="Autre"),('Rijdend personeel'!$G$50+'Rijdend personeel'!$G$42),IF(AND(S96>0,S96<=6),('Rijdend personeel'!$G$9+'Rijdend personeel'!$G$42),IF(AND(S96>6,S96<=12),'Rijdend personeel'!$G$11+'Rijdend personeel'!$G$42,IF(S96>0,'Rijdend personeel'!$G$11+(ROUNDUP(S96,0)-12)*'Rijdend personeel'!$G$13+'Rijdend personeel'!$G$42,0)))) -> 0
C100: Bruto Sal CH1 DUBBEL | E100: =IF(E97=0,0,IF(E97<12,'Rijdend personeel'!$G$16+'Rijdend personeel'!$G$42,IF(E97<13,'Rijdend personeel'!$G$18+'Rijdend personeel'!$G$42,IF(E97<14,'Rijdend personeel'!$G$20+'Rijdend personeel'!$G$42,IF(E97<15,'Rijdend personeel'!$G$22+'Rijdend personeel'!$G$42,IF(E97<16,'Rijdend personeel'!$G$24+'Rijdend personeel'!$G$42,IF(E97<17,'Rijdend personeel'!$G$26+'Rijdend personeel'!$G$42,IF(E97<18,'Rijdend personeel'!$G$28+'Rijdend personeel'!$G$42,IF(E97<19,'Rijdend personeel'!$G$30+'Rijdend personeel'!$G$42,IF(E97<20,'Rijdend personeel'!$G$32+'Rijdend personeel'!$G$42,IF(E97<21,'Rijdend personeel'!$G$34+'Rijdend personeel'!$G$42,IF(E97<22,'Rijdend personeel'!$G$36+'Rijdend personeel'!$G$42)))))))))))) -> 0 | F100: =IF(F97=0,0,IF(F97<12,'Rijdend personeel'!$G$16+'Rijdend personeel'!$G$42,IF(F97<13,'Rijdend personeel'!$G$18+'Rijdend personeel'!$G$42,IF(F97<14,'Rijdend personeel'!$G$20+'Rijdend personeel'!$G$42,IF(F97<15,'Rijdend personeel'!$G$22+'Rijdend personeel'!$G$42,IF(F97<16,'Rijdend personeel'!$G$24+'Rijdend personeel'!$G$42,IF(F97<17,'Rijdend personeel'!$G$26+'Rijdend personeel'!$G$42,IF(F97<18,'Rijdend personeel'!$G$28+'Rijdend personeel'!$G$42,IF(F97<19,'Rijdend personeel'!$G$30+'Rijdend personeel'!$G$42,IF(F97<20,'Rijdend personeel'!$G$32+'Rijdend personeel'!$G$42,IF(F97<21,'Rijdend personeel'!$G$34+'Rijdend personeel'!$G$42,IF(F97<22,'Rijdend personeel'!$G$36+'Rijdend personeel'!$G$42)))))))))))) -> 0 | G100: =IF(G97=0,0,IF(G97<12,'Rijdend personeel'!$G$16+'Rijdend personeel'!$G$42,IF(G97<13,'Rijdend personeel'!$G$18+'Rijdend personeel'!$G$42,IF(G97<14,'Rijdend personeel'!$G$20+'Rijdend personeel'!$G$42,IF(G97<15,'Rijdend personeel'!$G$22+'Rijdend personeel'!$G$42,IF(G97<16,'Rijdend personeel'!$G$24+'Rijdend personeel'!$G$42,IF(G97<17,'Rijdend personeel'!$G$26+'Rijdend personeel'!$G$42,IF(G97<18,'Rijdend personeel'!$G$28+'Rijdend personeel'!$G$42,IF(G97<19,'Rijdend personeel'!$G$30+'Rijdend personeel'!$G$42,IF(G97<20,'Rijdend personeel'!$G$32+'Rijdend personeel'!$G$42,IF(G97<21,'Rijdend personeel'!$G$34+'Rijdend personeel'!$G$42,IF(G97<22,'Rijdend personeel'!$G$36+'Rijdend personeel'!$G$42)))))))))))) -> 0 | H100: =IF(H97=0,0,IF(H97<12,'Rijdend personeel'!$G$16+'Rijdend personeel'!$G$42,IF(H97<13,'Rijdend personeel'!$G$18+'Rijdend personeel'!$G$42,IF(H97<14,'Rijdend personeel'!$G$20+'Rijdend personeel'!$G$42,IF(H97<15,'Rijdend personeel'!$G$22+'Rijdend personeel'!$G$42,IF(H97<16,'Rijdend personeel'!$G$24+'Rijdend personeel'!$G$42,IF(H97<17,'Rijdend personeel'!$G$26+'Rijdend personeel'!$G$42,IF(H97<18,'Rijdend personeel'!$G$28+'Rijdend personeel'!$G$42,IF(H97<19,'Rijdend personeel'!$G$30+'Rijdend personeel'!$G$42,IF(H97<20,'Rijdend personeel'!$G$32+'Rijdend personeel'!$G$42,IF(H97<21,'Rijdend personeel'!$G$34+'Rijdend personeel'!$G$42,IF(H97<22,'Rijdend personeel'!$G$36+'Rijdend personeel'!$G$42)))))))))))) -> 0 | I100: =IF(I97=0,0,IF(I97<12,'Rijdend personeel'!$G$16+'Rijdend personeel'!$G$42,IF(I97<13,'Rijdend personeel'!$G$18+'Rijdend personeel'!$G$42,IF(I97<14,'Rijdend personeel'!$G$20+'Rijdend personeel'!$G$42,IF(I97<15,'Rijdend personeel'!$G$22+'Rijdend personeel'!$G$42,IF(I97<16,'Rijdend personeel'!$G$24+'Rijdend personeel'!$G$42,IF(I97<17,'Rijdend personeel'!$G$26+'Rijdend personeel'!$G$42,IF(I97<18,'Rijdend personeel'!$G$28+'Rijdend personeel'!$G$42,IF(I97<19,'Rijdend personeel'!$G$30+'Rijdend personeel'!$G$42,IF(I97<20,'Rijdend personeel'!$G$32+'Rijdend personeel'!$G$42,IF(I97<21,'Rijdend personeel'!$G$34+'Rijdend personeel'!$G$42,IF(I97<22,'Rijdend personeel'!$G$36+'Rijdend personeel'!$G$42)))))))))))) -> 0 | J100: =IF(J97=0,0,IF(J97<12,'Rijdend personeel'!$G$16+'Rijdend personeel'!$G$42,IF(J97<13,'Rijdend personeel'!$G$18+'Rijdend personeel'!$G$42,IF(J97<14,'Rijdend personeel'!$G$20+'Rijdend personeel'!$G$42,IF(J97<15,'Rijdend personeel'!$G$22+'Rijdend personeel'!$G$42,IF(J97<16,'Rijdend personeel'!$G$24+'Rijdend personeel'!$G$42,IF(J97<17,'Rijdend personeel'!$G$26+'Rijdend personeel'!$G$42,IF(J97<18,'Rijdend personeel'!$G$28+'Rijdend personeel'!$G$42,IF(J97<19,'Rijdend personeel'!$G$30+'Rijdend personeel'!$G$42,IF(J97<20,'Rijdend personeel'!$G$32+'Rijdend personeel'!$G$42,IF(J97<21,'Rijdend personeel'!$G$34+'Rijdend personeel'!$G$42,IF(J97<22,'Rijdend personeel'!$G$36+'Rijdend personeel'!$G$42)))))))))))) -> 0 | K100: =IF(K97=0,0,IF(K97<12,'Rijdend personeel'!$G$16+'Rijdend personeel'!$G$42,IF(K97<13,'Rijdend personeel'!$G$18+'Rijdend personeel'!$G$42,IF(K97<14,'Rijdend personeel'!$G$20+'Rijdend personeel'!$G$42,IF(K97<15,'Rijdend personeel'!$G$22+'Rijdend personeel'!$G$42,IF(K97<16,'Rijdend personeel'!$G$24+'Rijdend personeel'!$G$42,IF(K97<17,'Rijdend personeel'!$G$26+'Rijdend personeel'!$G$42,IF(K97<18,'Rijdend personeel'!$G$28+'Rijdend personeel'!$G$42,IF(K97<19,'Rijdend personeel'!$G$30+'Rijdend personeel'!$G$42,IF(K97<20,'Rijdend personeel'!$G$32+'Rijdend personeel'!$G$42,IF(K97<21,'Rijdend personeel'!$G$34+'Rijdend personeel'!$G$42,IF(K97<22,'Rijdend personeel'!$G$36+'Rijdend personeel'!$G$42)))))))))))) -> 0 | L100: =IF(L97=0,0,IF(L97<12,'Rijdend personeel'!$G$16+'Rijdend personeel'!$G$42,IF(L97<13,'Rijdend personeel'!$G$18+'Rijdend personeel'!$G$42,IF(L97<14,'Rijdend personeel'!$G$20+'Rijdend personeel'!$G$42,IF(L97<15,'Rijdend personeel'!$G$22+'Rijdend personeel'!$G$42,IF(L97<16,'Rijdend personeel'!$G$24+'Rijdend personeel'!$G$42,IF(L97<17,'Rijdend personeel'!$G$26+'Rijdend personeel'!$G$42,IF(L97<18,'Rijdend personeel'!$G$28+'Rijdend personeel'!$G$42,IF(L97<19,'Rijdend personeel'!$G$30+'Rijdend personeel'!$G$42,IF(L97<20,'Rijdend personeel'!$G$32+'Rijdend personeel'!$G$42,IF(L97<21,'Rijdend personeel'!$G$34+'Rijdend personeel'!$G$42,IF(L97<22,'Rijdend personeel'!$G$36+'Rijdend personeel'!$G$42)))))))))))) -> 0 | M100: =IF(M97=0,0,IF(M97<12,'Rijdend personeel'!$G$16+'Rijdend personeel'!$G$42,IF(M97<13,'Rijdend personeel'!$G$18+'Rijdend personeel'!$G$42,IF(M97<14,'Rijdend personeel'!$G$20+'Rijdend personeel'!$G$42,IF(M97<15,'Rijdend personeel'!$G$22+'Rijdend personeel'!$G$42,IF(M97<16,'Rijdend personeel'!$G$24+'Rijdend personeel'!$G$42,IF(M97<17,'Rijdend personeel'!$G$26+'Rijdend personeel'!$G$42,IF(M97<18,'Rijdend personeel'!$G$28+'Rijdend personeel'!$G$42,IF(M97<19,'Rijdend personeel'!$G$30+'Rijdend personeel'!$G$42,IF(M97<20,'Rijdend personeel'!$G$32+'Rijdend personeel'!$G$42,IF(M97<21,'Rijdend personeel'!$G$34+'Rijdend personeel'!$G$42,IF(M97<22,'Rijdend personeel'!$G$36+'Rijdend personeel'!$G$42)))))))))))) -> 0 | N100: =IF(N97=0,0,IF(N97<12,'Rijdend personeel'!$G$16+'Rijdend personeel'!$G$42,IF(N97<13,'Rijdend personeel'!$G$18+'Rijdend personeel'!$G$42,IF(N97<14,'Rijdend personeel'!$G$20+'Rijdend personeel'!$G$42,IF(N97<15,'Rijdend personeel'!$G$22+'Rijdend personeel'!$G$42,IF(N97<16,'Rijdend personeel'!$G$24+'Rijdend personeel'!$G$42,IF(N97<17,'Rijdend personeel'!$G$26+'Rijdend personeel'!$G$42,IF(N97<18,'Rijdend personeel'!$G$28+'Rijdend personeel'!$G$42,IF(N97<19,'Rijdend personeel'!$G$30+'Rijdend personeel'!$G$42,IF(N97<20,'Rijdend personeel'!$G$32+'Rijdend personeel'!$G$42,IF(N97<21,'Rijdend personeel'!$G$34+'Rijdend personeel'!$G$42,IF(N97<22,'Rijdend personeel'!$G$36+'Rijdend personeel'!$G$42)))))))))))) -> 0 | O100: =IF(O97=0,0,IF(O97<12,'Rijdend personeel'!$G$16+'Rijdend personeel'!$G$42,IF(O97<13,'Rijdend personeel'!$G$18+'Rijdend personeel'!$G$42,IF(O97<14,'Rijdend personeel'!$G$20+'Rijdend personeel'!$G$42,IF(O97<15,'Rijdend personeel'!$G$22+'Rijdend personeel'!$G$42,IF(O97<16,'Rijdend personeel'!$G$24+'Rijdend personeel'!$G$42,IF(O97<17,'Rijdend personeel'!$G$26+'Rijdend personeel'!$G$42,IF(O97<18,'Rijdend personeel'!$G$28+'Rijdend personeel'!$G$42,IF(O97<19,'Rijdend personeel'!$G$30+'Rijdend personeel'!$G$42,IF(O97<20,'Rijdend personeel'!$G$32+'Rijdend personeel'!$G$42,IF(O97<21,'Rijdend personeel'!$G$34+'Rijdend personeel'!$G$42,IF(O97<22,'Rijdend personeel'!$G$36+'Rijdend personeel'!$G$42)))))))))))) -> 0 | P100: =IF(P97=0,0,IF(P97<12,'Rijdend personeel'!$G$16+'Rijdend personeel'!$G$42,IF(P97<13,'Rijdend personeel'!$G$18+'Rijdend personeel'!$G$42,IF(P97<14,'Rijdend personeel'!$G$20+'Rijdend personeel'!$G$42,IF(P97<15,'Rijdend personeel'!$G$22+'Rijdend personeel'!$G$42,IF(P97<16,'Rijdend personeel'!$G$24+'Rijdend personeel'!$G$42,IF(P97<17,'Rijdend personeel'!$G$26+'Rijdend personeel'!$G$42,IF(P97<18,'Rijdend personeel'!$G$28+'Rijdend personeel'!$G$42,IF(P97<19,'Rijdend personeel'!$G$30+'Rijdend personeel'!$G$42,IF(P97<20,'Rijdend personeel'!$G$32+'Rijdend personeel'!$G$42,IF(P97<21,'Rijdend personeel'!$G$34+'Rijdend personeel'!$G$42,IF(P97<22,'Rijdend personeel'!$G$36+'Rijdend personeel'!$G$42)))))))))))) -> 0 | Q100: =IF(Q97=0,0,IF(Q97<12,'Rijdend personeel'!$G$16+'Rijdend personeel'!$G$42,IF(Q97<13,'Rijdend personeel'!$G$18+'Rijdend personeel'!$G$42,IF(Q97<14,'Rijdend personeel'!$G$20+'Rijdend personeel'!$G$42,IF(Q97<15,'Rijdend personeel'!$G$22+'Rijdend personeel'!$G$42,IF(Q97<16,'Rijdend personeel'!$G$24+'Rijdend personeel'!$G$42,IF(Q97<17,'Rijdend personeel'!$G$26+'Rijdend personeel'!$G$42,IF(Q97<18,'Rijdend personeel'!$G$28+'Rijdend personeel'!$G$42,IF(Q97<19,'Rijdend personeel'!$G$30+'Rijdend personeel'!$G$42,IF(Q97<20,'Rijdend personeel'!$G$32+'Rijdend personeel'!$G$42,IF(Q97<21,'Rijdend personeel'!$G$34+'Rijdend personeel'!$G$42,IF(Q97<22,'Rijdend personeel'!$G$36+'Rijdend personeel'!$G$42)))))))))))) -> 0 | R100: =IF(R97=0,0,IF(R97<12,'Rijdend personeel'!$G$16+'Rijdend personeel'!$G$42,IF(R97<13,'Rijdend personeel'!$G$18+'Rijdend personeel'!$G$42,IF(R97<14,'Rijdend personeel'!$G$20+'Rijdend personeel'!$G$42,IF(R97<15,'Rijdend personeel'!$G$22+'Rijdend personeel'!$G$42,IF(R97<16,'Rijdend personeel'!$G$24+'Rijdend personeel'!$G$42,IF(R97<17,'Rijdend personeel'!$G$26+'Rijdend personeel'!$G$42,IF(R97<18,'Rijdend personeel'!$G$28+'Rijdend personeel'!$G$42,IF(R97<19,'Rijdend personeel'!$G$30+'Rijdend personeel'!$G$42,IF(R97<20,'Rijdend personeel'!$G$32+'Rijdend personeel'!$G$42,IF(R97<21,'Rijdend personeel'!$G$34+'Rijdend personeel'!$G$42,IF(R97<22,'Rijdend personeel'!$G$36+'Rijdend personeel'!$G$42)))))))))))) -> 0 | S100: =IF(S97=0,0,IF(S97<12,'Rijdend personeel'!$G$16+'Rijdend personeel'!$G$42,IF(S97<13,'Rijdend personeel'!$G$18+'Rijdend personeel'!$G$42,IF(S97<14,'Rijdend personeel'!$G$20+'Rijdend personeel'!$G$42,IF(S97<15,'Rijdend personeel'!$G$22+'Rijdend personeel'!$G$42,IF(S97<16,'Rijdend personeel'!$G$24+'Rijdend personeel'!$G$42,IF(S97<17,'Rijdend personeel'!$G$26+'Rijdend personeel'!$G$42,IF(S97<18,'Rijdend personeel'!$G$28+'Rijdend personeel'!$G$42,IF(S97<19,'Rijdend personeel'!$G$30+'Rijdend personeel'!$G$42,IF(S97<20,'Rijdend personeel'!$G$32+'Rijdend personeel'!$G$42,IF(S97<21,'Rijdend personeel'!$G$34+'Rijdend personeel'!$G$42,IF(S97<22,'Rijdend personeel'!$G$36+'Rijdend personeel'!$G$42)))))))))))) -> 0
C101: Bruto Sal CH2 DUBBEL | E101: =IF(E98=0,0,IF(E98<12,'Rijdend personeel'!$G$16+'Rijdend personeel'!$G$42,IF(E98<13,'Rijdend personeel'!$G$18+'Rijdend personeel'!$G$42,IF(E98<14,'Rijdend personeel'!$G$20+'Rijdend personeel'!$G$42,IF(E98<15,'Rijdend personeel'!$G$22+'Rijdend personeel'!$G$42,IF(E98<16,'Rijdend personeel'!$G$24+'Rijdend personeel'!$G$42,IF(E98<17,'Rijdend personeel'!$G$26+'Rijdend personeel'!$G$42,IF(E98<18,'Rijdend personeel'!$G$28+'Rijdend personeel'!$G$42,IF(E98<19,'Rijdend personeel'!$G$30+'Rijdend personeel'!$G$42,IF(E98<20,'Rijdend personeel'!$G$32+'Rijdend personeel'!$G$42,IF(E98<21,'Rijdend personeel'!$G$34+'Rijdend personeel'!$G$42,IF(E98<22,'Rijdend personeel'!$G$36+'Rijdend personeel'!$G$42)))))))))))) -> 0 | F101: =IF(F98=0,0,IF(F98<12,'Rijdend personeel'!$G$16+'Rijdend personeel'!$G$42,IF(F98<13,'Rijdend personeel'!$G$18+'Rijdend personeel'!$G$42,IF(F98<14,'Rijdend personeel'!$G$20+'Rijdend personeel'!$G$42,IF(F98<15,'Rijdend personeel'!$G$22+'Rijdend personeel'!$G$42,IF(F98<16,'Rijdend personeel'!$G$24+'Rijdend personeel'!$G$42,IF(F98<17,'Rijdend personeel'!$G$26+'Rijdend personeel'!$G$42,IF(F98<18,'Rijdend personeel'!$G$28+'Rijdend personeel'!$G$42,IF(F98<19,'Rijdend personeel'!$G$30+'Rijdend personeel'!$G$42,IF(F98<20,'Rijdend personeel'!$G$32+'Rijdend personeel'!$G$42,IF(F98<21,'Rijdend personeel'!$G$34+'Rijdend personeel'!$G$42,IF(F98<22,'Rijdend personeel'!$G$36+'Rijdend personeel'!$G$42)))))))))))) -> 0 | G101: =IF(G98=0,0,IF(G98<12,'Rijdend personeel'!$G$16+'Rijdend personeel'!$G$42,IF(G98<13,'Rijdend personeel'!$G$18+'Rijdend personeel'!$G$42,IF(G98<14,'Rijdend personeel'!$G$20+'Rijdend personeel'!$G$42,IF(G98<15,'Rijdend personeel'!$G$22+'Rijdend personeel'!$G$42,IF(G98<16,'Rijdend personeel'!$G$24+'Rijdend personeel'!$G$42,IF(G98<17,'Rijdend personeel'!$G$26+'Rijdend personeel'!$G$42,IF(G98<18,'Rijdend personeel'!$G$28+'Rijdend personeel'!$G$42,IF(G98<19,'Rijdend personeel'!$G$30+'Rijdend personeel'!$G$42,IF(G98<20,'Rijdend personeel'!$G$32+'Rijdend personeel'!$G$42,IF(G98<21,'Rijdend personeel'!$G$34+'Rijdend personeel'!$G$42,IF(G98<22,'Rijdend personeel'!$G$36+'Rijdend personeel'!$G$42)))))))))))) -> 0 | H101: =IF(H98=0,0,IF(H98<12,'Rijdend personeel'!$G$16+'Rijdend personeel'!$G$42,IF(H98<13,'Rijdend personeel'!$G$18+'Rijdend personeel'!$G$42,IF(H98<14,'Rijdend personeel'!$G$20+'Rijdend personeel'!$G$42,IF(H98<15,'Rijdend personeel'!$G$22+'Rijdend personeel'!$G$42,IF(H98<16,'Rijdend personeel'!$G$24+'Rijdend personeel'!$G$42,IF(H98<17,'Rijdend personeel'!$G$26+'Rijdend personeel'!$G$42,IF(H98<18,'Rijdend personeel'!$G$28+'Rijdend personeel'!$G$42,IF(H98<19,'Rijdend personeel'!$G$30+'Rijdend personeel'!$G$42,IF(H98<20,'Rijdend personeel'!$G$32+'Rijdend personeel'!$G$42,IF(H98<21,'Rijdend personeel'!$G$34+'Rijdend personeel'!$G$42,IF(H98<22,'Rijdend personeel'!$G$36+'Rijdend personeel'!$G$42)))))))))))) -> 0 | I101: =IF(I98=0,0,IF(I98<12,'Rijdend personeel'!$G$16+'Rijdend personeel'!$G$42,IF(I98<13,'Rijdend personeel'!$G$18+'Rijdend personeel'!$G$42,IF(I98<14,'Rijdend personeel'!$G$20+'Rijdend personeel'!$G$42,IF(I98<15,'Rijdend personeel'!$G$22+'Rijdend personeel'!$G$42,IF(I98<16,'Rijdend personeel'!$G$24+'Rijdend personeel'!$G$42,IF(I98<17,'Rijdend personeel'!$G$26+'Rijdend personeel'!$G$42,IF(I98<18,'Rijdend personeel'!$G$28+'Rijdend personeel'!$G$42,IF(I98<19,'Rijdend personeel'!$G$30+'Rijdend personeel'!$G$42,IF(I98<20,'Rijdend personeel'!$G$32+'Rijdend personeel'!$G$42,IF(I98<21,'Rijdend personeel'!$G$34+'Rijdend personeel'!$G$42,IF(I98<22,'Rijdend personeel'!$G$36+'Rijdend personeel'!$G$42)))))))))))) -> 0 | J101: =IF(J98=0,0,IF(J98<12,'Rijdend personeel'!$G$16+'Rijdend personeel'!$G$42,IF(J98<13,'Rijdend personeel'!$G$18+'Rijdend personeel'!$G$42,IF(J98<14,'Rijdend personeel'!$G$20+'Rijdend personeel'!$G$42,IF(J98<15,'Rijdend personeel'!$G$22+'Rijdend personeel'!$G$42,IF(J98<16,'Rijdend personeel'!$G$24+'Rijdend personeel'!$G$42,IF(J98<17,'Rijdend personeel'!$G$26+'Rijdend personeel'!$G$42,IF(J98<18,'Rijdend personeel'!$G$28+'Rijdend personeel'!$G$42,IF(J98<19,'Rijdend personeel'!$G$30+'Rijdend personeel'!$G$42,IF(J98<20,'Rijdend personeel'!$G$32+'Rijdend personeel'!$G$42,IF(J98<21,'Rijdend personeel'!$G$34+'Rijdend personeel'!$G$42,IF(J98<22,'Rijdend personeel'!$G$36+'Rijdend personeel'!$G$42)))))))))))) -> 0 | K101: =IF(K98=0,0,IF(K98<12,'Rijdend personeel'!$G$16+'Rijdend personeel'!$G$42,IF(K98<13,'Rijdend personeel'!$G$18+'Rijdend personeel'!$G$42,IF(K98<14,'Rijdend personeel'!$G$20+'Rijdend personeel'!$G$42,IF(K98<15,'Rijdend personeel'!$G$22+'Rijdend personeel'!$G$42,IF(K98<16,'Rijdend personeel'!$G$24+'Rijdend personeel'!$G$42,IF(K98<17,'Rijdend personeel'!$G$26+'Rijdend personeel'!$G$42,IF(K98<18,'Rijdend personeel'!$G$28+'Rijdend personeel'!$G$42,IF(K98<19,'Rijdend personeel'!$G$30+'Rijdend personeel'!$G$42,IF(K98<20,'Rijdend personeel'!$G$32+'Rijdend personeel'!$G$42,IF(K98<21,'Rijdend personeel'!$G$34+'Rijdend personeel'!$G$42,IF(K98<22,'Rijdend personeel'!$G$36+'Rijdend personeel'!$G$42)))))))))))) -> 0 | L101: =IF(L98=0,0,IF(L98<12,'Rijdend personeel'!$G$16+'Rijdend personeel'!$G$42,IF(L98<13,'Rijdend personeel'!$G$18+'Rijdend personeel'!$G$42,IF(L98<14,'Rijdend personeel'!$G$20+'Rijdend personeel'!$G$42,IF(L98<15,'Rijdend personeel'!$G$22+'Rijdend personeel'!$G$42,IF(L98<16,'Rijdend personeel'!$G$24+'Rijdend personeel'!$G$42,IF(L98<17,'Rijdend personeel'!$G$26+'Rijdend personeel'!$G$42,IF(L98<18,'Rijdend personeel'!$G$28+'Rijdend personeel'!$G$42,IF(L98<19,'Rijdend personeel'!$G$30+'Rijdend personeel'!$G$42,IF(L98<20,'Rijdend personeel'!$G$32+'Rijdend personeel'!$G$42,IF(L98<21,'Rijdend personeel'!$G$34+'Rijdend personeel'!$G$42,IF(L98<22,'Rijdend personeel'!$G$36+'Rijdend personeel'!$G$42)))))))))))) -> 0 | M101: =IF(M98=0,0,IF(M98<12,'Rijdend personeel'!$G$16+'Rijdend personeel'!$G$42,IF(M98<13,'Rijdend personeel'!$G$18+'Rijdend personeel'!$G$42,IF(M98<14,'Rijdend personeel'!$G$20+'Rijdend personeel'!$G$42,IF(M98<15,'Rijdend personeel'!$G$22+'Rijdend personeel'!$G$42,IF(M98<16,'Rijdend personeel'!$G$24+'Rijdend personeel'!$G$42,IF(M98<17,'Rijdend personeel'!$G$26+'Rijdend personeel'!$G$42,IF(M98<18,'Rijdend personeel'!$G$28+'Rijdend personeel'!$G$42,IF(M98<19,'Rijdend personeel'!$G$30+'Rijdend personeel'!$G$42,IF(M98<20,'Rijdend personeel'!$G$32+'Rijdend personeel'!$G$42,IF(M98<21,'Rijdend personeel'!$G$34+'Rijdend personeel'!$G$42,IF(M98<22,'Rijdend personeel'!$G$36+'Rijdend personeel'!$G$42)))))))))))) -> 0 | N101: =IF(N98=0,0,IF(N98<12,'Rijdend personeel'!$G$16+'Rijdend personeel'!$G$42,IF(N98<13,'Rijdend personeel'!$G$18+'Rijdend personeel'!$G$42,IF(N98<14,'Rijdend personeel'!$G$20+'Rijdend personeel'!$G$42,IF(N98<15,'Rijdend personeel'!$G$22+'Rijdend personeel'!$G$42,IF(N98<16,'Rijdend personeel'!$G$24+'Rijdend personeel'!$G$42,IF(N98<17,'Rijdend personeel'!$G$26+'Rijdend personeel'!$G$42,IF(N98<18,'Rijdend personeel'!$G$28+'Rijdend personeel'!$G$42,IF(N98<19,'Rijdend personeel'!$G$30+'Rijdend personeel'!$G$42,IF(N98<20,'Rijdend personeel'!$G$32+'Rijdend personeel'!$G$42,IF(N98<21,'Rijdend personeel'!$G$34+'Rijdend personeel'!$G$42,IF(N98<22,'Rijdend personeel'!$G$36+'Rijdend personeel'!$G$42)))))))))))) -> 0 | O101: =IF(O98=0,0,IF(O98<12,'Rijdend personeel'!$G$16+'Rijdend personeel'!$G$42,IF(O98<13,'Rijdend personeel'!$G$18+'Rijdend personeel'!$G$42,IF(O98<14,'Rijdend personeel'!$G$20+'Rijdend personeel'!$G$42,IF(O98<15,'Rijdend personeel'!$G$22+'Rijdend personeel'!$G$42,IF(O98<16,'Rijdend personeel'!$G$24+'Rijdend personeel'!$G$42,IF(O98<17,'Rijdend personeel'!$G$26+'Rijdend personeel'!$G$42,IF(O98<18,'Rijdend personeel'!$G$28+'Rijdend personeel'!$G$42,IF(O98<19,'Rijdend personeel'!$G$30+'Rijdend personeel'!$G$42,IF(O98<20,'Rijdend personeel'!$G$32+'Rijdend personeel'!$G$42,IF(O98<21,'Rijdend personeel'!$G$34+'Rijdend personeel'!$G$42,IF(O98<22,'Rijdend personeel'!$G$36+'Rijdend personeel'!$G$42)))))))))))) -> 0 | P101: =IF(P98=0,0,IF(P98<12,'Rijdend personeel'!$G$16+'Rijdend personeel'!$G$42,IF(P98<13,'Rijdend personeel'!$G$18+'Rijdend personeel'!$G$42,IF(P98<14,'Rijdend personeel'!$G$20+'Rijdend personeel'!$G$42,IF(P98<15,'Rijdend personeel'!$G$22+'Rijdend personeel'!$G$42,IF(P98<16,'Rijdend personeel'!$G$24+'Rijdend personeel'!$G$42,IF(P98<17,'Rijdend personeel'!$G$26+'Rijdend personeel'!$G$42,IF(P98<18,'Rijdend personeel'!$G$28+'Rijdend personeel'!$G$42,IF(P98<19,'Rijdend personeel'!$G$30+'Rijdend personeel'!$G$42,IF(P98<20,'Rijdend personeel'!$G$32+'Rijdend personeel'!$G$42,IF(P98<21,'Rijdend personeel'!$G$34+'Rijdend personeel'!$G$42,IF(P98<22,'Rijdend personeel'!$G$36+'Rijdend personeel'!$G$42)))))))))))) -> 0 | Q101: =IF(Q98=0,0,IF(Q98<12,'Rijdend personeel'!$G$16+'Rijdend personeel'!$G$42,IF(Q98<13,'Rijdend personeel'!$G$18+'Rijdend personeel'!$G$42,IF(Q98<14,'Rijdend personeel'!$G$20+'Rijdend personeel'!$G$42,IF(Q98<15,'Rijdend personeel'!$G$22+'Rijdend personeel'!$G$42,IF(Q98<16,'Rijdend personeel'!$G$24+'Rijdend personeel'!$G$42,IF(Q98<17,'Rijdend personeel'!$G$26+'Rijdend personeel'!$G$42,IF(Q98<18,'Rijdend personeel'!$G$28+'Rijdend personeel'!$G$42,IF(Q98<19,'Rijdend personeel'!$G$30+'Rijdend personeel'!$G$42,IF(Q98<20,'Rijdend personeel'!$G$32+'Rijdend personeel'!$G$42,IF(Q98<21,'Rijdend personeel'!$G$34+'Rijdend personeel'!$G$42,IF(Q98<22,'Rijdend personeel'!$G$36+'Rijdend personeel'!$G$42)))))))))))) -> 0 | R101: =IF(R98=0,0,IF(R98<12,'Rijdend personeel'!$G$16+'Rijdend personeel'!$G$42,IF(R98<13,'Rijdend personeel'!$G$18+'Rijdend personeel'!$G$42,IF(R98<14,'Rijdend personeel'!$G$20+'Rijdend personeel'!$G$42,IF(R98<15,'Rijdend personeel'!$G$22+'Rijdend personeel'!$G$42,IF(R98<16,'Rijdend personeel'!$G$24+'Rijdend personeel'!$G$42,IF(R98<17,'Rijdend personeel'!$G$26+'Rijdend personeel'!$G$42,IF(R98<18,'Rijdend personeel'!$G$28+'Rijdend personeel'!$G$42,IF(R98<19,'Rijdend personeel'!$G$30+'Rijdend personeel'!$G$42,IF(R98<20,'Rijdend personeel'!$G$32+'Rijdend personeel'!$G$42,IF(R98<21,'Rijdend personeel'!$G$34+'Rijdend personeel'!$G$42,IF(R98<22,'Rijdend personeel'!$G$36+'Rijdend personeel'!$G$42)))))))))))) -> 0 | S101: =IF(S98=0,0,IF(S98<12,'Rijdend personeel'!$G$16+'Rijdend personeel'!$G$42,IF(S98<13,'Rijdend personeel'!$G$18+'Rijdend personeel'!$G$42,IF(S98<14,'Rijdend personeel'!$G$20+'Rijdend personeel'!$G$42,IF(S98<15,'Rijdend personeel'!$G$22+'Rijdend personeel'!$G$42,IF(S98<16,'Rijdend personeel'!$G$24+'Rijdend personeel'!$G$42,IF(S98<17,'Rijdend personeel'!$G$26+'Rijdend personeel'!$G$42,IF(S98<18,'Rijdend personeel'!$G$28+'Rijdend personeel'!$G$42,IF(S98<19,'Rijdend personeel'!$G$30+'Rijdend personeel'!$G$42,IF(S98<20,'Rijdend personeel'!$G$32+'Rijdend personeel'!$G$42,IF(S98<21,'Rijdend personeel'!$G$34+'Rijdend personeel'!$G$42,IF(S98<22,'Rijdend personeel'!$G$36+'Rijdend personeel'!$G$42)))))))))))) -> 0
C102: Zondagsrust alle CH | E102: =Reis!F119*'Rijdend personeel'!$G$48 -> 0 | F102: =Reis!G119*'Rijdend personeel'!$G$48 -> 0 | G102: =Reis!H119*'Rijdend personeel'!$G$48 -> 0 | H102: =Reis!I119*'Rijdend personeel'!$G$48 -> 0 | I102: =Reis!J119*'Rijdend personeel'!$G$48 -> 0 | J102: =Reis!K119*'Rijdend personeel'!$G$48 -> 0 | K102: =Reis!L119*'Rijdend personeel'!$G$48 -> 0 | L102: =Reis!M119*'Rijdend personeel'!$G$48 -> 0 | M102: =Reis!N119*'Rijdend personeel'!$G$48 -> 0 | N102: =Reis!O119*'Rijdend personeel'!$G$48 -> 0 | O102: =Reis!P119*'Rijdend personeel'!$G$48 -> 0 | P102: =Reis!Q119*'Rijdend personeel'!$G$48 -> 0 | Q102: =Reis!R119*'Rijdend personeel'!$G$48 -> 0 | R102: =Reis!S119*'Rijdend personeel'!$G$48 -> 0 | S102: =Reis!T119*'Rijdend personeel'!$G$48 -> 0
C103: Inactiviteitsdag alle CH | E103: =Reis!F120*'Rijdend personeel'!$G$50 -> 0 | F103: =Reis!G120*'Rijdend personeel'!$G$50 -> 0 | G103: =Reis!H120*'Rijdend personeel'!$G$50 -> 0 | H103: =Reis!I120*'Rijdend personeel'!$G$50 -> 0 | I103: =Reis!J120*'Rijdend personeel'!$G$50 -> 0 | J103: =Reis!K120*'Rijdend personeel'!$G$50 -> 0 | K103: =Reis!L120*'Rijdend personeel'!$G$50 -> 0 | L103: =Reis!M120*'Rijdend personeel'!$G$50 -> 0 | M103: =Reis!N120*'Rijdend personeel'!$G$50 -> 0 | N103: =Reis!O120*'Rijdend personeel'!$G$50 -> 0 | O103: =Reis!P120*'Rijdend personeel'!$G$50 -> 0 | P103: =Reis!Q120*'Rijdend personeel'!$G$50 -> 0 | Q103: =Reis!R120*'Rijdend personeel'!$G$50 -> 0 | R103: =Reis!S120*'Rijdend personeel'!$G$50 -> 0 | S103: =Reis!T120*'Rijdend personeel'!$G$50 -> 0
C104: Eindejaarspremie alle CH | E104: =IF(Reis!F108<1,0,(('Rijdend personeel'!$G$46/'Rijdend personeel'!$G$68)*Reis!F114)) ->  | F104: =IF(Reis!G108<1,0,(('Rijdend personeel'!$G$46/'Rijdend personeel'!$G$68)*Reis!G114)) -> 0 | G104: =IF(Reis!H108<1,0,(('Rijdend personeel'!$G$46/'Rijdend personeel'!$G$68)*Reis!H114)) -> 0 | H104: =IF(Reis!I108<1,0,(('Rijdend personeel'!$G$46/'Rijdend personeel'!$G$68)*Reis!I114)) -> 0 | I104: =IF(Reis!J108<1,0,(('Rijdend personeel'!$G$46/'Rijdend personeel'!$G$68)*Reis!J114)) -> 0 | J104: =IF(Reis!K108<1,0,(('Rijdend personeel'!$G$46/'Rijdend personeel'!$G$68)*Reis!K114)) -> 0 | K104: =IF(Reis!L108<1,0,(('Rijdend personeel'!$G$46/'Rijdend personeel'!$G$68)*Reis!L114)) -> 0 | L104: =IF(Reis!M108<1,0,(('Rijdend personeel'!$G$46/'Rijdend personeel'!$G$68)*Reis!M114)) -> 0 | M104: =IF(Reis!N108<1,0,(('Rijdend personeel'!$G$46/'Rijdend personeel'!$G$68)*Reis!N114)) -> 0 | N104: =IF(Reis!O108<1,0,(('Rijdend personeel'!$G$46/'Rijdend personeel'!$G$68)*Reis!O114)) -> 0 | O104: =IF(Reis!P108<1,0,(('Rijdend personeel'!$G$46/'Rijdend personeel'!$G$68)*Reis!P114)) -> 0 | P104: =IF(Reis!Q108<1,0,(('Rijdend personeel'!$G$46/'Rijdend personeel'!$G$68)*Reis!Q114)) -> 0 | Q104: =IF(Reis!R108<1,0,(('Rijdend personeel'!$G$46/'Rijdend personeel'!$G$68)*Reis!R114)) -> 0 | R104: =IF(Reis!S108<1,0,(('Rijdend personeel'!$G$46/'Rijdend personeel'!$G$68)*Reis!S114)) -> 0 | S104: =IF(Reis!T108<1,0,(('Rijdend personeel'!$G$46/'Rijdend personeel'!$G$68)*Reis!T114)) -> 0
C105: RSZ werkgever alle CH | E105: =IF(Reis!F108<1,0,((E99+E100+E101+E102+E103+E104)*1.08*'Rijdend personeel'!$G$52)) ->  | F105: =IF(Reis!G108<1,0,((F99+F100+F101+F102+F103+F104)*1.08*'Rijdend personeel'!$G$52)) -> 0 | G105: =IF(Reis!H108<1,0,((G99+G100+G101+G102+G103+G104)*1.08*'Rijdend personeel'!$G$52)) -> 0 | H105: =IF(Reis!I108<1,0,((H99+H100+H101+H102+H103+H104)*1.08*'Rijdend personeel'!$G$52)) -> 0 | I105: =IF(Reis!J108<1,0,((I99+I100+I101+I102+I103+I104)*1.08*'Rijdend personeel'!$G$52)) -> 0 | J105: =IF(Reis!K108<1,0,((J99+J100+J101+J102+J103+J104)*1.08*'Rijdend personeel'!$G$52)) -> 0 | K105: =IF(Reis!L108<1,0,((K99+K100+K101+K102+K103+K104)*1.08*'Rijdend personeel'!$G$52)) -> 0 | L105: =IF(Reis!M108<1,0,((L99+L100+L101+L102+L103+L104)*1.08*'Rijdend personeel'!$G$52)) -> 0 | M105: =IF(Reis!N108<1,0,((M99+M100+M101+M102+M103+M104)*1.08*'Rijdend personeel'!$G$52)) -> 0 | N105: =IF(Reis!O108<1,0,((N99+N100+N101+N102+N103+N104)*1.08*'Rijdend personeel'!$G$52)) -> 0 | O105: =IF(Reis!P108<1,0,((O99+O100+O101+O102+O103+O104)*1.08*'Rijdend personeel'!$G$52)) -> 0 | P105: =IF(Reis!Q108<1,0,((P99+P100+P101+P102+P103+P104)*1.08*'Rijdend personeel'!$G$52)) -> 0 | Q105: =IF(Reis!R108<1,0,((Q99+Q100+Q101+Q102+Q103+Q104)*1.08*'Rijdend personeel'!$G$52)) -> 0 | R105: =IF(Reis!S108<1,0,((R99+R100+R101+R102+R103+R104)*1.08*'Rijdend personeel'!$G$52)) -> 0 | S105: =IF(Reis!T108<1,0,((S99+S100+S101+S102+S103+S104)*1.08*'Rijdend personeel'!$G$52)) -> 0
C106: Eco-cheques alle CH | E106: =IF(Reis!F108<1,0,(('Rijdend personeel'!$G$44/'Rijdend personeel'!$G$68)*Reis!F114)) ->  | F106: =IF(Reis!G108<1,0,(('Rijdend personeel'!$G$44/'Rijdend personeel'!$G$68)*Reis!G114)) -> 0 | G106: =IF(Reis!H108<1,0,(('Rijdend personeel'!$G$44/'Rijdend personeel'!$G$68)*Reis!H114)) -> 0 | H106: =IF(Reis!I108<1,0,(('Rijdend personeel'!$G$44/'Rijdend personeel'!$G$68)*Reis!I114)) -> 0 | I106: =IF(Reis!J108<1,0,(('Rijdend personeel'!$G$44/'Rijdend personeel'!$G$68)*Reis!J114)) -> 0 | J106: =IF(Reis!K108<1,0,(('Rijdend personeel'!$G$44/'Rijdend personeel'!$G$68)*Reis!K114)) -> 0 | K106: =IF(Reis!L108<1,0,(('Rijdend personeel'!$G$44/'Rijdend personeel'!$G$68)*Reis!L114)) -> 0 | L106: =IF(Reis!M108<1,0,(('Rijdend personeel'!$G$44/'Rijdend personeel'!$G$68)*Reis!M114)) -> 0 | M106: =IF(Reis!N108<1,0,(('Rijdend personeel'!$G$44/'Rijdend personeel'!$G$68)*Reis!N114)) -> 0 | N106: =IF(Reis!O108<1,0,(('Rijdend personeel'!$G$44/'Rijdend personeel'!$G$68)*Reis!O114)) -> 0 | O106: =IF(Reis!P108<1,0,(('Rijdend personeel'!$G$44/'Rijdend personeel'!$G$68)*Reis!P114)) -> 0 | P106: =IF(Reis!Q108<1,0,(('Rijdend personeel'!$G$44/'Rijdend personeel'!$G$68)*Reis!Q114)) -> 0 | Q106: =IF(Reis!R108<1,0,(('Rijdend personeel'!$G$44/'Rijdend personeel'!$G$68)*Reis!R114)) -> 0 | R106: =IF(Reis!S108<1,0,(('Rijdend personeel'!$G$44/'Rijdend personeel'!$G$68)*Reis!S114)) -> 0 | S106: =IF(Reis!T108<1,0,(('Rijdend personeel'!$G$44/'Rijdend personeel'!$G$68)*Reis!T114)) -> 0
C107: ARAB CH ENKEL | E107: =ROUNDUP(E96,0)*'Rijdend personeel'!$G$40 -> 0 | F107: =ROUNDUP(F96,0)*'Rijdend personeel'!$G$40 -> 0 | G107: =ROUNDUP(G96,0)*'Rijdend personeel'!$G$40 -> 0 | H107: =ROUNDUP(H96,0)*'Rijdend personeel'!$G$40 -> 0 | I107: =ROUNDUP(I96,0)*'Rijdend personeel'!$G$40 -> 0 | J107: =ROUNDUP(J96,0)*'Rijdend personeel'!$G$40 -> 0 | K107: =ROUNDUP(K96,0)*'Rijdend personeel'!$G$40 -> 0 | L107: =ROUNDUP(L96,0)*'Rijdend personeel'!$G$40 -> 0 | M107: =ROUNDUP(M96,0)*'Rijdend personeel'!$G$40 -> 0 | N107: =ROUNDUP(N96,0)*'Rijdend personeel'!$G$40 -> 0 | O107: =ROUNDUP(O96,0)*'Rijdend personeel'!$G$40 -> 0 | P107: =ROUNDUP(P96,0)*'Rijdend personeel'!$G$40 -> 0 | Q107: =ROUNDUP(Q96,0)*'Rijdend personeel'!$G$40 -> 0 | R107: =ROUNDUP(R96,0)*'Rijdend personeel'!$G$40 -> 0 | S107: =ROUNDUP(S96,0)*'Rijdend personeel'!$G$40 -> 0
C108: ARAB CH1 DUBBEL | E108: =ROUNDUP(E97,0)*'Rijdend personeel'!$G$40 -> 0 | F108: =ROUNDUP(F97,0)*'Rijdend personeel'!$G$40 -> 0 | G108: =ROUNDUP(G97,0)*'Rijdend personeel'!$G$40 -> 0 | H108: =ROUNDUP(H97,0)*'Rijdend personeel'!$G$40 -> 0 | I108: =ROUNDUP(I97,0)*'Rijdend personeel'!$G$40 -> 0 | J108: =ROUNDUP(J97,0)*'Rijdend personeel'!$G$40 -> 0 | K108: =ROUNDUP(K97,0)*'Rijdend personeel'!$G$40 -> 0 | L108: =ROUNDUP(L97,0)*'Rijdend personeel'!$G$40 -> 0 | M108: =ROUNDUP(M97,0)*'Rijdend personeel'!$G$40 -> 0 | N108: =ROUNDUP(N97,0)*'Rijdend personeel'!$G$40 -> 0 | O108: =ROUNDUP(O97,0)*'Rijdend personeel'!$G$40 -> 0 | P108: =ROUNDUP(P97,0)*'Rijdend personeel'!$G$40 -> 0 | Q108: =ROUNDUP(Q97,0)*'Rijdend personeel'!$G$40 -> 0 | R108: =ROUNDUP(R97,0)*'Rijdend personeel'!$G$40 -> 0 | S108: =ROUNDUP(S97,0)*'Rijdend personeel'!$G$40 -> 0
C109: ARAB CH2 DUBBEL | E109: =ROUNDUP(E98,0)*'Rijdend personeel'!$G$40 -> 0 | F109: =ROUNDUP(F98,0)*'Rijdend personeel'!$G$40 -> 0 | G109: =ROUNDUP(G98,0)*'Rijdend personeel'!$G$40 -> 0 | H109: =ROUNDUP(H98,0)*'Rijdend personeel'!$G$40 -> 0 | I109: =ROUNDUP(I98,0)*'Rijdend personeel'!$G$40 -> 0 | J109: =ROUNDUP(J98,0)*'Rijdend personeel'!$G$40 -> 0 | K109: =ROUNDUP(K98,0)*'Rijdend personeel'!$G$40 -> 0 | L109: =ROUNDUP(L98,0)*'Rijdend personeel'!$G$40 -> 0 | M109: =ROUNDUP(M98,0)*'Rijdend personeel'!$G$40 -> 0 | N109: =ROUNDUP(N98,0)*'Rijdend personeel'!$G$40 -> 0 | O109: =ROUNDUP(O98,0)*'Rijdend personeel'!$G$40 -> 0 | P109: =ROUNDUP(P98,0)*'Rijdend personeel'!$G$40 -> 0 | Q109: =ROUNDUP(Q98,0)*'Rijdend personeel'!$G$40 -> 0 | R109: =ROUNDUP(R98,0)*'Rijdend personeel'!$G$40 -> 0 | S109: =ROUNDUP(S98,0)*'Rijdend personeel'!$G$40 -> 0
C110: Overige kosten alle CH | E110: =IF(Reis!F108<1,0,((('Rijdend personeel'!$G$54+'Rijdend personeel'!$G$56+'Rijdend personeel'!$G$58+'Rijdend personeel'!$G$60+'Rijdend personeel'!$G$62+'Rijdend personeel'!$G$64+'Rijdend personeel'!$G$66)/'Rijdend personeel'!$G$68)*Reis!F114)) ->  | F110: =IF(Reis!G108<1,0,((('Rijdend personeel'!$G$54+'Rijdend personeel'!$G$56+'Rijdend personeel'!$G$58+'Rijdend personeel'!$G$60+'Rijdend personeel'!$G$62+'Rijdend personeel'!$G$64+'Rijdend personeel'!$G$66)/'Rijdend personeel'!$G$68)*Reis!G114)) -> 0 | G110: =IF(Reis!H108<1,0,((('Rijdend personeel'!$G$54+'Rijdend personeel'!$G$56+'Rijdend personeel'!$G$58+'Rijdend personeel'!$G$60+'Rijdend personeel'!$G$62+'Rijdend personeel'!$G$64+'Rijdend personeel'!$G$66)/'Rijdend personeel'!$G$68)*Reis!H114)) -> 0 | H110: =IF(Reis!I108<1,0,((('Rijdend personeel'!$G$54+'Rijdend personeel'!$G$56+'Rijdend personeel'!$G$58+'Rijdend personeel'!$G$60+'Rijdend personeel'!$G$62+'Rijdend personeel'!$G$64+'Rijdend personeel'!$G$66)/'Rijdend personeel'!$G$68)*Reis!I114)) -> 0 | I110: =IF(Reis!J108<1,0,((('Rijdend personeel'!$G$54+'Rijdend personeel'!$G$56+'Rijdend personeel'!$G$58+'Rijdend personeel'!$G$60+'Rijdend personeel'!$G$62+'Rijdend personeel'!$G$64+'Rijdend personeel'!$G$66)/'Rijdend personeel'!$G$68)*Reis!J114)) -> 0 | J110: =IF(Reis!K108<1,0,((('Rijdend personeel'!$G$54+'Rijdend personeel'!$G$56+'Rijdend personeel'!$G$58+'Rijdend personeel'!$G$60+'Rijdend personeel'!$G$62+'Rijdend personeel'!$G$64+'Rijdend personeel'!$G$66)/'Rijdend personeel'!$G$68)*Reis!K114)) -> 0 | K110: =IF(Reis!L108<1,0,((('Rijdend personeel'!$G$54+'Rijdend personeel'!$G$56+'Rijdend personeel'!$G$58+'Rijdend personeel'!$G$60+'Rijdend personeel'!$G$62+'Rijdend personeel'!$G$64+'Rijdend personeel'!$G$66)/'Rijdend personeel'!$G$68)*Reis!L114)) -> 0 | L110: =IF(Reis!M108<1,0,((('Rijdend personeel'!$G$54+'Rijdend personeel'!$G$56+'Rijdend personeel'!$G$58+'Rijdend personeel'!$G$60+'Rijdend personeel'!$G$62+'Rijdend personeel'!$G$64+'Rijdend personeel'!$G$66)/'Rijdend personeel'!$G$68)*Reis!M114)) -> 0 | M110: =IF(Reis!N108<1,0,((('Rijdend personeel'!$G$54+'Rijdend personeel'!$G$56+'Rijdend personeel'!$G$58+'Rijdend personeel'!$G$60+'Rijdend personeel'!$G$62+'Rijdend personeel'!$G$64+'Rijdend personeel'!$G$66)/'Rijdend personeel'!$G$68)*Reis!N114)) -> 0 | N110: =IF(Reis!O108<1,0,((('Rijdend personeel'!$G$54+'Rijdend personeel'!$G$56+'Rijdend personeel'!$G$58+'Rijdend personeel'!$G$60+'Rijdend personeel'!$G$62+'Rijdend personeel'!$G$64+'Rijdend personeel'!$G$66)/'Rijdend personeel'!$G$68)*Reis!O114)) -> 0 | O110: =IF(Reis!P108<1,0,((('Rijdend personeel'!$G$54+'Rijdend personeel'!$G$56+'Rijdend personeel'!$G$58+'Rijdend personeel'!$G$60+'Rijdend personeel'!$G$62+'Rijdend personeel'!$G$64+'Rijdend personeel'!$G$66)/'Rijdend personeel'!$G$68)*Reis!P114)) -> 0 | P110: =IF(Reis!Q108<1,0,((('Rijdend personeel'!$G$54+'Rijdend personeel'!$G$56+'Rijdend personeel'!$G$58+'Rijdend personeel'!$G$60+'Rijdend personeel'!$G$62+'Rijdend personeel'!$G$64+'Rijdend personeel'!$G$66)/'Rijdend personeel'!$G$68)*Reis!Q114)) -> 0 | Q110: =IF(Reis!R108<1,0,((('Rijdend personeel'!$G$54+'Rijdend personeel'!$G$56+'Rijdend personeel'!$G$58+'Rijdend personeel'!$G$60+'Rijdend personeel'!$G$62+'Rijdend personeel'!$G$64+'Rijdend personeel'!$G$66)/'Rijdend personeel'!$G$68)*Reis!R114)) -> 0 | R110: =IF(Reis!S108<1,0,((('Rijdend personeel'!$G$54+'Rijdend personeel'!$G$56+'Rijdend personeel'!$G$58+'Rijdend personeel'!$G$60+'Rijdend personeel'!$G$62+'Rijdend personeel'!$G$64+'Rijdend personeel'!$G$66)/'Rijdend personeel'!$G$68)*Reis!S114)) -> 0 | S110: =IF(Reis!T108<1,0,((('Rijdend personeel'!$G$54+'Rijdend personeel'!$G$56+'Rijdend personeel'!$G$58+'Rijdend personeel'!$G$60+'Rijdend personeel'!$G$62+'Rijdend personeel'!$G$64+'Rijdend personeel'!$G$66)/'Rijdend personeel'!$G$68)*Reis!T114)) -> 0
C111: Extra bonussen zondag + feestdag | E111: =IF(Reis!F119>0,0,IF(Reis!F114="","",IF(Reis!F114=1,Reis!AD111,IF(Reis!F114=2,Reis!AD111+Reis!AD112,IF(Reis!F114=3,Reis!AD111+Reis!AD112+Reis!AD113))))) ->  | F111: =IF(Reis!G119>0,0,IF(Reis!G114="","",IF(Reis!G114=1,Reis!AE111,IF(Reis!G114=2,Reis!AE111+Reis!AE112,IF(Reis!G114=3,Reis!AE111+Reis!AE112+Reis!AE113))))) ->  | G111: =IF(Reis!H119>0,0,IF(Reis!H114="","",IF(Reis!H114=1,Reis!AF111,IF(Reis!H114=2,Reis!AF111+Reis!AF112,IF(Reis!H114=3,Reis!AF111+Reis!AF112+Reis!AF113))))) ->  | H111: =IF(Reis!I119>0,0,IF(Reis!I114="","",IF(Reis!I114=1,Reis!AG111,IF(Reis!I114=2,Reis!AG111+Reis!AG112,IF(Reis!I114=3,Reis!AG111+Reis!AG112+Reis!AG113))))) ->  | I111: =IF(Reis!J119>0,0,IF(Reis!J114="","",IF(Reis!J114=1,Reis!AH111,IF(Reis!J114=2,Reis!AH111+Reis!AH112,IF(Reis!J114=3,Reis!AH111+Reis!AH112+Reis!AH113))))) ->  | J111: =IF(Reis!K119>0,0,IF(Reis!K114="","",IF(Reis!K114=1,Reis!AI111,IF(Reis!K114=2,Reis!AI111+Reis!AI112,IF(Reis!K114=3,Reis!AI111+Reis!AI112+Reis!AI113))))) ->  | K111: =IF(Reis!L119>0,0,IF(Reis!L114="","",IF(Reis!L114=1,Reis!AJ111,IF(Reis!L114=2,Reis!AJ111+Reis!AJ112,IF(Reis!L114=3,Reis!AJ111+Reis!AJ112+Reis!AJ113))))) ->  | L111: =IF(Reis!M119>0,0,IF(Reis!M114="","",IF(Reis!M114=1,Reis!AK111,IF(Reis!M114=2,Reis!AK111+Reis!AK112,IF(Reis!M114=3,Reis!AK111+Reis!AK112+Reis!AK113))))) ->  | M111: =IF(Reis!N119>0,0,IF(Reis!N114="","",IF(Reis!N114=1,Reis!AL111,IF(Reis!N114=2,Reis!AL111+Reis!AL112,IF(Reis!N114=3,Reis!AL111+Reis!AL112+Reis!AL113))))) ->  | N111: =IF(Reis!O119>0,0,IF(Reis!O114="","",IF(Reis!O114=1,Reis!AM111,IF(Reis!O114=2,Reis!AM111+Reis!AM112,IF(Reis!O114=3,Reis!AM111+Reis!AM112+Reis!AM113))))) ->  | O111: =IF(Reis!P119>0,0,IF(Reis!P114="","",IF(Reis!P114=1,Reis!AN111,IF(Reis!P114=2,Reis!AN111+Reis!AN112,IF(Reis!P114=3,Reis!AN111+Reis!AN112+Reis!AN113))))) ->  | P111: =IF(Reis!Q119>0,0,IF(Reis!Q114="","",IF(Reis!Q114=1,Reis!AO111,IF(Reis!Q114=2,Reis!AO111+Reis!AO112,IF(Reis!Q114=3,Reis!AO111+Reis!AO112+Reis!AO113))))) ->  | Q111: =IF(Reis!R119>0,0,IF(Reis!R114="","",IF(Reis!R114=1,Reis!AP111,IF(Reis!R114=2,Reis!AP111+Reis!AP112,IF(Reis!R114=3,Reis!AP111+Reis!AP112+Reis!AP113))))) ->  | R111: =IF(Reis!S119>0,0,IF(Reis!S114="","",IF(Reis!S114=1,Reis!AQ111,IF(Reis!S114=2,Reis!AQ111+Reis!AQ112,IF(Reis!S114=3,Reis!AQ111+Reis!AQ112+Reis!AQ113))))) ->  | S111: =IF(Reis!T119>0,0,IF(Reis!T114="","",IF(Reis!T114=1,Reis!AR111,IF(Reis!T114=2,Reis!AR111+Reis!AR112,IF(Reis!T114=3,Reis!AR111+Reis!AR112+Reis!AR113))))) -> 
C112: Maaltijdcheques | E112: =IF(Reis!F108<1,0,(('Rijdend personeel'!$G$70*Reis!F114))) -> 0 | F112: =IF(Reis!G108<1,0,(('Rijdend personeel'!$G$70*Reis!G114))) -> 0 | G112: =IF(Reis!H108<1,0,(('Rijdend personeel'!$G$70*Reis!H114))) -> 0 | H112: =IF(Reis!I108<1,0,(('Rijdend personeel'!$G$70*Reis!I114))) -> 0 | I112: =IF(Reis!J108<1,0,(('Rijdend personeel'!$G$70*Reis!J114))) -> 0 | J112: =IF(Reis!K108<1,0,(('Rijdend personeel'!$G$70*Reis!K114))) -> 0 | K112: =IF(Reis!L108<1,0,(('Rijdend personeel'!$G$70*Reis!L114))) -> 0 | L112: =IF(Reis!M108<1,0,(('Rijdend personeel'!$G$70*Reis!M114))) -> 0 | M112: =IF(Reis!N108<1,0,(('Rijdend personeel'!$G$70*Reis!N114))) -> 0 | N112: =IF(Reis!O108<1,0,(('Rijdend personeel'!$G$70*Reis!O114))) -> 0 | O112: =IF(Reis!P108<1,0,(('Rijdend personeel'!$G$70*Reis!P114))) -> 0 | P112: =IF(Reis!Q108<1,0,(('Rijdend personeel'!$G$70*Reis!Q114))) -> 0 | Q112: =IF(Reis!R108<1,0,(('Rijdend personeel'!$G$70*Reis!R114))) -> 0 | R112: =IF(Reis!S108<1,0,(('Rijdend personeel'!$G$70*Reis!S114))) -> 0 | S112: =IF(Reis!T108<1,0,(('Rijdend personeel'!$G$70*Reis!T114))) -> 0
C113: Extra loonkosten alle CH
C114: Totale loonkost alle CH | E114: =IF(Reis!F108<1,0,(E99+E100+E101+E102+E103+E104+E106+E105+E107+E108+E109+E110+E111+E113+E112)) ->  | F114: =IF(Reis!G108<1,0,(F99+F100+F101+F102+F103+F104+F106+F105+F107+F108+F109+F110+F111+F113+F112)) -> 0 | G114: =IF(Reis!H108<1,0,(G99+G100+G101+G102+G103+G104+G106+G105+G107+G108+G109+G110+G111+G113+G112)) -> 0 | H114: =IF(Reis!I108<1,0,(H99+H100+H101+H102+H103+H104+H106+H105+H107+H108+H109+H110+H111+H113+H112)) -> 0 | I114: =IF(Reis!J108<1,0,(I99+I100+I101+I102+I103+I104+I106+I105+I107+I108+I109+I110+I111+I113+I112)) -> 0 | J114: =IF(Reis!K108<1,0,(J99+J100+J101+J102+J103+J104+J106+J105+J107+J108+J109+J110+J111+J113+J112)) -> 0 | K114: =IF(Reis!L108<1,0,(K99+K100+K101+K102+K103+K104+K106+K105+K107+K108+K109+K110+K111+K113+K112)) -> 0 | L114: =IF(Reis!M108<1,0,(L99+L100+L101+L102+L103+L104+L106+L105+L107+L108+L109+L110+L111+L113+L112)) -> 0 | M114: =IF(Reis!N108<1,0,(M99+M100+M101+M102+M103+M104+M106+M105+M107+M108+M109+M110+M111+M113+M112)) -> 0 | N114: =IF(Reis!O108<1,0,(N99+N100+N101+N102+N103+N104+N106+N105+N107+N108+N109+N110+N111+N113+N112)) -> 0 | O114: =IF(Reis!P108<1,0,(O99+O100+O101+O102+O103+O104+O106+O105+O107+O108+O109+O110+O111+O113+O112)) -> 0 | P114: =IF(Reis!Q108<1,0,(P99+P100+P101+P102+P103+P104+P106+P105+P107+P108+P109+P110+P111+P113+P112)) -> 0 | Q114: =IF(Reis!R108<1,0,(Q99+Q100+Q101+Q102+Q103+Q104+Q106+Q105+Q107+Q108+Q109+Q110+Q111+Q113+Q112)) -> 0 | R114: =IF(Reis!S108<1,0,(R99+R100+R101+R102+R103+R104+R106+R105+R107+R108+R109+R110+R111+R113+R112)) -> 0 | S114: =IF(Reis!T108<1,0,(S99+S100+S101+S102+S103+S104+S106+S105+S107+S108+S109+S110+S111+S113+S112)) -> 0
G117: Coût personnel roulant | J117: =Bestemmingen!W16 ->  | L117: =Bestemmingen!S16 -> vehicule1
E123: dag | F123: dag | G123: dag | H123: dag | I123: dag | J123: dag | K123: dag | L123: dag | M123: dag | N123: dag | O123: dag | P123: dag | Q123: dag | R123: dag | S123: dag
E124: 1 | F124: 2 | G124: 3 | H124: 4 | I124: 5 | J124: 6 | K124: 7 | L124: 8 | M124: 9 | N124: 10 | O124: 11 | P124: 12 | Q124: 13 | R124: 14 | S124: 15
C125: Diensttijd CH ENKEL | E125: =Reis!F147*24 -> 0 | F125: =Reis!G147*24 -> 0 | G125: =Reis!H147*24 -> 0 | H125: =Reis!I147*24 -> 0 | I125: =Reis!J147*24 -> 0 | J125: =Reis!K147*24 -> 0 | K125: =Reis!L147*24 -> 0 | L125: =Reis!M147*24 -> 0 | M125: =Reis!N147*24 -> 0 | N125: =Reis!O147*24 -> 0 | O125: =Reis!P147*24 -> 0 | P125: =Reis!Q147*24 -> 0 | Q125: =Reis!R147*24 -> 0 | R125: =Reis!S147*24 -> 0 | S125: =Reis!T147*24 -> 0
C126: Diensttijd CH1 DUBBEL | E126: =Reis!F148*24 -> 0 | F126: =Reis!G148*24 -> 0 | G126: =Reis!H148*24 -> 0 | H126: =Reis!I148*24 -> 0 | I126: =Reis!J148*24 -> 0 | J126: =Reis!K148*24 -> 0 | K126: =Reis!L148*24 -> 0 | L126: =Reis!M148*24 -> 0 | M126: =Reis!N148*24 -> 0 | N126: =Reis!O148*24 -> 0 | O126: =Reis!P148*24 -> 0 | P126: =Reis!Q148*24 -> 0 | Q126: =Reis!R148*24 -> 0 | R126: =Reis!S148*24 -> 0 | S126: =Reis!T148*24 -> 0
C127: Diensttijd CH2 DUBBEL | E127: =Reis!F149*24 -> 0 | F127: =Reis!G149*24 -> 0 | G127: =Reis!H149*24 -> 0 | H127: =Reis!I149*24 -> 0 | I127: =Reis!J149*24 -> 0 | J127: =Reis!K149*24 -> 0 | K127: =Reis!L149*24 -> 0 | L127: =Reis!M149*24 -> 0 | M127: =Reis!N149*24 -> 0 | N127: =Reis!O149*24 -> 0 | O127: =Reis!P149*24 -> 0 | P127: =Reis!Q149*24 -> 0 | Q127: =Reis!R149*24 -> 0 | R127: =Reis!S149*24 -> 0 | S127: =Reis!T149*24 -> 0
C128: Bruto Sal CH ENKEL | E128: =IF(AND(E125>0,E125<=6,Reis!F134="Autre"),('Rijdend personeel'!$G$50+'Rijdend personeel'!$G$42),IF(AND(E125>0,E125<=6),('Rijdend personeel'!$G$9+'Rijdend personeel'!$G$42),IF(AND(E125>6,E125<=12),'Rijdend personeel'!$G$11+'Rijdend personeel'!$G$42,IF(E125>0,'Rijdend personeel'!$G$11+(ROUNDUP(E125,0)-12)*'Rijdend personeel'!$G$13+'Rijdend personeel'!$G$42,0)))) -> 0 | F128: =IF(AND(F125>0,F125<=6,Reis!G134="Autre"),('Rijdend personeel'!$G$50+'Rijdend personeel'!$G$42),IF(AND(F125>0,F125<=6),('Rijdend personeel'!$G$9+'Rijdend personeel'!$G$42),IF(AND(F125>6,F125<=12),'Rijdend personeel'!$G$11+'Rijdend personeel'!$G$42,IF(F125>0,'Rijdend personeel'!$G$11+(ROUNDUP(F125,0)-12)*'Rijdend personeel'!$G$13+'Rijdend personeel'!$G$42,0)))) -> 0 | G128: =IF(AND(G125>0,G125<=6,Reis!H134="Autre"),('Rijdend personeel'!$G$50+'Rijdend personeel'!$G$42),IF(AND(G125>0,G125<=6),('Rijdend personeel'!$G$9+'Rijdend personeel'!$G$42),IF(AND(G125>6,G125<=12),'Rijdend personeel'!$G$11+'Rijdend personeel'!$G$42,IF(G125>0,'Rijdend personeel'!$G$11+(ROUNDUP(G125,0)-12)*'Rijdend personeel'!$G$13+'Rijdend personeel'!$G$42,0)))) -> 0 | H128: =IF(AND(H125>0,H125<=6,Reis!I134="Autre"),('Rijdend personeel'!$G$50+'Rijdend personeel'!$G$42),IF(AND(H125>0,H125<=6),('Rijdend personeel'!$G$9+'Rijdend personeel'!$G$42),IF(AND(H125>6,H125<=12),'Rijdend personeel'!$G$11+'Rijdend personeel'!$G$42,IF(H125>0,'Rijdend personeel'!$G$11+(ROUNDUP(H125,0)-12)*'Rijdend personeel'!$G$13+'Rijdend personeel'!$G$42,0)))) -> 0 | I128: =IF(AND(I125>0,I125<=6,Reis!J134="Autre"),('Rijdend personeel'!$G$50+'Rijdend personeel'!$G$42),IF(AND(I125>0,I125<=6),('Rijdend personeel'!$G$9+'Rijdend personeel'!$G$42),IF(AND(I125>6,I125<=12),'Rijdend personeel'!$G$11+'Rijdend personeel'!$G$42,IF(I125>0,'Rijdend personeel'!$G$11+(ROUNDUP(I125,0)-12)*'Rijdend personeel'!$G$13+'Rijdend personeel'!$G$42,0)))) -> 0 | J128: =IF(AND(J125>0,J125<=6,Reis!K134="Autre"),('Rijdend personeel'!$G$50+'Rijdend personeel'!$G$42),IF(AND(J125>0,J125<=6),('Rijdend personeel'!$G$9+'Rijdend personeel'!$G$42),IF(AND(J125>6,J125<=12),'Rijdend personeel'!$G$11+'Rijdend personeel'!$G$42,IF(J125>0,'Rijdend personeel'!$G$11+(ROUNDUP(J125,0)-12)*'Rijdend personeel'!$G$13+'Rijdend personeel'!$G$42,0)))) -> 0 | K128: =IF(AND(K125>0,K125<=6,Reis!L134="Autre"),('Rijdend personeel'!$G$50+'Rijdend personeel'!$G$42),IF(AND(K125>0,K125<=6),('Rijdend personeel'!$G$9+'Rijdend personeel'!$G$42),IF(AND(K125>6,K125<=12),'Rijdend personeel'!$G$11+'Rijdend personeel'!$G$42,IF(K125>0,'Rijdend personeel'!$G$11+(ROUNDUP(K125,0)-12)*'Rijdend personeel'!$G$13+'Rijdend personeel'!$G$42,0)))) -> 0 | L128: =IF(AND(L125>0,L125<=6,Reis!M134="Autre"),('Rijdend personeel'!$G$50+'Rijdend personeel'!$G$42),IF(AND(L125>0,L125<=6),('Rijdend personeel'!$G$9+'Rijdend personeel'!$G$42),IF(AND(L125>6,L125<=12),'Rijdend personeel'!$G$11+'Rijdend personeel'!$G$42,IF(L125>0,'Rijdend personeel'!$G$11+(ROUNDUP(L125,0)-12)*'Rijdend personeel'!$G$13+'Rijdend personeel'!$G$42,0)))) -> 0 | M128: =IF(AND(M125>0,M125<=6,Reis!N134="Autre"),('Rijdend personeel'!$G$50+'Rijdend personeel'!$G$42),IF(AND(M125>0,M125<=6),('Rijdend personeel'!$G$9+'Rijdend personeel'!$G$42),IF(AND(M125>6,M125<=12),'Rijdend personeel'!$G$11+'Rijdend personeel'!$G$42,IF(M125>0,'Rijdend personeel'!$G$11+(ROUNDUP(M125,0)-12)*'Rijdend personeel'!$G$13+'Rijdend personeel'!$G$42,0)))) -> 0 | N128: =IF(AND(N125>0,N125<=6,Reis!O134="Autre"),('Rijdend personeel'!$G$50+'Rijdend personeel'!$G$42),IF(AND(N125>0,N125<=6),('Rijdend personeel'!$G$9+'Rijdend personeel'!$G$42),IF(AND(N125>6,N125<=12),'Rijdend personeel'!$G$11+'Rijdend personeel'!$G$42,IF(N125>0,'Rijdend personeel'!$G$11+(ROUNDUP(N125,0)-12)*'Rijdend personeel'!$G$13+'Rijdend personeel'!$G$42,0)))) -> 0 | O128: =IF(AND(O125>0,O125<=6,Reis!P134="Autre"),('Rijdend personeel'!$G$50+'Rijdend personeel'!$G$42),IF(AND(O125>0,O125<=6),('Rijdend personeel'!$G$9+'Rijdend personeel'!$G$42),IF(AND(O125>6,O125<=12),'Rijdend personeel'!$G$11+'Rijdend personeel'!$G$42,IF(O125>0,'Rijdend personeel'!$G$11+(ROUNDUP(O125,0)-12)*'Rijdend personeel'!$G$13+'Rijdend personeel'!$G$42,0)))) -> 0 | P128: =IF(AND(P125>0,P125<=6,Reis!Q134="Autre"),('Rijdend personeel'!$G$50+'Rijdend personeel'!$G$42),IF(AND(P125>0,P125<=6),('Rijdend personeel'!$G$9+'Rijdend personeel'!$G$42),IF(AND(P125>6,P125<=12),'Rijdend personeel'!$G$11+'Rijdend personeel'!$G$42,IF(P125>0,'Rijdend personeel'!$G$11+(ROUNDUP(P125,0)-12)*'Rijdend personeel'!$G$13+'Rijdend personeel'!$G$42,0)))) -> 0 | Q128: =IF(AND(Q125>0,Q125<=6,Reis!R134="Autre"),('Rijdend personeel'!$G$50+'Rijdend personeel'!$G$42),IF(AND(Q125>0,Q125<=6),('Rijdend personeel'!$G$9+'Rijdend personeel'!$G$42),IF(AND(Q125>6,Q125<=12),'Rijdend personeel'!$G$11+'Rijdend personeel'!$G$42,IF(Q125>0,'Rijdend personeel'!$G$11+(ROUNDUP(Q125,0)-12)*'Rijdend personeel'!$G$13+'Rijdend personeel'!$G$42,0)))) -> 0 | R128: =IF(AND(R125>0,R125<=6,Reis!S134="Autre"),('Rijdend personeel'!$G$50+'Rijdend personeel'!$G$42),IF(AND(R125>0,R125<=6),('Rijdend personeel'!$G$9+'Rijdend personeel'!$G$42),IF(AND(R125>6,R125<=12),'Rijdend personeel'!$G$11+'Rijdend personeel'!$G$42,IF(R125>0,'Rijdend personeel'!$G$11+(ROUNDUP(R125,0)-12)*'Rijdend personeel'!$G$13+'Rijdend personeel'!$G$42,0)))) -> 0 | S128: =IF(AND(S125>0,S125<=6,Reis!T134="Autre"),('Rijdend personeel'!$G$50+'Rijdend personeel'!$G$42),IF(AND(S125>0,S125<=6),('Rijdend personeel'!$G$9+'Rijdend personeel'!$G$42),IF(AND(S125>6,S125<=12),'Rijdend personeel'!$G$11+'Rijdend personeel'!$G$42,IF(S125>0,'Rijdend personeel'!$G$11+(ROUNDUP(S125,0)-12)*'Rijdend personeel'!$G$13+'Rijdend personeel'!$G$42,0)))) -> 0
C129: Bruto Sal CH1 DUBBEL | E129: =IF(E126=0,0,IF(E126<12,'Rijdend personeel'!$G$16+'Rijdend personeel'!$G$42,IF(E126<13,'Rijdend personeel'!$G$18+'Rijdend personeel'!$G$42,IF(E126<14,'Rijdend personeel'!$G$20+'Rijdend personeel'!$G$42,IF(E126<15,'Rijdend personeel'!$G$22+'Rijdend personeel'!$G$42,IF(E126<16,'Rijdend personeel'!$G$24+'Rijdend personeel'!$G$42,IF(E126<17,'Rijdend personeel'!$G$26+'Rijdend personeel'!$G$42,IF(E126<18,'Rijdend personeel'!$G$28+'Rijdend personeel'!$G$42,IF(E126<19,'Rijdend personeel'!$G$30+'Rijdend personeel'!$G$42,IF(E126<20,'Rijdend personeel'!$G$32+'Rijdend personeel'!$G$42,IF(E126<21,'Rijdend personeel'!$G$34+'Rijdend personeel'!$G$42,IF(E126<22,'Rijdend personeel'!$G$36+'Rijdend personeel'!$G$42)))))))))))) -> 0 | F129: =IF(F126=0,0,IF(F126<12,'Rijdend personeel'!$G$16+'Rijdend personeel'!$G$42,IF(F126<13,'Rijdend personeel'!$G$18+'Rijdend personeel'!$G$42,IF(F126<14,'Rijdend personeel'!$G$20+'Rijdend personeel'!$G$42,IF(F126<15,'Rijdend personeel'!$G$22+'Rijdend personeel'!$G$42,IF(F126<16,'Rijdend personeel'!$G$24+'Rijdend personeel'!$G$42,IF(F126<17,'Rijdend personeel'!$G$26+'Rijdend personeel'!$G$42,IF(F126<18,'Rijdend personeel'!$G$28+'Rijdend personeel'!$G$42,IF(F126<19,'Rijdend personeel'!$G$30+'Rijdend personeel'!$G$42,IF(F126<20,'Rijdend personeel'!$G$32+'Rijdend personeel'!$G$42,IF(F126<21,'Rijdend personeel'!$G$34+'Rijdend personeel'!$G$42,IF(F126<22,'Rijdend personeel'!$G$36+'Rijdend personeel'!$G$42)))))))))))) -> 0 | G129: =IF(G126=0,0,IF(G126<12,'Rijdend personeel'!$G$16+'Rijdend personeel'!$G$42,IF(G126<13,'Rijdend personeel'!$G$18+'Rijdend personeel'!$G$42,IF(G126<14,'Rijdend personeel'!$G$20+'Rijdend personeel'!$G$42,IF(G126<15,'Rijdend personeel'!$G$22+'Rijdend personeel'!$G$42,IF(G126<16,'Rijdend personeel'!$G$24+'Rijdend personeel'!$G$42,IF(G126<17,'Rijdend personeel'!$G$26+'Rijdend personeel'!$G$42,IF(G126<18,'Rijdend personeel'!$G$28+'Rijdend personeel'!$G$42,IF(G126<19,'Rijdend personeel'!$G$30+'Rijdend personeel'!$G$42,IF(G126<20,'Rijdend personeel'!$G$32+'Rijdend personeel'!$G$42,IF(G126<21,'Rijdend personeel'!$G$34+'Rijdend personeel'!$G$42,IF(G126<22,'Rijdend personeel'!$G$36+'Rijdend personeel'!$G$42)))))))))))) -> 0 | H129: =IF(H126=0,0,IF(H126<12,'Rijdend personeel'!$G$16+'Rijdend personeel'!$G$42,IF(H126<13,'Rijdend personeel'!$G$18+'Rijdend personeel'!$G$42,IF(H126<14,'Rijdend personeel'!$G$20+'Rijdend personeel'!$G$42,IF(H126<15,'Rijdend personeel'!$G$22+'Rijdend personeel'!$G$42,IF(H126<16,'Rijdend personeel'!$G$24+'Rijdend personeel'!$G$42,IF(H126<17,'Rijdend personeel'!$G$26+'Rijdend personeel'!$G$42,IF(H126<18,'Rijdend personeel'!$G$28+'Rijdend personeel'!$G$42,IF(H126<19,'Rijdend personeel'!$G$30+'Rijdend personeel'!$G$42,IF(H126<20,'Rijdend personeel'!$G$32+'Rijdend personeel'!$G$42,IF(H126<21,'Rijdend personeel'!$G$34+'Rijdend personeel'!$G$42,IF(H126<22,'Rijdend personeel'!$G$36+'Rijdend personeel'!$G$42)))))))))))) -> 0 | I129: =IF(I126=0,0,IF(I126<12,'Rijdend personeel'!$G$16+'Rijdend personeel'!$G$42,IF(I126<13,'Rijdend personeel'!$G$18+'Rijdend personeel'!$G$42,IF(I126<14,'Rijdend personeel'!$G$20+'Rijdend personeel'!$G$42,IF(I126<15,'Rijdend personeel'!$G$22+'Rijdend personeel'!$G$42,IF(I126<16,'Rijdend personeel'!$G$24+'Rijdend personeel'!$G$42,IF(I126<17,'Rijdend personeel'!$G$26+'Rijdend personeel'!$G$42,IF(I126<18,'Rijdend personeel'!$G$28+'Rijdend personeel'!$G$42,IF(I126<19,'Rijdend personeel'!$G$30+'Rijdend personeel'!$G$42,IF(I126<20,'Rijdend personeel'!$G$32+'Rijdend personeel'!$G$42,IF(I126<21,'Rijdend personeel'!$G$34+'Rijdend personeel'!$G$42,IF(I126<22,'Rijdend personeel'!$G$36+'Rijdend personeel'!$G$42)))))))))))) -> 0 | J129: =IF(J126=0,0,IF(J126<12,'Rijdend personeel'!$G$16+'Rijdend personeel'!$G$42,IF(J126<13,'Rijdend personeel'!$G$18+'Rijdend personeel'!$G$42,IF(J126<14,'Rijdend personeel'!$G$20+'Rijdend personeel'!$G$42,IF(J126<15,'Rijdend personeel'!$G$22+'Rijdend personeel'!$G$42,IF(J126<16,'Rijdend personeel'!$G$24+'Rijdend personeel'!$G$42,IF(J126<17,'Rijdend personeel'!$G$26+'Rijdend personeel'!$G$42,IF(J126<18,'Rijdend personeel'!$G$28+'Rijdend personeel'!$G$42,IF(J126<19,'Rijdend personeel'!$G$30+'Rijdend personeel'!$G$42,IF(J126<20,'Rijdend personeel'!$G$32+'Rijdend personeel'!$G$42,IF(J126<21,'Rijdend personeel'!$G$34+'Rijdend personeel'!$G$42,IF(J126<22,'Rijdend personeel'!$G$36+'Rijdend personeel'!$G$42)))))))))))) -> 0 | K129: =IF(K126=0,0,IF(K126<12,'Rijdend personeel'!$G$16+'Rijdend personeel'!$G$42,IF(K126<13,'Rijdend personeel'!$G$18+'Rijdend personeel'!$G$42,IF(K126<14,'Rijdend personeel'!$G$20+'Rijdend personeel'!$G$42,IF(K126<15,'Rijdend personeel'!$G$22+'Rijdend personeel'!$G$42,IF(K126<16,'Rijdend personeel'!$G$24+'Rijdend personeel'!$G$42,IF(K126<17,'Rijdend personeel'!$G$26+'Rijdend personeel'!$G$42,IF(K126<18,'Rijdend personeel'!$G$28+'Rijdend personeel'!$G$42,IF(K126<19,'Rijdend personeel'!$G$30+'Rijdend personeel'!$G$42,IF(K126<20,'Rijdend personeel'!$G$32+'Rijdend personeel'!$G$42,IF(K126<21,'Rijdend personeel'!$G$34+'Rijdend personeel'!$G$42,IF(K126<22,'Rijdend personeel'!$G$36+'Rijdend personeel'!$G$42)))))))))))) -> 0 | L129: =IF(L126=0,0,IF(L126<12,'Rijdend personeel'!$G$16+'Rijdend personeel'!$G$42,IF(L126<13,'Rijdend personeel'!$G$18+'Rijdend personeel'!$G$42,IF(L126<14,'Rijdend personeel'!$G$20+'Rijdend personeel'!$G$42,IF(L126<15,'Rijdend personeel'!$G$22+'Rijdend personeel'!$G$42,IF(L126<16,'Rijdend personeel'!$G$24+'Rijdend personeel'!$G$42,IF(L126<17,'Rijdend personeel'!$G$26+'Rijdend personeel'!$G$42,IF(L126<18,'Rijdend personeel'!$G$28+'Rijdend personeel'!$G$42,IF(L126<19,'Rijdend personeel'!$G$30+'Rijdend personeel'!$G$42,IF(L126<20,'Rijdend personeel'!$G$32+'Rijdend personeel'!$G$42,IF(L126<21,'Rijdend personeel'!$G$34+'Rijdend personeel'!$G$42,IF(L126<22,'Rijdend personeel'!$G$36+'Rijdend personeel'!$G$42)))))))))))) -> 0 | M129: =IF(M126=0,0,IF(M126<12,'Rijdend personeel'!$G$16+'Rijdend personeel'!$G$42,IF(M126<13,'Rijdend personeel'!$G$18+'Rijdend personeel'!$G$42,IF(M126<14,'Rijdend personeel'!$G$20+'Rijdend personeel'!$G$42,IF(M126<15,'Rijdend personeel'!$G$22+'Rijdend personeel'!$G$42,IF(M126<16,'Rijdend personeel'!$G$24+'Rijdend personeel'!$G$42,IF(M126<17,'Rijdend personeel'!$G$26+'Rijdend personeel'!$G$42,IF(M126<18,'Rijdend personeel'!$G$28+'Rijdend personeel'!$G$42,IF(M126<19,'Rijdend personeel'!$G$30+'Rijdend personeel'!$G$42,IF(M126<20,'Rijdend personeel'!$G$32+'Rijdend personeel'!$G$42,IF(M126<21,'Rijdend personeel'!$G$34+'Rijdend personeel'!$G$42,IF(M126<22,'Rijdend personeel'!$G$36+'Rijdend personeel'!$G$42)))))))))))) -> 0 | N129: =IF(N126=0,0,IF(N126<12,'Rijdend personeel'!$G$16+'Rijdend personeel'!$G$42,IF(N126<13,'Rijdend personeel'!$G$18+'Rijdend personeel'!$G$42,IF(N126<14,'Rijdend personeel'!$G$20+'Rijdend personeel'!$G$42,IF(N126<15,'Rijdend personeel'!$G$22+'Rijdend personeel'!$G$42,IF(N126<16,'Rijdend personeel'!$G$24+'Rijdend personeel'!$G$42,IF(N126<17,'Rijdend personeel'!$G$26+'Rijdend personeel'!$G$42,IF(N126<18,'Rijdend personeel'!$G$28+'Rijdend personeel'!$G$42,IF(N126<19,'Rijdend personeel'!$G$30+'Rijdend personeel'!$G$42,IF(N126<20,'Rijdend personeel'!$G$32+'Rijdend personeel'!$G$42,IF(N126<21,'Rijdend personeel'!$G$34+'Rijdend personeel'!$G$42,IF(N126<22,'Rijdend personeel'!$G$36+'Rijdend personeel'!$G$42)))))))))))) -> 0 | O129: =IF(O126=0,0,IF(O126<12,'Rijdend personeel'!$G$16+'Rijdend personeel'!$G$42,IF(O126<13,'Rijdend personeel'!$G$18+'Rijdend personeel'!$G$42,IF(O126<14,'Rijdend personeel'!$G$20+'Rijdend personeel'!$G$42,IF(O126<15,'Rijdend personeel'!$G$22+'Rijdend personeel'!$G$42,IF(O126<16,'Rijdend personeel'!$G$24+'Rijdend personeel'!$G$42,IF(O126<17,'Rijdend personeel'!$G$26+'Rijdend personeel'!$G$42,IF(O126<18,'Rijdend personeel'!$G$28+'Rijdend personeel'!$G$42,IF(O126<19,'Rijdend personeel'!$G$30+'Rijdend personeel'!$G$42,IF(O126<20,'Rijdend personeel'!$G$32+'Rijdend personeel'!$G$42,IF(O126<21,'Rijdend personeel'!$G$34+'Rijdend personeel'!$G$42,IF(O126<22,'Rijdend personeel'!$G$36+'Rijdend personeel'!$G$42)))))))))))) -> 0 | P129: =IF(P126=0,0,IF(P126<12,'Rijdend personeel'!$G$16+'Rijdend personeel'!$G$42,IF(P126<13,'Rijdend personeel'!$G$18+'Rijdend personeel'!$G$42,IF(P126<14,'Rijdend personeel'!$G$20+'Rijdend personeel'!$G$42,IF(P126<15,'Rijdend personeel'!$G$22+'Rijdend personeel'!$G$42,IF(P126<16,'Rijdend personeel'!$G$24+'Rijdend personeel'!$G$42,IF(P126<17,'Rijdend personeel'!$G$26+'Rijdend personeel'!$G$42,IF(P126<18,'Rijdend personeel'!$G$28+'Rijdend personeel'!$G$42,IF(P126<19,'Rijdend personeel'!$G$30+'Rijdend personeel'!$G$42,IF(P126<20,'Rijdend personeel'!$G$32+'Rijdend personeel'!$G$42,IF(P126<21,'Rijdend personeel'!$G$34+'Rijdend personeel'!$G$42,IF(P126<22,'Rijdend personeel'!$G$36+'Rijdend personeel'!$G$42)))))))))))) -> 0 | Q129: =IF(Q126=0,0,IF(Q126<12,'Rijdend personeel'!$G$16+'Rijdend personeel'!$G$42,IF(Q126<13,'Rijdend personeel'!$G$18+'Rijdend personeel'!$G$42,IF(Q126<14,'Rijdend personeel'!$G$20+'Rijdend personeel'!$G$42,IF(Q126<15,'Rijdend personeel'!$G$22+'Rijdend personeel'!$G$42,IF(Q126<16,'Rijdend personeel'!$G$24+'Rijdend personeel'!$G$42,IF(Q126<17,'Rijdend personeel'!$G$26+'Rijdend personeel'!$G$42,IF(Q126<18,'Rijdend personeel'!$G$28+'Rijdend personeel'!$G$42,IF(Q126<19,'Rijdend personeel'!$G$30+'Rijdend personeel'!$G$42,IF(Q126<20,'Rijdend personeel'!$G$32+'Rijdend personeel'!$G$42,IF(Q126<21,'Rijdend personeel'!$G$34+'Rijdend personeel'!$G$42,IF(Q126<22,'Rijdend personeel'!$G$36+'Rijdend personeel'!$G$42)))))))))))) -> 0 | R129: =IF(R126=0,0,IF(R126<12,'Rijdend personeel'!$G$16+'Rijdend personeel'!$G$42,IF(R126<13,'Rijdend personeel'!$G$18+'Rijdend personeel'!$G$42,IF(R126<14,'Rijdend personeel'!$G$20+'Rijdend personeel'!$G$42,IF(R126<15,'Rijdend personeel'!$G$22+'Rijdend personeel'!$G$42,IF(R126<16,'Rijdend personeel'!$G$24+'Rijdend personeel'!$G$42,IF(R126<17,'Rijdend personeel'!$G$26+'Rijdend personeel'!$G$42,IF(R126<18,'Rijdend personeel'!$G$28+'Rijdend personeel'!$G$42,IF(R126<19,'Rijdend personeel'!$G$30+'Rijdend personeel'!$G$42,IF(R126<20,'Rijdend personeel'!$G$32+'Rijdend personeel'!$G$42,IF(R126<21,'Rijdend personeel'!$G$34+'Rijdend personeel'!$G$42,IF(R126<22,'Rijdend personeel'!$G$36+'Rijdend personeel'!$G$42)))))))))))) -> 0 | S129: =IF(S126=0,0,IF(S126<12,'Rijdend personeel'!$G$16+'Rijdend personeel'!$G$42,IF(S126<13,'Rijdend personeel'!$G$18+'Rijdend personeel'!$G$42,IF(S126<14,'Rijdend personeel'!$G$20+'Rijdend personeel'!$G$42,IF(S126<15,'Rijdend personeel'!$G$22+'Rijdend personeel'!$G$42,IF(S126<16,'Rijdend personeel'!$G$24+'Rijdend personeel'!$G$42,IF(S126<17,'Rijdend personeel'!$G$26+'Rijdend personeel'!$G$42,IF(S126<18,'Rijdend personeel'!$G$28+'Rijdend personeel'!$G$42,IF(S126<19,'Rijdend personeel'!$G$30+'Rijdend personeel'!$G$42,IF(S126<20,'Rijdend personeel'!$G$32+'Rijdend personeel'!$G$42,IF(S126<21,'Rijdend personeel'!$G$34+'Rijdend personeel'!$G$42,IF(S126<22,'Rijdend personeel'!$G$36+'Rijdend personeel'!$G$42)))))))))))) -> 0
C130: Bruto Sal CH2 DUBBEL | E130: =IF(E127=0,0,IF(E127<12,'Rijdend personeel'!$G$16+'Rijdend personeel'!$G$42,IF(E127<13,'Rijdend personeel'!$G$18+'Rijdend personeel'!$G$42,IF(E127<14,'Rijdend personeel'!$G$20+'Rijdend personeel'!$G$42,IF(E127<15,'Rijdend personeel'!$G$22+'Rijdend personeel'!$G$42,IF(E127<16,'Rijdend personeel'!$G$24+'Rijdend personeel'!$G$42,IF(E127<17,'Rijdend personeel'!$G$26+'Rijdend personeel'!$G$42,IF(E127<18,'Rijdend personeel'!$G$28+'Rijdend personeel'!$G$42,IF(E127<19,'Rijdend personeel'!$G$30+'Rijdend personeel'!$G$42,IF(E127<20,'Rijdend personeel'!$G$32+'Rijdend personeel'!$G$42,IF(E127<21,'Rijdend personeel'!$G$34+'Rijdend personeel'!$G$42,IF(E127<22,'Rijdend personeel'!$G$36+'Rijdend personeel'!$G$42)))))))))))) -> 0 | F130: =IF(F127=0,0,IF(F127<12,'Rijdend personeel'!$G$16+'Rijdend personeel'!$G$42,IF(F127<13,'Rijdend personeel'!$G$18+'Rijdend personeel'!$G$42,IF(F127<14,'Rijdend personeel'!$G$20+'Rijdend personeel'!$G$42,IF(F127<15,'Rijdend personeel'!$G$22+'Rijdend personeel'!$G$42,IF(F127<16,'Rijdend personeel'!$G$24+'Rijdend personeel'!$G$42,IF(F127<17,'Rijdend personeel'!$G$26+'Rijdend personeel'!$G$42,IF(F127<18,'Rijdend personeel'!$G$28+'Rijdend personeel'!$G$42,IF(F127<19,'Rijdend personeel'!$G$30+'Rijdend personeel'!$G$42,IF(F127<20,'Rijdend personeel'!$G$32+'Rijdend personeel'!$G$42,IF(F127<21,'Rijdend personeel'!$G$34+'Rijdend personeel'!$G$42,IF(F127<22,'Rijdend personeel'!$G$36+'Rijdend personeel'!$G$42)))))))))))) -> 0 | G130: =IF(G127=0,0,IF(G127<12,'Rijdend personeel'!$G$16+'Rijdend personeel'!$G$42,IF(G127<13,'Rijdend personeel'!$G$18+'Rijdend personeel'!$G$42,IF(G127<14,'Rijdend personeel'!$G$20+'Rijdend personeel'!$G$42,IF(G127<15,'Rijdend personeel'!$G$22+'Rijdend personeel'!$G$42,IF(G127<16,'Rijdend personeel'!$G$24+'Rijdend personeel'!$G$42,IF(G127<17,'Rijdend personeel'!$G$26+'Rijdend personeel'!$G$42,IF(G127<18,'Rijdend personeel'!$G$28+'Rijdend personeel'!$G$42,IF(G127<19,'Rijdend personeel'!$G$30+'Rijdend personeel'!$G$42,IF(G127<20,'Rijdend personeel'!$G$32+'Rijdend personeel'!$G$42,IF(G127<21,'Rijdend personeel'!$G$34+'Rijdend personeel'!$G$42,IF(G127<22,'Rijdend personeel'!$G$36+'Rijdend personeel'!$G$42)))))))))))) -> 0 | H130: =IF(H127=0,0,IF(H127<12,'Rijdend personeel'!$G$16+'Rijdend personeel'!$G$42,IF(H127<13,'Rijdend personeel'!$G$18+'Rijdend personeel'!$G$42,IF(H127<14,'Rijdend personeel'!$G$20+'Rijdend personeel'!$G$42,IF(H127<15,'Rijdend personeel'!$G$22+'Rijdend personeel'!$G$42,IF(H127<16,'Rijdend personeel'!$G$24+'Rijdend personeel'!$G$42,IF(H127<17,'Rijdend personeel'!$G$26+'Rijdend personeel'!$G$42,IF(H127<18,'Rijdend personeel'!$G$28+'Rijdend personeel'!$G$42,IF(H127<19,'Rijdend personeel'!$G$30+'Rijdend personeel'!$G$42,IF(H127<20,'Rijdend personeel'!$G$32+'Rijdend personeel'!$G$42,IF(H127<21,'Rijdend personeel'!$G$34+'Rijdend personeel'!$G$42,IF(H127<22,'Rijdend personeel'!$G$36+'Rijdend personeel'!$G$42)))))))))))) -> 0 | I130: =IF(I127=0,0,IF(I127<12,'Rijdend personeel'!$G$16+'Rijdend personeel'!$G$42,IF(I127<13,'Rijdend personeel'!$G$18+'Rijdend personeel'!$G$42,IF(I127<14,'Rijdend personeel'!$G$20+'Rijdend personeel'!$G$42,IF(I127<15,'Rijdend personeel'!$G$22+'Rijdend personeel'!$G$42,IF(I127<16,'Rijdend personeel'!$G$24+'Rijdend personeel'!$G$42,IF(I127<17,'Rijdend personeel'!$G$26+'Rijdend personeel'!$G$42,IF(I127<18,'Rijdend personeel'!$G$28+'Rijdend personeel'!$G$42,IF(I127<19,'Rijdend personeel'!$G$30+'Rijdend personeel'!$G$42,IF(I127<20,'Rijdend personeel'!$G$32+'Rijdend personeel'!$G$42,IF(I127<21,'Rijdend personeel'!$G$34+'Rijdend personeel'!$G$42,IF(I127<22,'Rijdend personeel'!$G$36+'Rijdend personeel'!$G$42)))))))))))) -> 0 | J130: =IF(J127=0,0,IF(J127<12,'Rijdend personeel'!$G$16+'Rijdend personeel'!$G$42,IF(J127<13,'Rijdend personeel'!$G$18+'Rijdend personeel'!$G$42,IF(J127<14,'Rijdend personeel'!$G$20+'Rijdend personeel'!$G$42,IF(J127<15,'Rijdend personeel'!$G$22+'Rijdend personeel'!$G$42,IF(J127<16,'Rijdend personeel'!$G$24+'Rijdend personeel'!$G$42,IF(J127<17,'Rijdend personeel'!$G$26+'Rijdend personeel'!$G$42,IF(J127<18,'Rijdend personeel'!$G$28+'Rijdend personeel'!$G$42,IF(J127<19,'Rijdend personeel'!$G$30+'Rijdend personeel'!$G$42,IF(J127<20,'Rijdend personeel'!$G$32+'Rijdend personeel'!$G$42,IF(J127<21,'Rijdend personeel'!$G$34+'Rijdend personeel'!$G$42,IF(J127<22,'Rijdend personeel'!$G$36+'Rijdend personeel'!$G$42)))))))))))) -> 0 | K130: =IF(K127=0,0,IF(K127<12,'Rijdend personeel'!$G$16+'Rijdend personeel'!$G$42,IF(K127<13,'Rijdend personeel'!$G$18+'Rijdend personeel'!$G$42,IF(K127<14,'Rijdend personeel'!$G$20+'Rijdend personeel'!$G$42,IF(K127<15,'Rijdend personeel'!$G$22+'Rijdend personeel'!$G$42,IF(K127<16,'Rijdend personeel'!$G$24+'Rijdend personeel'!$G$42,IF(K127<17,'Rijdend personeel'!$G$26+'Rijdend personeel'!$G$42,IF(K127<18,'Rijdend personeel'!$G$28+'Rijdend personeel'!$G$42,IF(K127<19,'Rijdend personeel'!$G$30+'Rijdend personeel'!$G$42,IF(K127<20,'Rijdend personeel'!$G$32+'Rijdend personeel'!$G$42,IF(K127<21,'Rijdend personeel'!$G$34+'Rijdend personeel'!$G$42,IF(K127<22,'Rijdend personeel'!$G$36+'Rijdend personeel'!$G$42)))))))))))) -> 0 | L130: =IF(L127=0,0,IF(L127<12,'Rijdend personeel'!$G$16+'Rijdend personeel'!$G$42,IF(L127<13,'Rijdend personeel'!$G$18+'Rijdend personeel'!$G$42,IF(L127<14,'Rijdend personeel'!$G$20+'Rijdend personeel'!$G$42,IF(L127<15,'Rijdend personeel'!$G$22+'Rijdend personeel'!$G$42,IF(L127<16,'Rijdend personeel'!$G$24+'Rijdend personeel'!$G$42,IF(L127<17,'Rijdend personeel'!$G$26+'Rijdend personeel'!$G$42,IF(L127<18,'Rijdend personeel'!$G$28+'Rijdend personeel'!$G$42,IF(L127<19,'Rijdend personeel'!$G$30+'Rijdend personeel'!$G$42,IF(L127<20,'Rijdend personeel'!$G$32+'Rijdend personeel'!$G$42,IF(L127<21,'Rijdend personeel'!$G$34+'Rijdend personeel'!$G$42,IF(L127<22,'Rijdend personeel'!$G$36+'Rijdend personeel'!$G$42)))))))))))) -> 0 | M130: =IF(M127=0,0,IF(M127<12,'Rijdend personeel'!$G$16+'Rijdend personeel'!$G$42,IF(M127<13,'Rijdend personeel'!$G$18+'Rijdend personeel'!$G$42,IF(M127<14,'Rijdend personeel'!$G$20+'Rijdend personeel'!$G$42,IF(M127<15,'Rijdend personeel'!$G$22+'Rijdend personeel'!$G$42,IF(M127<16,'Rijdend personeel'!$G$24+'Rijdend personeel'!$G$42,IF(M127<17,'Rijdend personeel'!$G$26+'Rijdend personeel'!$G$42,IF(M127<18,'Rijdend personeel'!$G$28+'Rijdend personeel'!$G$42,IF(M127<19,'Rijdend personeel'!$G$30+'Rijdend personeel'!$G$42,IF(M127<20,'Rijdend personeel'!$G$32+'Rijdend personeel'!$G$42,IF(M127<21,'Rijdend personeel'!$G$34+'Rijdend personeel'!$G$42,IF(M127<22,'Rijdend personeel'!$G$36+'Rijdend personeel'!$G$42)))))))))))) -> 0 | N130: =IF(N127=0,0,IF(N127<12,'Rijdend personeel'!$G$16+'Rijdend personeel'!$G$42,IF(N127<13,'Rijdend personeel'!$G$18+'Rijdend personeel'!$G$42,IF(N127<14,'Rijdend personeel'!$G$20+'Rijdend personeel'!$G$42,IF(N127<15,'Rijdend personeel'!$G$22+'Rijdend personeel'!$G$42,IF(N127<16,'Rijdend personeel'!$G$24+'Rijdend personeel'!$G$42,IF(N127<17,'Rijdend personeel'!$G$26+'Rijdend personeel'!$G$42,IF(N127<18,'Rijdend personeel'!$G$28+'Rijdend personeel'!$G$42,IF(N127<19,'Rijdend personeel'!$G$30+'Rijdend personeel'!$G$42,IF(N127<20,'Rijdend personeel'!$G$32+'Rijdend personeel'!$G$42,IF(N127<21,'Rijdend personeel'!$G$34+'Rijdend personeel'!$G$42,IF(N127<22,'Rijdend personeel'!$G$36+'Rijdend personeel'!$G$42)))))))))))) -> 0 | O130: =IF(O127=0,0,IF(O127<12,'Rijdend personeel'!$G$16+'Rijdend personeel'!$G$42,IF(O127<13,'Rijdend personeel'!$G$18+'Rijdend personeel'!$G$42,IF(O127<14,'Rijdend personeel'!$G$20+'Rijdend personeel'!$G$42,IF(O127<15,'Rijdend personeel'!$G$22+'Rijdend personeel'!$G$42,IF(O127<16,'Rijdend personeel'!$G$24+'Rijdend personeel'!$G$42,IF(O127<17,'Rijdend personeel'!$G$26+'Rijdend personeel'!$G$42,IF(O127<18,'Rijdend personeel'!$G$28+'Rijdend personeel'!$G$42,IF(O127<19,'Rijdend personeel'!$G$30+'Rijdend personeel'!$G$42,IF(O127<20,'Rijdend personeel'!$G$32+'Rijdend personeel'!$G$42,IF(O127<21,'Rijdend personeel'!$G$34+'Rijdend personeel'!$G$42,IF(O127<22,'Rijdend personeel'!$G$36+'Rijdend personeel'!$G$42)))))))))))) -> 0 | P130: =IF(P127=0,0,IF(P127<12,'Rijdend personeel'!$G$16+'Rijdend personeel'!$G$42,IF(P127<13,'Rijdend personeel'!$G$18+'Rijdend personeel'!$G$42,IF(P127<14,'Rijdend personeel'!$G$20+'Rijdend personeel'!$G$42,IF(P127<15,'Rijdend personeel'!$G$22+'Rijdend personeel'!$G$42,IF(P127<16,'Rijdend personeel'!$G$24+'Rijdend personeel'!$G$42,IF(P127<17,'Rijdend personeel'!$G$26+'Rijdend personeel'!$G$42,IF(P127<18,'Rijdend personeel'!$G$28+'Rijdend personeel'!$G$42,IF(P127<19,'Rijdend personeel'!$G$30+'Rijdend personeel'!$G$42,IF(P127<20,'Rijdend personeel'!$G$32+'Rijdend personeel'!$G$42,IF(P127<21,'Rijdend personeel'!$G$34+'Rijdend personeel'!$G$42,IF(P127<22,'Rijdend personeel'!$G$36+'Rijdend personeel'!$G$42)))))))))))) -> 0 | Q130: =IF(Q127=0,0,IF(Q127<12,'Rijdend personeel'!$G$16+'Rijdend personeel'!$G$42,IF(Q127<13,'Rijdend personeel'!$G$18+'Rijdend personeel'!$G$42,IF(Q127<14,'Rijdend personeel'!$G$20+'Rijdend personeel'!$G$42,IF(Q127<15,'Rijdend personeel'!$G$22+'Rijdend personeel'!$G$42,IF(Q127<16,'Rijdend personeel'!$G$24+'Rijdend personeel'!$G$42,IF(Q127<17,'Rijdend personeel'!$G$26+'Rijdend personeel'!$G$42,IF(Q127<18,'Rijdend personeel'!$G$28+'Rijdend personeel'!$G$42,IF(Q127<19,'Rijdend personeel'!$G$30+'Rijdend personeel'!$G$42,IF(Q127<20,'Rijdend personeel'!$G$32+'Rijdend personeel'!$G$42,IF(Q127<21,'Rijdend personeel'!$G$34+'Rijdend personeel'!$G$42,IF(Q127<22,'Rijdend personeel'!$G$36+'Rijdend personeel'!$G$42)))))))))))) -> 0 | R130: =IF(R127=0,0,IF(R127<12,'Rijdend personeel'!$G$16+'Rijdend personeel'!$G$42,IF(R127<13,'Rijdend personeel'!$G$18+'Rijdend personeel'!$G$42,IF(R127<14,'Rijdend personeel'!$G$20+'Rijdend personeel'!$G$42,IF(R127<15,'Rijdend personeel'!$G$22+'Rijdend personeel'!$G$42,IF(R127<16,'Rijdend personeel'!$G$24+'Rijdend personeel'!$G$42,IF(R127<17,'Rijdend personeel'!$G$26+'Rijdend personeel'!$G$42,IF(R127<18,'Rijdend personeel'!$G$28+'Rijdend personeel'!$G$42,IF(R127<19,'Rijdend personeel'!$G$30+'Rijdend personeel'!$G$42,IF(R127<20,'Rijdend personeel'!$G$32+'Rijdend personeel'!$G$42,IF(R127<21,'Rijdend personeel'!$G$34+'Rijdend personeel'!$G$42,IF(R127<22,'Rijdend personeel'!$G$36+'Rijdend personeel'!$G$42)))))))))))) -> 0 | S130: =IF(S127=0,0,IF(S127<12,'Rijdend personeel'!$G$16+'Rijdend personeel'!$G$42,IF(S127<13,'Rijdend personeel'!$G$18+'Rijdend personeel'!$G$42,IF(S127<14,'Rijdend personeel'!$G$20+'Rijdend personeel'!$G$42,IF(S127<15,'Rijdend personeel'!$G$22+'Rijdend personeel'!$G$42,IF(S127<16,'Rijdend personeel'!$G$24+'Rijdend personeel'!$G$42,IF(S127<17,'Rijdend personeel'!$G$26+'Rijdend personeel'!$G$42,IF(S127<18,'Rijdend personeel'!$G$28+'Rijdend personeel'!$G$42,IF(S127<19,'Rijdend personeel'!$G$30+'Rijdend personeel'!$G$42,IF(S127<20,'Rijdend personeel'!$G$32+'Rijdend personeel'!$G$42,IF(S127<21,'Rijdend personeel'!$G$34+'Rijdend personeel'!$G$42,IF(S127<22,'Rijdend personeel'!$G$36+'Rijdend personeel'!$G$42)))))))))))) -> 0
C131: Zondagsrust alle CH | E131: =Reis!F150*'Rijdend personeel'!$G$48 -> 0 | F131: =Reis!G150*'Rijdend personeel'!$G$48 -> 0 | G131: =Reis!H150*'Rijdend personeel'!$G$48 -> 0 | H131: =Reis!I150*'Rijdend personeel'!$G$48 -> 0 | I131: =Reis!J150*'Rijdend personeel'!$G$48 -> 0 | J131: =Reis!K150*'Rijdend personeel'!$G$48 -> 0 | K131: =Reis!L150*'Rijdend personeel'!$G$48 -> 0 | L131: =Reis!M150*'Rijdend personeel'!$G$48 -> 0 | M131: =Reis!N150*'Rijdend personeel'!$G$48 -> 0 | N131: =Reis!O150*'Rijdend personeel'!$G$48 -> 0 | O131: =Reis!P150*'Rijdend personeel'!$G$48 -> 0 | P131: =Reis!Q150*'Rijdend personeel'!$G$48 -> 0 | Q131: =Reis!R150*'Rijdend personeel'!$G$48 -> 0 | R131: =Reis!S150*'Rijdend personeel'!$G$48 -> 0 | S131: =Reis!T150*'Rijdend personeel'!$G$48 -> 0
C132: Inactiviteitsdag alle CH | E132: =Reis!F151*'Rijdend personeel'!$G$50 -> 0 | F132: =Reis!G151*'Rijdend personeel'!$G$50 -> 0 | G132: =Reis!H151*'Rijdend personeel'!$G$50 -> 0 | H132: =Reis!I151*'Rijdend personeel'!$G$50 -> 0 | I132: =Reis!J151*'Rijdend personeel'!$G$50 -> 0 | J132: =Reis!K151*'Rijdend personeel'!$G$50 -> 0 | K132: =Reis!L151*'Rijdend personeel'!$G$50 -> 0 | L132: =Reis!M151*'Rijdend personeel'!$G$50 -> 0 | M132: =Reis!N151*'Rijdend personeel'!$G$50 -> 0 | N132: =Reis!O151*'Rijdend personeel'!$G$50 -> 0 | O132: =Reis!P151*'Rijdend personeel'!$G$50 -> 0 | P132: =Reis!Q151*'Rijdend personeel'!$G$50 -> 0 | Q132: =Reis!R151*'Rijdend personeel'!$G$50 -> 0 | R132: =Reis!S151*'Rijdend personeel'!$G$50 -> 0 | S132: =Reis!T151*'Rijdend personeel'!$G$50 -> 0
C133: Eindejaarspremie alle CH | E133: =IF(Reis!F139<1,0,(('Rijdend personeel'!$G$46/'Rijdend personeel'!$G$68)*Reis!F145)) ->  | F133: =IF(Reis!G139<1,0,(('Rijdend personeel'!$G$46/'Rijdend personeel'!$G$68)*Reis!G145)) -> 0 | G133: =IF(Reis!H139<1,0,(('Rijdend personeel'!$G$46/'Rijdend personeel'!$G$68)*Reis!H145)) -> 0 | H133: =IF(Reis!I139<1,0,(('Rijdend personeel'!$G$46/'Rijdend personeel'!$G$68)*Reis!I145)) -> 0 | I133: =IF(Reis!J139<1,0,(('Rijdend personeel'!$G$46/'Rijdend personeel'!$G$68)*Reis!J145)) -> 0 | J133: =IF(Reis!K139<1,0,(('Rijdend personeel'!$G$46/'Rijdend personeel'!$G$68)*Reis!K145)) -> 0 | K133: =IF(Reis!L139<1,0,(('Rijdend personeel'!$G$46/'Rijdend personeel'!$G$68)*Reis!L145)) -> 0 | L133: =IF(Reis!M139<1,0,(('Rijdend personeel'!$G$46/'Rijdend personeel'!$G$68)*Reis!M145)) -> 0 | M133: =IF(Reis!N139<1,0,(('Rijdend personeel'!$G$46/'Rijdend personeel'!$G$68)*Reis!N145)) -> 0 | N133: =IF(Reis!O139<1,0,(('Rijdend personeel'!$G$46/'Rijdend personeel'!$G$68)*Reis!O145)) -> 0 | O133: =IF(Reis!P139<1,0,(('Rijdend personeel'!$G$46/'Rijdend personeel'!$G$68)*Reis!P145)) -> 0 | P133: =IF(Reis!Q139<1,0,(('Rijdend personeel'!$G$46/'Rijdend personeel'!$G$68)*Reis!Q145)) -> 0 | Q133: =IF(Reis!R139<1,0,(('Rijdend personeel'!$G$46/'Rijdend personeel'!$G$68)*Reis!R145)) -> 0 | R133: =IF(Reis!S139<1,0,(('Rijdend personeel'!$G$46/'Rijdend personeel'!$G$68)*Reis!S145)) -> 0 | S133: =IF(Reis!T139<1,0,(('Rijdend personeel'!$G$46/'Rijdend personeel'!$G$68)*Reis!T145)) -> 0
C134: RSZ werkgever alle CH | E134: =IF(Reis!F139<1,0,((E128+E129+E130+E131+E132+E133)*1.08*'Rijdend personeel'!$G$52)) ->  | F134: =IF(Reis!G139<1,0,((F128+F129+F130+F131+F132+F133)*1.08*'Rijdend personeel'!$G$52)) -> 0 | G134: =IF(Reis!H139<1,0,((G128+G129+G130+G131+G132+G133)*1.08*'Rijdend personeel'!$G$52)) -> 0 | H134: =IF(Reis!I139<1,0,((H128+H129+H130+H131+H132+H133)*1.08*'Rijdend personeel'!$G$52)) -> 0 | I134: =IF(Reis!J139<1,0,((I128+I129+I130+I131+I132+I133)*1.08*'Rijdend personeel'!$G$52)) -> 0 | J134: =IF(Reis!K139<1,0,((J128+J129+J130+J131+J132+J133)*1.08*'Rijdend personeel'!$G$52)) -> 0 | K134: =IF(Reis!L139<1,0,((K128+K129+K130+K131+K132+K133)*1.08*'Rijdend personeel'!$G$52)) -> 0 | L134: =IF(Reis!M139<1,0,((L128+L129+L130+L131+L132+L133)*1.08*'Rijdend personeel'!$G$52)) -> 0 | M134: =IF(Reis!N139<1,0,((M128+M129+M130+M131+M132+M133)*1.08*'Rijdend personeel'!$G$52)) -> 0 | N134: =IF(Reis!O139<1,0,((N128+N129+N130+N131+N132+N133)*1.08*'Rijdend personeel'!$G$52)) -> 0 | O134: =IF(Reis!P139<1,0,((O128+O129+O130+O131+O132+O133)*1.08*'Rijdend personeel'!$G$52)) -> 0 | P134: =IF(Reis!Q139<1,0,((P128+P129+P130+P131+P132+P133)*1.08*'Rijdend personeel'!$G$52)) -> 0 | Q134: =IF(Reis!R139<1,0,((Q128+Q129+Q130+Q131+Q132+Q133)*1.08*'Rijdend personeel'!$G$52)) -> 0 | R134: =IF(Reis!S139<1,0,((R128+R129+R130+R131+R132+R133)*1.08*'Rijdend personeel'!$G$52)) -> 0 | S134: =IF(Reis!T139<1,0,((S128+S129+S130+S131+S132+S133)*1.08*'Rijdend personeel'!$G$52)) -> 0
C135: Eco-cheques alle CH | E135: =IF(Reis!F139<1,0,(('Rijdend personeel'!$G$44/'Rijdend personeel'!$G$68)*Reis!F145)) ->  | F135: =IF(Reis!G139<1,0,(('Rijdend personeel'!$G$44/'Rijdend personeel'!$G$68)*Reis!G145)) -> 0 | G135: =IF(Reis!H139<1,0,(('Rijdend personeel'!$G$44/'Rijdend personeel'!$G$68)*Reis!H145)) -> 0 | H135: =IF(Reis!I139<1,0,(('Rijdend personeel'!$G$44/'Rijdend personeel'!$G$68)*Reis!I145)) -> 0 | I135: =IF(Reis!J139<1,0,(('Rijdend personeel'!$G$44/'Rijdend personeel'!$G$68)*Reis!J145)) -> 0 | J135: =IF(Reis!K139<1,0,(('Rijdend personeel'!$G$44/'Rijdend personeel'!$G$68)*Reis!K145)) -> 0 | K135: =IF(Reis!L139<1,0,(('Rijdend personeel'!$G$44/'Rijdend personeel'!$G$68)*Reis!L145)) -> 0 | L135: =IF(Reis!M139<1,0,(('Rijdend personeel'!$G$44/'Rijdend personeel'!$G$68)*Reis!M145)) -> 0 | M135: =IF(Reis!N139<1,0,(('Rijdend personeel'!$G$44/'Rijdend personeel'!$G$68)*Reis!N145)) -> 0 | N135: =IF(Reis!O139<1,0,(('Rijdend personeel'!$G$44/'Rijdend personeel'!$G$68)*Reis!O145)) -> 0 | O135: =IF(Reis!P139<1,0,(('Rijdend personeel'!$G$44/'Rijdend personeel'!$G$68)*Reis!P145)) -> 0 | P135: =IF(Reis!Q139<1,0,(('Rijdend personeel'!$G$44/'Rijdend personeel'!$G$68)*Reis!Q145)) -> 0 | Q135: =IF(Reis!R139<1,0,(('Rijdend personeel'!$G$44/'Rijdend personeel'!$G$68)*Reis!R145)) -> 0 | R135: =IF(Reis!S139<1,0,(('Rijdend personeel'!$G$44/'Rijdend personeel'!$G$68)*Reis!S145)) -> 0 | S135: =IF(Reis!T139<1,0,(('Rijdend personeel'!$G$44/'Rijdend personeel'!$G$68)*Reis!T145)) -> 0
C136: ARAB CH ENKEL | E136: =ROUNDUP(E125,0)*'Rijdend personeel'!$G$40 -> 0 | F136: =ROUNDUP(F125,0)*'Rijdend personeel'!$G$40 -> 0 | G136: =ROUNDUP(G125,0)*'Rijdend personeel'!$G$40 -> 0 | H136: =ROUNDUP(H125,0)*'Rijdend personeel'!$G$40 -> 0 | I136: =ROUNDUP(I125,0)*'Rijdend personeel'!$G$40 -> 0 | J136: =ROUNDUP(J125,0)*'Rijdend personeel'!$G$40 -> 0 | K136: =ROUNDUP(K125,0)*'Rijdend personeel'!$G$40 -> 0 | L136: =ROUNDUP(L125,0)*'Rijdend personeel'!$G$40 -> 0 | M136: =ROUNDUP(M125,0)*'Rijdend personeel'!$G$40 -> 0 | N136: =ROUNDUP(N125,0)*'Rijdend personeel'!$G$40 -> 0 | O136: =ROUNDUP(O125,0)*'Rijdend personeel'!$G$40 -> 0 | P136: =ROUNDUP(P125,0)*'Rijdend personeel'!$G$40 -> 0 | Q136: =ROUNDUP(Q125,0)*'Rijdend personeel'!$G$40 -> 0 | R136: =ROUNDUP(R125,0)*'Rijdend personeel'!$G$40 -> 0 | S136: =ROUNDUP(S125,0)*'Rijdend personeel'!$G$40 -> 0
C137: ARAB CH1 DUBBEL | E137: =ROUNDUP(E126,0)*'Rijdend personeel'!$G$40 -> 0 | F137: =ROUNDUP(F126,0)*'Rijdend personeel'!$G$40 -> 0 | G137: =ROUNDUP(G126,0)*'Rijdend personeel'!$G$40 -> 0 | H137: =ROUNDUP(H126,0)*'Rijdend personeel'!$G$40 -> 0 | I137: =ROUNDUP(I126,0)*'Rijdend personeel'!$G$40 -> 0 | J137: =ROUNDUP(J126,0)*'Rijdend personeel'!$G$40 -> 0 | K137: =ROUNDUP(K126,0)*'Rijdend personeel'!$G$40 -> 0 | L137: =ROUNDUP(L126,0)*'Rijdend personeel'!$G$40 -> 0 | M137: =ROUNDUP(M126,0)*'Rijdend personeel'!$G$40 -> 0 | N137: =ROUNDUP(N126,0)*'Rijdend personeel'!$G$40 -> 0 | O137: =ROUNDUP(O126,0)*'Rijdend personeel'!$G$40 -> 0 | P137: =ROUNDUP(P126,0)*'Rijdend personeel'!$G$40 -> 0 | Q137: =ROUNDUP(Q126,0)*'Rijdend personeel'!$G$40 -> 0 | R137: =ROUNDUP(R126,0)*'Rijdend personeel'!$G$40 -> 0 | S137: =ROUNDUP(S126,0)*'Rijdend personeel'!$G$40 -> 0
C138: ARAB CH2 DUBBEL | E138: =ROUNDUP(E127,0)*'Rijdend personeel'!$G$40 -> 0 | F138: =ROUNDUP(F127,0)*'Rijdend personeel'!$G$40 -> 0 | G138: =ROUNDUP(G127,0)*'Rijdend personeel'!$G$40 -> 0 | H138: =ROUNDUP(H127,0)*'Rijdend personeel'!$G$40 -> 0 | I138: =ROUNDUP(I127,0)*'Rijdend personeel'!$G$40 -> 0 | J138: =ROUNDUP(J127,0)*'Rijdend personeel'!$G$40 -> 0 | K138: =ROUNDUP(K127,0)*'Rijdend personeel'!$G$40 -> 0 | L138: =ROUNDUP(L127,0)*'Rijdend personeel'!$G$40 -> 0 | M138: =ROUNDUP(M127,0)*'Rijdend personeel'!$G$40 -> 0 | N138: =ROUNDUP(N127,0)*'Rijdend personeel'!$G$40 -> 0 | O138: =ROUNDUP(O127,0)*'Rijdend personeel'!$G$40 -> 0 | P138: =ROUNDUP(P127,0)*'Rijdend personeel'!$G$40 -> 0 | Q138: =ROUNDUP(Q127,0)*'Rijdend personeel'!$G$40 -> 0 | R138: =ROUNDUP(R127,0)*'Rijdend personeel'!$G$40 -> 0 | S138: =ROUNDUP(S127,0)*'Rijdend personeel'!$G$40 -> 0
C139: Overige kosten alle CH | E139: =IF(Reis!F139<1,0,((('Rijdend personeel'!$G$54+'Rijdend personeel'!$G$56+'Rijdend personeel'!$G$58+'Rijdend personeel'!$G$60+'Rijdend personeel'!$G$62+'Rijdend personeel'!$G$64+'Rijdend personeel'!$G$66)/'Rijdend personeel'!$G$68)*Reis!F145)) ->  | F139: =IF(Reis!G139<1,0,((('Rijdend personeel'!$G$54+'Rijdend personeel'!$G$56+'Rijdend personeel'!$G$58+'Rijdend personeel'!$G$60+'Rijdend personeel'!$G$62+'Rijdend personeel'!$G$64+'Rijdend personeel'!$G$66)/'Rijdend personeel'!$G$68)*Reis!G145)) -> 0 | G139: =IF(Reis!H139<1,0,((('Rijdend personeel'!$G$54+'Rijdend personeel'!$G$56+'Rijdend personeel'!$G$58+'Rijdend personeel'!$G$60+'Rijdend personeel'!$G$62+'Rijdend personeel'!$G$64+'Rijdend personeel'!$G$66)/'Rijdend personeel'!$G$68)*Reis!H145)) -> 0 | H139: =IF(Reis!I139<1,0,((('Rijdend personeel'!$G$54+'Rijdend personeel'!$G$56+'Rijdend personeel'!$G$58+'Rijdend personeel'!$G$60+'Rijdend personeel'!$G$62+'Rijdend personeel'!$G$64+'Rijdend personeel'!$G$66)/'Rijdend personeel'!$G$68)*Reis!I145)) -> 0 | I139: =IF(Reis!J139<1,0,((('Rijdend personeel'!$G$54+'Rijdend personeel'!$G$56+'Rijdend personeel'!$G$58+'Rijdend personeel'!$G$60+'Rijdend personeel'!$G$62+'Rijdend personeel'!$G$64+'Rijdend personeel'!$G$66)/'Rijdend personeel'!$G$68)*Reis!J145)) -> 0 | J139: =IF(Reis!K139<1,0,((('Rijdend personeel'!$G$54+'Rijdend personeel'!$G$56+'Rijdend personeel'!$G$58+'Rijdend personeel'!$G$60+'Rijdend personeel'!$G$62+'Rijdend personeel'!$G$64+'Rijdend personeel'!$G$66)/'Rijdend personeel'!$G$68)*Reis!K145)) -> 0 | K139: =IF(Reis!L139<1,0,((('Rijdend personeel'!$G$54+'Rijdend personeel'!$G$56+'Rijdend personeel'!$G$58+'Rijdend personeel'!$G$60+'Rijdend personeel'!$G$62+'Rijdend personeel'!$G$64+'Rijdend personeel'!$G$66)/'Rijdend personeel'!$G$68)*Reis!L145)) -> 0 | L139: =IF(Reis!M139<1,0,((('Rijdend personeel'!$G$54+'Rijdend personeel'!$G$56+'Rijdend personeel'!$G$58+'Rijdend personeel'!$G$60+'Rijdend personeel'!$G$62+'Rijdend personeel'!$G$64+'Rijdend personeel'!$G$66)/'Rijdend personeel'!$G$68)*Reis!M145)) -> 0 | M139: =IF(Reis!N139<1,0,((('Rijdend personeel'!$G$54+'Rijdend personeel'!$G$56+'Rijdend personeel'!$G$58+'Rijdend personeel'!$G$60+'Rijdend personeel'!$G$62+'Rijdend personeel'!$G$64+'Rijdend personeel'!$G$66)/'Rijdend personeel'!$G$68)*Reis!N145)) -> 0 | N139: =IF(Reis!O139<1,0,((('Rijdend personeel'!$G$54+'Rijdend personeel'!$G$56+'Rijdend personeel'!$G$58+'Rijdend personeel'!$G$60+'Rijdend personeel'!$G$62+'Rijdend personeel'!$G$64+'Rijdend personeel'!$G$66)/'Rijdend personeel'!$G$68)*Reis!O145)) -> 0 | O139: =IF(Reis!P139<1,0,((('Rijdend personeel'!$G$54+'Rijdend personeel'!$G$56+'Rijdend personeel'!$G$58+'Rijdend personeel'!$G$60+'Rijdend personeel'!$G$62+'Rijdend personeel'!$G$64+'Rijdend personeel'!$G$66)/'Rijdend personeel'!$G$68)*Reis!P145)) -> 0 | P139: =IF(Reis!Q139<1,0,((('Rijdend personeel'!$G$54+'Rijdend personeel'!$G$56+'Rijdend personeel'!$G$58+'Rijdend personeel'!$G$60+'Rijdend personeel'!$G$62+'Rijdend personeel'!$G$64+'Rijdend personeel'!$G$66)/'Rijdend personeel'!$G$68)*Reis!Q145)) -> 0 | Q139: =IF(Reis!R139<1,0,((('Rijdend personeel'!$G$54+'Rijdend personeel'!$G$56+'Rijdend personeel'!$G$58+'Rijdend personeel'!$G$60+'Rijdend personeel'!$G$62+'Rijdend personeel'!$G$64+'Rijdend personeel'!$G$66)/'Rijdend personeel'!$G$68)*Reis!R145)) -> 0 | R139: =IF(Reis!S139<1,0,((('Rijdend personeel'!$G$54+'Rijdend personeel'!$G$56+'Rijdend personeel'!$G$58+'Rijdend personeel'!$G$60+'Rijdend personeel'!$G$62+'Rijdend personeel'!$G$64+'Rijdend personeel'!$G$66)/'Rijdend personeel'!$G$68)*Reis!S145)) -> 0 | S139: =IF(Reis!T139<1,0,((('Rijdend personeel'!$G$54+'Rijdend personeel'!$G$56+'Rijdend personeel'!$G$58+'Rijdend personeel'!$G$60+'Rijdend personeel'!$G$62+'Rijdend personeel'!$G$64+'Rijdend personeel'!$G$66)/'Rijdend personeel'!$G$68)*Reis!T145)) -> 0
C140: Extra bonussen zondag + feestdag | E140: =IF(Reis!F150>0,0,IF(Reis!F145="","",IF(Reis!F145=1,Reis!AD142,IF(Reis!F145=2,Reis!AD142+Reis!AD143,IF(Reis!F145=3,Reis!AD142+Reis!AD143+Reis!AD144))))) ->  | F140: =IF(Reis!G150>0,0,IF(Reis!G145="","",IF(Reis!G145=1,Reis!AE142,IF(Reis!G145=2,Reis!AE142+Reis!AE143,IF(Reis!G145=3,Reis!AE142+Reis!AE143+Reis!AE144))))) ->  | G140: =IF(Reis!H150>0,0,IF(Reis!H145="","",IF(Reis!H145=1,Reis!AF142,IF(Reis!H145=2,Reis!AF142+Reis!AF143,IF(Reis!H145=3,Reis!AF142+Reis!AF143+Reis!AF144))))) ->  | H140: =IF(Reis!I150>0,0,IF(Reis!I145="","",IF(Reis!I145=1,Reis!AG142,IF(Reis!I145=2,Reis!AG142+Reis!AG143,IF(Reis!I145=3,Reis!AG142+Reis!AG143+Reis!AG144))))) ->  | I140: =IF(Reis!J150>0,0,IF(Reis!J145="","",IF(Reis!J145=1,Reis!AH142,IF(Reis!J145=2,Reis!AH142+Reis!AH143,IF(Reis!J145=3,Reis!AH142+Reis!AH143+Reis!AH144))))) ->  | J140: =IF(Reis!K150>0,0,IF(Reis!K145="","",IF(Reis!K145=1,Reis!AI142,IF(Reis!K145=2,Reis!AI142+Reis!AI143,IF(Reis!K145=3,Reis!AI142+Reis!AI143+Reis!AI144))))) ->  | K140: =IF(Reis!L150>0,0,IF(Reis!L145="","",IF(Reis!L145=1,Reis!AJ142,IF(Reis!L145=2,Reis!AJ142+Reis!AJ143,IF(Reis!L145=3,Reis!AJ142+Reis!AJ143+Reis!AJ144))))) ->  | L140: =IF(Reis!M150>0,0,IF(Reis!M145="","",IF(Reis!M145=1,Reis!AK142,IF(Reis!M145=2,Reis!AK142+Reis!AK143,IF(Reis!M145=3,Reis!AK142+Reis!AK143+Reis!AK144))))) ->  | M140: =IF(Reis!N150>0,0,IF(Reis!N145="","",IF(Reis!N145=1,Reis!AL142,IF(Reis!N145=2,Reis!AL142+Reis!AL143,IF(Reis!N145=3,Reis!AL142+Reis!AL143+Reis!AL144))))) ->  | N140: =IF(Reis!O150>0,0,IF(Reis!O145="","",IF(Reis!O145=1,Reis!AM142,IF(Reis!O145=2,Reis!AM142+Reis!AM143,IF(Reis!O145=3,Reis!AM142+Reis!AM143+Reis!AM144))))) ->  | O140: =IF(Reis!P150>0,0,IF(Reis!P145="","",IF(Reis!P145=1,Reis!AN142,IF(Reis!P145=2,Reis!AN142+Reis!AN143,IF(Reis!P145=3,Reis!AN142+Reis!AN143+Reis!AN144))))) ->  | P140: =IF(Reis!Q150>0,0,IF(Reis!Q145="","",IF(Reis!Q145=1,Reis!AO142,IF(Reis!Q145=2,Reis!AO142+Reis!AO143,IF(Reis!Q145=3,Reis!AO142+Reis!AO143+Reis!AO144))))) ->  | Q140: =IF(Reis!R150>0,0,IF(Reis!R145="","",IF(Reis!R145=1,Reis!AP142,IF(Reis!R145=2,Reis!AP142+Reis!AP143,IF(Reis!R145=3,Reis!AP142+Reis!AP143+Reis!AP144))))) ->  | R140: =IF(Reis!S150>0,0,IF(Reis!S145="","",IF(Reis!S145=1,Reis!AQ142,IF(Reis!S145=2,Reis!AQ142+Reis!AQ143,IF(Reis!S145=3,Reis!AQ142+Reis!AQ143+Reis!AQ144))))) ->  | S140: =IF(Reis!T150>0,0,IF(Reis!T145="","",IF(Reis!T145=1,Reis!AR142,IF(Reis!T145=2,Reis!AR142+Reis!AR143,IF(Reis!T145=3,Reis!AR142+Reis!AR143+Reis!AR144))))) -> 
C141: Maaltijdcheques | E141: =IF(Reis!F139<1,0,(('Rijdend personeel'!$G$70*Reis!F145))) -> 0 | F141: =IF(Reis!G139<1,0,(('Rijdend personeel'!$G$70*Reis!G145))) -> 0 | G141: =IF(Reis!H139<1,0,(('Rijdend personeel'!$G$70*Reis!H145))) -> 0 | H141: =IF(Reis!I139<1,0,(('Rijdend personeel'!$G$70*Reis!I145))) -> 0 | I141: =IF(Reis!J139<1,0,(('Rijdend personeel'!$G$70*Reis!J145))) -> 0 | J141: =IF(Reis!K139<1,0,(('Rijdend personeel'!$G$70*Reis!K145))) -> 0 | K141: =IF(Reis!L139<1,0,(('Rijdend personeel'!$G$70*Reis!L145))) -> 0 | L141: =IF(Reis!M139<1,0,(('Rijdend personeel'!$G$70*Reis!M145))) -> 0 | M141: =IF(Reis!N139<1,0,(('Rijdend personeel'!$G$70*Reis!N145))) -> 0 | N141: =IF(Reis!O139<1,0,(('Rijdend personeel'!$G$70*Reis!O145))) -> 0 | O141: =IF(Reis!P139<1,0,(('Rijdend personeel'!$G$70*Reis!P145))) -> 0 | P141: =IF(Reis!Q139<1,0,(('Rijdend personeel'!$G$70*Reis!Q145))) -> 0 | Q141: =IF(Reis!R139<1,0,(('Rijdend personeel'!$G$70*Reis!R145))) -> 0 | R141: =IF(Reis!S139<1,0,(('Rijdend personeel'!$G$70*Reis!S145))) -> 0 | S141: =IF(Reis!T139<1,0,(('Rijdend personeel'!$G$70*Reis!T145))) -> 0
C142: Extra loonkosten alle CH
